Workbook

Sheet 1. Information Sheet
V1: Algoma Power Inc.
V2: Atikokan Hydro Inc.
V3: Attawapiskat Power Corp.
V4: Bluewater Power Distribution Corporation
V5: Brant County Power Inc.
V6: Brantford Power Inc.
V7: Burlington Hydro Inc.
V8: Cambridge and North Dumfries Hydro Inc.
V9: Canadian Niagara Power Inc.
V10: Centre Wellington Hydro Ltd.
V11: Chapleau Public Utilities Corporation
A12: NOTE: This model was provided to the applicant unlocked on October 24, 2013. | M12: Version | N12: 2.2 | V12: Clinton Power Corporation
V13: COLLUS Power Corporation
E14: Utility Name | F14: Hydro Hawkesbury Inc. | V14: Cooperative Hydro Embrun Inc.
V15: E.L.K. Energy Inc.
E16: Service Territory | F16: (if applicable) | V16: Enersource Hydro Mississauga Inc.
V17: Entegrus Powerlines Inc.
E18: Assigned EB Number | F18: EB-2013-0139 | V18: ENWIN Utilities Ltd.
V19: Erie Thames Powerlines Corporation
E20: Name of Contact and Title | F20: LINDA PARISIEN / ASST MANAGER & CFO | V20: Espanola Regional Hydro Distribution Corporation
V21: Essex Powerlines Corporation
E22: Phone Number | F22: 613.632.6689 | V22: Festival Hydro Inc.
V23: Fort Albany Power Corporation
E24: Email Address | F24: lindaparisien@hydrohawkesbury.ca | V24: Fort Frances Power Corporation
V25: Greater Sudbury Hydro Inc.
V26: Grimsby Power Inc.
B27: General Notes 1. Please ensure that your macros have been enabled. (Tools -> Macro -> Security) 2. Due to the time lag of deferral/variance account dispositions, this model assumes that all opening balances include previously disposed of amounts. Accordingly, all "Board Approved Dispositions" are deducted from the opening balance. 3. Please provide information in this model since the last time your balances were disposed. 4. For all Board-Approved dispositions, please ensure that the disposition amount has the same sign (e.g: debit balances are to have a positive figure and credit balance are to have a negative figure) as per the related Board decision. | V27: Guelph Hydro Electric Systems Inc.
V28: Haldimand County Hydro Inc.
B29: Notes | V29: Halton Hills Hydro Inc.
V30: Hearst Power Distribution Company Limited
C31: Pale green cells represent input cells. | V31: Horizon Utilities Corporation
V32: Hydro 2000 Inc.
C33: Pale blue cells represent drop-down lists. The applicant should select the appropriate item from the drop-down list. | V33: Hydro Hawkesbury Inc.
V34: Hydro One Brampton Networks Inc.
C35: White cells contain fixed values, automatically generated values or formulae. | V35: Hydro One Networks Inc.
V36: Hydro Ottawa Limited
V37: Innisfil Hydro Distribution Systems Limited
V38: Kashechewan Power Corporation
V39: Kenora Hydro Electric Corporation Ltd.
V40: Kingston Hydro Corporation
V41: Kitchener-Wilmot Hydro Inc.
V42: Lakefront Utilities Inc.
V43: Lakeland Power Distribution Ltd.
V44: London Hydro Inc.
V45: Midland Power Utility Corporation
V46: Milton Hydro Distribution inc.
V47: Newmarket - Tay Power Distribution Ltd.
V48: Niagara Peninsula Energy Inc.
V49: Niagara-on-the-Lake Hydro Inc.
V50: Norfolk Power Distribution Inc.
V51: North Bay Hydro Distribution Limited
V52: Northern Ontario Wires Inc.
V53: Oakville Hydro Electricity Distribution Inc.
V54: Orangeville Hydro Limited
V55: Orillia Power Distribution Corporation
V56: Oshawa PUC Networks Inc.
V57: Ottawa River Power Corporation
V58: Parry Sound Power Corporation
V59: Peterborough Distribution Incorporated
V60: PowerStream Inc.
V61: PUC Distribution Inc.
V62: Renfrew Hydro Inc.
V63: Rideau St. Lawrence Distribution Inc.
V64: Sioux Lookout Hydro Inc.
V65: St. Thomas Energy Inc.
V66: Thunder Bay Hydro Electricity Distribution Inc.
V67: Tillsonburg Hydro Inc.
V68: Toronto Hydro-Electric System Limited
V69: Veridian Connections Inc.
V70: Wasaga Distribution Inc.
V71: Waterloo North Hydro Inc.
V72: Welland Hydro-Electric System Corp.
V73: Wellington North Power Inc.
V74: West Coast Huron Energy Inc.
V75: West Perth Power Inc.
V76: Westario Power Inc.
V77: Whitby Hydro Electric Corporation
V78: Woodstock Hydro Services Inc.

Sheet 2. 2013 Continuity Schedule
E19: 2005 | O19: 2006 | Y19: 2007 | AI19: 2008 | AS19: 2009 | BC19: 2010 | BM19: 2011 | BW19: 2012 | CJ19: 2013 | CN19: Projected Interest on Dec-31-12 Balances | CQ19: 2.1.7 RRR
C20: Account Descriptions | D20: Account Number | E20: Opening Principal Amounts as of Jan-1-05 | F20: Transactions Debit / (Credit) during 2005 excluding interest and adjustments 3 | G20: Board-Approved Disposition during 2005 | H20: Adjustments during 2005 - other 2 | I20: Closing Principal Balance as of Dec-31-05 | J20: Opening Interest Amounts as of Jan-1-05 | K20: Interest Jan-1 to Dec-31-05 | L20: Board-Approved Disposition during 2005 | M20: Adjustments during 2005 - other 2 | N20: Closing Interest Amounts as of Dec-31-05 | O20: Opening Principal Amounts as of Jan-1-06 | P20: Transactions Debit / (Credit) during 2006 excluding interest and adjustments 3 | Q20: Board-Approved Disposition during 2006 1, 1A | R20: Adjustments during 2006 - other 2 | S20: Closing Principal Balance as of Dec-31-06 | T20: Opening Interest Amounts as of Jan-1-06 | U20: Interest Jan-1 to Dec-31-06 | V20: Board-Approved Disposition during 2006 1, 1A | W20: Adjustments during 2006 - other 2 | X20: Closing Interest Amounts as of Dec-31-06 | Y20: Opening Principal Amounts as of Jan-1-07 | Z20: Transactions Debit / (Credit) during 2007 excluding interest and adjustments 3 | AA20: Board-Approved Disposition during 2007 | AB20: Adjustments during 2007 - other 2 | AC20: Closing Principal Balance as of Dec-31-07 | AD20: Opening Interest Amounts as of Jan-1-07 | AE20: Interest Jan-1 to Dec-31-07 | AF20: Board-Approved Disposition during 2007 | AG20: Adjustments during 2007 - other 2 | AH20: Closing Interest Amounts as of Dec-31-07 | AI20: Opening Principal Amounts as of Jan-1-08 | AJ20: Transactions Debit / (Credit) during 2008 excluding interest and adjustments 3 | AK20: Board-Approved Disposition during 2008 | AL20: Adjustments during 2008 - other 2 | AM20: Closing Principal Balance as of Dec-31-08 | AN20: Opening Interest Amounts as of Jan-1-08 | AO20: Interest Jan-1 to Dec-31-08 | AP20: Board-Approved Disposition during 2008 | AQ20: Adjustments during 2008 - other 2 | AR20: Closing Interest Amounts as of Dec-31-08 | AS20: Opening Principal Amounts as of Jan-1-09 | AT20: Transactions Debit / (Credit) during 2009 excluding interest and adjustments 3 | AU20: Board-Approved Disposition during 2009 | AV20: Adjustments during 2009 - other 2 | AW20: Closing Principal Balance as of Dec-31-09 | AX20: Opening Interest Amounts as of Jan-1-09 | AY20: Interest Jan-1 to Dec-31-09 | AZ20: Board-Approved Disposition during 2009 | BA20: Adjustments during 2009 - other 2 | BB20: Closing Interest Amounts as of Dec-31-09 | BC20: Opening Principal Amounts as of Jan-1-10 | BD20: Transactions Debit / (Credit) during 2010 excluding interest and adjustments 3 | BE20: Board-Approved Disposition during 2010 | BF20: Adjustments during 2010 - other 2 | BG20: Closing Principal Balance as of Dec-31-10 | BH20: Opening Interest Amounts as of Jan-1-10 | BI20: Interest Jan-1 to Dec-31-10 | BJ20: Board-Approved Disposition during 2010 | BK20: Adjustments during 2010 - other 2 | BL20: Closing Interest Amounts as of Dec-31-10 | BM20: Opening Principal Amounts as of Jan-1-11 | BN20: Transactions Debit / (Credit) during 2011 excluding interest and adjustments 3 | BO20: Board-Approved Disposition during 2011 | BP20: Adjustments during 2010 - other 2 | BQ20: Closing Principal Balance as of Dec-31-11 | BR20: Opening Interest Amounts as of Jan-1-11 | BS20: Interest Jan-1 to Dec-31-11 | BT20: Board-Approved Disposition during 2011 | BU20: Adjustments during 2011 - other 2 | BV20: Closing Interest Amounts as of Dec-31-11 | BW20: Opening Principal Amounts as of Jan-1-12 | BX20: Transactions Debit / (Credit) during 2012 excluding interest and adjustments 3 | BY20: Board-Approved Disposition during 2012 | BZ20: Other 2 Adjustments during Q1 2012 | CA20: Other 2 Adjustments during Q2 2012 | CB20: Other 2 Adjustments during Q3 2012 | CC20: Other 2 Adjustments during Q4 2012 | CD20: Closing Principal Balance as of Dec-31-12 | CE20: Opening Interest Amounts as of Jan-1-12 | CF20: Interest Jan-1 to Dec-31-12 | CG20: Board-Approved Disposition during 2012 | CH20: Adjustments during 2012 - other 2 | CI20: Closing Interest Amounts as of Dec-31-12 | CJ20: Principal Disposition during 2013 - instructed by Board | CK20: Interest Disposition during 2013 - instructed by Board | CL20: Closing Principal Balances as of Dec 31-12 Adjusted for Dispositions during 2013 | CM20: Closing Interest Balances as of Dec 31-12 Adjusted for Dispositions during 2013 | CN20: Projected Interest from Jan 1, 2013 to December 31, 2013 on Dec 31 -12 balance adjusted for disposition during 2013 6 | CO20: Projected Interest from January 1, 2014 to April 30, 2014 on Dec 31 -12 balance adjusted for disposition during 2013 6 | CP20: Total Claim | CQ20: As of Dec 31-12 | CR20: Variance RRR vs. 2012 Balance (Principal + Interest)
CP22: Claim before Forecasted Transactions
C23: Group 1 Accounts
A24: 1 | C24: LV Variance Account | D24: 1550 | I24: =E24+F24-G24+H24 -> 0 | N24: =J24+K24-L24+M24 -> 0 | O24: =I24 -> 0 | P24: 53395.46 | S24: =O24+P24-Q24+R24 -> 53395.46 | T24: =N24 -> 0 | X24: =T24+U24-V24+W24 -> 0 | Y24: =S24 -> 53395.46 | Z24: 23492.44 | AC24: =Y24+Z24-AA24+AB24 -> 76887.9 | AD24: =X24 -> 0 | AH24: =AD24+AE24-AF24+AG24 -> 0 | AI24: =AC24 -> 76887.9 | AJ24: 59779.99 | AM24: =AI24+AJ24-AK24+AL24 -> 136667.89 | AN24: =AH24 -> 0 | AO24: 8001.61 | AR24: =AN24+AO24-AP24+AQ24 -> 8001.61 | AS24: =AM24 -> 136667.89 | AT24: 16474.88 | AW24: =AS24+AT24-AU24+AV24 -> 153142.77 | AX24: =AR24 -> 8001.61 | AY24: 1492.92 | BB24: =AX24+AY24-AZ24+BA24 -> 9494.53 | BC24: =AW24 -> 153142.77 | BD24: 31224.85 | BE24: 136667.89 | BG24: =BC24+BD24-BE24+BF24 -> 47699.73 | BH24: =BB24 -> 9494.53 | BI24: 589.46 | BJ24: 9823.61 | BL24: =BH24+BI24-BJ24+BK24 -> 260.38 | BM24: =BG24 -> 47699.73 | BN24: 38101.57 | BO24: 16474.88 | BQ24: =BM24+BN24-BO24+SUM(BP24:BP24) -> 69326.42 | BR24: =BL24 -> 260.38 | BS24: 881.37 | BT24: -36 | BV24: =BR24+BS24-BT24+BU24 -> 1177.75 | BW24: =BQ24 -> 69326.42 | BX24: 47719.79 | BY24: 31224.85 | CD24: =BW24+BX24-BY24+SUM(BZ24:CC24) -> 85821.36 | CE24: =BV24 -> 1177.75 | CF24: 1136.44 | CG24: 986.38 | CI24: =CE24+CF24-CG24+CH24 -> 1327.81 | CJ24: 38102 | CK24: 1090 | CL24: =CD24-CJ24 -> 47719.36 | CM24: =CI24-CK24 -> 237.81 | CN24: =414.76+470.86 -> 885.62 | CP24: =SUM(CL24:CO24) -> 48842.79 | CQ24: 87149.17 | CR24: =CQ24-SUM(CD24,CI24) -> 0
A25: 2 | C25: RSVA - Wholesale Market Service Charge | D25: 1580 | E25: 189779.21 | F25: 90039.4 | I25: =E25+F25-G25+H25 -> 279818.61 | N25: =J25+K25-L25+M25 -> 0 | O25: =I25 -> 279818.61 | P25: -204392.72 | S25: =O25+P25-Q25+R25 -> 75425.89 | T25: =N25 -> 0 | X25: =T25+U25-V25+W25 -> 0 | Y25: =S25 -> 75425.89 | Z25: -141298.74 | AA25: 189779.21 | AC25: =Y25+Z25-AA25+AB25 -> -255652.06 | AD25: =X25 -> 0 | AH25: =AD25+AE25-AF25+AG25 -> 0 | AI25: =AC25 -> -255652.06 | AJ25: -63584.47 | AM25: =AI25+AJ25-AK25+AL25 -> -319236.53 | AN25: =AH25 -> 0 | AO25: 4026.32 | AR25: =AN25+AO25-AP25+AQ25 -> 4026.32 | AS25: =AM25 -> -319236.53 | AT25: -130545.46 | AW25: =AS25+AT25-AU25+AV25 -> -449781.99 | AX25: =AR25 -> 4026.32 | AY25: -4018.88 | BB25: =AX25+AY25-AZ25+BA25 -> 7.44 | BC25: =AW25 -> -449781.99 | BD25: -204029.06 | BE25: -319236.53 | BG25: =BC25+BD25-BE25+SUM(BF25:BF25) -> -334574.52 | BH25: =BB25 -> 7.44 | BI25: -2418 | BJ25: -229.68 | BL25: =BH25+BI25-BJ25+BK25 -> -2180.88 | BM25: =BG25 -> -334574.52 | BN25: -171832.71 | BO25: -130545.46 | BQ25: -375861.77 | BR25: -2180.88 | BS25: -6029.78 | BT25: -2084 | BV25: =BR25+BS25-BT25+BU25 -> -6126.66 | BW25: =BQ25 -> -375861.77 | BX25: -113567.77 | BY25: -204029.06 | CD25: =BW25+BX25-BY25+SUM(BZ25:CC25) -> -285400.48 | CE25: =BV25 -> -6126.66 | CF25: -4900.15 | CG25: -4712.88 | CI25: =CE25+CF25-CG25+CH25 -> -6313.93 | CJ25: -171833 | CK25: -5771 | CL25: =CD25-CJ25 -> -113567.48 | CM25: =CI25-CK25 -> -542.93 | CN25: =-1379.31-1120.59 -> -2499.9 | CP25: =SUM(CL25:CO25) -> -116610.31 | CQ25: -291714.41 | CR25: =CQ25-SUM(CD25,CI25) -> 0
A26: 3 | C26: RSVA - Retail Transmission Network Charge | D26: 1584 | E26: =3746.15-24289 -> -20542.85 | F26: =-8525.66-35838 -> -44363.66 | I26: -64906.51 | N26: 0 | O26: -64906.51 | P26: -25130.26 | S26: -90036.77 | T26: 0 | X26: 0 | Y26: -90036.77 | Z26: -65335.75 | AA26: -56380.85 | AC26: -98991.67 | AD26: 0 | AH26: 0 | AI26: -98991.67 | AJ26: -117781.5 | AM26: -216773.17 | AN26: 0 | AO26: -14658.83 | AR26: -14658.83 | AS26: -216773.17 | AT26: -5521 | AW26: -222294.17 | AX26: -14658.83 | AY26: -2494.87 | BB26: -17153.7 | BC26: -222294.17 | BD26: 58508.3 | BE26: -216773.17 | BG26: 52987.3 | BH26: -17153.7 | BI26: 62.83 | BJ26: -17548.83 | BL26: 457.96 | BM26: 52987.3 | BN26: -4465.71 | BO26: -5521.84 | BQ26: 54043.43 | BR26: 457.96 | BS26: 960.42 | BT26: 297 | BV26: 1121.38 | BW26: 54043.43 | BX26: -7548.6 | BY26: 58508.3 | CD26: -12013.47 | CE26: 1121.38 | CF26: 445.05 | CG26: 1276.96 | CI26: 289.47 | CJ26: -4466 | CK26: 42 | CL26: -7547.47 | CM26: 247.47 | CN26: =-58.06-74.48 -> -132.54 | CP26: -7432.54 | CQ26: -11724.24 | CR26: -0.24
A27: 4 | C27: RSVA - Retail Transmission Connection Charge | D27: 1586 | E27: =-785362.03+137886+68943 -> -578533.03 | F27: =-285906.27-68943-129109 -> -483958.27 | I27: -1062491.3 | N27: 0 | O27: -1062491.3 | P27: -267102.89 | S27: -1329594.19 | T27: 0 | X27: 0 | Y27: -1329594.19 | Z27: -284716.3 | AA27: -538858.03 | AC27: -1075452.46 | AD27: 0 | AH27: 0 | AI27: -1075452.46 | AJ27: -168990.51 | AM27: -1244442.97 | AN27: 0 | AO27: -202316.7 | AR27: -202316.7 | AS27: -1244442.97 | AT27: -56457.17 | AW27: -1300900.14 | AX27: -202316.7 | AY27: -14319.78 | BB27: -216636.48 | BC27: -1300900.14 | BD27: -32155.55 | BE27: -1244442.97 | BG27: -88612.72 | BH27: -216636.48 | BI27: -3055.53 | BJ27: -218909.7 | BL27: -782.31 | BM27: -88612.72 | BN27: -33890.8 | BO27: -56457.17 | BQ27: -66046.35 | BR27: -782.31 | BS27: -1332.17 | BT27: 1269 | BV27: -3383.48 | BW27: -66046.35 | BX27: -20930.62 | BY27: -32155.55 | CD27: -54821.42 | CE27: -3383.48 | CF27: -917.15 | CG27: -2952.31 | CI27: -1348.32 | CJ27: -33891 | CK27: -1251 | CL27: -20930.42 | CM27: -97.32 | CN27: =-264.95-206.53 -> -471.48 | CP27: -21499.22 | CQ27: -56169.74 | CR27: 0
A28: 5 | C28: RSVA - Power (excluding Global Adjustment) | D28: 1588 | E28: 271445.49 | F28: -84237.35 | I28: 187208.14 | N28: 0 | O28: 187208.14 | P28: -10717.54 | S28: 176490.6 | T28: 0 | X28: 0 | Y28: 176490.6 | Z28: -209738.95 | AA28: 271445.49 | AC28: -304693.84 | AD28: 0 | AH28: 0 | AI28: -304693.84 | AJ28: -361591.77 | AM28: -666285.61 | AN28: 0 | AO28: 25466 | AR28: 25466 | AS28: -666285.61 | AT28: 178842.56 | AW28: -487443.05 | AX28: 25466 | AY28: -8292.8 | BB28: 17173.2 | BC28: -487443.05 | BD28: 281183.36 | BE28: -666285.61 | BG28: 460025.92 | BH28: 17173.2 | BI28: 3566.37 | BJ28: 16633 | BL28: 4106.57 | BM28: 460025.92 | BN28: 334728.84 | BO28: -343119.4 | BP28: -521962 | BQ28: 615912.16 | BR28: 4106.57 | BS28: 8057.14 | BT28: 11072 | BU28: 16632.78 | BV28: 17724.49 | BW28: 615912.16 | BX28: 112791.51 | BY28: 281183.36 | CD28: 447520.31 | CE28: 17724.49 | CF28: 9456.53 | CG28: 16024.22 | CI28: 11156.8 | CJ28: 334729 | CK28: 9622 | CL28: 112791.31 | CM28: 1534.8 | CN28: =2162.81+1112.93 -> 3275.74 | CP28: 117601.85 | CQ28: 458677.02 | CR28: -0.08999999991
A29: 6 | C29: RSVA - Global Adjustment | D29: 1589 | E29: 57875.71 | F29: -31151.03 | I29: 26724.68 | N29: 0 | O29: 26724.68 | P29: 109866.99 | S29: 136591.67 | T29: 0 | X29: 0 | Y29: 136591.67 | Z29: 26949.37 | AC29: 163541.04 | AD29: 0 | AH29: 0 | AI29: 163541.04 | AJ29: 68903.69 | AM29: 232444.73 | AN29: 0 | AO29: 17171 | AR29: 17171 | AS29: 232444.73 | AT29: 441493.59 | AW29: 673938.32 | AX29: 17171 | AY29: 4505.98 | BB29: 21676.98 | BC29: 673938.32 | BD29: 53797.49 | BE29: 232444.73 | BG29: 495291.08 | BH29: 21676.98 | BI29: 3262.48 | BJ29: 20219.88 | BL29: 4719.58 | BM29: 495291.08 | BN29: 520284.04 | BO29: 926602.71 | BP29: 485109.12 | BQ29: 574081.53 | BR29: 4719.58 | BS29: 10124.2 | BT29: 38154 | BU29: 20220.1 | BV29: -3090.12 | BW29: 574081.53 | BX29: 266285.87 | BY29: 53797.49 | CD29: 786569.91 | CE29: -3090.12 | CF29: 9482.07 | CG29: -10028.97 | CI29: 16420.92 | CJ29: 520284 | CK29: 17385 | CL29: 266285.91 | CM29: -964.08 | CN29: =3801.4+2627.48 -> 6428.88 | CP29: 271750.71 | CQ29: 802991.18 | CR29: 0.3499999999
A30: 7 | C30: Recovery of Regulatory Asset Balances | D30: 1590 | E30: =207950.37-38301.55 -> 169648.82 | F30: =-11858.89+3405.32-21865.9 -> -30319.47 | I30: 139329.35 | N30: 0 | O30: 139329.35 | P30: -38261.29 | S30: 101068.06 | T30: 0 | X30: 0 | Y30: 101068.06 | Z30: -67395.88 | AA30: -38035.03 | AC30: 71707.21 | AD30: 0 | AH30: 0 | AI30: 71707.21 | AJ30: -34576.65 | AM30: 37130.56 | AN30: 0 | AO30: 25872.28 | AR30: 25872.28 | AS30: 37130.56 | AW30: 37130.56 | AX30: 25872.28 | AY30: 419.82 | BB30: 26292.1 | BC30: 37130.56 | BE30: 37130.56 | BG30: -7.275957614e-12 | BH30: 26292.1 | BI30: 75.81 | BJ30: 25872.28 | BL30: 495.63 | BM30: -7.275957614e-12 | BQ30: -7.275957614e-12 | BR30: 495.63 | BT30: 419.82 | BV30: 75.81 | BW30: -7.275957614e-12 | CD30: -7.275957614e-12 | CE30: 75.81 | CG30: 75.81 | CI30: 1.023181539e-12 | CL30: -7.275957614e-12 | CM30: 1.023181539e-12 | CP30: -6.252776075e-12 | CR30: 6.252776075e-12
A31: 8 | C31: Disposition and Recovery/Refund of Regulatory Balances (2008)7 | D31: 1595 | I31: 0 | N31: 0 | O31: =I31 -> 0 | S31: 0 | T31: =N31 -> 0 | X31: 0 | Y31: =S31 -> 0 | AC31: 0 | AD31: =X31 -> 0 | AH31: 0 | AI31: =AC31 -> 0 | AM31: 0 | AN31: =AH31 -> 0 | AR31: 0 | AS31: =AM31 -> 0 | AW31: 0 | AX31: =AR31 -> 0 | BB31: 0 | BC31: =AW31 -> 0 | BD31: 462758.07 | BE31: 1737394.29 | BG31: -1274636.22 | BH31: =BB31 -> 0 | BI31: 25100.29 | BJ31: 121418.28 | BL31: -96317.99 | BM31: =BG31 -> -1274636.22 | BN31: 785352.96 | BP31: 36852.88 | BQ31: -452430.38 | BR31: -96317.99 | BS31: 45353.88 | BU31: -36852.88 | BV31: -87816.99 | BW31: =BQ31 -> -452430.38 | BX31: 305002.56 | CD31: -147427.82 | CE31: =BV31 -> -87816.99 | CF31: 16811.81 | CG31: -24897 | CI31: -46108.18 | CL31: -147427.82 | CM31: -46108.18 | CN31: =-718.44-1454.69 -> -2173.13 | CP31: -195709.13 | CQ31: -193536 | CR31: 0
A32: 9 | C32: Disposition and Recovery/Refund of Regulatory Balances (2009)7 | D32: 1595 | I32: 0 | N32: 0 | O32: 0 | S32: 0 | T32: 0 | X32: 0 | Y32: 0 | AC32: 0 | AD32: 0 | AH32: 0 | AI32: 0 | AM32: 0 | AN32: 0 | AR32: 0 | AS32: 0 | AW32: 0 | AX32: 0 | BB32: 0 | BC32: 0 | BG32: 0 | BH32: 0 | BL32: 0 | BM32: =BG32 -> 0 | BQ32: 0 | BR32: 0 | BV32: 0 | BW32: =BQ32 -> 0 | CD32: 0 | CE32: =BV32 -> 0 | CI32: 0 | CL32: 0 | CM32: 0 | CP32: 0 | CR32: 0
A33: 9 | C33: Disposition and Recovery/Refund of Regulatory Balances (2010)7 | D33: 1595 | I33: =E33+F33-G33+H33 -> 0 | N33: =J33+K33-L33+M33 -> 0 | O33: =I33 -> 0 | S33: =O33+P33-Q33+R33 -> 0 | T33: =N33 -> 0 | X33: =T33+U33-V33+W33 -> 0 | Y33: =S33 -> 0 | AC33: =Y33+Z33-AA33+AB33 -> 0 | AD33: =X33 -> 0 | AH33: =AD33+AE33-AF33+AG33 -> 0 | AI33: =AC33 -> 0 | AM33: =AI33+AJ33-AK33+AL33 -> 0 | AN33: =AH33 -> 0 | AR33: =AN33+AO33-AP33+AQ33 -> 0 | AS33: =AM33 -> 0 | AW33: =AS33+AT33-AU33+AV33 -> 0 | AX33: =AR33 -> 0 | BB33: =AX33+AY33-AZ33+BA33 -> 0 | BC33: =AW33 -> 0 | BG33: 0 | BH33: =BB33 -> 0 | BL33: =BH33+BI33-BJ33+BK33 -> 0 | BM33: =BG33 -> 0 | BQ33: 0 | BR33: 0 | BV33: =BR33+BS33-BT33+BU33 -> 0 | BW33: =BQ33 -> 0 | CD33: =BW33+BX33-BY33+SUM(BZ33:CC33) -> 0 | CE33: =BV33 -> 0 | CI33: =CE33+CF33-CG33+CH33 -> 0 | CL33: 0 | CM33: 0 | CP33: 0 | CR33: 0
A34: 10 | C34: Disposition and Recovery/Refund of Regulatory Balances (2011)7 | D34: 1595 | I34: =E34+F34-G34+H34 -> 0 | N34: =J34+K34-L34+M34 -> 0 | O34: =I34 -> 0 | S34: =O34+P34-Q34+R34 -> 0 | T34: =N34 -> 0 | X34: =T34+U34-V34+W34 -> 0 | Y34: =S34 -> 0 | AC34: =Y34+Z34-AA34+AB34 -> 0 | AD34: =X34 -> 0 | AH34: =AD34+AE34-AF34+AG34 -> 0 | AI34: =AC34 -> 0 | AM34: =AI34+AJ34-AK34+AL34 -> 0 | AN34: =AH34 -> 0 | AR34: =AN34+AO34-AP34+AQ34 -> 0 | AS34: =AM34 -> 0 | AW34: =AS34+AT34-AU34+AV34 -> 0 | AX34: =AR34 -> 0 | BB34: =AX34+AY34-AZ34+BA34 -> 0 | BC34: =AW34 -> 0 | BG34: =BC34+BD34-BE34+SUM(BF34:BF34) -> 0 | BH34: =BB34 -> 0 | BL34: =BH34+BI34-BJ34+BK34 -> 0 | BM34: =BG34 -> 0 | BQ34: 0 | BR34: 0 | BV34: =BR34+BS34-BT34+BU34 -> 0 | BW34: =BQ34 -> 0 | CD34: =BW34+BX34-BY34+SUM(BZ34:CC34) -> 0 | CE34: =BV34 -> 0 | CI34: =CE34+CF34-CG34+CH34 -> 0 | CL34: 0 | CM34: 0 | CP34: 0 | CR34: 0
C36: Group 1 Sub-Total (including Account 1589 - Global Adjustment) | E36: =SUM(E24:E34) -> 89673.35 | F36: =SUM(F24:F34) -> -583990.38 | G36: 0 | H36: 0 | I36: -494317.03 | J36: 0 | K36: 0 | L36: 0 | M36: 0 | N36: 0 | O36: -494317.03 | P36: -382342.25 | Q36: 0 | R36: 0 | S36: -876659.28 | T36: 0 | U36: 0 | V36: 0 | W36: 0 | X36: 0 | Y36: -876659.28 | Z36: -718043.81 | AA36: -172049.21 | AB36: 0 | AC36: -1422653.88 | AD36: 0 | AE36: 0 | AF36: 0 | AG36: 0 | AH36: 0 | AI36: -1422653.88 | AJ36: -617841.22 | AK36: 0 | AL36: 0 | AM36: -2040495.1 | AN36: 0 | AO36: -136438.32 | AP36: 0 | AQ36: 0 | AR36: -136438.32 | AS36: -2040495.1 | AT36: 444287.4 | AU36: 0 | AV36: 0 | AW36: -1596207.7 | AX36: -136438.32 | AY36: -22707.61 | AZ36: 0 | BA36: 0 | BB36: -159145.93 | BC36: -1596207.7 | BD36: 651287.46 | BE36: -303100.81 | BF36: 0 | BG36: -641819.43 | BH36: -159145.93 | BI36: 27183.71 | BJ36: -42721.16 | BK36: 0 | BL36: -89241.06 | BM36: -641819.43 | BN36: 1468278.19 | BO36: 407433.72 | BP36: 0 | BQ36: =SUM(BQ24:BQ34) -> 419025.04 | BR36: -89241.06 | BS36: 58015.06 | BT36: 49091.82 | BU36: 0 | BV36: -80317.82 | BW36: 419025.04 | BX36: 589752.74 | BY36: 188529.39 | BZ36: 0 | CA36: 0 | CB36: 0 | CC36: 0 | CD36: 820248.39 | CE36: -80317.82 | CF36: 31514.6 | CG36: -24227.79 | CH36: 0 | CI36: -24575.43 | CJ36: 682925 | CK36: 21117 | CL36: 137323.39 | CM36: -45692.43 | CN36: 5313.19 | CO36: 0 | CP36: 96944.15 | CQ36: 795672.98 | CR36: 0.0199999999
C37: Group 1 Sub-Total (excluding Account 1589 - Global Adjustment) | E37: =E36-E38 -> 31797.64 | F37: =F36-F38 -> -552839.35 | G37: =G36-G38 -> 0 | H37: 0 | I37: -521041.71 | J37: 0 | K37: 0 | L37: =L36-L38 -> 0 | M37: =M36-M38 -> 0 | N37: 0 | O37: -521041.71 | P37: -492209.24 | Q37: =Q36-Q38 -> 0 | R37: 0 | S37: -1013250.95 | T37: 0 | U37: 0 | V37: =V36-V38 -> 0 | W37: =W36-W38 -> 0 | X37: =X36-X38 -> 0 | Y37: -1013250.95 | Z37: -744993.18 | AA37: -172049.21 | AB37: 0 | AC37: -1586194.92 | AD37: 0 | AE37: 0 | AF37: =AF36-AF38 -> 0 | AG37: =AG36-AG38 -> 0 | AH37: =AH36-AH38 -> 0 | AI37: -1586194.92 | AJ37: -686744.91 | AK37: 0 | AL37: 0 | AM37: -2272939.83 | AN37: 0 | AO37: -153609.32 | AP37: =AP36-AP38 -> 0 | AQ37: =AQ36-AQ38 -> 0 | AR37: =AR36-AR38 -> -153609.32 | AS37: -2272939.83 | AT37: 2793.81 | AU37: 0 | AV37: 0 | AW37: -2270146.02 | AX37: -153609.32 | AY37: -27213.59 | AZ37: =AZ36-AZ38 -> 0 | BA37: =BA36-BA38 -> 0 | BB37: =BB36-BB38 -> -180822.91 | BC37: -2270146.02 | BD37: 597489.97 | BE37: -535545.54 | BF37: 0 | BG37: -1137110.51 | BH37: -180822.91 | BI37: 23921.23 | BJ37: =BJ36-BJ38 -> -62941.04 | BK37: 0 | BL37: -93960.64 | BM37: -1137110.51 | BN37: 947994.15 | BO37: -519168.99 | BP37: -485109.12 | BQ37: -155056.49 | BR37: -93960.64 | BS37: 47890.86 | BT37: 10937.82 | BU37: -20220.1 | BV37: -77227.7 | BW37: =BW36-BW38 -> -155056.49 | BX37: 323466.87 | BY37: 134731.9 | BZ37: 0 | CA37: 0 | CB37: 0 | CC37: 0 | CD37: 33678.48 | CE37: -77227.7 | CF37: 22032.53 | CG37: -14198.82 | CH37: 0 | CI37: -40996.35 | CJ37: 162641 | CK37: 3732 | CL37: -128962.52 | CM37: -44728.35 | CN37: -1115.69 | CO37: 0 | CP37: -174806.56 | CQ37: =CQ36-CQ38 -> -7318.2 | CR37: -0.3299999999
C38: =C29 -> RSVA - Global Adjustment | D38: 1589 | E38: =E29 -> 57875.71 | F38: =F29 -> -31151.03 | G38: =G29 -> 0 | H38: 0 | I38: 26724.68 | J38: 0 | K38: 0 | L38: =L29 -> 0 | M38: =M29 -> 0 | N38: 0 | O38: 26724.68 | P38: 109866.99 | Q38: =Q29 -> 0 | R38: 0 | S38: 136591.67 | T38: 0 | U38: 0 | V38: 0 | W38: 0 | X38: 0 | Y38: 136591.67 | Z38: 26949.37 | AA38: =AA29 -> 0 | AB38: 0 | AC38: 163541.04 | AD38: 0 | AE38: 0 | AF38: 0 | AG38: 0 | AH38: 0 | AI38: 163541.04 | AJ38: 68903.69 | AK38: 0 | AL38: 0 | AM38: 232444.73 | AN38: 0 | AO38: 17171 | AP38: =AP29 -> 0 | AQ38: =AQ29 -> 0 | AR38: =AR29 -> 17171 | AS38: 232444.73 | AT38: 441493.59 | AU38: 0 | AV38: 0 | AW38: 673938.32 | AX38: 17171 | AY38: 4505.98 | AZ38: 0 | BA38: 0 | BB38: 21676.98 | BC38: =BC29 -> 673938.32 | BD38: 53797.49 | BE38: 232444.73 | BF38: 0 | BG38: 495291.08 | BH38: 21676.98 | BI38: 3262.48 | BJ38: 20219.88 | BK38: 0 | BL38: 4719.58 | BM38: =BM29 -> 495291.08 | BN38: 520284.04 | BO38: 926602.71 | BP38: 485109.12 | BQ38: 574081.53 | BR38: 4719.58 | BS38: 10124.2 | BT38: 38154 | BU38: 20220.1 | BV38: -3090.12 | BW38: =BW29 -> 574081.53 | BX38: 266285.87 | BY38: 53797.49 | BZ38: 0 | CA38: 0 | CB38: 0 | CC38: 0 | CD38: 786569.91 | CE38: -3090.12 | CF38: 9482.07 | CG38: -10028.97 | CH38: 0 | CI38: 16420.92 | CJ38: =CJ29 -> 520284 | CK38: 17385 | CL38: 266285.91 | CM38: -964.08 | CN38: 6428.88 | CO38: 0 | CP38: 271750.71 | CQ38: =CQ29 -> 802991.18 | CR38: 0.3499999999
C40: Group 2 Accounts
A41: 11 | C41: Other Regulatory Assets - Sub-Account - OEB Cost Assessments | D41: 1508 | E41: 13952 | F41: -3101 | I41: =E41+F41-G41+H41 -> 10851 | N41: =J41+K41-L41+M41 -> 0 | O41: =I41 -> 10851 | P41: 1320.23 | S41: =O41+P41-Q41+R41 -> 12171.23 | T41: =N41 -> 0 | X41: =T41+U41-V41+W41 -> 0 | Y41: =S41 -> 12171.23 | Z41: -5428.5 | AC41: =Y41+Z41-AA41+AB41 -> 6742.73 | AD41: =X41 -> 0 | AH41: =AD41+AE41-AF41+AG41 -> 0 | AI41: =AC41 -> 6742.73 | AJ41: 0 | AM41: =AI41+AJ41-AK41+AL41 -> 6742.73 | AN41: =AH41 -> 0 | AO41: 1587.45 | AR41: =AN41+AO41-AP41+AQ41 -> 1587.45 | AS41: =AM41 -> 6742.73 | AT41: 0 | AW41: =AS41+AT41-AU41+AV41 -> 6742.73 | AX41: =AR41 -> 1587.45 | AY41: 76.24 | BB41: =AX41+AY41-AZ41+BA41 -> 1663.69 | BC41: =AW41 -> 6742.73 | BE41: 6742.73 | BG41: =BC41+BD41-BE41+SUM(BF41:BF41) -> 0 | BH41: =BB41 -> 1663.69 | BI41: 13.76 | BJ41: 1677 | BL41: =BH41+BI41-BJ41+BK41 -> 0.45 | BM41: =BG41 -> 0 | BQ41: =BM41+BN41-BO41+SUM(BP41:BP41) -> 0 | BR41: =BL41 -> 0.45 | BV41: =BR41+BS41-BT41+BU41 -> 0.45 | BW41: =BQ41 -> 0 | CD41: =BW41+BX41-BY41+SUM(BZ41:CC41) -> 0 | CE41: =BV41 -> 0.45 | CI41: =CE41+CF41-CG41+CH41 -> 0.45 | CL41: =CD41-CJ41 -> 0 | CM41: =CI41-CK41 -> 0.45 | CP41: 0.45 | CR41: -0.45
A42: 12 | C42: Other Regulatory Assets - Sub-Account - Pension Contributions | D42: 1508 | E42: 22211.28 | F42: =215.63+1809.04 -> 2024.67 | I42: 24235.95 | N42: 0 | O42: 24235.95 | P42: 9132.7 | S42: 33368.65 | T42: 0 | X42: 0 | Y42: 33368.65 | AC42: 33368.65 | AD42: 0 | AH42: 0 | AI42: 33368.65 | AJ42: 0 | AM42: 33368.65 | AN42: 0 | AO42: 4390.48 | AR42: 4390.48 | AS42: 33368.65 | AT42: 0 | AW42: 33368.65 | AX42: 4390.48 | AY42: 377.29 | BB42: 4767.77 | BC42: =AW42 -> 33368.65 | BE42: 33368.65 | BG42: -7.275957614e-12 | BH42: 4767.77 | BI42: 68.13 | BJ42: 4836 | BL42: -0.1 | BM42: -7.275957614e-12 | BQ42: -7.275957614e-12 | BR42: -0.1 | BV42: -0.1 | BW42: -7.275957614e-12 | CD42: -7.275957614e-12 | CE42: -0.1 | CI42: -0.1 | CL42: =CD42-CJ42 -> -7.275957614e-12 | CM42: =CI42-CK42 -> -0.1 | CP42: -0.1 | CR42: 0.1
A43: 13 | C43: Other Regulatory Assets - Sub-Account - Incremental Capital Charges - RATE RIDER | D43: 1508 | I43: 0 | N43: 0 | O43: 0 | S43: 0 | T43: 0 | X43: 0 | Y43: 0 | AC43: 0 | AD43: 0 | AH43: 0 | AI43: 0 | AM43: 0 | AN43: 0 | AR43: 0 | AS43: 0 | AW43: 0 | AX43: 0 | BB43: 0 | BC43: 0 | BG43: 0 | BH43: 0 | BL43: 0 | BM43: 0 | BQ43: 0 | BR43: 0 | BV43: 0 | BW43: 0 | BX43: -119260.14 | CD43: -119260.14 | CE43: 0 | CF43: -531.48 | CI43: -531.48 | CL43: -119260.14 | CM43: -531.48 | CN43: =-576.37-1182.44 -> -1758.81 | CP43: -121550.43 | CQ43: -119791.62 | CR43: 0
A44: 14 | C44: Other Regulatory Assets - Sub-Account - Incremental Capital Expenditures - SUB 115KV EXPENSES | D44: 1508 | I44: 0 | N44: 0 | O44: 0 | S44: 0 | T44: 0 | X44: 0 | Y44: 0 | AC44: 0 | AD44: 0 | AH44: 0 | AI44: 0 | AM44: 0 | AN44: 0 | AR44: 0 | AS44: 0 | AW44: 0 | AX44: 0 | BB44: 0 | BC44: 0 | BG44: 0 | BH44: 0 | BL44: 0 | BM44: 0 | BQ44: 0 | BR44: 0 | BV44: 0 | BW44: 0 | BX44: 84497.41 | CD44: 84497.41 | CE44: 0 | CF44: 735.49 | CI44: 735.49 | CL44: 84497.41 | CM44: 735.49 | CN44: =408.37+837.78 -> 1246.15 | CP44: 86479.05 | CQ44: 85232.9 | CR44: 0
A45: 15 | C45: Other Regulatory Assets - Sub-Account - Incremental Capital Expenditures - SUB 44KV EXPENSES | D45: 1508 | I45: 0 | N45: 0 | O45: 0 | S45: 0 | T45: 0 | X45: 0 | Y45: 0 | AC45: 0 | AD45: 0 | AH45: 0 | AI45: 0 | AM45: 0 | AN45: 0 | AR45: 0 | AS45: 0 | AW45: 0 | AX45: 0 | BB45: 0 | BC45: 0 | BG45: 0 | BH45: 0 | BL45: 0 | BM45: 0 | BQ45: 0 | BR45: 0 | BV45: 0 | BW45: 0 | BX45: 785788.64 | CD45: 785788.64 | CE45: 0 | CF45: 7145.54 | CI45: 7145.54 | CL45: 785788.64 | CM45: 7145.54 | CN45: =3797.62+7790.94 -> 11588.56 | CP45: 804522.74 | CQ45: 792934.18 | CR45: 0
A46: 16 | C46: Other Regulatory Assets - Sub-Account - Deferred IFRS Transition Costs | D46: 1508 | I46: 0 | N46: 0 | O46: 0 | S46: 0 | T46: 0 | X46: 0 | Y46: 0 | AC46: 0 | AD46: 0 | AH46: 0 | AI46: 0 | AM46: 0 | AN46: 0 | AR46: 0 | AS46: 0 | AW46: 0 | AX46: 0 | BB46: 0 | BC46: 0 | BG46: 0 | BH46: 0 | BL46: 0 | BM46: 0 | BN46: 1038.17 | BQ46: 1038.17 | BR46: 0 | BS46: 5.45 | BV46: 5.45 | BW46: 1038.17 | BX46: 4066 | CD46: 5104.17 | CE46: 5.45 | CF46: 52.88 | CI46: 58.33 | CL46: 5104.17 | CM46: 58.33 | CN46: =24.67+50.61 -> 75.28 | CP46: 5237.78 | CQ46: 5163 | CR46: 0.5
A47: 17 | C47: Other Regulatory Assets - Sub-Account - Incremental Capital Charges | D47: 1508 | AS47: 0 | AW47: =AS47+AT47-AU47+AV47 -> 0 | AX47: =AR47 -> 0 | BB47: =AX47+AY47-AZ47+BA47 -> 0 | BC47: =AW47 -> 0 | BD47: 3194.71 | BG47: 3194.71 | BH47: 0 | BI47: 23.12 | BL47: =BH47+BI47-BJ47+BK47 -> 23.12 | BM47: 3194.71 | BQ47: 3194.71 | BR47: 23.12 | BS47: 46.97 | BV47: 70.09 | BW47: 3194.71 | CD47: 3194.71 | CE47: 70.09 | CF47: 47.1 | CI47: 117.19 | CL47: 3194.71 | CM47: 117.19 | CN47: =15.44+31.67 -> 47.11 | CP47: 3359.01 | CQ47: 3312 | CR47: 0.1
A48: 18 | C48: Other Regulatory Assets - Sub-Account - Financial Assistance Payment and Recovery Variance - Ontario Clean Energy Benefit Act8 | D48: 1508 | BM48: 0 | BQ48: 0 | BR48: 0 | BV48: 0 | BW48: 0 | CD48: =BW48+BX48-BY48+SUM(BZ48:CC48) -> 0 | CE48: =BV48 -> 0 | CI48: 0 | CL48: 0 | CM48: 0 | CP48: 0 | CR48: 0
A49: 19 | C49: Other Regulatory Assets - Sub-Account - Financial Assistance Payment and Recovery Carrying Charges | D49: 1508 | BM49: 0 | BQ49: 0 | BR49: 0 | BV49: 0 | BW49: 0 | CD49: =BW49+BX49-BY49+SUM(BZ49:CC49) -> 0 | CE49: =BV49 -> 0 | CI49: 0 | CL49: 0 | CM49: 0 | CP49: 0 | CR49: 0
A50: 20 | C50: Other Regulatory Assets - Sub-Account - Other 4 | D50: 1508 | E50: 0 | F50: 11009 | I50: 11009 | N50: 0 | O50: 11009 | S50: 11009 | T50: 0 | X50: 0 | Y50: 11009 | AA50: 11009 | AC50: 0 | AD50: 0 | AH50: 0 | AI50: 0 | AM50: 0 | AN50: 0 | AO50: 76.17 | AR50: 76.17 | AS50: 0 | AW50: 0 | AX50: 76.17 | AY50: 0 | BB50: 76.17 | BC50: 0 | BG50: 0 | BH50: 76.17 | BJ50: 76 | BL50: 0.17 | BM50: =BG50 -> 0 | BQ50: 0 | BR50: 0.17 | BV50: =BR50+BS50-BT50+BU50 -> 0.17 | BW50: 0 | CD50: =BW50+BX50-BY50+SUM(BZ50:CC50) -> 0 | CE50: =BV50 -> 0.17 | CI50: 0.17 | CL50: 0 | CM50: 0.17 | CP50: 0.17 | CR50: -0.17
A51: 21 | C51: Retail Cost Variance Account - Retail | D51: 1518 | E51: 3336.6 | F51: 911.4 | I51: 4248 | N51: 0 | O51: 4248 | P51: 146.14 | S51: 4394.14 | T51: 0 | X51: 0 | Y51: 4394.14 | Z51: -843.77 | AA51: 3336.6 | AC51: 213.77 | AD51: 0 | AH51: 0 | AI51: 213.77 | AJ51: 1820.91 | AM51: 2034.68 | AN51: 0 | AO51: 130.77 | AR51: 130.77 | AS51: 2034.68 | AT51: -501.54 | AW51: 1533.14 | AX51: 130.77 | AY51: 22.35 | BB51: 153.12 | BC51: 1533.14 | BD51: -179.09 | BE51: 2034.68 | BG51: -680.63 | BH51: 153.12 | BI51: -0.54 | BJ51: 157.77 | BL51: -5.19 | BM51: -680.63 | BN51: 577.92 | BQ51: -102.71 | BR51: -5.19 | BS51: -6.72 | BV51: -11.91 | BW51: -102.71 | BX51: 1933.72 | CD51: 1831.01 | CE51: -11.91 | CF51: 11.09 | CI51: -0.82 | CL51: 1831.01 | CM51: -0.82 | CN51: =9+18 -> 27 | CP51: 1857.19 | CQ51: 1830.19 | CR51: 0
A52: 22 | C52: Misc. Deferred Debits | D52: 1525 | E52: =26811.46+5825 -> 32636.46 | F52: =3240+237727 -> 240967 | I52: 273603.46 | N52: 0 | O52: 273603.46 | P52: 40.5 | S52: 273643.96 | T52: 0 | X52: 0 | Y52: 273643.96 | AA52: 32489 | AC52: 241154.96 | AD52: 0 | AH52: 0 | AI52: 241154.96 | AM52: 241154.96 | AN52: 0 | AO52: 28492.57 | AR52: 28492.57 | AS52: 241154.96 | AW52: 241154.96 | AX52: 28492.57 | AY52: 2726.7 | BB52: 31219.27 | BC52: 241154.96 | BE52: 241154.92 | BG52: 0.04000000001 | BH52: 31219.27 | BI52: 492.39 | BJ52: 31707.57 | BL52: 4.09 | BM52: 0.04000000001 | BQ52: 0.04000000001 | BR52: 4.09 | BV52: 4.09 | BW52: 0.04000000001 | CD52: 0.04000000001 | CE52: 4.09 | CF52: -4.09 | CI52: 1.456612608e-13 | CL52: 0.04000000001 | CM52: 1.456612608e-13 | CP52: 0.04000000001 | CR52: -0.04000000001
A53: 23 | C53: Renewable Generation Connection Capital Deferral Account | D53: 1531 | AW53: 0 | AX53: 0 | BB53: 0 | BC53: 0 | BG53: 0 | BH53: 0 | BL53: 0 | BM53: 0 | BQ53: 0 | BR53: 0 | BV53: 0 | BW53: 0 | CD53: 0 | CE53: 0 | CI53: 0 | CL53: 0 | CM53: 0 | CP53: 0 | CR53: 0
A54: 24 | C54: Renewable Generation Connection OM&A Deferral Account | D54: 1532 | AW54: 0 | AX54: 0 | BB54: 0 | BC54: 0 | BD54: -10000 | BG54: -10000 | BH54: 0 | BL54: 0 | BM54: -10000 | BN54: 10000 | BQ54: 0 | BR54: 0 | BV54: 0 | BW54: 0 | CD54: 0 | CE54: 0 | CI54: 0 | CL54: 0 | CM54: 0 | CP54: 0 | CR54: 0
A55: 25 | C55: Renewable Generation Connection Funding Adder Deferral Account | D55: 1533 | AW55: 0 | AX55: 0 | BB55: 0 | BC55: 0 | BG55: 0 | BH55: 0 | BL55: 0 | BM55: 0 | BQ55: 0 | BR55: 0 | BV55: 0 | BW55: 0 | CD55: 0 | CE55: 0 | CI55: 0 | CL55: 0 | CM55: 0 | CP55: 0 | CR55: 0
A56: 26 | C56: Smart Grid Capital Deferral Account | D56: 1534 | AW56: 0 | AX56: 0 | BB56: 0 | BC56: 0 | BG56: 0 | BH56: 0 | BL56: 0 | BM56: 0 | BQ56: 0 | BR56: 0 | BV56: 0 | BW56: 0 | CD56: 0 | CE56: 0 | CI56: 0 | CL56: 0 | CM56: 0 | CP56: 0 | CR56: 0
A57: 27 | C57: Smart Grid OM&A Deferral Account | D57: 1535 | AW57: 0 | AX57: 0 | BB57: 0 | BC57: 0 | BD57: 1840 | BG57: 1840 | BH57: 0 | BI57: -1.66 | BL57: -1.66 | BM57: 1840 | BQ57: 1840 | BR57: -1.66 | BS57: 8.93 | BV57: 7.27 | BW57: 1840 | CD57: 1840 | CE57: 7.27 | CF57: 27.12 | CI57: 34.39 | CL57: 1840 | CM57: 34.39 | CN57: =9+18 -> 27 | CP57: 1901.39 | CQ57: 1874.39 | CR57: 0
A58: 28 | C58: Smart Grid Funding Adder Deferral Account | D58: 1536 | AW58: 0 | AX58: 0 | BB58: 0 | BC58: 0 | BG58: 0 | BH58: 0 | BL58: 0 | BM58: 0 | BQ58: 0 | BR58: 0 | BV58: 0 | BW58: 0 | CD58: 0 | CE58: 0 | CI58: 0 | CL58: 0 | CM58: 0 | CP58: 0 | CR58: 0
A59: 29 | C59: Retail Cost Variance Account - STR | D59: 1548 | E59: 4344.95 | F59: 1875.65 | I59: 6220.6 | N59: 0 | O59: =I59 -> 6220.6 | P59: 2815.56 | S59: 9036.16 | T59: 0 | X59: 0 | Y59: =S59 -> 9036.16 | Z59: 2519.8 | AA59: 4344.95 | AC59: 7211.01 | AD59: =X59 -> 0 | AH59: 0 | AI59: =AC59 -> 7211.01 | AJ59: 2545.14 | AM59: 9756.15 | AN59: =AH59 -> 0 | AO59: 743.89 | AR59: 743.89 | AS59: =AM59 -> 9756.15 | AT59: 2355.72 | AW59: 12111.87 | AX59: 743.89 | AY59: 115.79 | BB59: 859.68 | BC59: 12111.87 | BD59: 1975 | BE59: 9756.15 | BG59: 4330.72 | BH59: 859.68 | BI59: 48.49 | BJ59: 873.89 | BL59: 34.28 | BM59: 4330.72 | BN59: 2379.75 | BQ59: 6710.47 | BR59: 34.28 | BS59: 81.02 | BV59: 115.3 | BW59: 6710.47 | BX59: 2513.1 | CD59: 9223.57 | CE59: 115.3 | CF59: 115.94 | CI59: 231.24 | CL59: 9223.57 | CM59: 231.24 | CN59: =45+91 -> 136 | CP59: 9590.81 | CQ59: 9454.81 | CR59: 0
A60: 30 | C60: Board-Approved CDM Variance Account | D60: 1567 | BB60: 0 | BG60: 0 | BH60: 0 | BL60: =BH60+BI60-BJ60+BK60 -> 0 | BM60: 0 | BQ60: 0 | BR60: 0 | BV60: =BR60+BS60-BT60+BU60 -> 0 | BW60: 0 | CD60: =BW60+BX60-BY60+SUM(BZ60:CC60) -> 0 | CE60: =BV60 -> 0 | CI60: =CE60+CF60-CG60+CH60 -> 0 | CL60: 0 | CM60: 0 | CP60: 0 | CR60: 0
A61: 31 | C61: Extra-Ordinary Event Costs | D61: 1572 | I61: 0 | N61: 0 | O61: 0 | S61: 0 | T61: 0 | X61: 0 | Y61: =S61 -> 0 | AC61: 0 | AD61: =X61 -> 0 | AH61: 0 | AI61: =AC61 -> 0 | AM61: 0 | AN61: =AH61 -> 0 | AR61: 0 | AS61: =AM61 -> 0 | AW61: 0 | AX61: =AR61 -> 0 | BB61: 0 | BC61: =AW61 -> 0 | BG61: 0 | BH61: 0 | BL61: 0 | BM61: =BG61 -> 0 | BQ61: 0 | BR61: 0 | BV61: =BR61+BS61-BT61+BU61 -> 0 | BW61: =BQ61 -> 0 | CD61: =BW61+BX61-BY61+SUM(BZ61:CC61) -> 0 | CE61: =BV61 -> 0 | CI61: =CE61+CF61-CG61+CH61 -> 0 | CL61: 0 | CM61: 0 | CP61: 0 | CR61: 0
A62: 32 | C62: Deferred Rate Impact Amounts | D62: 1574 | I62: 0 | N62: 0 | O62: 0 | S62: 0 | T62: 0 | X62: 0 | Y62: =S62 -> 0 | AC62: 0 | AD62: =X62 -> 0 | AH62: 0 | AI62: =AC62 -> 0 | AM62: 0 | AN62: =AH62 -> 0 | AR62: 0 | AS62: =AM62 -> 0 | AW62: 0 | AX62: =AR62 -> 0 | BB62: 0 | BC62: =AW62 -> 0 | BG62: 0 | BH62: 0 | BL62: 0 | BM62: =BG62 -> 0 | BQ62: 0 | BR62: 0 | BV62: =BR62+BS62-BT62+BU62 -> 0 | BW62: =BQ62 -> 0 | CD62: 0 | CE62: 0 | CI62: =CE62+CF62-CG62+CH62 -> 0 | CL62: 0 | CM62: 0 | CP62: 0 | CR62: 0
A63: 33 | C63: RSVA - One-time | D63: 1582 | E63: 14807.27 | F63: 10043.68 | I63: 24850.95 | N63: 0 | O63: 24850.95 | S63: 24850.95 | T63: 0 | X63: 0 | Y63: =S63 -> 24850.95 | AA63: 14807.27 | AC63: 10043.68 | AD63: =X63 -> 0 | AH63: 0 | AI63: =AC63 -> 10043.68 | AJ63: 0 | AM63: 10043.68 | AN63: =AH63 -> 0 | AO63: 3258.83 | AR63: 3258.83 | AS63: =AM63 -> 10043.68 | AW63: 10043.68 | AX63: =AR63 -> 3258.83 | AY63: 113.55 | BB63: 3372.38 | BC63: =AW63 -> 10043.68 | BE63: 10043.68 | BG63: 0 | BH63: 3372.38 | BI63: 20.45 | BJ63: 3392.83 | BL63: 0 | BM63: =BG63 -> 0 | BQ63: 0 | BR63: 0 | BV63: =BR63+BS63-BT63+BU63 -> 0 | BW63: =BQ63 -> 0 | CD63: 0 | CE63: 0 | CI63: =CE63+CF63-CG63+CH63 -> 0 | CL63: 0 | CM63: 0 | CP63: 0 | CR63: 0
A64: 34 | C64: Other Deferred Credits | D64: 2425 | I64: 0 | N64: 0 | O64: 0 | S64: 0 | T64: 0 | X64: 0 | Y64: =S64 -> 0 | AC64: 0 | AD64: =X64 -> 0 | AH64: 0 | AI64: =AC64 -> 0 | AM64: 0 | AN64: =AH64 -> 0 | AR64: 0 | AS64: =AM64 -> 0 | AW64: 0 | AX64: =AR64 -> 0 | BB64: 0 | BC64: =AW64 -> 0 | BG64: 0 | BH64: 0 | BL64: 0 | BM64: =BG64 -> 0 | BQ64: 0 | BR64: 0 | BV64: =BR64+BS64-BT64+BU64 -> 0 | BW64: =BQ64 -> 0 | CD64: 0 | CE64: 0 | CI64: =CE64+CF64-CG64+CH64 -> 0 | CL64: 0 | CM64: 0 | CP64: 0 | CR64: 0
C66: Group 2 Sub-Total | E66: =SUM(E41:E64) -> 91288.56 | F66: 263730.4 | G66: 0 | H66: 0 | I66: 355018.96 | J66: 0 | K66: 0 | L66: =SUM(L41:L64) -> 0 | M66: =SUM(M41:M64) -> 0 | N66: =SUM(N41:N64) -> 0 | O66: =SUM(O41:O64) -> 355018.96 | P66: 13455.13 | Q66: 0 | R66: 0 | S66: 368474.09 | T66: 0 | U66: 0 | V66: 0 | W66: 0 | X66: 0 | Y66: =SUM(Y41:Y64) -> 368474.09 | Z66: -3752.47 | AA66: 65986.82 | AB66: 0 | AC66: 298734.8 | AD66: 0 | AE66: 0 | AF66: 0 | AG66: 0 | AH66: 0 | AI66: 298734.8 | AJ66: 4366.05 | AK66: 0 | AL66: 0 | AM66: 303100.85 | AN66: 0 | AO66: 38680.16 | AP66: =SUM(AP41:AP64) -> 0 | AQ66: =SUM(AQ41:AQ64) -> 0 | AR66: 38680.16 | AS66: 303100.85 | AT66: 1854.18 | AU66: 0 | AV66: 0 | AW66: 304955.03 | AX66: 38680.16 | AY66: 3431.92 | AZ66: 0 | BA66: 0 | BB66: 42112.08 | BC66: =SUM(BC41:BC64) -> 304955.03 | BD66: -3169.38 | BE66: 303100.81 | BF66: 0 | BG66: -1315.16 | BH66: 42112.08 | BI66: 664.14 | BJ66: 42721.06 | BK66: 0 | BL66: 55.16 | BM66: =SUM(BM41:BM64) -> -1315.16 | BN66: 13995.84 | BO66: 0 | BP66: 0 | BQ66: 12680.68 | BR66: 55.16 | BS66: 135.65 | BT66: 0 | BU66: 0 | BV66: 190.81 | BW66: =SUM(BW41:BW64) -> 12680.68 | BX66: 759538.73 | BY66: 0 | BZ66: 0 | CA66: 0 | CB66: 0 | CC66: 0 | CD66: 772219.41 | CE66: 190.81 | CF66: 7599.59 | CG66: 0 | CH66: 0 | CI66: 7790.4 | CJ66: =SUM(CJ41:CJ64) -> 0 | CK66: 0 | CL66: 772219.41 | CM66: 7790.4 | CN66: 11388.29 | CO66: 0 | CP66: 791398.1 | CQ66: 780009.85 | CR66: 0.04000000004
A68: 35 | C68: Deferred Payments in Lieu of Taxes | D68: 1562 | E68: =-261313.81 -> -261313.81 | F68: =245134-219623.19 -> 25510.81 | I68: =E68+F68-G68+H68 -> -235803 | J68: 10764.58 | K68: =177.87-1040.62 -> -862.75 | N68: =J68+K68-L68+M68 -> 9901.83 | O68: =I68 -> -235803 | P68: 142729 | S68: =O68+P68-Q68+R68 -> -93074 | T68: =N68 -> 9901.83 | U68: -9766.61 | X68: =T68+U68-V68+W68 -> 135.22 | Y68: =S68 -> -93074 | Z68: 39934.93 | AC68: =Y68+Z68-AA68+AB68 -> -53139.07 | AD68: =X68 -> 135.22 | AE68: -3714.65 | AH68: =AD68+AE68-AF68+AG68 -> -3579.43 | AI68: =AC68 -> -53139.07 | AM68: =AI68+AJ68-AK68+AL68 -> -53139.07 | AN68: =AH68 -> -3579.43 | AO68: -2114.94 | AR68: =AN68+AO68-AP68+AQ68 -> -5694.37 | AS68: =AM68 -> -53139.07 | AW68: =AS68+AT68-AU68+AV68 -> -53139.07 | AX68: =AR68 -> -5694.37 | AY68: -600.84 | BB68: =AX68+AY68-AZ68+BA68 -> -6295.21 | BC68: =AW68 -> -53139.07 | BG68: =BC68+BD68-BE68+SUM(BF68:BF68) -> -53139.07 | BH68: =BB68 -> -6295.21 | BI68: -423.81 | BL68: =BH68+BI68-BJ68+BK68 -> -6719.02 | BM68: =BG68 -> -53139.07 | BN68: 48619.73 | BQ68: =BM68+BN68-BO68+SUM(BP68:BP68) -> -4519.34 | BR68: =BL68 -> -6719.02 | BS68: 4939.02 | BV68: =BR68+BS68-BT68+BU68 -> -1780 | BW68: =BQ68 -> -4519.34 | BY68: -4519 | CD68: =BW68+BX68-BY68+SUM(BZ68:CC68) -> -0.34 | CE68: =BV68 -> -1780 | CG68: -1780 | CI68: =CE68+CF68-CG68+CH68 -> -9.094947018e-13 | CL68: =CD68-CJ68 -> -0.34 | CM68: =CI68-CK68 -> -9.094947018e-13 | CP68: -0.34 | CR68: 0.34
A69: 36 | C69: PILs and Tax Variance for 2006 and Subsequent Years (excludes sub-account and contra account below) | D69: 1592 | I69: =E69+F69-G69+H69 -> 0 | N69: =J69+K69-L69+M69 -> 0 | O69: =I69 -> 0 | S69: =O69+P69-Q69+R69 -> 0 | T69: =N69 -> 0 | X69: =T69+U69-V69+W69 -> 0 | Y69: =S69 -> 0 | AC69: =Y69+Z69-AA69+AB69 -> 0 | AD69: =X69 -> 0 | AH69: =AD69+AE69-AF69+AG69 -> 0 | AI69: =AC69 -> 0 | AM69: =AI69+AJ69-AK69+AL69 -> 0 | AN69: =AH69 -> 0 | AR69: =AN69+AO69-AP69+AQ69 -> 0 | AS69: =AM69 -> 0 | AW69: =AS69+AT69-AU69+AV69 -> 0 | AX69: =AR69 -> 0 | BB69: =AX69+AY69-AZ69+BA69 -> 0 | BC69: =AW69 -> 0 | BG69: =BC69+BD69-BE69+SUM(BF69:BF69) -> 0 | BH69: =BB69 -> 0 | BL69: =BH69+BI69-BJ69+BK69 -> 0 | BM69: =BG69 -> 0 | BQ69: =BM69+BN69-BO69+SUM(BP69:BP69) -> 0 | BR69: =BL69 -> 0 | BV69: =BR69+BS69-BT69+BU69 -> 0 | BW69: =BQ69 -> 0 | CD69: =BW69+BX69-BY69+SUM(BZ69:CC69) -> 0 | CE69: =BV69 -> 0 | CI69: =CE69+CF69-CG69+CH69 -> 0 | CL69: =CD69-CJ69 -> 0 | CM69: =CI69-CK69 -> 0 | CP69: 0 | CR69: 0
A70: 37 | C70: PILs and Tax Variance for 2006 and Subsequent Years - Sub-Account HST/OVAT Input Tax Credits (ITCs) | D70: 1592 | I70: =E70+F70-G70+H70 -> 0 | N70: =J70+K70-L70+M70 -> 0 | O70: =I70 -> 0 | S70: =O70+P70-Q70+R70 -> 0 | T70: =N70 -> 0 | X70: =T70+U70-V70+W70 -> 0 | Y70: =S70 -> 0 | AC70: =Y70+Z70-AA70+AB70 -> 0 | AD70: =X70 -> 0 | AH70: =AD70+AE70-AF70+AG70 -> 0 | AI70: =AC70 -> 0 | AM70: =AI70+AJ70-AK70+AL70 -> 0 | AN70: =AH70 -> 0 | AR70: =AN70+AO70-AP70+AQ70 -> 0 | AS70: =AM70 -> 0 | AW70: =AS70+AT70-AU70+AV70 -> 0 | AX70: =AR70 -> 0 | BB70: =AX70+AY70-AZ70+BA70 -> 0 | BC70: =AW70 -> 0 | BG70: =BC70+BD70-BE70+SUM(BF70:BF70) -> 0 | BH70: =BB70 -> 0 | BL70: =BH70+BI70-BJ70+BK70 -> 0 | BM70: =BG70 -> 0 | BQ70: =BM70+BN70-BO70+SUM(BP70:BP70) -> 0 | BR70: =BL70 -> 0 | BV70: =BR70+BS70-BT70+BU70 -> 0 | BW70: =BQ70 -> 0 | CD70: =BW70+BX70-BY70+SUM(BZ70:CC70) -> 0 | CE70: =BV70 -> 0 | CI70: =CE70+CF70-CG70+CH70 -> 0 | CL70: 0 | CM70: 0 | CP70: 0 | CR70: 0
C72: Total of Group 1 and Group 2 Accounts (including 1562 and 1592) | E72: =+E66+E36+E68+E69+E70 -> -80351.9 | F72: =+F66+F36+F68+F69+F70 -> -294749.17 | G72: 0 | H72: 0 | I72: -375101.07 | J72: 10764.58 | K72: -862.75 | L72: 0 | M72: 0 | N72: 9901.83 | O72: -375101.07 | P72: -226158.12 | Q72: 0 | R72: 0 | S72: -601259.19 | T72: 9901.83 | U72: =+U66+U36+U68+U69+U70 -> -9766.61 | V72: =+V66+V36+V68+V69+V70 -> 0 | W72: 0 | X72: 135.22 | Y72: -601259.19 | Z72: -681861.35 | AA72: -106062.39 | AB72: 0 | AC72: -1177058.15 | AD72: 135.22 | AE72: -3714.65 | AF72: 0 | AG72: 0 | AH72: -3579.43 | AI72: -1177058.15 | AJ72: -613475.17 | AK72: 0 | AL72: 0 | AM72: -1790533.32 | AN72: -3579.43 | AO72: -99873.1 | AP72: 0 | AQ72: 0 | AR72: -103452.53 | AS72: -1790533.32 | AT72: 446141.58 | AU72: 0 | AV72: 0 | AW72: -1344391.74 | AX72: -103452.53 | AY72: -19876.53 | AZ72: 0 | BA72: 0 | BB72: -123329.06 | BC72: -1344391.74 | BD72: 648118.08 | BE72: 0 | BF72: 0 | BG72: -696273.66 | BH72: -123329.06 | BI72: 27424.04 | BJ72: -0.1 | BK72: 0 | BL72: -95904.92 | BM72: -696273.66 | BN72: 1530893.76 | BO72: 407433.72 | BP72: 0 | BQ72: =+BQ66+BQ36+BQ68+BQ69+BQ70 -> 427186.38 | BR72: -95904.92 | BS72: 63089.73 | BT72: 49091.82 | BU72: 0 | BV72: -81907.01 | BW72: 427186.38 | BX72: 1349291.47 | BY72: 184010.39 | BZ72: 0 | CA72: 0 | CB72: =+CB66+CB36+CB68+CB69+CB70 -> 0 | CC72: 0 | CD72: 1592467.46 | CE72: -81907.01 | CF72: 39114.19 | CG72: -26007.79 | CH72: 0 | CI72: -16785.03 | CJ72: 682925 | CK72: 21117 | CL72: 909542.46 | CM72: -37902.03 | CN72: 16701.48 | CO72: 0 | CP72: 888341.91 | CQ72: 1575682.83 | CR72: 0.3999999999
A75: 38 | C75: LRAM Variance Account | D75: 1568 | BG75: =BC75+BD75-BE75+SUM(BF75:BF75) -> 0 | BL75: =BH75+BI75-BJ75+BK75 -> 0 | BM75: =BG75 -> 0 | BQ75: =BM75+BN75-BO75+SUM(BP75:BP75) -> 0 | BR75: =BL75 -> 0 | BV75: =BR75+BS75-BT75+BU75 -> 0 | BW75: =BQ75 -> 0 | CD75: =BW75+BX75-BY75+SUM(BZ75:CC75) -> 0 | CE75: =BV75 -> 0 | CF75: 0 | CI75: =CE75+CF75-CG75+CH75 -> 0 | CL75: =CD75-CJ75 -> 0 | CM75: =CI75-CK75 -> 0 | CP75: =SUM(CL75:CO75) -> 0 | CR75: 0
C78: Total including Account 1568 | E78: =E72+E75 -> -80351.9 | F78: =F72+F75 -> -294749.17 | G78: 0 | H78: 0 | I78: -375101.07 | J78: 10764.58 | K78: -862.75 | L78: 0 | M78: 0 | N78: 9901.83 | O78: -375101.07 | P78: -226158.12 | Q78: 0 | R78: 0 | S78: -601259.19 | T78: 9901.83 | U78: -9766.61 | V78: 0 | W78: 0 | X78: 135.22 | Y78: -601259.19 | Z78: -681861.35 | AA78: -106062.39 | AB78: 0 | AC78: -1177058.15 | AD78: 135.22 | AE78: -3714.65 | AF78: 0 | AG78: 0 | AH78: -3579.43 | AI78: -1177058.15 | AJ78: -613475.17 | AK78: 0 | AL78: 0 | AM78: -1790533.32 | AN78: -3579.43 | AO78: -99873.1 | AP78: 0 | AQ78: 0 | AR78: -103452.53 | AS78: -1790533.32 | AT78: 446141.58 | AU78: 0 | AV78: 0 | AW78: -1344391.74 | AX78: -103452.53 | AY78: -19876.53 | AZ78: 0 | BA78: 0 | BB78: -123329.06 | BC78: -1344391.74 | BD78: 648118.08 | BE78: 0 | BF78: 0 | BG78: -696273.66 | BH78: -123329.06 | BI78: 27424.04 | BJ78: -0.1 | BK78: 0 | BL78: -95904.92 | BM78: -696273.66 | BN78: 1530893.76 | BO78: 407433.72 | BP78: 0 | BQ78: =BQ72+BQ75 -> 427186.38 | BR78: -95904.92 | BS78: 63089.73 | BT78: 49091.82 | BU78: 0 | BV78: -81907.01 | BW78: 427186.38 | BX78: 1349291.47 | BY78: 184010.39 | BZ78: 0 | CA78: 0 | CB78: 0 | CC78: 0 | CD78: 1592467.46 | CE78: -81907.01 | CF78: 39114.19 | CG78: -26007.79 | CH78: 0 | CI78: -16785.03 | CJ78: 682925 | CK78: 21117 | CL78: 909542.46 | CM78: -37902.03 | CN78: 16701.48 | CO78: 0 | CP78: 888341.91 | CQ78: 1575682.83 | CR78: 0.3999999999
A80: 39 | C80: Smart Meter Capital and Recovery Offset Variance - Sub-Account - Capital10 | D80: 1555 | I80: =E80+F80-G80+H80 -> 0 | N80: =J80+K80-L80+M80 -> 0 | O80: =I80 -> 0 | S80: =O80+P80-Q80+R80 -> 0 | T80: =N80 -> 0 | X80: =T80+U80-V80+W80 -> 0 | Y80: =S80 -> 0 | AC80: =Y80+Z80-AA80+AB80 -> 0 | AD80: =X80 -> 0 | AH80: =AD80+AE80-AF80+AG80 -> 0 | AI80: =AC80 -> 0 | AM80: =AI80+AJ80-AK80+AL80 -> 0 | AN80: =AH80 -> 0 | AR80: =AN80+AO80-AP80+AQ80 -> 0 | AS80: =AM80 -> 0 | AT80: 181952.35 | AW80: =AS80+AT80-AU80+AV80 -> 181952.35 | AX80: =AR80 -> 0 | BB80: =AX80+AY80-AZ80+BA80 -> 0 | BC80: =AW80 -> 181952.35 | BD80: 307843.4 | BG80: =BC80+BD80-BE80+SUM(BF80:BF80) -> 489795.75 | BH80: =BB80 -> 0 | BI80: 3480.48 | BL80: =BH80+BI80-BJ80+BK80 -> 3480.48 | BM80: =BG80 -> 489795.75 | BN80: 155742.98 | BQ80: =BM80+BN80-BO80+SUM(BP80:BP80) -> 645538.73 | BR80: =BL80 -> 3480.48 | BS80: 8271 | BV80: =BR80+BS80-BT80+BU80 -> 11751.48 | BW80: =BQ80 -> 645538.73 | BY80: 645538.73 | CD80: =BW80+BX80-BY80+SUM(BZ80:CC80) -> 0 | CE80: =BV80 -> 11751.48 | CF80: 2110.86 | CG80: 13862 | CI80: =CE80+CF80-CG80+CH80 -> 0.34 | CL80: =CD80-CJ80 -> 0 | CM80: =CI80-CK80 -> 0.34 | CP80: 0.34 | CR80: -0.34
A81: 40 | C81: Smart Meter Capital and Recovery Offset Variance - Sub-Account - Recoveries10 | D81: 1555 | I81: =E81+F81-G81+H81 -> 0 | N81: =J81+K81-L81+M81 -> 0 | O81: =I81 -> 0 | P81: -9330 | S81: =O81+P81-Q81+R81 -> -9330 | T81: =N81 -> 0 | X81: =T81+U81-V81+W81 -> 0 | Y81: =S81 -> -9330 | Z81: -16549.83 | AC81: =Y81+Z81-AA81+AB81 -> -25879.83 | AD81: =X81 -> 0 | AH81: =AD81+AE81-AF81+AG81 -> 0 | AI81: =AC81 -> -25879.83 | AJ81: -16647.39 | AM81: =AI81+AJ81-AK81+AL81 -> -42527.22 | AN81: =AH81 -> 0 | AO81: -2195.54 | AR81: =AN81+AO81-AP81+AQ81 -> -2195.54 | AS81: =AM81 -> -42527.22 | AT81: -44006.96 | AW81: =AS81+AT81-AU81+AV81 -> -86534.18 | AX81: =AR81 -> -2195.54 | AY81: 115.32 | BB81: =AX81+AY81-AZ81+BA81 -> -2080.22 | BC81: =AW81 -> -86534.18 | BD81: -82356.96 | BG81: =BC81+BD81-BE81+SUM(BF81:BF81) -> -168891.14 | BH81: =BB81 -> -2080.22 | BI81: -1032.21 | BL81: =BH81+BI81-BJ81+BK81 -> -3112.43 | BM81: =BG81 -> -168891.14 | BN81: -97527.38 | BQ81: =BM81+BN81-BO81+SUM(BP81:BP81) -> -266418.52 | BR81: =BL81 -> -3112.43 | BS81: -3154 | BV81: =BR81+BS81-BT81+BU81 -> -6266.43 | BW81: =BQ81 -> -266418.52 | BX81: -40384.76 | BY81: -306803.42 | CD81: =BW81+BX81-BY81+SUM(BZ81:CC81) -> 0.14 | CE81: =BV81 -> -6266.43 | CF81: -1020.92 | CG81: -7287 | CI81: =CE81+CF81-CG81+CH81 -> -0.35 | CL81: =CD81-CJ81 -> 0.14 | CM81: =CI81-CK81 -> -0.35 | CP81: -0.21 | CR81: 0.21
A82: 41 | C82: Smart Meter Capital and Recovery Offset Variance - Sub-Account - Stranded Meter Costs10 | D82: 1555 | I82: =E82+F82-G82+H82 -> 0 | N82: =J82+K82-L82+M82 -> 0 | O82: =I82 -> 0 | S82: =O82+P82-Q82+R82 -> 0 | T82: =N82 -> 0 | X82: =T82+U82-V82+W82 -> 0 | Y82: =S82 -> 0 | AC82: =Y82+Z82-AA82+AB82 -> 0 | AD82: =X82 -> 0 | AH82: =AD82+AE82-AF82+AG82 -> 0 | AI82: =AC82 -> 0 | AM82: =AI82+AJ82-AK82+AL82 -> 0 | AN82: =AH82 -> 0 | AR82: =AN82+AO82-AP82+AQ82 -> 0 | AS82: =AM82 -> 0 | AW82: =AS82+AT82-AU82+AV82 -> 0 | AX82: =AR82 -> 0 | BB82: =AX82+AY82-AZ82+BA82 -> 0 | BC82: =AW82 -> 0 | BG82: =BC82+BD82-BE82+SUM(BF82:BF82) -> 0 | BH82: =BB82 -> 0 | BL82: =BH82+BI82-BJ82+BK82 -> 0 | BM82: =BG82 -> 0 | BQ82: =BM82+BN82-BO82+SUM(BP82:BP82) -> 0 | BR82: =BL82 -> 0 | BV82: =BR82+BS82-BT82+BU82 -> 0 | BW82: =BQ82 -> 0 | CD82: =BW82+BX82-BY82+SUM(BZ82:CC82) -> 0 | CE82: =BV82 -> 0 | CI82: =CE82+CF82-CG82+CH82 -> 0 | CL82: 0 | CM82: 0 | CP82: 0 | CR82: 0
A83: 42 | C83: Smart Meter OM&A Variance10 | D83: 1556 | I83: =E83+F83-G83+H83 -> 0 | N83: =J83+K83-L83+M83 -> 0 | O83: =I83 -> 0 | S83: =O83+P83-Q83+R83 -> 0 | T83: =N83 -> 0 | X83: =T83+U83-V83+W83 -> 0 | Y83: =S83 -> 0 | AC83: =Y83+Z83-AA83+AB83 -> 0 | AD83: =X83 -> 0 | AH83: =AD83+AE83-AF83+AG83 -> 0 | AI83: =AC83 -> 0 | AM83: =AI83+AJ83-AK83+AL83 -> 0 | AN83: =AH83 -> 0 | AR83: =AN83+AO83-AP83+AQ83 -> 0 | AS83: =AM83 -> 0 | AW83: =AS83+AT83-AU83+AV83 -> 0 | AX83: =AR83 -> 0 | BB83: =AX83+AY83-AZ83+BA83 -> 0 | BC83: =AW83 -> 0 | BD83: 5242.83 | BG83: =BC83+BD83-BE83+SUM(BF83:BF83) -> 5242.83 | BH83: =BB83 -> 0 | BI83: 84.84 | BL83: =BH83+BI83-BJ83+BK83 -> 84.84 | BM83: =BG83 -> 5242.83 | BN83: 3699.79 | BQ83: =BM83+BN83-BO83+SUM(BP83:BP83) -> 8942.62 | BR83: =BL83 -> 84.84 | BS83: 600.61 | BV83: =BR83+BS83-BT83+BU83 -> 685.45 | BW83: =BQ83 -> 8942.62 | BX83: 957.52 | BY83: 9900.14 | CD83: =BW83+BX83-BY83+SUM(BZ83:CC83) -> 0 | CE83: =BV83 -> 685.45 | CF83: 289.05 | CG83: 974.5 | CI83: =CE83+CF83-CG83+CH83 -> 0 | CL83: 0 | CM83: 0 | CP83: 0 | CR83: 0
A85: 43 | C85: IFRS-CGAAP Transition PP&E Amounts Balance + Return Component9 | D85: 1575 | CD85: =BW85+BX85-BY85+SUM(BZ85:CC85) -> 0 | CE85: =BV85 -> 0 | CI85: =CE85+CF85-CG85+CH85 -> 0 | CL85: =CD85-CJ85 -> 0 | CM85: =CI85-CK85 -> 0 | CP85: =SUM(CL85:CO85) -> 0 | CR85: =CQ85-SUM(CD85,CI85) -> 0
A86: 44 | C86: Accounting Changes Under CGAAP Balance + Return Component9 | D86: 1576 | CC86: -25155 | CD86: =BW86+BX86-BY86+SUM(BZ86:CC86) -> -25155 | CE86: =BV86 -> 0 | CI86: =CE86+CF86-CG86+CH86 -> 0 | CL86: =CD86-CJ86 -> -25155 | CM86: =CI86-CK86 -> 0 | CP86: =SUM(CL86:CO86) -> -25155 | CR86: =CQ86-SUM(CD86,CI86) -> 25155
C88: The following is not included in the total claim but are included on a memo basis:
A89: 45 | C89: Deferred PILs Contra Account 5 | D89: 1563 | E89: =261313.81 -> 261313.81 | F89: =-245134+219623.19 -> -25510.81 | I89: =E89+F89-G89+H89 -> 235803 | J89: -10764.58 | K89: =-177.87+1040.62 -> 862.75 | N89: =J89+K89-L89+M89 -> -9901.83 | O89: =I89 -> 235803 | P89: -142729 | S89: =O89+P89-Q89+R89 -> 93074 | T89: =N89 -> -9901.83 | U89: 9766.61 | X89: =T89+U89-V89+W89 -> -135.22 | Y89: =S89 -> 93074 | Z89: -39934.93 | AC89: =Y89+Z89-AA89+AB89 -> 53139.07 | AD89: =X89 -> -135.22 | AE89: 3714.65 | AH89: =AD89+AE89-AF89+AG89 -> 3579.43 | AI89: =AC89 -> 53139.07 | AM89: =AI89+AJ89-AK89+AL89 -> 53139.07 | AN89: =AH89 -> 3579.43 | AO89: 2114.94 | AR89: =AN89+AO89-AP89+AQ89 -> 5694.37 | AS89: =AM89 -> 53139.07 | AW89: =AS89+AT89-AU89+AV89 -> 53139.07 | AX89: =AR89 -> 5694.37 | AY89: 600.84 | BB89: =AX89+AY89-AZ89+BA89 -> 6295.21 | BC89: =AW89 -> 53139.07 | BG89: =BC89+BD89-BE89+SUM(BF89:BF89) -> 53139.07 | BH89: =BB89 -> 6295.21 | BI89: 423.81 | BL89: =BH89+BI89-BJ89+BK89 -> 6719.02 | BM89: =BG89 -> 53139.07 | BN89: -48619.73 | BQ89: =BM89+BN89-BO89+SUM(BP89:BP89) -> 4519.34 | BR89: =BL89 -> 6719.02 | BS89: -4939.02 | BV89: =BR89+BS89-BT89+BU89 -> 1780 | BW89: =BQ89 -> 4519.34 | BX89: -2426.77 | CD89: =BW89+BX89-BY89+SUM(BZ89:CC89) -> 2092.57 | CE89: =BV89 -> 1780 | CF89: -955.87 | CI89: =CE89+CF89-CG89+CH89 -> 824.13 | CL89: =CD89-CJ89 -> 2092.57 | CM89: =CI89-CK89 -> 824.13 | CP89: 2916.7 | CQ89: 2916.36 | CR89: -0.34
A90: 46 | C90: PILs and Tax Variance for 2006 and Subsequent Years - Sub-Account HST/OVAT Contra Account | D90: 1592 | I90: =E90+F90-G90+H90 -> 0 | N90: =J90+K90-L90+M90 -> 0 | O90: =I90 -> 0 | S90: =O90+P90-Q90+R90 -> 0 | T90: =N90 -> 0 | X90: =T90+U90-V90+W90 -> 0 | Y90: =S90 -> 0 | AC90: =Y90+Z90-AA90+AB90 -> 0 | AD90: =X90 -> 0 | AH90: =AD90+AE90-AF90+AG90 -> 0 | AI90: =AC90 -> 0 | AM90: =AI90+AJ90-AK90+AL90 -> 0 | AN90: =AH90 -> 0 | AR90: =AN90+AO90-AP90+AQ90 -> 0 | AS90: =AM90 -> 0 | AW90: =AS90+AT90-AU90+AV90 -> 0 | AX90: =AR90 -> 0 | BB90: =AX90+AY90-AZ90+BA90 -> 0 | BC90: =AW90 -> 0 | BG90: =BC90+BD90-BE90+SUM(BF90:BF90) -> 0 | BH90: =BB90 -> 0 | BL90: =BH90+BI90-BJ90+BK90 -> 0 | BM90: =BG90 -> 0 | BQ90: =BM90+BN90-BO90+SUM(BP90:BP90) -> 0 | BR90: =BL90 -> 0 | BV90: =BR90+BS90-BT90+BU90 -> 0 | BW90: =BQ90 -> 0 | CD90: =BW90+BX90-BY90+SUM(BZ90:CC90) -> 0 | CE90: =BV90 -> 0 | CI90: =CE90+CF90-CG90+CH90 -> 0 | CL90: =CD90-CJ90 -> 0 | CM90: =CI90-CK90 -> 0 | CP90: 0 | CR90: 0
A91: 47 | C91: Disposition and Recovery of Regulatory Balances (2009)7 | D91: 1595 | I91: 0 | N91: 0 | O91: 0 | S91: 0 | T91: 0 | X91: 0 | Y91: 0 | AC91: 0 | AD91: 0 | AH91: 0 | AI91: 0 | AM91: 0 | AN91: 0 | AR91: 0 | AS91: 0 | AW91: 0 | AX91: 0 | BB91: 0 | BC91: 0 | BG91: 0 | BH91: 0 | BL91: 0 | BM91: 0 | BN91: -83209.77 | BO91: -407433.68 | BQ91: 324223.91 | BR91: 0 | BS91: -7567.79 | BT91: -49091.82 | BV91: 41524.03 | BW91: 324223.91 | BX91: -215638.6 | CD91: 108585.31 | CE91: 41524.03 | CF91: -22175.84 | CI91: 19348.19 | CL91: 108585.31 | CM91: 19348.19 | CP91: 127933.5 | CQ91: 127933.5 | CR91: 0
A92: 48 | C92: Disposition and Recovery of Regulatory Balances (2010)7 | D92: 1595 | I92: =E92+F92-G92+H92 -> 0 | N92: =J92+K92-L92+M92 -> 0 | O92: =I92 -> 0 | S92: =O92+P92-Q92+R92 -> 0 | T92: =N92 -> 0 | X92: =T92+U92-V92+W92 -> 0 | Y92: =S92 -> 0 | AC92: =Y92+Z92-AA92+AB92 -> 0 | AD92: =X92 -> 0 | AH92: =AD92+AE92-AF92+AG92 -> 0 | AI92: =AC92 -> 0 | AM92: =AI92+AJ92-AK92+AL92 -> 0 | AN92: =AH92 -> 0 | AR92: =AN92+AO92-AP92+AQ92 -> 0 | AS92: =AM92 -> 0 | AW92: =AS92+AT92-AU92+AV92 -> 0 | AX92: =AR92 -> 0 | BB92: =AX92+AY92-AZ92+BA92 -> 0 | BC92: =AW92 -> 0 | BG92: =BC92+BD92-BE92+SUM(BF92:BF92) -> 0 | BH92: =BB92 -> 0 | BL92: =BH92+BI92-BJ92+BK92 -> 0 | BM92: =BG92 -> 0 | BQ92: =BM92+BN92-BO92+SUM(BP92:BP92) -> 0 | BR92: =BL92 -> 0 | BV92: =BR92+BS92-BT92+BU92 -> 0 | BW92: =BQ92 -> 0 | BX92: -106978.39 | BY92: -196425.8 | CD92: =BW92+BX92-BY92+SUM(BZ92:CC92) -> 89447.41 | CE92: =BV92 -> 0 | CF92: 14697.67 | CG92: 25036.2 | CI92: =CE92+CF92-CG92+CH92 -> -10338.53 | CL92: =CD92-CJ92 -> 89447.41 | CM92: =CI92-CK92 -> -10338.53 | CP92: 79108.88 | CQ92: 79108.88 | CR92: 0
C95: For all Board-Approved dispositions, please ensure that the disposition amount has the same sign (e.g: debit balances are to have a positive figure and credit balance are to have a negative figure) as per the related Board decision.
B96: 1 | C96: Provide supporting statement indicating whether due to denial of costs in 2006 EDR by the Board, 10% transition costs write-off, etc.
B97: 1A | C97: Adjustments Instructed by the Board include deferral/variance account balances moved to Account 1590 as a result of the 2006 EDR and account 1595 during the 2008 EDR and subsequent years as ordered by the Board.
B98: 2 | C98: Please provide explanations for the nature of the adjustments. If the adjustment relates to previously Board Approved disposed balances, please provide amounts for adjustments and include supporting documentations.
B99: 3 | C99: For RSVA accounts only, report the net variance to the account during the year. For all other accounts, record the transactions during the year.
B100: 4 | C100: Please describe "other" components of 1508 and add more component lines if necessary.
B101: 5 | C101: 1563 is a contra-account and is not included in the total but is shown on a memo basis. Account 1562 establishes the obligation to the ratepayer.
B102: 6 | C102: If the LDC’s 2013 rate year begins January 1, 2013, the projected interest is recorded from January 1, 2012 to December 31, 2012 on the December 31, 2011 balance adjusted for the disposed balances approved by the Board in the 2012 rate decision. If the LDC’s 2013 rate year begins May 1, 2013 the projected interest is recorded from January 1, 2012 to April 30, 2013 on the December 31, 2011 balance adjusted for the disposed balances approved by the Board in the 2012 rate decision.
B105: 7 | C105: Include Account 1595 as part of Group 1 accounts (lines 31, 32, 33 and 34) for review and disposition if the recovery (or refund) period has been completed. If the recovery (or refund) period has not been completed, include the
C106: balances in Account 1595 on a memo basis only (line 85).
B107: 8 | C107: As per the January 6, 2011 Letter from the Board, regarding the implementation of the Ontario Clean Energy Benefit:
C108: "By way of exception... The Board does acticipate that licensed distributors that cannot adapt their invoices as of January 1, 2011 will require a variance account for OCEB purposes... The Board expects that any principal
C109: balances in "Sub account Financial Assistance Payment and Recovery Variance - Ontario Clean Energy Benefit Act" will be addressed through the monthly settlement process with the IESO or the host distributor, as applicable.
B110: 9 | C110: The Board requires that disposition of Account 1575 and Account 1576 shall require the use of separate rate riders. In the "Other Adjustments during Q4 2012" column of the continuity schedule, please enter the amounts to be included in the Account 1575 and 1576 rate rider calculation from the applicable Chapter 2 appendices. For Account 1575, please provide the value in cell F39 from the relevant Chapter 2 Appendix (i.e. 2-EA, 2-EB or 2-EC). For Account 1576, please provide the value in cell F39 from the relevant Chapter 2 Appendix (i.e. 2-ED or 2-EE).
B111: 10 | C111: Deferral accounts related to Smart Meter deployment are not to be recovered/refunded through the Deferral and Variance Account rate rider. For details on how to dispose of balances in Smart Meter accounts see the Board's
C112: Guideline: Smart Meter Disposition and Cost Recovery (G-2011-0001)

Sheet 3. Appendix A
B16: Accounts that produced a variance on the 2014 continuity schedule are listed below. Please provide a detailed explanation for each variance below.
C20: Account Descriptions | D20: Account Number | E20: Variance RRR vs. 2012 Balance (Principal + Interest) | F20: Explanation
C23: Group 1 Accounts
A24: 1 | C24: LV Variance Account | D24: 1550 | E24: =IF(ISERROR(VLOOKUP($A24, '2. 2013 Continuity Schedule'!$A$20:$CR$94, MATCH('3. Appendix A'!$E$20, '2. 2013 Continuity Schedule'!$A$20:$CR$20,0),FALSE)), 0, VLOOKUP($A24, '2. 2013 Continuity Schedule'!$A$20:$CR$94, MATCH('3. Appendix A'!$E$20, '2. 2013 Continuity Schedule'!$A$20:$CR$20,0),FALSE)) -> 0
A25: 2 | C25: RSVA - Wholesale Market Service Charge | D25: 1580 | E25: =IF(ISERROR(VLOOKUP($A25, '2. 2013 Continuity Schedule'!$A$20:$CR$94, MATCH('3. Appendix A'!$E$20, '2. 2013 Continuity Schedule'!$A$20:$CR$20,0),FALSE)), 0, VLOOKUP($A25, '2. 2013 Continuity Schedule'!$A$20:$CR$94, MATCH('3. Appendix A'!$E$20, '2. 2013 Continuity Schedule'!$A$20:$CR$20,0),FALSE)) -> 0
A26: 3 | C26: RSVA - Retail Transmission Network Charge | D26: 1584 | E26: =IF(ISERROR(VLOOKUP($A26, '2. 2013 Continuity Schedule'!$A$20:$CR$94, MATCH('3. Appendix A'!$E$20, '2. 2013 Continuity Schedule'!$A$20:$CR$20,0),FALSE)), 0, VLOOKUP($A26, '2. 2013 Continuity Schedule'!$A$20:$CR$94, MATCH('3. Appendix A'!$E$20, '2. 2013 Continuity Schedule'!$A$20:$CR$20,0),FALSE)) -> -0.24
A27: 4 | C27: RSVA - Retail Transmission Connection Charge | D27: 1586 | E27: =IF(ISERROR(VLOOKUP($A27, '2. 2013 Continuity Schedule'!$A$20:$CR$94, MATCH('3. Appendix A'!$E$20, '2. 2013 Continuity Schedule'!$A$20:$CR$20,0),FALSE)), 0, VLOOKUP($A27, '2. 2013 Continuity Schedule'!$A$20:$CR$94, MATCH('3. Appendix A'!$E$20, '2. 2013 Continuity Schedule'!$A$20:$CR$20,0),FALSE)) -> 0
A28: 5 | C28: RSVA - Power (excluding Global Adjustment) | D28: 1588 | E28: =IF(ISERROR(VLOOKUP($A28, '2. 2013 Continuity Schedule'!$A$20:$CR$94, MATCH('3. Appendix A'!$E$20, '2. 2013 Continuity Schedule'!$A$20:$CR$20,0),FALSE)), 0, VLOOKUP($A28, '2. 2013 Continuity Schedule'!$A$20:$CR$94, MATCH('3. Appendix A'!$E$20, '2. 2013 Continuity Schedule'!$A$20:$CR$20,0),FALSE)) -> -0.08999999991
A29: 6 | C29: RSVA - Global Adjustment | D29: 1589 | E29: =IF(ISERROR(VLOOKUP($A29, '2. 2013 Continuity Schedule'!$A$20:$CR$94, MATCH('3. Appendix A'!$E$20, '2. 2013 Continuity Schedule'!$A$20:$CR$20,0),FALSE)), 0, VLOOKUP($A29, '2. 2013 Continuity Schedule'!$A$20:$CR$94, MATCH('3. Appendix A'!$E$20, '2. 2013 Continuity Schedule'!$A$20:$CR$20,0),FALSE)) -> 0.3499999999
A30: 7 | C30: Recovery of Regulatory Asset Balances | D30: 1590 | E30: =IF(ISERROR(VLOOKUP($A30, '2. 2013 Continuity Schedule'!$A$20:$CR$94, MATCH('3. Appendix A'!$E$20, '2. 2013 Continuity Schedule'!$A$20:$CR$20,0),FALSE)), 0, VLOOKUP($A30, '2. 2013 Continuity Schedule'!$A$20:$CR$94, MATCH('3. Appendix A'!$E$20, '2. 2013 Continuity Schedule'!$A$20:$CR$20,0),FALSE)) -> 6.252776075e-12
A31: 8 | C31: Disposition and Recovery/Refund of Regulatory Balances (2008)7 | D31: 1595 | E31: =IF(ISERROR(VLOOKUP($A31, '2. 2013 Continuity Schedule'!$A$20:$CR$94, MATCH('3. Appendix A'!$E$20, '2. 2013 Continuity Schedule'!$A$20:$CR$20,0),FALSE)), 0, VLOOKUP($A31, '2. 2013 Continuity Schedule'!$A$20:$CR$94, MATCH('3. Appendix A'!$E$20, '2. 2013 Continuity Schedule'!$A$20:$CR$20,0),FALSE)) -> 0
A32: 9 | C32: Disposition and Recovery/Refund of Regulatory Balances (2009)7 | D32: 1595 | E32: =IF(ISERROR(VLOOKUP($A32, '2. 2013 Continuity Schedule'!$A$20:$CR$94, MATCH('3. Appendix A'!$E$20, '2. 2013 Continuity Schedule'!$A$20:$CR$20,0),FALSE)), 0, VLOOKUP($A32, '2. 2013 Continuity Schedule'!$A$20:$CR$94, MATCH('3. Appendix A'!$E$20, '2. 2013 Continuity Schedule'!$A$20:$CR$20,0),FALSE)) -> 0
A33: 9 | C33: Disposition and Recovery/Refund of Regulatory Balances (2010)7 | D33: 1595 | E33: =IF(ISERROR(VLOOKUP($A33, '2. 2013 Continuity Schedule'!$A$20:$CR$94, MATCH('3. Appendix A'!$E$20, '2. 2013 Continuity Schedule'!$A$20:$CR$20,0),FALSE)), 0, VLOOKUP($A33, '2. 2013 Continuity Schedule'!$A$20:$CR$94, MATCH('3. Appendix A'!$E$20, '2. 2013 Continuity Schedule'!$A$20:$CR$20,0),FALSE)) -> 0
A34: 10 | C34: Disposition and Recovery/Refund of Regulatory Balances (2011)7 | D34: 1595 | E34: =IF(ISERROR(VLOOKUP($A34, '2. 2013 Continuity Schedule'!$A$20:$CR$94, MATCH('3. Appendix A'!$E$20, '2. 2013 Continuity Schedule'!$A$20:$CR$20,0),FALSE)), 0, VLOOKUP($A34, '2. 2013 Continuity Schedule'!$A$20:$CR$94, MATCH('3. Appendix A'!$E$20, '2. 2013 Continuity Schedule'!$A$20:$CR$20,0),FALSE)) -> 0
C35: Group 2 Accounts
A36: 11 | C36: Other Regulatory Assets - Sub-Account - OEB Cost Assessments | D36: 1508 | E36: =IF(ISERROR(VLOOKUP($A36, '2. 2013 Continuity Schedule'!$A$20:$CR$94, MATCH('3. Appendix A'!$E$20, '2. 2013 Continuity Schedule'!$A$20:$CR$20,0),FALSE)), 0, VLOOKUP($A36, '2. 2013 Continuity Schedule'!$A$20:$CR$94, MATCH('3. Appendix A'!$E$20, '2. 2013 Continuity Schedule'!$A$20:$CR$20,0),FALSE)) -> -0.45
A37: 12 | C37: Other Regulatory Assets - Sub-Account - Pension Contributions | D37: 1508 | E37: =IF(ISERROR(VLOOKUP($A37, '2. 2013 Continuity Schedule'!$A$20:$CR$94, MATCH('3. Appendix A'!$E$20, '2. 2013 Continuity Schedule'!$A$20:$CR$20,0),FALSE)), 0, VLOOKUP($A37, '2. 2013 Continuity Schedule'!$A$20:$CR$94, MATCH('3. Appendix A'!$E$20, '2. 2013 Continuity Schedule'!$A$20:$CR$20,0),FALSE)) -> 0.1
A38: 13 | C38: Other Regulatory Assets - Sub-Account - Deferred IFRS Transition Costs | D38: 1508 | E38: =IF(ISERROR(VLOOKUP($A38, '2. 2013 Continuity Schedule'!$A$20:$CR$94, MATCH('3. Appendix A'!$E$20, '2. 2013 Continuity Schedule'!$A$20:$CR$20,0),FALSE)), 0, VLOOKUP($A38, '2. 2013 Continuity Schedule'!$A$20:$CR$94, MATCH('3. Appendix A'!$E$20, '2. 2013 Continuity Schedule'!$A$20:$CR$20,0),FALSE)) -> 0
A39: 14 | C39: Other Regulatory Assets - Sub-Account - Incremental Capital Charges | D39: 1508 | E39: =IF(ISERROR(VLOOKUP($A39, '2. 2013 Continuity Schedule'!$A$20:$CR$94, MATCH('3. Appendix A'!$E$20, '2. 2013 Continuity Schedule'!$A$20:$CR$20,0),FALSE)), 0, VLOOKUP($A39, '2. 2013 Continuity Schedule'!$A$20:$CR$94, MATCH('3. Appendix A'!$E$20, '2. 2013 Continuity Schedule'!$A$20:$CR$20,0),FALSE)) -> 0
A40: 15 | C40: Other Regulatory Assets - Sub-Account - Financial Assistance Payment and Recovery Variance - Ontario Clean Energy Benefit Act8 | D40: 1508 | E40: =IF(ISERROR(VLOOKUP($A40, '2. 2013 Continuity Schedule'!$A$20:$CR$94, MATCH('3. Appendix A'!$E$20, '2. 2013 Continuity Schedule'!$A$20:$CR$20,0),FALSE)), 0, VLOOKUP($A40, '2. 2013 Continuity Schedule'!$A$20:$CR$94, MATCH('3. Appendix A'!$E$20, '2. 2013 Continuity Schedule'!$A$20:$CR$20,0),FALSE)) -> 0
A41: 16 | C41: Other Regulatory Assets - Sub-Account - Financial Assistance Payment and Recovery Carrying Charges | D41: 1508 | E41: =IF(ISERROR(VLOOKUP($A41, '2. 2013 Continuity Schedule'!$A$20:$CR$94, MATCH('3. Appendix A'!$E$20, '2. 2013 Continuity Schedule'!$A$20:$CR$20,0),FALSE)), 0, VLOOKUP($A41, '2. 2013 Continuity Schedule'!$A$20:$CR$94, MATCH('3. Appendix A'!$E$20, '2. 2013 Continuity Schedule'!$A$20:$CR$20,0),FALSE)) -> 0.5
A42: 17 | C42: Other Regulatory Assets - Sub-Account - Other 4 | D42: 1508 | E42: =IF(ISERROR(VLOOKUP($A42, '2. 2013 Continuity Schedule'!$A$20:$CR$94, MATCH('3. Appendix A'!$E$20, '2. 2013 Continuity Schedule'!$A$20:$CR$20,0),FALSE)), 0, VLOOKUP($A42, '2. 2013 Continuity Schedule'!$A$20:$CR$94, MATCH('3. Appendix A'!$E$20, '2. 2013 Continuity Schedule'!$A$20:$CR$20,0),FALSE)) -> 0.1
A43: 18 | C43: Retail Cost Variance Account - Retail | D43: 1518 | E43: =IF(ISERROR(VLOOKUP($A43, '2. 2013 Continuity Schedule'!$A$20:$CR$94, MATCH('3. Appendix A'!$E$20, '2. 2013 Continuity Schedule'!$A$20:$CR$20,0),FALSE)), 0, VLOOKUP($A43, '2. 2013 Continuity Schedule'!$A$20:$CR$94, MATCH('3. Appendix A'!$E$20, '2. 2013 Continuity Schedule'!$A$20:$CR$20,0),FALSE)) -> 0
A44: 19 | C44: Misc. Deferred Debits | D44: 1525 | E44: =IF(ISERROR(VLOOKUP($A44, '2. 2013 Continuity Schedule'!$A$20:$CR$94, MATCH('3. Appendix A'!$E$20, '2. 2013 Continuity Schedule'!$A$20:$CR$20,0),FALSE)), 0, VLOOKUP($A44, '2. 2013 Continuity Schedule'!$A$20:$CR$94, MATCH('3. Appendix A'!$E$20, '2. 2013 Continuity Schedule'!$A$20:$CR$20,0),FALSE)) -> 0
A45: 20 | C45: Renewable Generation Connection Capital Deferral Account | D45: 1531 | E45: =IF(ISERROR(VLOOKUP($A45, '2. 2013 Continuity Schedule'!$A$20:$CR$94, MATCH('3. Appendix A'!$E$20, '2. 2013 Continuity Schedule'!$A$20:$CR$20,0),FALSE)), 0, VLOOKUP($A45, '2. 2013 Continuity Schedule'!$A$20:$CR$94, MATCH('3. Appendix A'!$E$20, '2. 2013 Continuity Schedule'!$A$20:$CR$20,0),FALSE)) -> -0.17
A46: 21 | C46: Renewable Generation Connection OM&A Deferral Account | D46: 1532 | E46: =IF(ISERROR(VLOOKUP($A46, '2. 2013 Continuity Schedule'!$A$20:$CR$94, MATCH('3. Appendix A'!$E$20, '2. 2013 Continuity Schedule'!$A$20:$CR$20,0),FALSE)), 0, VLOOKUP($A46, '2. 2013 Continuity Schedule'!$A$20:$CR$94, MATCH('3. Appendix A'!$E$20, '2. 2013 Continuity Schedule'!$A$20:$CR$20,0),FALSE)) -> 0
A47: 22 | C47: Renewable Generation Connection Funding Adder Deferral Account | D47: 1533 | E47: =IF(ISERROR(VLOOKUP($A47, '2. 2013 Continuity Schedule'!$A$20:$CR$94, MATCH('3. Appendix A'!$E$20, '2. 2013 Continuity Schedule'!$A$20:$CR$20,0),FALSE)), 0, VLOOKUP($A47, '2. 2013 Continuity Schedule'!$A$20:$CR$94, MATCH('3. Appendix A'!$E$20, '2. 2013 Continuity Schedule'!$A$20:$CR$20,0),FALSE)) -> -0.04000000001
A48: 23 | C48: Smart Grid Capital Deferral Account | D48: 1534 | E48: =IF(ISERROR(VLOOKUP($A48, '2. 2013 Continuity Schedule'!$A$20:$CR$94, MATCH('3. Appendix A'!$E$20, '2. 2013 Continuity Schedule'!$A$20:$CR$20,0),FALSE)), 0, VLOOKUP($A48, '2. 2013 Continuity Schedule'!$A$20:$CR$94, MATCH('3. Appendix A'!$E$20, '2. 2013 Continuity Schedule'!$A$20:$CR$20,0),FALSE)) -> 0
A49: 24 | C49: Smart Grid OM&A Deferral Account | D49: 1535 | E49: =IF(ISERROR(VLOOKUP($A49, '2. 2013 Continuity Schedule'!$A$20:$CR$94, MATCH('3. Appendix A'!$E$20, '2. 2013 Continuity Schedule'!$A$20:$CR$20,0),FALSE)), 0, VLOOKUP($A49, '2. 2013 Continuity Schedule'!$A$20:$CR$94, MATCH('3. Appendix A'!$E$20, '2. 2013 Continuity Schedule'!$A$20:$CR$20,0),FALSE)) -> 0
A50: 25 | C50: Smart Grid Funding Adder Deferral Account | D50: 1536 | E50: =IF(ISERROR(VLOOKUP($A50, '2. 2013 Continuity Schedule'!$A$20:$CR$94, MATCH('3. Appendix A'!$E$20, '2. 2013 Continuity Schedule'!$A$20:$CR$20,0),FALSE)), 0, VLOOKUP($A50, '2. 2013 Continuity Schedule'!$A$20:$CR$94, MATCH('3. Appendix A'!$E$20, '2. 2013 Continuity Schedule'!$A$20:$CR$20,0),FALSE)) -> 0
A51: 26 | C51: Retail Cost Variance Account - STR | D51: 1548 | E51: =IF(ISERROR(VLOOKUP($A51, '2. 2013 Continuity Schedule'!$A$20:$CR$94, MATCH('3. Appendix A'!$E$20, '2. 2013 Continuity Schedule'!$A$20:$CR$20,0),FALSE)), 0, VLOOKUP($A51, '2. 2013 Continuity Schedule'!$A$20:$CR$94, MATCH('3. Appendix A'!$E$20, '2. 2013 Continuity Schedule'!$A$20:$CR$20,0),FALSE)) -> 0
A52: 27 | C52: Board-Approved CDM Variance Account | D52: 1567 | E52: =IF(ISERROR(VLOOKUP($A52, '2. 2013 Continuity Schedule'!$A$20:$CR$94, MATCH('3. Appendix A'!$E$20, '2. 2013 Continuity Schedule'!$A$20:$CR$20,0),FALSE)), 0, VLOOKUP($A52, '2. 2013 Continuity Schedule'!$A$20:$CR$94, MATCH('3. Appendix A'!$E$20, '2. 2013 Continuity Schedule'!$A$20:$CR$20,0),FALSE)) -> 0
A53: 28 | C53: Extra-Ordinary Event Costs | D53: 1572 | E53: =IF(ISERROR(VLOOKUP($A53, '2. 2013 Continuity Schedule'!$A$20:$CR$94, MATCH('3. Appendix A'!$E$20, '2. 2013 Continuity Schedule'!$A$20:$CR$20,0),FALSE)), 0, VLOOKUP($A53, '2. 2013 Continuity Schedule'!$A$20:$CR$94, MATCH('3. Appendix A'!$E$20, '2. 2013 Continuity Schedule'!$A$20:$CR$20,0),FALSE)) -> 0
A54: 29 | C54: Deferred Rate Impact Amounts | D54: 1574 | E54: =IF(ISERROR(VLOOKUP($A54, '2. 2013 Continuity Schedule'!$A$20:$CR$94, MATCH('3. Appendix A'!$E$20, '2. 2013 Continuity Schedule'!$A$20:$CR$20,0),FALSE)), 0, VLOOKUP($A54, '2. 2013 Continuity Schedule'!$A$20:$CR$94, MATCH('3. Appendix A'!$E$20, '2. 2013 Continuity Schedule'!$A$20:$CR$20,0),FALSE)) -> 0
A55: 30 | C55: RSVA - One-time | D55: 1582 | E55: =IF(ISERROR(VLOOKUP($A55, '2. 2013 Continuity Schedule'!$A$20:$CR$94, MATCH('3. Appendix A'!$E$20, '2. 2013 Continuity Schedule'!$A$20:$CR$20,0),FALSE)), 0, VLOOKUP($A55, '2. 2013 Continuity Schedule'!$A$20:$CR$94, MATCH('3. Appendix A'!$E$20, '2. 2013 Continuity Schedule'!$A$20:$CR$20,0),FALSE)) -> 0
A56: 31 | C56: Other Deferred Credits | D56: 2425 | E56: =IF(ISERROR(VLOOKUP($A56, '2. 2013 Continuity Schedule'!$A$20:$CR$94, MATCH('3. Appendix A'!$E$20, '2. 2013 Continuity Schedule'!$A$20:$CR$20,0),FALSE)), 0, VLOOKUP($A56, '2. 2013 Continuity Schedule'!$A$20:$CR$94, MATCH('3. Appendix A'!$E$20, '2. 2013 Continuity Schedule'!$A$20:$CR$20,0),FALSE)) -> 0
A57: 32 | C57: Deferred Payments in Lieu of Taxes | D57: 1562 | E57: =IF(ISERROR(VLOOKUP($A57, '2. 2013 Continuity Schedule'!$A$20:$CR$94, MATCH('3. Appendix A'!$E$20, '2. 2013 Continuity Schedule'!$A$20:$CR$20,0),FALSE)), 0, VLOOKUP($A57, '2. 2013 Continuity Schedule'!$A$20:$CR$94, MATCH('3. Appendix A'!$E$20, '2. 2013 Continuity Schedule'!$A$20:$CR$20,0),FALSE)) -> 0
A58: 33 | C58: PILs and Tax Variance for 2006 and Subsequent Years (excludes sub-account and contra account below) | D58: 1592 | E58: =IF(ISERROR(VLOOKUP($A58, '2. 2013 Continuity Schedule'!$A$20:$CR$94, MATCH('3. Appendix A'!$E$20, '2. 2013 Continuity Schedule'!$A$20:$CR$20,0),FALSE)), 0, VLOOKUP($A58, '2. 2013 Continuity Schedule'!$A$20:$CR$94, MATCH('3. Appendix A'!$E$20, '2. 2013 Continuity Schedule'!$A$20:$CR$20,0),FALSE)) -> 0
A59: 34 | C59: PILs and Tax Variance for 2006 and Subsequent Years - Sub-Account HST/OVAT Input Tax Credits (ITCs) | D59: 1592 | E59: =IF(ISERROR(VLOOKUP($A59, '2. 2013 Continuity Schedule'!$A$20:$CR$94, MATCH('3. Appendix A'!$E$20, '2. 2013 Continuity Schedule'!$A$20:$CR$20,0),FALSE)), 0, VLOOKUP($A59, '2. 2013 Continuity Schedule'!$A$20:$CR$94, MATCH('3. Appendix A'!$E$20, '2. 2013 Continuity Schedule'!$A$20:$CR$20,0),FALSE)) -> 0
A60: 35 | C60: LRAM Variance Account | D60: 1568 | E60: =IF(ISERROR(VLOOKUP($A60, '2. 2013 Continuity Schedule'!$A$20:$CR$94, MATCH('3. Appendix A'!$E$20, '2. 2013 Continuity Schedule'!$A$20:$CR$20,0),FALSE)), 0, VLOOKUP($A60, '2. 2013 Continuity Schedule'!$A$20:$CR$94, MATCH('3. Appendix A'!$E$20, '2. 2013 Continuity Schedule'!$A$20:$CR$20,0),FALSE)) -> 0.34
A61: 36 | C61: Smart Meter Capital and Recovery Offset Variance - Sub-Account - Capital10 | D61: 1555 | E61: =IF(ISERROR(VLOOKUP($A61, '2. 2013 Continuity Schedule'!$A$20:$CR$94, MATCH('3. Appendix A'!$E$20, '2. 2013 Continuity Schedule'!$A$20:$CR$20,0),FALSE)), 0, VLOOKUP($A61, '2. 2013 Continuity Schedule'!$A$20:$CR$94, MATCH('3. Appendix A'!$E$20, '2. 2013 Continuity Schedule'!$A$20:$CR$20,0),FALSE)) -> 0
A62: 37 | C62: Smart Meter Capital and Recovery Offset Variance - Sub-Account - Recoveries10 | D62: 1555 | E62: =IF(ISERROR(VLOOKUP($A62, '2. 2013 Continuity Schedule'!$A$20:$CR$94, MATCH('3. Appendix A'!$E$20, '2. 2013 Continuity Schedule'!$A$20:$CR$20,0),FALSE)), 0, VLOOKUP($A62, '2. 2013 Continuity Schedule'!$A$20:$CR$94, MATCH('3. Appendix A'!$E$20, '2. 2013 Continuity Schedule'!$A$20:$CR$20,0),FALSE)) -> 0
A63: 38 | C63: Smart Meter Capital and Recovery Offset Variance - Sub-Account - Stranded Meter Costs10 | D63: 1555 | E63: =IF(ISERROR(VLOOKUP($A63, '2. 2013 Continuity Schedule'!$A$20:$CR$94, MATCH('3. Appendix A'!$E$20, '2. 2013 Continuity Schedule'!$A$20:$CR$20,0),FALSE)), 0, VLOOKUP($A63, '2. 2013 Continuity Schedule'!$A$20:$CR$94, MATCH('3. Appendix A'!$E$20, '2. 2013 Continuity Schedule'!$A$20:$CR$20,0),FALSE)) -> 0
A64: 39 | C64: Smart Meter OM&A Variance10 | D64: 1556 | E64: =IF(ISERROR(VLOOKUP($A64, '2. 2013 Continuity Schedule'!$A$20:$CR$94, MATCH('3. Appendix A'!$E$20, '2. 2013 Continuity Schedule'!$A$20:$CR$20,0),FALSE)), 0, VLOOKUP($A64, '2. 2013 Continuity Schedule'!$A$20:$CR$94, MATCH('3. Appendix A'!$E$20, '2. 2013 Continuity Schedule'!$A$20:$CR$20,0),FALSE)) -> -0.34
A65: 40 | C65: IFRS-CGAAP Transition PP&E Amounts Balance + Return Component9 | D65: 1575 | E65: =IF(ISERROR(VLOOKUP($A65, '2. 2013 Continuity Schedule'!$A$20:$CR$94, MATCH('3. Appendix A'!$E$20, '2. 2013 Continuity Schedule'!$A$20:$CR$20,0),FALSE)), 0, VLOOKUP($A65, '2. 2013 Continuity Schedule'!$A$20:$CR$94, MATCH('3. Appendix A'!$E$20, '2. 2013 Continuity Schedule'!$A$20:$CR$20,0),FALSE)) -> 0.21
A66: 41 | C66: Accounting Changes Under CGAAP Balance + Return Component9 | D66: 1576 | E66: =IF(ISERROR(VLOOKUP($A66, '2. 2013 Continuity Schedule'!$A$20:$CR$94, MATCH('3. Appendix A'!$E$20, '2. 2013 Continuity Schedule'!$A$20:$CR$20,0),FALSE)), 0, VLOOKUP($A66, '2. 2013 Continuity Schedule'!$A$20:$CR$94, MATCH('3. Appendix A'!$E$20, '2. 2013 Continuity Schedule'!$A$20:$CR$20,0),FALSE)) -> 0
A67: 42 | C67: Deferred PILs Contra Account 5 | D67: 1563 | E67: =IF(ISERROR(VLOOKUP($A67, '2. 2013 Continuity Schedule'!$A$20:$CR$94, MATCH('3. Appendix A'!$E$20, '2. 2013 Continuity Schedule'!$A$20:$CR$20,0),FALSE)), 0, VLOOKUP($A67, '2. 2013 Continuity Schedule'!$A$20:$CR$94, MATCH('3. Appendix A'!$E$20, '2. 2013 Continuity Schedule'!$A$20:$CR$20,0),FALSE)) -> 0
A68: 43 | C68: PILs and Tax Variance for 2006 and Subsequent Years - Sub-Account HST/OVAT Contra Account | D68: 1592 | E68: =IF(ISERROR(VLOOKUP($A68, '2. 2013 Continuity Schedule'!$A$20:$CR$94, MATCH('3. Appendix A'!$E$20, '2. 2013 Continuity Schedule'!$A$20:$CR$20,0),FALSE)), 0, VLOOKUP($A68, '2. 2013 Continuity Schedule'!$A$20:$CR$94, MATCH('3. Appendix A'!$E$20, '2. 2013 Continuity Schedule'!$A$20:$CR$20,0),FALSE)) -> 0
A69: 44 | C69: Disposition and Recovery of Regulatory Balances7 | D69: 1595 | E69: =IF(ISERROR(VLOOKUP($A69, '2. 2013 Continuity Schedule'!$A$20:$CR$94, MATCH('3. Appendix A'!$E$20, '2. 2013 Continuity Schedule'!$A$20:$CR$20,0),FALSE)), 0, VLOOKUP($A69, '2. 2013 Continuity Schedule'!$A$20:$CR$94, MATCH('3. Appendix A'!$E$20, '2. 2013 Continuity Schedule'!$A$20:$CR$20,0),FALSE)) -> 25155

Sheet 4. Billing Determinants
B16: In the green shaded cells, enter the most recent Board Approved volumetric forecast. If there is a material difference between the latest Board-approved volumetric forecast and the most recent 12-month actual volumetric data, use the most recent 12-month actual data. Do not enter data for the MicroFit class.
B19: Rate Class (Enter Rate Classes in cells below) | C19: Units | D19: # of Customers | E19: Metered kWh | F19: Metered kW | G19: Billed kWh for Non-RPP Customers | H19: Estimated kW for Non-RPP Customers | I19: Distribution Revenue 1 | J19: 1590 Recovery Share Proportion | K19: 1595 Recovery Share Proportion (2008) 2 | L19: 1595 Recovery Share Proportion (2009) 2 | M19: 1595 Recovery Share Proportion (2010) 2 | N19: 1595 Recovery Share Proportion (2011) 2 | O19: 1568 LRAM Variance Account Class Allocation ($ amounts)
B21: Residential | C21: kWh | D21: 4869 | E21: 51132834 | G21: 2604189 | H21: =IF(ISERROR(F21/E21*G21), 0, F21/E21*G21) -> 0 | I21: 1037949 | K21: 0.57
B22: GS<50 | C22: kWh | D22: 616 | E22: 18531353 | G22: 70374 | H22: =IF(ISERROR(F22/E22*G22), 0, F22/E22*G22) -> 0 | I22: 256493 | K22: 0.16
B23: GS>50 | C23: kW | D23: 94 | E23: 77875017 | F23: 206640 | G23: 77875019 | H23: 206640.0053 | I23: 316930 | K23: 0.25
B24: USL | C24: kWh | D24: 5 | E24: 214901 | G24: 9584 | H24: 0 | I24: 851 | K24: 0
B25: Sentinel | C25: kW | D25: 21 | E25: 102354 | F25: 284 | G25: 5803 | H25: 16.1014909 | I25: 2458 | K25: 0
B26: Street Lights | C26: kW | D26: 1204 | E26: 1355854 | F26: 3751 | G26: 1355855 | H26: 3751.002767 | I26: 34034 | K26: 0.02
H27: 0
H28: 0
H29: 0
H30: 0
H31: 0
H32: 0
H33: 0
H34: 0
H35: 0
H36: 0
H37: 0
H38: 0
H39: 0
H40: 0
B41: Total | D41: =SUM(D21:D40) -> 6809 | E41: =SUM(E21:E40) -> 149212313 | F41: =SUM(F21:F40) -> 210675 | G41: 81920824 | H41: 210407.1096 | I41: 1648715 | J41: 0 | K41: 1 | L41: 0 | M41: 0 | N41: 0 | O41: 0
N42: Balance as per Sheet 2 | O42: ='2. 2013 Continuity Schedule'!CP75 -> 0
N43: Variance | O43: =O41-O42 -> 0
A45: 1 For Account 1562, the allocation to customer classes should be performed on the basis of the test year distribution revenue allocation to customer classes found in the Applicant’s Cost of Service application that was most recently approved at the time of disposition of the 1562 account balances
A47: 2 Residual Account balance to be allocated to rate classes in proportion to the recovery share as established when rate riders were implemented.

Sheet 5. Allocation of Balances
D4: Amounts from Sheet 2 | E4: Allocator | F4: =IF(LEN(TRIM('4. Billing Determinants'!$B21))=0, "", '4. Billing Determinants'!$B21) -> Residential | G4: =IF(LEN(TRIM('4. Billing Determinants'!$B22))=0, "", '4. Billing Determinants'!$B22) -> GS<50 | H4: =IF(LEN(TRIM('4. Billing Determinants'!$B23))=0, "", '4. Billing Determinants'!$B23) -> GS>50 | I4: =IF(LEN(TRIM('4. Billing Determinants'!$B24))=0, "", '4. Billing Determinants'!$B24) -> USL | J4: =IF(LEN(TRIM('4. Billing Determinants'!$B25))=0, "", '4. Billing Determinants'!$B25) -> Sentinel | K4: =IF(LEN(TRIM('4. Billing Determinants'!$B26))=0, "", '4. Billing Determinants'!$B26) -> Street Lights | L4: =IF(LEN(TRIM('4. Billing Determinants'!$B27))=0, "", '4. Billing Determinants'!$B27) ->  | M4: =IF(LEN(TRIM('4. Billing Determinants'!$B28))=0, "", '4. Billing Determinants'!$B28) ->  | N4: =IF(LEN(TRIM('4. Billing Determinants'!$B29))=0, "", '4. Billing Determinants'!$B29) ->  | O4: =IF(LEN(TRIM('4. Billing Determinants'!$B30))=0, "", '4. Billing Determinants'!$B30) ->  | P4: =IF(LEN(TRIM('4. Billing Determinants'!$B31))=0, "", '4. Billing Determinants'!$B31) ->  | Q4: =IF(LEN(TRIM('4. Billing Determinants'!$B32))=0, "", '4. Billing Determinants'!$B32) ->  | R4: =IF(LEN(TRIM('4. Billing Determinants'!$B33))=0, "", '4. Billing Determinants'!$B33) ->  | S4: =IF(LEN(TRIM('4. Billing Determinants'!$B34))=0, "", '4. Billing Determinants'!$B34) ->  | T4: =IF(LEN(TRIM('4. Billing Determinants'!$B35))=0, "", '4. Billing Determinants'!$B35) ->  | U4: =IF(LEN(TRIM('4. Billing Determinants'!$B36))=0, "", '4. Billing Determinants'!$B36) ->  | V4: =IF(LEN(TRIM('4. Billing Determinants'!$B37))=0, "", '4. Billing Determinants'!$B37) ->  | W4: =IF(LEN(TRIM('4. Billing Determinants'!$B38))=0, "", '4. Billing Determinants'!$B38) ->  | X4: =IF(LEN(TRIM('4. Billing Determinants'!$B39))=0, "", '4. Billing Determinants'!$B39) ->  | Y4: =IF(LEN(TRIM('4. Billing Determinants'!$B40))=0, "", '4. Billing Determinants'!$B40) -> 
B5: LV Variance Account | C5: 1550 | D5: ='2. 2013 Continuity Schedule'!CP24 -> 48842.79 | E5: kWh | F5: =IFERROR(IF(F$4="",0,IF($E5="kWh",VLOOKUP(F$4,'4. Billing Determinants'!$B$19:$O$41,4,0)/'4. Billing Determinants'!$E$41*$D5,IF($E5="kW",VLOOKUP(F$4,'4. Billing Determinants'!$B$19:$O$41,5,0)/'4. Billing Determinants'!$F$41*$D5,IF($E5="Non-RPP kWh",VLOOKUP(F$4,'4. Billing Determinants'!$B$19:$O$41,6,0)/'4. Billing Determinants'!$G$41*$D5,IF($E5="Distribution Rev.",VLOOKUP(F$4,'4. Billing Determinants'!$B$19:$O$41,8,0)/'4. Billing Determinants'!$I$41*$D5, VLOOKUP(F$4,'4. Billing Determinants'!$B$19:$O$41,3,0)/'4. Billing Determinants'!$D$41*$D5))))),0) -> 16737.69559 | G5: =IFERROR(IF(G$4="",0,IF($E5="kWh",VLOOKUP(G$4,'4. Billing Determinants'!$B$19:$O$41,4,0)/'4. Billing Determinants'!$E$41*$D5,IF($E5="kW",VLOOKUP(G$4,'4. Billing Determinants'!$B$19:$O$41,5,0)/'4. Billing Determinants'!$F$41*$D5,IF($E5="Non-RPP kWh",VLOOKUP(G$4,'4. Billing Determinants'!$B$19:$O$41,6,0)/'4. Billing Determinants'!$G$41*$D5,IF($E5="Distribution Rev.",VLOOKUP(G$4,'4. Billing Determinants'!$B$19:$O$41,8,0)/'4. Billing Determinants'!$I$41*$D5, VLOOKUP(G$4,'4. Billing Determinants'!$B$19:$O$41,3,0)/'4. Billing Determinants'!$D$41*$D5))))),0) -> 6066.007321 | H5: =IFERROR(IF(H$4="",0,IF($E5="kWh",VLOOKUP(H$4,'4. Billing Determinants'!$B$19:$O$41,4,0)/'4. Billing Determinants'!$E$41*$D5,IF($E5="kW",VLOOKUP(H$4,'4. Billing Determinants'!$B$19:$O$41,5,0)/'4. Billing Determinants'!$F$41*$D5,IF($E5="Non-RPP kWh",VLOOKUP(H$4,'4. Billing Determinants'!$B$19:$O$41,6,0)/'4. Billing Determinants'!$G$41*$D5,IF($E5="Distribution Rev.",VLOOKUP(H$4,'4. Billing Determinants'!$B$19:$O$41,8,0)/'4. Billing Determinants'!$I$41*$D5, VLOOKUP(H$4,'4. Billing Determinants'!$B$19:$O$41,3,0)/'4. Billing Determinants'!$D$41*$D5))))),0) -> 25491.41572 | I5: =IFERROR(IF(I$4="",0,IF($E5="kWh",VLOOKUP(I$4,'4. Billing Determinants'!$B$19:$O$41,4,0)/'4. Billing Determinants'!$E$41*$D5,IF($E5="kW",VLOOKUP(I$4,'4. Billing Determinants'!$B$19:$O$41,5,0)/'4. Billing Determinants'!$F$41*$D5,IF($E5="Non-RPP kWh",VLOOKUP(I$4,'4. Billing Determinants'!$B$19:$O$41,6,0)/'4. Billing Determinants'!$G$41*$D5,IF($E5="Distribution Rev.",VLOOKUP(I$4,'4. Billing Determinants'!$B$19:$O$41,8,0)/'4. Billing Determinants'!$I$41*$D5, VLOOKUP(I$4,'4. Billing Determinants'!$B$19:$O$41,3,0)/'4. Billing Determinants'!$D$41*$D5))))),0) -> 70.34516256 | J5: =IFERROR(IF(J$4="",0,IF($E5="kWh",VLOOKUP(J$4,'4. Billing Determinants'!$B$19:$O$41,4,0)/'4. Billing Determinants'!$E$41*$D5,IF($E5="kW",VLOOKUP(J$4,'4. Billing Determinants'!$B$19:$O$41,5,0)/'4. Billing Determinants'!$F$41*$D5,IF($E5="Non-RPP kWh",VLOOKUP(J$4,'4. Billing Determinants'!$B$19:$O$41,6,0)/'4. Billing Determinants'!$G$41*$D5,IF($E5="Distribution Rev.",VLOOKUP(J$4,'4. Billing Determinants'!$B$19:$O$41,8,0)/'4. Billing Determinants'!$I$41*$D5, VLOOKUP(J$4,'4. Billing Determinants'!$B$19:$O$41,3,0)/'4. Billing Determinants'!$D$41*$D5))))),0) -> 33.50430556 | K5: =IFERROR(IF(K$4="",0,IF($E5="kWh",VLOOKUP(K$4,'4. Billing Determinants'!$B$19:$O$41,4,0)/'4. Billing Determinants'!$E$41*$D5,IF($E5="kW",VLOOKUP(K$4,'4. Billing Determinants'!$B$19:$O$41,5,0)/'4. Billing Determinants'!$F$41*$D5,IF($E5="Non-RPP kWh",VLOOKUP(K$4,'4. Billing Determinants'!$B$19:$O$41,6,0)/'4. Billing Determinants'!$G$41*$D5,IF($E5="Distribution Rev.",VLOOKUP(K$4,'4. Billing Determinants'!$B$19:$O$41,8,0)/'4. Billing Determinants'!$I$41*$D5, VLOOKUP(K$4,'4. Billing Determinants'!$B$19:$O$41,3,0)/'4. Billing Determinants'!$D$41*$D5))))),0) -> 443.8218996 | L5: =IFERROR(IF(L$4="",0,IF($E5="kWh",VLOOKUP(L$4,'4. Billing Determinants'!$B$19:$O$41,4,0)/'4. Billing Determinants'!$E$41*$D5,IF($E5="kW",VLOOKUP(L$4,'4. Billing Determinants'!$B$19:$O$41,5,0)/'4. Billing Determinants'!$F$41*$D5,IF($E5="Non-RPP kWh",VLOOKUP(L$4,'4. Billing Determinants'!$B$19:$O$41,6,0)/'4. Billing Determinants'!$G$41*$D5,IF($E5="Distribution Rev.",VLOOKUP(L$4,'4. Billing Determinants'!$B$19:$O$41,8,0)/'4. Billing Determinants'!$I$41*$D5, VLOOKUP(L$4,'4. Billing Determinants'!$B$19:$O$41,3,0)/'4. Billing Determinants'!$D$41*$D5))))),0) -> 0 | M5: =IFERROR(IF(M$4="",0,IF($E5="kWh",VLOOKUP(M$4,'4. Billing Determinants'!$B$19:$O$41,4,0)/'4. Billing Determinants'!$E$41*$D5,IF($E5="kW",VLOOKUP(M$4,'4. Billing Determinants'!$B$19:$O$41,5,0)/'4. Billing Determinants'!$F$41*$D5,IF($E5="Non-RPP kWh",VLOOKUP(M$4,'4. Billing Determinants'!$B$19:$O$41,6,0)/'4. Billing Determinants'!$G$41*$D5,IF($E5="Distribution Rev.",VLOOKUP(M$4,'4. Billing Determinants'!$B$19:$O$41,8,0)/'4. Billing Determinants'!$I$41*$D5, VLOOKUP(M$4,'4. Billing Determinants'!$B$19:$O$41,3,0)/'4. Billing Determinants'!$D$41*$D5))))),0) -> 0 | N5: =IFERROR(IF(N$4="",0,IF($E5="kWh",VLOOKUP(N$4,'4. Billing Determinants'!$B$19:$O$41,4,0)/'4. Billing Determinants'!$E$41*$D5,IF($E5="kW",VLOOKUP(N$4,'4. Billing Determinants'!$B$19:$O$41,5,0)/'4. Billing Determinants'!$F$41*$D5,IF($E5="Non-RPP kWh",VLOOKUP(N$4,'4. Billing Determinants'!$B$19:$O$41,6,0)/'4. Billing Determinants'!$G$41*$D5,IF($E5="Distribution Rev.",VLOOKUP(N$4,'4. Billing Determinants'!$B$19:$O$41,8,0)/'4. Billing Determinants'!$I$41*$D5, VLOOKUP(N$4,'4. Billing Determinants'!$B$19:$O$41,3,0)/'4. Billing Determinants'!$D$41*$D5))))),0) -> 0 | O5: =IFERROR(IF(O$4="",0,IF($E5="kWh",VLOOKUP(O$4,'4. Billing Determinants'!$B$19:$O$41,4,0)/'4. Billing Determinants'!$E$41*$D5,IF($E5="kW",VLOOKUP(O$4,'4. Billing Determinants'!$B$19:$O$41,5,0)/'4. Billing Determinants'!$F$41*$D5,IF($E5="Non-RPP kWh",VLOOKUP(O$4,'4. Billing Determinants'!$B$19:$O$41,6,0)/'4. Billing Determinants'!$G$41*$D5,IF($E5="Distribution Rev.",VLOOKUP(O$4,'4. Billing Determinants'!$B$19:$O$41,8,0)/'4. Billing Determinants'!$I$41*$D5, VLOOKUP(O$4,'4. Billing Determinants'!$B$19:$O$41,3,0)/'4. Billing Determinants'!$D$41*$D5))))),0) -> 0 | P5: =IFERROR(IF(P$4="",0,IF($E5="kWh",VLOOKUP(P$4,'4. Billing Determinants'!$B$19:$O$41,4,0)/'4. Billing Determinants'!$E$41*$D5,IF($E5="kW",VLOOKUP(P$4,'4. Billing Determinants'!$B$19:$O$41,5,0)/'4. Billing Determinants'!$F$41*$D5,IF($E5="Non-RPP kWh",VLOOKUP(P$4,'4. Billing Determinants'!$B$19:$O$41,6,0)/'4. Billing Determinants'!$G$41*$D5,IF($E5="Distribution Rev.",VLOOKUP(P$4,'4. Billing Determinants'!$B$19:$O$41,8,0)/'4. Billing Determinants'!$I$41*$D5, VLOOKUP(P$4,'4. Billing Determinants'!$B$19:$O$41,3,0)/'4. Billing Determinants'!$D$41*$D5))))),0) -> 0 | Q5: =IFERROR(IF(Q$4="",0,IF($E5="kWh",VLOOKUP(Q$4,'4. Billing Determinants'!$B$19:$O$41,4,0)/'4. Billing Determinants'!$E$41*$D5,IF($E5="kW",VLOOKUP(Q$4,'4. Billing Determinants'!$B$19:$O$41,5,0)/'4. Billing Determinants'!$F$41*$D5,IF($E5="Non-RPP kWh",VLOOKUP(Q$4,'4. Billing Determinants'!$B$19:$O$41,6,0)/'4. Billing Determinants'!$G$41*$D5,IF($E5="Distribution Rev.",VLOOKUP(Q$4,'4. Billing Determinants'!$B$19:$O$41,8,0)/'4. Billing Determinants'!$I$41*$D5, VLOOKUP(Q$4,'4. Billing Determinants'!$B$19:$O$41,3,0)/'4. Billing Determinants'!$D$41*$D5))))),0) -> 0 | R5: =IFERROR(IF(R$4="",0,IF($E5="kWh",VLOOKUP(R$4,'4. Billing Determinants'!$B$19:$O$41,4,0)/'4. Billing Determinants'!$E$41*$D5,IF($E5="kW",VLOOKUP(R$4,'4. Billing Determinants'!$B$19:$O$41,5,0)/'4. Billing Determinants'!$F$41*$D5,IF($E5="Non-RPP kWh",VLOOKUP(R$4,'4. Billing Determinants'!$B$19:$O$41,6,0)/'4. Billing Determinants'!$G$41*$D5,IF($E5="Distribution Rev.",VLOOKUP(R$4,'4. Billing Determinants'!$B$19:$O$41,8,0)/'4. Billing Determinants'!$I$41*$D5, VLOOKUP(R$4,'4. Billing Determinants'!$B$19:$O$41,3,0)/'4. Billing Determinants'!$D$41*$D5))))),0) -> 0 | S5: =IFERROR(IF(S$4="",0,IF($E5="kWh",VLOOKUP(S$4,'4. Billing Determinants'!$B$19:$O$41,4,0)/'4. Billing Determinants'!$E$41*$D5,IF($E5="kW",VLOOKUP(S$4,'4. Billing Determinants'!$B$19:$O$41,5,0)/'4. Billing Determinants'!$F$41*$D5,IF($E5="Non-RPP kWh",VLOOKUP(S$4,'4. Billing Determinants'!$B$19:$O$41,6,0)/'4. Billing Determinants'!$G$41*$D5,IF($E5="Distribution Rev.",VLOOKUP(S$4,'4. Billing Determinants'!$B$19:$O$41,8,0)/'4. Billing Determinants'!$I$41*$D5, VLOOKUP(S$4,'4. Billing Determinants'!$B$19:$O$41,3,0)/'4. Billing Determinants'!$D$41*$D5))))),0) -> 0 | T5: =IFERROR(IF(T$4="",0,IF($E5="kWh",VLOOKUP(T$4,'4. Billing Determinants'!$B$19:$O$41,4,0)/'4. Billing Determinants'!$E$41*$D5,IF($E5="kW",VLOOKUP(T$4,'4. Billing Determinants'!$B$19:$O$41,5,0)/'4. Billing Determinants'!$F$41*$D5,IF($E5="Non-RPP kWh",VLOOKUP(T$4,'4. Billing Determinants'!$B$19:$O$41,6,0)/'4. Billing Determinants'!$G$41*$D5,IF($E5="Distribution Rev.",VLOOKUP(T$4,'4. Billing Determinants'!$B$19:$O$41,8,0)/'4. Billing Determinants'!$I$41*$D5, VLOOKUP(T$4,'4. Billing Determinants'!$B$19:$O$41,3,0)/'4. Billing Determinants'!$D$41*$D5))))),0) -> 0 | U5: =IFERROR(IF(U$4="",0,IF($E5="kWh",VLOOKUP(U$4,'4. Billing Determinants'!$B$19:$O$41,4,0)/'4. Billing Determinants'!$E$41*$D5,IF($E5="kW",VLOOKUP(U$4,'4. Billing Determinants'!$B$19:$O$41,5,0)/'4. Billing Determinants'!$F$41*$D5,IF($E5="Non-RPP kWh",VLOOKUP(U$4,'4. Billing Determinants'!$B$19:$O$41,6,0)/'4. Billing Determinants'!$G$41*$D5,IF($E5="Distribution Rev.",VLOOKUP(U$4,'4. Billing Determinants'!$B$19:$O$41,8,0)/'4. Billing Determinants'!$I$41*$D5, VLOOKUP(U$4,'4. Billing Determinants'!$B$19:$O$41,3,0)/'4. Billing Determinants'!$D$41*$D5))))),0) -> 0 | V5: =IFERROR(IF(V$4="",0,IF($E5="kWh",VLOOKUP(V$4,'4. Billing Determinants'!$B$19:$O$41,4,0)/'4. Billing Determinants'!$E$41*$D5,IF($E5="kW",VLOOKUP(V$4,'4. Billing Determinants'!$B$19:$O$41,5,0)/'4. Billing Determinants'!$F$41*$D5,IF($E5="Non-RPP kWh",VLOOKUP(V$4,'4. Billing Determinants'!$B$19:$O$41,6,0)/'4. Billing Determinants'!$G$41*$D5,IF($E5="Distribution Rev.",VLOOKUP(V$4,'4. Billing Determinants'!$B$19:$O$41,8,0)/'4. Billing Determinants'!$I$41*$D5, VLOOKUP(V$4,'4. Billing Determinants'!$B$19:$O$41,3,0)/'4. Billing Determinants'!$D$41*$D5))))),0) -> 0 | W5: =IFERROR(IF(W$4="",0,IF($E5="kWh",VLOOKUP(W$4,'4. Billing Determinants'!$B$19:$O$41,4,0)/'4. Billing Determinants'!$E$41*$D5,IF($E5="kW",VLOOKUP(W$4,'4. Billing Determinants'!$B$19:$O$41,5,0)/'4. Billing Determinants'!$F$41*$D5,IF($E5="Non-RPP kWh",VLOOKUP(W$4,'4. Billing Determinants'!$B$19:$O$41,6,0)/'4. Billing Determinants'!$G$41*$D5,IF($E5="Distribution Rev.",VLOOKUP(W$4,'4. Billing Determinants'!$B$19:$O$41,8,0)/'4. Billing Determinants'!$I$41*$D5, VLOOKUP(W$4,'4. Billing Determinants'!$B$19:$O$41,3,0)/'4. Billing Determinants'!$D$41*$D5))))),0) -> 0 | X5: =IFERROR(IF(X$4="",0,IF($E5="kWh",VLOOKUP(X$4,'4. Billing Determinants'!$B$19:$O$41,4,0)/'4. Billing Determinants'!$E$41*$D5,IF($E5="kW",VLOOKUP(X$4,'4. Billing Determinants'!$B$19:$O$41,5,0)/'4. Billing Determinants'!$F$41*$D5,IF($E5="Non-RPP kWh",VLOOKUP(X$4,'4. Billing Determinants'!$B$19:$O$41,6,0)/'4. Billing Determinants'!$G$41*$D5,IF($E5="Distribution Rev.",VLOOKUP(X$4,'4. Billing Determinants'!$B$19:$O$41,8,0)/'4. Billing Determinants'!$I$41*$D5, VLOOKUP(X$4,'4. Billing Determinants'!$B$19:$O$41,3,0)/'4. Billing Determinants'!$D$41*$D5))))),0) -> 0 | Y5: =IFERROR(IF(Y$4="",0,IF($E5="kWh",VLOOKUP(Y$4,'4. Billing Determinants'!$B$19:$O$41,4,0)/'4. Billing Determinants'!$E$41*$D5,IF($E5="kW",VLOOKUP(Y$4,'4. Billing Determinants'!$B$19:$O$41,5,0)/'4. Billing Determinants'!$F$41*$D5,IF($E5="Non-RPP kWh",VLOOKUP(Y$4,'4. Billing Determinants'!$B$19:$O$41,6,0)/'4. Billing Determinants'!$G$41*$D5,IF($E5="Distribution Rev.",VLOOKUP(Y$4,'4. Billing Determinants'!$B$19:$O$41,8,0)/'4. Billing Determinants'!$I$41*$D5, VLOOKUP(Y$4,'4. Billing Determinants'!$B$19:$O$41,3,0)/'4. Billing Determinants'!$D$41*$D5))))),0) -> 0
B6: RSVA - Wholesale Market Service Charge | C6: 1580 | D6: ='2. 2013 Continuity Schedule'!CP25 -> -116610.31 | E6: kWh | F6: =IFERROR(IF(F$4="",0,IF($E6="kWh",VLOOKUP(F$4,'4. Billing Determinants'!$B$19:$O$41,4,0)/'4. Billing Determinants'!$E$41*$D6,IF($E6="kW",VLOOKUP(F$4,'4. Billing Determinants'!$B$19:$O$41,5,0)/'4. Billing Determinants'!$F$41*$D6,IF($E6="Non-RPP kWh",VLOOKUP(F$4,'4. Billing Determinants'!$B$19:$O$41,6,0)/'4. Billing Determinants'!$G$41*$D6,IF($E6="Distribution Rev.",VLOOKUP(F$4,'4. Billing Determinants'!$B$19:$O$41,8,0)/'4. Billing Determinants'!$I$41*$D6, VLOOKUP(F$4,'4. Billing Determinants'!$B$19:$O$41,3,0)/'4. Billing Determinants'!$D$41*$D6))))),0) -> -39960.61387 | G6: =IFERROR(IF(G$4="",0,IF($E6="kWh",VLOOKUP(G$4,'4. Billing Determinants'!$B$19:$O$41,4,0)/'4. Billing Determinants'!$E$41*$D6,IF($E6="kW",VLOOKUP(G$4,'4. Billing Determinants'!$B$19:$O$41,5,0)/'4. Billing Determinants'!$F$41*$D6,IF($E6="Non-RPP kWh",VLOOKUP(G$4,'4. Billing Determinants'!$B$19:$O$41,6,0)/'4. Billing Determinants'!$G$41*$D6,IF($E6="Distribution Rev.",VLOOKUP(G$4,'4. Billing Determinants'!$B$19:$O$41,8,0)/'4. Billing Determinants'!$I$41*$D6, VLOOKUP(G$4,'4. Billing Determinants'!$B$19:$O$41,3,0)/'4. Billing Determinants'!$D$41*$D6))))),0) -> -14482.36258 | H6: =IFERROR(IF(H$4="",0,IF($E6="kWh",VLOOKUP(H$4,'4. Billing Determinants'!$B$19:$O$41,4,0)/'4. Billing Determinants'!$E$41*$D6,IF($E6="kW",VLOOKUP(H$4,'4. Billing Determinants'!$B$19:$O$41,5,0)/'4. Billing Determinants'!$F$41*$D6,IF($E6="Non-RPP kWh",VLOOKUP(H$4,'4. Billing Determinants'!$B$19:$O$41,6,0)/'4. Billing Determinants'!$G$41*$D6,IF($E6="Distribution Rev.",VLOOKUP(H$4,'4. Billing Determinants'!$B$19:$O$41,8,0)/'4. Billing Determinants'!$I$41*$D6, VLOOKUP(H$4,'4. Billing Determinants'!$B$19:$O$41,3,0)/'4. Billing Determinants'!$D$41*$D6))))),0) -> -60859.78892 | I6: =IFERROR(IF(I$4="",0,IF($E6="kWh",VLOOKUP(I$4,'4. Billing Determinants'!$B$19:$O$41,4,0)/'4. Billing Determinants'!$E$41*$D6,IF($E6="kW",VLOOKUP(I$4,'4. Billing Determinants'!$B$19:$O$41,5,0)/'4. Billing Determinants'!$F$41*$D6,IF($E6="Non-RPP kWh",VLOOKUP(I$4,'4. Billing Determinants'!$B$19:$O$41,6,0)/'4. Billing Determinants'!$G$41*$D6,IF($E6="Distribution Rev.",VLOOKUP(I$4,'4. Billing Determinants'!$B$19:$O$41,8,0)/'4. Billing Determinants'!$I$41*$D6, VLOOKUP(I$4,'4. Billing Determinants'!$B$19:$O$41,3,0)/'4. Billing Determinants'!$D$41*$D6))))),0) -> -167.9464096 | J6: =IFERROR(IF(J$4="",0,IF($E6="kWh",VLOOKUP(J$4,'4. Billing Determinants'!$B$19:$O$41,4,0)/'4. Billing Determinants'!$E$41*$D6,IF($E6="kW",VLOOKUP(J$4,'4. Billing Determinants'!$B$19:$O$41,5,0)/'4. Billing Determinants'!$F$41*$D6,IF($E6="Non-RPP kWh",VLOOKUP(J$4,'4. Billing Determinants'!$B$19:$O$41,6,0)/'4. Billing Determinants'!$G$41*$D6,IF($E6="Distribution Rev.",VLOOKUP(J$4,'4. Billing Determinants'!$B$19:$O$41,8,0)/'4. Billing Determinants'!$I$41*$D6, VLOOKUP(J$4,'4. Billing Determinants'!$B$19:$O$41,3,0)/'4. Billing Determinants'!$D$41*$D6))))),0) -> -79.99025972 | K6: =IFERROR(IF(K$4="",0,IF($E6="kWh",VLOOKUP(K$4,'4. Billing Determinants'!$B$19:$O$41,4,0)/'4. Billing Determinants'!$E$41*$D6,IF($E6="kW",VLOOKUP(K$4,'4. Billing Determinants'!$B$19:$O$41,5,0)/'4. Billing Determinants'!$F$41*$D6,IF($E6="Non-RPP kWh",VLOOKUP(K$4,'4. Billing Determinants'!$B$19:$O$41,6,0)/'4. Billing Determinants'!$G$41*$D6,IF($E6="Distribution Rev.",VLOOKUP(K$4,'4. Billing Determinants'!$B$19:$O$41,8,0)/'4. Billing Determinants'!$I$41*$D6, VLOOKUP(K$4,'4. Billing Determinants'!$B$19:$O$41,3,0)/'4. Billing Determinants'!$D$41*$D6))))),0) -> -1059.607964 | L6: =IFERROR(IF(L$4="",0,IF($E6="kWh",VLOOKUP(L$4,'4. Billing Determinants'!$B$19:$O$41,4,0)/'4. Billing Determinants'!$E$41*$D6,IF($E6="kW",VLOOKUP(L$4,'4. Billing Determinants'!$B$19:$O$41,5,0)/'4. Billing Determinants'!$F$41*$D6,IF($E6="Non-RPP kWh",VLOOKUP(L$4,'4. Billing Determinants'!$B$19:$O$41,6,0)/'4. Billing Determinants'!$G$41*$D6,IF($E6="Distribution Rev.",VLOOKUP(L$4,'4. Billing Determinants'!$B$19:$O$41,8,0)/'4. Billing Determinants'!$I$41*$D6, VLOOKUP(L$4,'4. Billing Determinants'!$B$19:$O$41,3,0)/'4. Billing Determinants'!$D$41*$D6))))),0) -> 0 | M6: =IFERROR(IF(M$4="",0,IF($E6="kWh",VLOOKUP(M$4,'4. Billing Determinants'!$B$19:$O$41,4,0)/'4. Billing Determinants'!$E$41*$D6,IF($E6="kW",VLOOKUP(M$4,'4. Billing Determinants'!$B$19:$O$41,5,0)/'4. Billing Determinants'!$F$41*$D6,IF($E6="Non-RPP kWh",VLOOKUP(M$4,'4. Billing Determinants'!$B$19:$O$41,6,0)/'4. Billing Determinants'!$G$41*$D6,IF($E6="Distribution Rev.",VLOOKUP(M$4,'4. Billing Determinants'!$B$19:$O$41,8,0)/'4. Billing Determinants'!$I$41*$D6, VLOOKUP(M$4,'4. Billing Determinants'!$B$19:$O$41,3,0)/'4. Billing Determinants'!$D$41*$D6))))),0) -> 0 | N6: =IFERROR(IF(N$4="",0,IF($E6="kWh",VLOOKUP(N$4,'4. Billing Determinants'!$B$19:$O$41,4,0)/'4. Billing Determinants'!$E$41*$D6,IF($E6="kW",VLOOKUP(N$4,'4. Billing Determinants'!$B$19:$O$41,5,0)/'4. Billing Determinants'!$F$41*$D6,IF($E6="Non-RPP kWh",VLOOKUP(N$4,'4. Billing Determinants'!$B$19:$O$41,6,0)/'4. Billing Determinants'!$G$41*$D6,IF($E6="Distribution Rev.",VLOOKUP(N$4,'4. Billing Determinants'!$B$19:$O$41,8,0)/'4. Billing Determinants'!$I$41*$D6, VLOOKUP(N$4,'4. Billing Determinants'!$B$19:$O$41,3,0)/'4. Billing Determinants'!$D$41*$D6))))),0) -> 0 | O6: =IFERROR(IF(O$4="",0,IF($E6="kWh",VLOOKUP(O$4,'4. Billing Determinants'!$B$19:$O$41,4,0)/'4. Billing Determinants'!$E$41*$D6,IF($E6="kW",VLOOKUP(O$4,'4. Billing Determinants'!$B$19:$O$41,5,0)/'4. Billing Determinants'!$F$41*$D6,IF($E6="Non-RPP kWh",VLOOKUP(O$4,'4. Billing Determinants'!$B$19:$O$41,6,0)/'4. Billing Determinants'!$G$41*$D6,IF($E6="Distribution Rev.",VLOOKUP(O$4,'4. Billing Determinants'!$B$19:$O$41,8,0)/'4. Billing Determinants'!$I$41*$D6, VLOOKUP(O$4,'4. Billing Determinants'!$B$19:$O$41,3,0)/'4. Billing Determinants'!$D$41*$D6))))),0) -> 0 | P6: =IFERROR(IF(P$4="",0,IF($E6="kWh",VLOOKUP(P$4,'4. Billing Determinants'!$B$19:$O$41,4,0)/'4. Billing Determinants'!$E$41*$D6,IF($E6="kW",VLOOKUP(P$4,'4. Billing Determinants'!$B$19:$O$41,5,0)/'4. Billing Determinants'!$F$41*$D6,IF($E6="Non-RPP kWh",VLOOKUP(P$4,'4. Billing Determinants'!$B$19:$O$41,6,0)/'4. Billing Determinants'!$G$41*$D6,IF($E6="Distribution Rev.",VLOOKUP(P$4,'4. Billing Determinants'!$B$19:$O$41,8,0)/'4. Billing Determinants'!$I$41*$D6, VLOOKUP(P$4,'4. Billing Determinants'!$B$19:$O$41,3,0)/'4. Billing Determinants'!$D$41*$D6))))),0) -> 0 | Q6: =IFERROR(IF(Q$4="",0,IF($E6="kWh",VLOOKUP(Q$4,'4. Billing Determinants'!$B$19:$O$41,4,0)/'4. Billing Determinants'!$E$41*$D6,IF($E6="kW",VLOOKUP(Q$4,'4. Billing Determinants'!$B$19:$O$41,5,0)/'4. Billing Determinants'!$F$41*$D6,IF($E6="Non-RPP kWh",VLOOKUP(Q$4,'4. Billing Determinants'!$B$19:$O$41,6,0)/'4. Billing Determinants'!$G$41*$D6,IF($E6="Distribution Rev.",VLOOKUP(Q$4,'4. Billing Determinants'!$B$19:$O$41,8,0)/'4. Billing Determinants'!$I$41*$D6, VLOOKUP(Q$4,'4. Billing Determinants'!$B$19:$O$41,3,0)/'4. Billing Determinants'!$D$41*$D6))))),0) -> 0 | R6: =IFERROR(IF(R$4="",0,IF($E6="kWh",VLOOKUP(R$4,'4. Billing Determinants'!$B$19:$O$41,4,0)/'4. Billing Determinants'!$E$41*$D6,IF($E6="kW",VLOOKUP(R$4,'4. Billing Determinants'!$B$19:$O$41,5,0)/'4. Billing Determinants'!$F$41*$D6,IF($E6="Non-RPP kWh",VLOOKUP(R$4,'4. Billing Determinants'!$B$19:$O$41,6,0)/'4. Billing Determinants'!$G$41*$D6,IF($E6="Distribution Rev.",VLOOKUP(R$4,'4. Billing Determinants'!$B$19:$O$41,8,0)/'4. Billing Determinants'!$I$41*$D6, VLOOKUP(R$4,'4. Billing Determinants'!$B$19:$O$41,3,0)/'4. Billing Determinants'!$D$41*$D6))))),0) -> 0 | S6: =IFERROR(IF(S$4="",0,IF($E6="kWh",VLOOKUP(S$4,'4. Billing Determinants'!$B$19:$O$41,4,0)/'4. Billing Determinants'!$E$41*$D6,IF($E6="kW",VLOOKUP(S$4,'4. Billing Determinants'!$B$19:$O$41,5,0)/'4. Billing Determinants'!$F$41*$D6,IF($E6="Non-RPP kWh",VLOOKUP(S$4,'4. Billing Determinants'!$B$19:$O$41,6,0)/'4. Billing Determinants'!$G$41*$D6,IF($E6="Distribution Rev.",VLOOKUP(S$4,'4. Billing Determinants'!$B$19:$O$41,8,0)/'4. Billing Determinants'!$I$41*$D6, VLOOKUP(S$4,'4. Billing Determinants'!$B$19:$O$41,3,0)/'4. Billing Determinants'!$D$41*$D6))))),0) -> 0 | T6: =IFERROR(IF(T$4="",0,IF($E6="kWh",VLOOKUP(T$4,'4. Billing Determinants'!$B$19:$O$41,4,0)/'4. Billing Determinants'!$E$41*$D6,IF($E6="kW",VLOOKUP(T$4,'4. Billing Determinants'!$B$19:$O$41,5,0)/'4. Billing Determinants'!$F$41*$D6,IF($E6="Non-RPP kWh",VLOOKUP(T$4,'4. Billing Determinants'!$B$19:$O$41,6,0)/'4. Billing Determinants'!$G$41*$D6,IF($E6="Distribution Rev.",VLOOKUP(T$4,'4. Billing Determinants'!$B$19:$O$41,8,0)/'4. Billing Determinants'!$I$41*$D6, VLOOKUP(T$4,'4. Billing Determinants'!$B$19:$O$41,3,0)/'4. Billing Determinants'!$D$41*$D6))))),0) -> 0 | U6: =IFERROR(IF(U$4="",0,IF($E6="kWh",VLOOKUP(U$4,'4. Billing Determinants'!$B$19:$O$41,4,0)/'4. Billing Determinants'!$E$41*$D6,IF($E6="kW",VLOOKUP(U$4,'4. Billing Determinants'!$B$19:$O$41,5,0)/'4. Billing Determinants'!$F$41*$D6,IF($E6="Non-RPP kWh",VLOOKUP(U$4,'4. Billing Determinants'!$B$19:$O$41,6,0)/'4. Billing Determinants'!$G$41*$D6,IF($E6="Distribution Rev.",VLOOKUP(U$4,'4. Billing Determinants'!$B$19:$O$41,8,0)/'4. Billing Determinants'!$I$41*$D6, VLOOKUP(U$4,'4. Billing Determinants'!$B$19:$O$41,3,0)/'4. Billing Determinants'!$D$41*$D6))))),0) -> 0 | V6: =IFERROR(IF(V$4="",0,IF($E6="kWh",VLOOKUP(V$4,'4. Billing Determinants'!$B$19:$O$41,4,0)/'4. Billing Determinants'!$E$41*$D6,IF($E6="kW",VLOOKUP(V$4,'4. Billing Determinants'!$B$19:$O$41,5,0)/'4. Billing Determinants'!$F$41*$D6,IF($E6="Non-RPP kWh",VLOOKUP(V$4,'4. Billing Determinants'!$B$19:$O$41,6,0)/'4. Billing Determinants'!$G$41*$D6,IF($E6="Distribution Rev.",VLOOKUP(V$4,'4. Billing Determinants'!$B$19:$O$41,8,0)/'4. Billing Determinants'!$I$41*$D6, VLOOKUP(V$4,'4. Billing Determinants'!$B$19:$O$41,3,0)/'4. Billing Determinants'!$D$41*$D6))))),0) -> 0 | W6: =IFERROR(IF(W$4="",0,IF($E6="kWh",VLOOKUP(W$4,'4. Billing Determinants'!$B$19:$O$41,4,0)/'4. Billing Determinants'!$E$41*$D6,IF($E6="kW",VLOOKUP(W$4,'4. Billing Determinants'!$B$19:$O$41,5,0)/'4. Billing Determinants'!$F$41*$D6,IF($E6="Non-RPP kWh",VLOOKUP(W$4,'4. Billing Determinants'!$B$19:$O$41,6,0)/'4. Billing Determinants'!$G$41*$D6,IF($E6="Distribution Rev.",VLOOKUP(W$4,'4. Billing Determinants'!$B$19:$O$41,8,0)/'4. Billing Determinants'!$I$41*$D6, VLOOKUP(W$4,'4. Billing Determinants'!$B$19:$O$41,3,0)/'4. Billing Determinants'!$D$41*$D6))))),0) -> 0 | X6: =IFERROR(IF(X$4="",0,IF($E6="kWh",VLOOKUP(X$4,'4. Billing Determinants'!$B$19:$O$41,4,0)/'4. Billing Determinants'!$E$41*$D6,IF($E6="kW",VLOOKUP(X$4,'4. Billing Determinants'!$B$19:$O$41,5,0)/'4. Billing Determinants'!$F$41*$D6,IF($E6="Non-RPP kWh",VLOOKUP(X$4,'4. Billing Determinants'!$B$19:$O$41,6,0)/'4. Billing Determinants'!$G$41*$D6,IF($E6="Distribution Rev.",VLOOKUP(X$4,'4. Billing Determinants'!$B$19:$O$41,8,0)/'4. Billing Determinants'!$I$41*$D6, VLOOKUP(X$4,'4. Billing Determinants'!$B$19:$O$41,3,0)/'4. Billing Determinants'!$D$41*$D6))))),0) -> 0 | Y6: =IFERROR(IF(Y$4="",0,IF($E6="kWh",VLOOKUP(Y$4,'4. Billing Determinants'!$B$19:$O$41,4,0)/'4. Billing Determinants'!$E$41*$D6,IF($E6="kW",VLOOKUP(Y$4,'4. Billing Determinants'!$B$19:$O$41,5,0)/'4. Billing Determinants'!$F$41*$D6,IF($E6="Non-RPP kWh",VLOOKUP(Y$4,'4. Billing Determinants'!$B$19:$O$41,6,0)/'4. Billing Determinants'!$G$41*$D6,IF($E6="Distribution Rev.",VLOOKUP(Y$4,'4. Billing Determinants'!$B$19:$O$41,8,0)/'4. Billing Determinants'!$I$41*$D6, VLOOKUP(Y$4,'4. Billing Determinants'!$B$19:$O$41,3,0)/'4. Billing Determinants'!$D$41*$D6))))),0) -> 0
B7: RSVA - Retail Transmission Network Charge | C7: 1584 | D7: ='2. 2013 Continuity Schedule'!CP26 -> -7432.54 | E7: kWh | F7: =IFERROR(IF(F$4="",0,IF($E7="kWh",VLOOKUP(F$4,'4. Billing Determinants'!$B$19:$O$41,4,0)/'4. Billing Determinants'!$E$41*$D7,IF($E7="kW",VLOOKUP(F$4,'4. Billing Determinants'!$B$19:$O$41,5,0)/'4. Billing Determinants'!$F$41*$D7,IF($E7="Non-RPP kWh",VLOOKUP(F$4,'4. Billing Determinants'!$B$19:$O$41,6,0)/'4. Billing Determinants'!$G$41*$D7,IF($E7="Distribution Rev.",VLOOKUP(F$4,'4. Billing Determinants'!$B$19:$O$41,8,0)/'4. Billing Determinants'!$I$41*$D7, VLOOKUP(F$4,'4. Billing Determinants'!$B$19:$O$41,3,0)/'4. Billing Determinants'!$D$41*$D7))))),0) -> -2547.020594 | G7: =IFERROR(IF(G$4="",0,IF($E7="kWh",VLOOKUP(G$4,'4. Billing Determinants'!$B$19:$O$41,4,0)/'4. Billing Determinants'!$E$41*$D7,IF($E7="kW",VLOOKUP(G$4,'4. Billing Determinants'!$B$19:$O$41,5,0)/'4. Billing Determinants'!$F$41*$D7,IF($E7="Non-RPP kWh",VLOOKUP(G$4,'4. Billing Determinants'!$B$19:$O$41,6,0)/'4. Billing Determinants'!$G$41*$D7,IF($E7="Distribution Rev.",VLOOKUP(G$4,'4. Billing Determinants'!$B$19:$O$41,8,0)/'4. Billing Determinants'!$I$41*$D7, VLOOKUP(G$4,'4. Billing Determinants'!$B$19:$O$41,3,0)/'4. Billing Determinants'!$D$41*$D7))))),0) -> -923.0808079 | H7: =IFERROR(IF(H$4="",0,IF($E7="kWh",VLOOKUP(H$4,'4. Billing Determinants'!$B$19:$O$41,4,0)/'4. Billing Determinants'!$E$41*$D7,IF($E7="kW",VLOOKUP(H$4,'4. Billing Determinants'!$B$19:$O$41,5,0)/'4. Billing Determinants'!$F$41*$D7,IF($E7="Non-RPP kWh",VLOOKUP(H$4,'4. Billing Determinants'!$B$19:$O$41,6,0)/'4. Billing Determinants'!$G$41*$D7,IF($E7="Distribution Rev.",VLOOKUP(H$4,'4. Billing Determinants'!$B$19:$O$41,8,0)/'4. Billing Determinants'!$I$41*$D7, VLOOKUP(H$4,'4. Billing Determinants'!$B$19:$O$41,3,0)/'4. Billing Determinants'!$D$41*$D7))))),0) -> -3879.097959 | I7: =IFERROR(IF(I$4="",0,IF($E7="kWh",VLOOKUP(I$4,'4. Billing Determinants'!$B$19:$O$41,4,0)/'4. Billing Determinants'!$E$41*$D7,IF($E7="kW",VLOOKUP(I$4,'4. Billing Determinants'!$B$19:$O$41,5,0)/'4. Billing Determinants'!$F$41*$D7,IF($E7="Non-RPP kWh",VLOOKUP(I$4,'4. Billing Determinants'!$B$19:$O$41,6,0)/'4. Billing Determinants'!$G$41*$D7,IF($E7="Distribution Rev.",VLOOKUP(I$4,'4. Billing Determinants'!$B$19:$O$41,8,0)/'4. Billing Determinants'!$I$41*$D7, VLOOKUP(I$4,'4. Billing Determinants'!$B$19:$O$41,3,0)/'4. Billing Determinants'!$D$41*$D7))))),0) -> -10.70461443 | J7: =IFERROR(IF(J$4="",0,IF($E7="kWh",VLOOKUP(J$4,'4. Billing Determinants'!$B$19:$O$41,4,0)/'4. Billing Determinants'!$E$41*$D7,IF($E7="kW",VLOOKUP(J$4,'4. Billing Determinants'!$B$19:$O$41,5,0)/'4. Billing Determinants'!$F$41*$D7,IF($E7="Non-RPP kWh",VLOOKUP(J$4,'4. Billing Determinants'!$B$19:$O$41,6,0)/'4. Billing Determinants'!$G$41*$D7,IF($E7="Distribution Rev.",VLOOKUP(J$4,'4. Billing Determinants'!$B$19:$O$41,8,0)/'4. Billing Determinants'!$I$41*$D7, VLOOKUP(J$4,'4. Billing Determinants'!$B$19:$O$41,3,0)/'4. Billing Determinants'!$D$41*$D7))))),0) -> -5.098441167 | K7: =IFERROR(IF(K$4="",0,IF($E7="kWh",VLOOKUP(K$4,'4. Billing Determinants'!$B$19:$O$41,4,0)/'4. Billing Determinants'!$E$41*$D7,IF($E7="kW",VLOOKUP(K$4,'4. Billing Determinants'!$B$19:$O$41,5,0)/'4. Billing Determinants'!$F$41*$D7,IF($E7="Non-RPP kWh",VLOOKUP(K$4,'4. Billing Determinants'!$B$19:$O$41,6,0)/'4. Billing Determinants'!$G$41*$D7,IF($E7="Distribution Rev.",VLOOKUP(K$4,'4. Billing Determinants'!$B$19:$O$41,8,0)/'4. Billing Determinants'!$I$41*$D7, VLOOKUP(K$4,'4. Billing Determinants'!$B$19:$O$41,3,0)/'4. Billing Determinants'!$D$41*$D7))))),0) -> -67.53758377 | L7: =IFERROR(IF(L$4="",0,IF($E7="kWh",VLOOKUP(L$4,'4. Billing Determinants'!$B$19:$O$41,4,0)/'4. Billing Determinants'!$E$41*$D7,IF($E7="kW",VLOOKUP(L$4,'4. Billing Determinants'!$B$19:$O$41,5,0)/'4. Billing Determinants'!$F$41*$D7,IF($E7="Non-RPP kWh",VLOOKUP(L$4,'4. Billing Determinants'!$B$19:$O$41,6,0)/'4. Billing Determinants'!$G$41*$D7,IF($E7="Distribution Rev.",VLOOKUP(L$4,'4. Billing Determinants'!$B$19:$O$41,8,0)/'4. Billing Determinants'!$I$41*$D7, VLOOKUP(L$4,'4. Billing Determinants'!$B$19:$O$41,3,0)/'4. Billing Determinants'!$D$41*$D7))))),0) -> 0 | M7: =IFERROR(IF(M$4="",0,IF($E7="kWh",VLOOKUP(M$4,'4. Billing Determinants'!$B$19:$O$41,4,0)/'4. Billing Determinants'!$E$41*$D7,IF($E7="kW",VLOOKUP(M$4,'4. Billing Determinants'!$B$19:$O$41,5,0)/'4. Billing Determinants'!$F$41*$D7,IF($E7="Non-RPP kWh",VLOOKUP(M$4,'4. Billing Determinants'!$B$19:$O$41,6,0)/'4. Billing Determinants'!$G$41*$D7,IF($E7="Distribution Rev.",VLOOKUP(M$4,'4. Billing Determinants'!$B$19:$O$41,8,0)/'4. Billing Determinants'!$I$41*$D7, VLOOKUP(M$4,'4. Billing Determinants'!$B$19:$O$41,3,0)/'4. Billing Determinants'!$D$41*$D7))))),0) -> 0 | N7: =IFERROR(IF(N$4="",0,IF($E7="kWh",VLOOKUP(N$4,'4. Billing Determinants'!$B$19:$O$41,4,0)/'4. Billing Determinants'!$E$41*$D7,IF($E7="kW",VLOOKUP(N$4,'4. Billing Determinants'!$B$19:$O$41,5,0)/'4. Billing Determinants'!$F$41*$D7,IF($E7="Non-RPP kWh",VLOOKUP(N$4,'4. Billing Determinants'!$B$19:$O$41,6,0)/'4. Billing Determinants'!$G$41*$D7,IF($E7="Distribution Rev.",VLOOKUP(N$4,'4. Billing Determinants'!$B$19:$O$41,8,0)/'4. Billing Determinants'!$I$41*$D7, VLOOKUP(N$4,'4. Billing Determinants'!$B$19:$O$41,3,0)/'4. Billing Determinants'!$D$41*$D7))))),0) -> 0 | O7: =IFERROR(IF(O$4="",0,IF($E7="kWh",VLOOKUP(O$4,'4. Billing Determinants'!$B$19:$O$41,4,0)/'4. Billing Determinants'!$E$41*$D7,IF($E7="kW",VLOOKUP(O$4,'4. Billing Determinants'!$B$19:$O$41,5,0)/'4. Billing Determinants'!$F$41*$D7,IF($E7="Non-RPP kWh",VLOOKUP(O$4,'4. Billing Determinants'!$B$19:$O$41,6,0)/'4. Billing Determinants'!$G$41*$D7,IF($E7="Distribution Rev.",VLOOKUP(O$4,'4. Billing Determinants'!$B$19:$O$41,8,0)/'4. Billing Determinants'!$I$41*$D7, VLOOKUP(O$4,'4. Billing Determinants'!$B$19:$O$41,3,0)/'4. Billing Determinants'!$D$41*$D7))))),0) -> 0 | P7: =IFERROR(IF(P$4="",0,IF($E7="kWh",VLOOKUP(P$4,'4. Billing Determinants'!$B$19:$O$41,4,0)/'4. Billing Determinants'!$E$41*$D7,IF($E7="kW",VLOOKUP(P$4,'4. Billing Determinants'!$B$19:$O$41,5,0)/'4. Billing Determinants'!$F$41*$D7,IF($E7="Non-RPP kWh",VLOOKUP(P$4,'4. Billing Determinants'!$B$19:$O$41,6,0)/'4. Billing Determinants'!$G$41*$D7,IF($E7="Distribution Rev.",VLOOKUP(P$4,'4. Billing Determinants'!$B$19:$O$41,8,0)/'4. Billing Determinants'!$I$41*$D7, VLOOKUP(P$4,'4. Billing Determinants'!$B$19:$O$41,3,0)/'4. Billing Determinants'!$D$41*$D7))))),0) -> 0 | Q7: =IFERROR(IF(Q$4="",0,IF($E7="kWh",VLOOKUP(Q$4,'4. Billing Determinants'!$B$19:$O$41,4,0)/'4. Billing Determinants'!$E$41*$D7,IF($E7="kW",VLOOKUP(Q$4,'4. Billing Determinants'!$B$19:$O$41,5,0)/'4. Billing Determinants'!$F$41*$D7,IF($E7="Non-RPP kWh",VLOOKUP(Q$4,'4. Billing Determinants'!$B$19:$O$41,6,0)/'4. Billing Determinants'!$G$41*$D7,IF($E7="Distribution Rev.",VLOOKUP(Q$4,'4. Billing Determinants'!$B$19:$O$41,8,0)/'4. Billing Determinants'!$I$41*$D7, VLOOKUP(Q$4,'4. Billing Determinants'!$B$19:$O$41,3,0)/'4. Billing Determinants'!$D$41*$D7))))),0) -> 0 | R7: =IFERROR(IF(R$4="",0,IF($E7="kWh",VLOOKUP(R$4,'4. Billing Determinants'!$B$19:$O$41,4,0)/'4. Billing Determinants'!$E$41*$D7,IF($E7="kW",VLOOKUP(R$4,'4. Billing Determinants'!$B$19:$O$41,5,0)/'4. Billing Determinants'!$F$41*$D7,IF($E7="Non-RPP kWh",VLOOKUP(R$4,'4. Billing Determinants'!$B$19:$O$41,6,0)/'4. Billing Determinants'!$G$41*$D7,IF($E7="Distribution Rev.",VLOOKUP(R$4,'4. Billing Determinants'!$B$19:$O$41,8,0)/'4. Billing Determinants'!$I$41*$D7, VLOOKUP(R$4,'4. Billing Determinants'!$B$19:$O$41,3,0)/'4. Billing Determinants'!$D$41*$D7))))),0) -> 0 | S7: =IFERROR(IF(S$4="",0,IF($E7="kWh",VLOOKUP(S$4,'4. Billing Determinants'!$B$19:$O$41,4,0)/'4. Billing Determinants'!$E$41*$D7,IF($E7="kW",VLOOKUP(S$4,'4. Billing Determinants'!$B$19:$O$41,5,0)/'4. Billing Determinants'!$F$41*$D7,IF($E7="Non-RPP kWh",VLOOKUP(S$4,'4. Billing Determinants'!$B$19:$O$41,6,0)/'4. Billing Determinants'!$G$41*$D7,IF($E7="Distribution Rev.",VLOOKUP(S$4,'4. Billing Determinants'!$B$19:$O$41,8,0)/'4. Billing Determinants'!$I$41*$D7, VLOOKUP(S$4,'4. Billing Determinants'!$B$19:$O$41,3,0)/'4. Billing Determinants'!$D$41*$D7))))),0) -> 0 | T7: =IFERROR(IF(T$4="",0,IF($E7="kWh",VLOOKUP(T$4,'4. Billing Determinants'!$B$19:$O$41,4,0)/'4. Billing Determinants'!$E$41*$D7,IF($E7="kW",VLOOKUP(T$4,'4. Billing Determinants'!$B$19:$O$41,5,0)/'4. Billing Determinants'!$F$41*$D7,IF($E7="Non-RPP kWh",VLOOKUP(T$4,'4. Billing Determinants'!$B$19:$O$41,6,0)/'4. Billing Determinants'!$G$41*$D7,IF($E7="Distribution Rev.",VLOOKUP(T$4,'4. Billing Determinants'!$B$19:$O$41,8,0)/'4. Billing Determinants'!$I$41*$D7, VLOOKUP(T$4,'4. Billing Determinants'!$B$19:$O$41,3,0)/'4. Billing Determinants'!$D$41*$D7))))),0) -> 0 | U7: =IFERROR(IF(U$4="",0,IF($E7="kWh",VLOOKUP(U$4,'4. Billing Determinants'!$B$19:$O$41,4,0)/'4. Billing Determinants'!$E$41*$D7,IF($E7="kW",VLOOKUP(U$4,'4. Billing Determinants'!$B$19:$O$41,5,0)/'4. Billing Determinants'!$F$41*$D7,IF($E7="Non-RPP kWh",VLOOKUP(U$4,'4. Billing Determinants'!$B$19:$O$41,6,0)/'4. Billing Determinants'!$G$41*$D7,IF($E7="Distribution Rev.",VLOOKUP(U$4,'4. Billing Determinants'!$B$19:$O$41,8,0)/'4. Billing Determinants'!$I$41*$D7, VLOOKUP(U$4,'4. Billing Determinants'!$B$19:$O$41,3,0)/'4. Billing Determinants'!$D$41*$D7))))),0) -> 0 | V7: =IFERROR(IF(V$4="",0,IF($E7="kWh",VLOOKUP(V$4,'4. Billing Determinants'!$B$19:$O$41,4,0)/'4. Billing Determinants'!$E$41*$D7,IF($E7="kW",VLOOKUP(V$4,'4. Billing Determinants'!$B$19:$O$41,5,0)/'4. Billing Determinants'!$F$41*$D7,IF($E7="Non-RPP kWh",VLOOKUP(V$4,'4. Billing Determinants'!$B$19:$O$41,6,0)/'4. Billing Determinants'!$G$41*$D7,IF($E7="Distribution Rev.",VLOOKUP(V$4,'4. Billing Determinants'!$B$19:$O$41,8,0)/'4. Billing Determinants'!$I$41*$D7, VLOOKUP(V$4,'4. Billing Determinants'!$B$19:$O$41,3,0)/'4. Billing Determinants'!$D$41*$D7))))),0) -> 0 | W7: =IFERROR(IF(W$4="",0,IF($E7="kWh",VLOOKUP(W$4,'4. Billing Determinants'!$B$19:$O$41,4,0)/'4. Billing Determinants'!$E$41*$D7,IF($E7="kW",VLOOKUP(W$4,'4. Billing Determinants'!$B$19:$O$41,5,0)/'4. Billing Determinants'!$F$41*$D7,IF($E7="Non-RPP kWh",VLOOKUP(W$4,'4. Billing Determinants'!$B$19:$O$41,6,0)/'4. Billing Determinants'!$G$41*$D7,IF($E7="Distribution Rev.",VLOOKUP(W$4,'4. Billing Determinants'!$B$19:$O$41,8,0)/'4. Billing Determinants'!$I$41*$D7, VLOOKUP(W$4,'4. Billing Determinants'!$B$19:$O$41,3,0)/'4. Billing Determinants'!$D$41*$D7))))),0) -> 0 | X7: =IFERROR(IF(X$4="",0,IF($E7="kWh",VLOOKUP(X$4,'4. Billing Determinants'!$B$19:$O$41,4,0)/'4. Billing Determinants'!$E$41*$D7,IF($E7="kW",VLOOKUP(X$4,'4. Billing Determinants'!$B$19:$O$41,5,0)/'4. Billing Determinants'!$F$41*$D7,IF($E7="Non-RPP kWh",VLOOKUP(X$4,'4. Billing Determinants'!$B$19:$O$41,6,0)/'4. Billing Determinants'!$G$41*$D7,IF($E7="Distribution Rev.",VLOOKUP(X$4,'4. Billing Determinants'!$B$19:$O$41,8,0)/'4. Billing Determinants'!$I$41*$D7, VLOOKUP(X$4,'4. Billing Determinants'!$B$19:$O$41,3,0)/'4. Billing Determinants'!$D$41*$D7))))),0) -> 0 | Y7: =IFERROR(IF(Y$4="",0,IF($E7="kWh",VLOOKUP(Y$4,'4. Billing Determinants'!$B$19:$O$41,4,0)/'4. Billing Determinants'!$E$41*$D7,IF($E7="kW",VLOOKUP(Y$4,'4. Billing Determinants'!$B$19:$O$41,5,0)/'4. Billing Determinants'!$F$41*$D7,IF($E7="Non-RPP kWh",VLOOKUP(Y$4,'4. Billing Determinants'!$B$19:$O$41,6,0)/'4. Billing Determinants'!$G$41*$D7,IF($E7="Distribution Rev.",VLOOKUP(Y$4,'4. Billing Determinants'!$B$19:$O$41,8,0)/'4. Billing Determinants'!$I$41*$D7, VLOOKUP(Y$4,'4. Billing Determinants'!$B$19:$O$41,3,0)/'4. Billing Determinants'!$D$41*$D7))))),0) -> 0
B8: RSVA - Retail Transmission Connection Charge | C8: 1586 | D8: ='2. 2013 Continuity Schedule'!CP27 -> -21499.22 | E8: kWh | F8: =IFERROR(IF(F$4="",0,IF($E8="kWh",VLOOKUP(F$4,'4. Billing Determinants'!$B$19:$O$41,4,0)/'4. Billing Determinants'!$E$41*$D8,IF($E8="kW",VLOOKUP(F$4,'4. Billing Determinants'!$B$19:$O$41,5,0)/'4. Billing Determinants'!$F$41*$D8,IF($E8="Non-RPP kWh",VLOOKUP(F$4,'4. Billing Determinants'!$B$19:$O$41,6,0)/'4. Billing Determinants'!$G$41*$D8,IF($E8="Distribution Rev.",VLOOKUP(F$4,'4. Billing Determinants'!$B$19:$O$41,8,0)/'4. Billing Determinants'!$I$41*$D8, VLOOKUP(F$4,'4. Billing Determinants'!$B$19:$O$41,3,0)/'4. Billing Determinants'!$D$41*$D8))))),0) -> -7367.46201 | G8: =IFERROR(IF(G$4="",0,IF($E8="kWh",VLOOKUP(G$4,'4. Billing Determinants'!$B$19:$O$41,4,0)/'4. Billing Determinants'!$E$41*$D8,IF($E8="kW",VLOOKUP(G$4,'4. Billing Determinants'!$B$19:$O$41,5,0)/'4. Billing Determinants'!$F$41*$D8,IF($E8="Non-RPP kWh",VLOOKUP(G$4,'4. Billing Determinants'!$B$19:$O$41,6,0)/'4. Billing Determinants'!$G$41*$D8,IF($E8="Distribution Rev.",VLOOKUP(G$4,'4. Billing Determinants'!$B$19:$O$41,8,0)/'4. Billing Determinants'!$I$41*$D8, VLOOKUP(G$4,'4. Billing Determinants'!$B$19:$O$41,3,0)/'4. Billing Determinants'!$D$41*$D8))))),0) -> -2670.085511 | H8: =IFERROR(IF(H$4="",0,IF($E8="kWh",VLOOKUP(H$4,'4. Billing Determinants'!$B$19:$O$41,4,0)/'4. Billing Determinants'!$E$41*$D8,IF($E8="kW",VLOOKUP(H$4,'4. Billing Determinants'!$B$19:$O$41,5,0)/'4. Billing Determinants'!$F$41*$D8,IF($E8="Non-RPP kWh",VLOOKUP(H$4,'4. Billing Determinants'!$B$19:$O$41,6,0)/'4. Billing Determinants'!$G$41*$D8,IF($E8="Distribution Rev.",VLOOKUP(H$4,'4. Billing Determinants'!$B$19:$O$41,8,0)/'4. Billing Determinants'!$I$41*$D8, VLOOKUP(H$4,'4. Billing Determinants'!$B$19:$O$41,3,0)/'4. Billing Determinants'!$D$41*$D8))))),0) -> -11220.60297 | I8: =IFERROR(IF(I$4="",0,IF($E8="kWh",VLOOKUP(I$4,'4. Billing Determinants'!$B$19:$O$41,4,0)/'4. Billing Determinants'!$E$41*$D8,IF($E8="kW",VLOOKUP(I$4,'4. Billing Determinants'!$B$19:$O$41,5,0)/'4. Billing Determinants'!$F$41*$D8,IF($E8="Non-RPP kWh",VLOOKUP(I$4,'4. Billing Determinants'!$B$19:$O$41,6,0)/'4. Billing Determinants'!$G$41*$D8,IF($E8="Distribution Rev.",VLOOKUP(I$4,'4. Billing Determinants'!$B$19:$O$41,8,0)/'4. Billing Determinants'!$I$41*$D8, VLOOKUP(I$4,'4. Billing Determinants'!$B$19:$O$41,3,0)/'4. Billing Determinants'!$D$41*$D8))))),0) -> -30.96395857 | J8: =IFERROR(IF(J$4="",0,IF($E8="kWh",VLOOKUP(J$4,'4. Billing Determinants'!$B$19:$O$41,4,0)/'4. Billing Determinants'!$E$41*$D8,IF($E8="kW",VLOOKUP(J$4,'4. Billing Determinants'!$B$19:$O$41,5,0)/'4. Billing Determinants'!$F$41*$D8,IF($E8="Non-RPP kWh",VLOOKUP(J$4,'4. Billing Determinants'!$B$19:$O$41,6,0)/'4. Billing Determinants'!$G$41*$D8,IF($E8="Distribution Rev.",VLOOKUP(J$4,'4. Billing Determinants'!$B$19:$O$41,8,0)/'4. Billing Determinants'!$I$41*$D8, VLOOKUP(J$4,'4. Billing Determinants'!$B$19:$O$41,3,0)/'4. Billing Determinants'!$D$41*$D8))))),0) -> -14.74765131 | K8: =IFERROR(IF(K$4="",0,IF($E8="kWh",VLOOKUP(K$4,'4. Billing Determinants'!$B$19:$O$41,4,0)/'4. Billing Determinants'!$E$41*$D8,IF($E8="kW",VLOOKUP(K$4,'4. Billing Determinants'!$B$19:$O$41,5,0)/'4. Billing Determinants'!$F$41*$D8,IF($E8="Non-RPP kWh",VLOOKUP(K$4,'4. Billing Determinants'!$B$19:$O$41,6,0)/'4. Billing Determinants'!$G$41*$D8,IF($E8="Distribution Rev.",VLOOKUP(K$4,'4. Billing Determinants'!$B$19:$O$41,8,0)/'4. Billing Determinants'!$I$41*$D8, VLOOKUP(K$4,'4. Billing Determinants'!$B$19:$O$41,3,0)/'4. Billing Determinants'!$D$41*$D8))))),0) -> -195.3578954 | L8: =IFERROR(IF(L$4="",0,IF($E8="kWh",VLOOKUP(L$4,'4. Billing Determinants'!$B$19:$O$41,4,0)/'4. Billing Determinants'!$E$41*$D8,IF($E8="kW",VLOOKUP(L$4,'4. Billing Determinants'!$B$19:$O$41,5,0)/'4. Billing Determinants'!$F$41*$D8,IF($E8="Non-RPP kWh",VLOOKUP(L$4,'4. Billing Determinants'!$B$19:$O$41,6,0)/'4. Billing Determinants'!$G$41*$D8,IF($E8="Distribution Rev.",VLOOKUP(L$4,'4. Billing Determinants'!$B$19:$O$41,8,0)/'4. Billing Determinants'!$I$41*$D8, VLOOKUP(L$4,'4. Billing Determinants'!$B$19:$O$41,3,0)/'4. Billing Determinants'!$D$41*$D8))))),0) -> 0 | M8: =IFERROR(IF(M$4="",0,IF($E8="kWh",VLOOKUP(M$4,'4. Billing Determinants'!$B$19:$O$41,4,0)/'4. Billing Determinants'!$E$41*$D8,IF($E8="kW",VLOOKUP(M$4,'4. Billing Determinants'!$B$19:$O$41,5,0)/'4. Billing Determinants'!$F$41*$D8,IF($E8="Non-RPP kWh",VLOOKUP(M$4,'4. Billing Determinants'!$B$19:$O$41,6,0)/'4. Billing Determinants'!$G$41*$D8,IF($E8="Distribution Rev.",VLOOKUP(M$4,'4. Billing Determinants'!$B$19:$O$41,8,0)/'4. Billing Determinants'!$I$41*$D8, VLOOKUP(M$4,'4. Billing Determinants'!$B$19:$O$41,3,0)/'4. Billing Determinants'!$D$41*$D8))))),0) -> 0 | N8: =IFERROR(IF(N$4="",0,IF($E8="kWh",VLOOKUP(N$4,'4. Billing Determinants'!$B$19:$O$41,4,0)/'4. Billing Determinants'!$E$41*$D8,IF($E8="kW",VLOOKUP(N$4,'4. Billing Determinants'!$B$19:$O$41,5,0)/'4. Billing Determinants'!$F$41*$D8,IF($E8="Non-RPP kWh",VLOOKUP(N$4,'4. Billing Determinants'!$B$19:$O$41,6,0)/'4. Billing Determinants'!$G$41*$D8,IF($E8="Distribution Rev.",VLOOKUP(N$4,'4. Billing Determinants'!$B$19:$O$41,8,0)/'4. Billing Determinants'!$I$41*$D8, VLOOKUP(N$4,'4. Billing Determinants'!$B$19:$O$41,3,0)/'4. Billing Determinants'!$D$41*$D8))))),0) -> 0 | O8: =IFERROR(IF(O$4="",0,IF($E8="kWh",VLOOKUP(O$4,'4. Billing Determinants'!$B$19:$O$41,4,0)/'4. Billing Determinants'!$E$41*$D8,IF($E8="kW",VLOOKUP(O$4,'4. Billing Determinants'!$B$19:$O$41,5,0)/'4. Billing Determinants'!$F$41*$D8,IF($E8="Non-RPP kWh",VLOOKUP(O$4,'4. Billing Determinants'!$B$19:$O$41,6,0)/'4. Billing Determinants'!$G$41*$D8,IF($E8="Distribution Rev.",VLOOKUP(O$4,'4. Billing Determinants'!$B$19:$O$41,8,0)/'4. Billing Determinants'!$I$41*$D8, VLOOKUP(O$4,'4. Billing Determinants'!$B$19:$O$41,3,0)/'4. Billing Determinants'!$D$41*$D8))))),0) -> 0 | P8: =IFERROR(IF(P$4="",0,IF($E8="kWh",VLOOKUP(P$4,'4. Billing Determinants'!$B$19:$O$41,4,0)/'4. Billing Determinants'!$E$41*$D8,IF($E8="kW",VLOOKUP(P$4,'4. Billing Determinants'!$B$19:$O$41,5,0)/'4. Billing Determinants'!$F$41*$D8,IF($E8="Non-RPP kWh",VLOOKUP(P$4,'4. Billing Determinants'!$B$19:$O$41,6,0)/'4. Billing Determinants'!$G$41*$D8,IF($E8="Distribution Rev.",VLOOKUP(P$4,'4. Billing Determinants'!$B$19:$O$41,8,0)/'4. Billing Determinants'!$I$41*$D8, VLOOKUP(P$4,'4. Billing Determinants'!$B$19:$O$41,3,0)/'4. Billing Determinants'!$D$41*$D8))))),0) -> 0 | Q8: =IFERROR(IF(Q$4="",0,IF($E8="kWh",VLOOKUP(Q$4,'4. Billing Determinants'!$B$19:$O$41,4,0)/'4. Billing Determinants'!$E$41*$D8,IF($E8="kW",VLOOKUP(Q$4,'4. Billing Determinants'!$B$19:$O$41,5,0)/'4. Billing Determinants'!$F$41*$D8,IF($E8="Non-RPP kWh",VLOOKUP(Q$4,'4. Billing Determinants'!$B$19:$O$41,6,0)/'4. Billing Determinants'!$G$41*$D8,IF($E8="Distribution Rev.",VLOOKUP(Q$4,'4. Billing Determinants'!$B$19:$O$41,8,0)/'4. Billing Determinants'!$I$41*$D8, VLOOKUP(Q$4,'4. Billing Determinants'!$B$19:$O$41,3,0)/'4. Billing Determinants'!$D$41*$D8))))),0) -> 0 | R8: =IFERROR(IF(R$4="",0,IF($E8="kWh",VLOOKUP(R$4,'4. Billing Determinants'!$B$19:$O$41,4,0)/'4. Billing Determinants'!$E$41*$D8,IF($E8="kW",VLOOKUP(R$4,'4. Billing Determinants'!$B$19:$O$41,5,0)/'4. Billing Determinants'!$F$41*$D8,IF($E8="Non-RPP kWh",VLOOKUP(R$4,'4. Billing Determinants'!$B$19:$O$41,6,0)/'4. Billing Determinants'!$G$41*$D8,IF($E8="Distribution Rev.",VLOOKUP(R$4,'4. Billing Determinants'!$B$19:$O$41,8,0)/'4. Billing Determinants'!$I$41*$D8, VLOOKUP(R$4,'4. Billing Determinants'!$B$19:$O$41,3,0)/'4. Billing Determinants'!$D$41*$D8))))),0) -> 0 | S8: =IFERROR(IF(S$4="",0,IF($E8="kWh",VLOOKUP(S$4,'4. Billing Determinants'!$B$19:$O$41,4,0)/'4. Billing Determinants'!$E$41*$D8,IF($E8="kW",VLOOKUP(S$4,'4. Billing Determinants'!$B$19:$O$41,5,0)/'4. Billing Determinants'!$F$41*$D8,IF($E8="Non-RPP kWh",VLOOKUP(S$4,'4. Billing Determinants'!$B$19:$O$41,6,0)/'4. Billing Determinants'!$G$41*$D8,IF($E8="Distribution Rev.",VLOOKUP(S$4,'4. Billing Determinants'!$B$19:$O$41,8,0)/'4. Billing Determinants'!$I$41*$D8, VLOOKUP(S$4,'4. Billing Determinants'!$B$19:$O$41,3,0)/'4. Billing Determinants'!$D$41*$D8))))),0) -> 0 | T8: =IFERROR(IF(T$4="",0,IF($E8="kWh",VLOOKUP(T$4,'4. Billing Determinants'!$B$19:$O$41,4,0)/'4. Billing Determinants'!$E$41*$D8,IF($E8="kW",VLOOKUP(T$4,'4. Billing Determinants'!$B$19:$O$41,5,0)/'4. Billing Determinants'!$F$41*$D8,IF($E8="Non-RPP kWh",VLOOKUP(T$4,'4. Billing Determinants'!$B$19:$O$41,6,0)/'4. Billing Determinants'!$G$41*$D8,IF($E8="Distribution Rev.",VLOOKUP(T$4,'4. Billing Determinants'!$B$19:$O$41,8,0)/'4. Billing Determinants'!$I$41*$D8, VLOOKUP(T$4,'4. Billing Determinants'!$B$19:$O$41,3,0)/'4. Billing Determinants'!$D$41*$D8))))),0) -> 0 | U8: =IFERROR(IF(U$4="",0,IF($E8="kWh",VLOOKUP(U$4,'4. Billing Determinants'!$B$19:$O$41,4,0)/'4. Billing Determinants'!$E$41*$D8,IF($E8="kW",VLOOKUP(U$4,'4. Billing Determinants'!$B$19:$O$41,5,0)/'4. Billing Determinants'!$F$41*$D8,IF($E8="Non-RPP kWh",VLOOKUP(U$4,'4. Billing Determinants'!$B$19:$O$41,6,0)/'4. Billing Determinants'!$G$41*$D8,IF($E8="Distribution Rev.",VLOOKUP(U$4,'4. Billing Determinants'!$B$19:$O$41,8,0)/'4. Billing Determinants'!$I$41*$D8, VLOOKUP(U$4,'4. Billing Determinants'!$B$19:$O$41,3,0)/'4. Billing Determinants'!$D$41*$D8))))),0) -> 0 | V8: =IFERROR(IF(V$4="",0,IF($E8="kWh",VLOOKUP(V$4,'4. Billing Determinants'!$B$19:$O$41,4,0)/'4. Billing Determinants'!$E$41*$D8,IF($E8="kW",VLOOKUP(V$4,'4. Billing Determinants'!$B$19:$O$41,5,0)/'4. Billing Determinants'!$F$41*$D8,IF($E8="Non-RPP kWh",VLOOKUP(V$4,'4. Billing Determinants'!$B$19:$O$41,6,0)/'4. Billing Determinants'!$G$41*$D8,IF($E8="Distribution Rev.",VLOOKUP(V$4,'4. Billing Determinants'!$B$19:$O$41,8,0)/'4. Billing Determinants'!$I$41*$D8, VLOOKUP(V$4,'4. Billing Determinants'!$B$19:$O$41,3,0)/'4. Billing Determinants'!$D$41*$D8))))),0) -> 0 | W8: =IFERROR(IF(W$4="",0,IF($E8="kWh",VLOOKUP(W$4,'4. Billing Determinants'!$B$19:$O$41,4,0)/'4. Billing Determinants'!$E$41*$D8,IF($E8="kW",VLOOKUP(W$4,'4. Billing Determinants'!$B$19:$O$41,5,0)/'4. Billing Determinants'!$F$41*$D8,IF($E8="Non-RPP kWh",VLOOKUP(W$4,'4. Billing Determinants'!$B$19:$O$41,6,0)/'4. Billing Determinants'!$G$41*$D8,IF($E8="Distribution Rev.",VLOOKUP(W$4,'4. Billing Determinants'!$B$19:$O$41,8,0)/'4. Billing Determinants'!$I$41*$D8, VLOOKUP(W$4,'4. Billing Determinants'!$B$19:$O$41,3,0)/'4. Billing Determinants'!$D$41*$D8))))),0) -> 0 | X8: =IFERROR(IF(X$4="",0,IF($E8="kWh",VLOOKUP(X$4,'4. Billing Determinants'!$B$19:$O$41,4,0)/'4. Billing Determinants'!$E$41*$D8,IF($E8="kW",VLOOKUP(X$4,'4. Billing Determinants'!$B$19:$O$41,5,0)/'4. Billing Determinants'!$F$41*$D8,IF($E8="Non-RPP kWh",VLOOKUP(X$4,'4. Billing Determinants'!$B$19:$O$41,6,0)/'4. Billing Determinants'!$G$41*$D8,IF($E8="Distribution Rev.",VLOOKUP(X$4,'4. Billing Determinants'!$B$19:$O$41,8,0)/'4. Billing Determinants'!$I$41*$D8, VLOOKUP(X$4,'4. Billing Determinants'!$B$19:$O$41,3,0)/'4. Billing Determinants'!$D$41*$D8))))),0) -> 0 | Y8: =IFERROR(IF(Y$4="",0,IF($E8="kWh",VLOOKUP(Y$4,'4. Billing Determinants'!$B$19:$O$41,4,0)/'4. Billing Determinants'!$E$41*$D8,IF($E8="kW",VLOOKUP(Y$4,'4. Billing Determinants'!$B$19:$O$41,5,0)/'4. Billing Determinants'!$F$41*$D8,IF($E8="Non-RPP kWh",VLOOKUP(Y$4,'4. Billing Determinants'!$B$19:$O$41,6,0)/'4. Billing Determinants'!$G$41*$D8,IF($E8="Distribution Rev.",VLOOKUP(Y$4,'4. Billing Determinants'!$B$19:$O$41,8,0)/'4. Billing Determinants'!$I$41*$D8, VLOOKUP(Y$4,'4. Billing Determinants'!$B$19:$O$41,3,0)/'4. Billing Determinants'!$D$41*$D8))))),0) -> 0
B9: RSVA - Power (excluding Global Adjustment) | C9: 1588 | D9: ='2. 2013 Continuity Schedule'!CP28 -> 117601.85 | E9: kWh | F9: =IFERROR(IF(F$4="",0,IF($E9="kWh",VLOOKUP(F$4,'4. Billing Determinants'!$B$19:$O$41,4,0)/'4. Billing Determinants'!$E$41*$D9,IF($E9="kW",VLOOKUP(F$4,'4. Billing Determinants'!$B$19:$O$41,5,0)/'4. Billing Determinants'!$F$41*$D9,IF($E9="Non-RPP kWh",VLOOKUP(F$4,'4. Billing Determinants'!$B$19:$O$41,6,0)/'4. Billing Determinants'!$G$41*$D9,IF($E9="Distribution Rev.",VLOOKUP(F$4,'4. Billing Determinants'!$B$19:$O$41,8,0)/'4. Billing Determinants'!$I$41*$D9, VLOOKUP(F$4,'4. Billing Determinants'!$B$19:$O$41,3,0)/'4. Billing Determinants'!$D$41*$D9))))),0) -> 40300.39983 | G9: =IFERROR(IF(G$4="",0,IF($E9="kWh",VLOOKUP(G$4,'4. Billing Determinants'!$B$19:$O$41,4,0)/'4. Billing Determinants'!$E$41*$D9,IF($E9="kW",VLOOKUP(G$4,'4. Billing Determinants'!$B$19:$O$41,5,0)/'4. Billing Determinants'!$F$41*$D9,IF($E9="Non-RPP kWh",VLOOKUP(G$4,'4. Billing Determinants'!$B$19:$O$41,6,0)/'4. Billing Determinants'!$G$41*$D9,IF($E9="Distribution Rev.",VLOOKUP(G$4,'4. Billing Determinants'!$B$19:$O$41,8,0)/'4. Billing Determinants'!$I$41*$D9, VLOOKUP(G$4,'4. Billing Determinants'!$B$19:$O$41,3,0)/'4. Billing Determinants'!$D$41*$D9))))),0) -> 14605.50642 | H9: =IFERROR(IF(H$4="",0,IF($E9="kWh",VLOOKUP(H$4,'4. Billing Determinants'!$B$19:$O$41,4,0)/'4. Billing Determinants'!$E$41*$D9,IF($E9="kW",VLOOKUP(H$4,'4. Billing Determinants'!$B$19:$O$41,5,0)/'4. Billing Determinants'!$F$41*$D9,IF($E9="Non-RPP kWh",VLOOKUP(H$4,'4. Billing Determinants'!$B$19:$O$41,6,0)/'4. Billing Determinants'!$G$41*$D9,IF($E9="Distribution Rev.",VLOOKUP(H$4,'4. Billing Determinants'!$B$19:$O$41,8,0)/'4. Billing Determinants'!$I$41*$D9, VLOOKUP(H$4,'4. Billing Determinants'!$B$19:$O$41,3,0)/'4. Billing Determinants'!$D$41*$D9))))),0) -> 61377.28103 | I9: =IFERROR(IF(I$4="",0,IF($E9="kWh",VLOOKUP(I$4,'4. Billing Determinants'!$B$19:$O$41,4,0)/'4. Billing Determinants'!$E$41*$D9,IF($E9="kW",VLOOKUP(I$4,'4. Billing Determinants'!$B$19:$O$41,5,0)/'4. Billing Determinants'!$F$41*$D9,IF($E9="Non-RPP kWh",VLOOKUP(I$4,'4. Billing Determinants'!$B$19:$O$41,6,0)/'4. Billing Determinants'!$G$41*$D9,IF($E9="Distribution Rev.",VLOOKUP(I$4,'4. Billing Determinants'!$B$19:$O$41,8,0)/'4. Billing Determinants'!$I$41*$D9, VLOOKUP(I$4,'4. Billing Determinants'!$B$19:$O$41,3,0)/'4. Billing Determinants'!$D$41*$D9))))),0) -> 169.3744615 | J9: =IFERROR(IF(J$4="",0,IF($E9="kWh",VLOOKUP(J$4,'4. Billing Determinants'!$B$19:$O$41,4,0)/'4. Billing Determinants'!$E$41*$D9,IF($E9="kW",VLOOKUP(J$4,'4. Billing Determinants'!$B$19:$O$41,5,0)/'4. Billing Determinants'!$F$41*$D9,IF($E9="Non-RPP kWh",VLOOKUP(J$4,'4. Billing Determinants'!$B$19:$O$41,6,0)/'4. Billing Determinants'!$G$41*$D9,IF($E9="Distribution Rev.",VLOOKUP(J$4,'4. Billing Determinants'!$B$19:$O$41,8,0)/'4. Billing Determinants'!$I$41*$D9, VLOOKUP(J$4,'4. Billing Determinants'!$B$19:$O$41,3,0)/'4. Billing Determinants'!$D$41*$D9))))),0) -> 80.67041863 | K9: =IFERROR(IF(K$4="",0,IF($E9="kWh",VLOOKUP(K$4,'4. Billing Determinants'!$B$19:$O$41,4,0)/'4. Billing Determinants'!$E$41*$D9,IF($E9="kW",VLOOKUP(K$4,'4. Billing Determinants'!$B$19:$O$41,5,0)/'4. Billing Determinants'!$F$41*$D9,IF($E9="Non-RPP kWh",VLOOKUP(K$4,'4. Billing Determinants'!$B$19:$O$41,6,0)/'4. Billing Determinants'!$G$41*$D9,IF($E9="Distribution Rev.",VLOOKUP(K$4,'4. Billing Determinants'!$B$19:$O$41,8,0)/'4. Billing Determinants'!$I$41*$D9, VLOOKUP(K$4,'4. Billing Determinants'!$B$19:$O$41,3,0)/'4. Billing Determinants'!$D$41*$D9))))),0) -> 1068.617834 | L9: =IFERROR(IF(L$4="",0,IF($E9="kWh",VLOOKUP(L$4,'4. Billing Determinants'!$B$19:$O$41,4,0)/'4. Billing Determinants'!$E$41*$D9,IF($E9="kW",VLOOKUP(L$4,'4. Billing Determinants'!$B$19:$O$41,5,0)/'4. Billing Determinants'!$F$41*$D9,IF($E9="Non-RPP kWh",VLOOKUP(L$4,'4. Billing Determinants'!$B$19:$O$41,6,0)/'4. Billing Determinants'!$G$41*$D9,IF($E9="Distribution Rev.",VLOOKUP(L$4,'4. Billing Determinants'!$B$19:$O$41,8,0)/'4. Billing Determinants'!$I$41*$D9, VLOOKUP(L$4,'4. Billing Determinants'!$B$19:$O$41,3,0)/'4. Billing Determinants'!$D$41*$D9))))),0) -> 0 | M9: =IFERROR(IF(M$4="",0,IF($E9="kWh",VLOOKUP(M$4,'4. Billing Determinants'!$B$19:$O$41,4,0)/'4. Billing Determinants'!$E$41*$D9,IF($E9="kW",VLOOKUP(M$4,'4. Billing Determinants'!$B$19:$O$41,5,0)/'4. Billing Determinants'!$F$41*$D9,IF($E9="Non-RPP kWh",VLOOKUP(M$4,'4. Billing Determinants'!$B$19:$O$41,6,0)/'4. Billing Determinants'!$G$41*$D9,IF($E9="Distribution Rev.",VLOOKUP(M$4,'4. Billing Determinants'!$B$19:$O$41,8,0)/'4. Billing Determinants'!$I$41*$D9, VLOOKUP(M$4,'4. Billing Determinants'!$B$19:$O$41,3,0)/'4. Billing Determinants'!$D$41*$D9))))),0) -> 0 | N9: =IFERROR(IF(N$4="",0,IF($E9="kWh",VLOOKUP(N$4,'4. Billing Determinants'!$B$19:$O$41,4,0)/'4. Billing Determinants'!$E$41*$D9,IF($E9="kW",VLOOKUP(N$4,'4. Billing Determinants'!$B$19:$O$41,5,0)/'4. Billing Determinants'!$F$41*$D9,IF($E9="Non-RPP kWh",VLOOKUP(N$4,'4. Billing Determinants'!$B$19:$O$41,6,0)/'4. Billing Determinants'!$G$41*$D9,IF($E9="Distribution Rev.",VLOOKUP(N$4,'4. Billing Determinants'!$B$19:$O$41,8,0)/'4. Billing Determinants'!$I$41*$D9, VLOOKUP(N$4,'4. Billing Determinants'!$B$19:$O$41,3,0)/'4. Billing Determinants'!$D$41*$D9))))),0) -> 0 | O9: =IFERROR(IF(O$4="",0,IF($E9="kWh",VLOOKUP(O$4,'4. Billing Determinants'!$B$19:$O$41,4,0)/'4. Billing Determinants'!$E$41*$D9,IF($E9="kW",VLOOKUP(O$4,'4. Billing Determinants'!$B$19:$O$41,5,0)/'4. Billing Determinants'!$F$41*$D9,IF($E9="Non-RPP kWh",VLOOKUP(O$4,'4. Billing Determinants'!$B$19:$O$41,6,0)/'4. Billing Determinants'!$G$41*$D9,IF($E9="Distribution Rev.",VLOOKUP(O$4,'4. Billing Determinants'!$B$19:$O$41,8,0)/'4. Billing Determinants'!$I$41*$D9, VLOOKUP(O$4,'4. Billing Determinants'!$B$19:$O$41,3,0)/'4. Billing Determinants'!$D$41*$D9))))),0) -> 0 | P9: =IFERROR(IF(P$4="",0,IF($E9="kWh",VLOOKUP(P$4,'4. Billing Determinants'!$B$19:$O$41,4,0)/'4. Billing Determinants'!$E$41*$D9,IF($E9="kW",VLOOKUP(P$4,'4. Billing Determinants'!$B$19:$O$41,5,0)/'4. Billing Determinants'!$F$41*$D9,IF($E9="Non-RPP kWh",VLOOKUP(P$4,'4. Billing Determinants'!$B$19:$O$41,6,0)/'4. Billing Determinants'!$G$41*$D9,IF($E9="Distribution Rev.",VLOOKUP(P$4,'4. Billing Determinants'!$B$19:$O$41,8,0)/'4. Billing Determinants'!$I$41*$D9, VLOOKUP(P$4,'4. Billing Determinants'!$B$19:$O$41,3,0)/'4. Billing Determinants'!$D$41*$D9))))),0) -> 0 | Q9: =IFERROR(IF(Q$4="",0,IF($E9="kWh",VLOOKUP(Q$4,'4. Billing Determinants'!$B$19:$O$41,4,0)/'4. Billing Determinants'!$E$41*$D9,IF($E9="kW",VLOOKUP(Q$4,'4. Billing Determinants'!$B$19:$O$41,5,0)/'4. Billing Determinants'!$F$41*$D9,IF($E9="Non-RPP kWh",VLOOKUP(Q$4,'4. Billing Determinants'!$B$19:$O$41,6,0)/'4. Billing Determinants'!$G$41*$D9,IF($E9="Distribution Rev.",VLOOKUP(Q$4,'4. Billing Determinants'!$B$19:$O$41,8,0)/'4. Billing Determinants'!$I$41*$D9, VLOOKUP(Q$4,'4. Billing Determinants'!$B$19:$O$41,3,0)/'4. Billing Determinants'!$D$41*$D9))))),0) -> 0 | R9: =IFERROR(IF(R$4="",0,IF($E9="kWh",VLOOKUP(R$4,'4. Billing Determinants'!$B$19:$O$41,4,0)/'4. Billing Determinants'!$E$41*$D9,IF($E9="kW",VLOOKUP(R$4,'4. Billing Determinants'!$B$19:$O$41,5,0)/'4. Billing Determinants'!$F$41*$D9,IF($E9="Non-RPP kWh",VLOOKUP(R$4,'4. Billing Determinants'!$B$19:$O$41,6,0)/'4. Billing Determinants'!$G$41*$D9,IF($E9="Distribution Rev.",VLOOKUP(R$4,'4. Billing Determinants'!$B$19:$O$41,8,0)/'4. Billing Determinants'!$I$41*$D9, VLOOKUP(R$4,'4. Billing Determinants'!$B$19:$O$41,3,0)/'4. Billing Determinants'!$D$41*$D9))))),0) -> 0 | S9: =IFERROR(IF(S$4="",0,IF($E9="kWh",VLOOKUP(S$4,'4. Billing Determinants'!$B$19:$O$41,4,0)/'4. Billing Determinants'!$E$41*$D9,IF($E9="kW",VLOOKUP(S$4,'4. Billing Determinants'!$B$19:$O$41,5,0)/'4. Billing Determinants'!$F$41*$D9,IF($E9="Non-RPP kWh",VLOOKUP(S$4,'4. Billing Determinants'!$B$19:$O$41,6,0)/'4. Billing Determinants'!$G$41*$D9,IF($E9="Distribution Rev.",VLOOKUP(S$4,'4. Billing Determinants'!$B$19:$O$41,8,0)/'4. Billing Determinants'!$I$41*$D9, VLOOKUP(S$4,'4. Billing Determinants'!$B$19:$O$41,3,0)/'4. Billing Determinants'!$D$41*$D9))))),0) -> 0 | T9: =IFERROR(IF(T$4="",0,IF($E9="kWh",VLOOKUP(T$4,'4. Billing Determinants'!$B$19:$O$41,4,0)/'4. Billing Determinants'!$E$41*$D9,IF($E9="kW",VLOOKUP(T$4,'4. Billing Determinants'!$B$19:$O$41,5,0)/'4. Billing Determinants'!$F$41*$D9,IF($E9="Non-RPP kWh",VLOOKUP(T$4,'4. Billing Determinants'!$B$19:$O$41,6,0)/'4. Billing Determinants'!$G$41*$D9,IF($E9="Distribution Rev.",VLOOKUP(T$4,'4. Billing Determinants'!$B$19:$O$41,8,0)/'4. Billing Determinants'!$I$41*$D9, VLOOKUP(T$4,'4. Billing Determinants'!$B$19:$O$41,3,0)/'4. Billing Determinants'!$D$41*$D9))))),0) -> 0 | U9: =IFERROR(IF(U$4="",0,IF($E9="kWh",VLOOKUP(U$4,'4. Billing Determinants'!$B$19:$O$41,4,0)/'4. Billing Determinants'!$E$41*$D9,IF($E9="kW",VLOOKUP(U$4,'4. Billing Determinants'!$B$19:$O$41,5,0)/'4. Billing Determinants'!$F$41*$D9,IF($E9="Non-RPP kWh",VLOOKUP(U$4,'4. Billing Determinants'!$B$19:$O$41,6,0)/'4. Billing Determinants'!$G$41*$D9,IF($E9="Distribution Rev.",VLOOKUP(U$4,'4. Billing Determinants'!$B$19:$O$41,8,0)/'4. Billing Determinants'!$I$41*$D9, VLOOKUP(U$4,'4. Billing Determinants'!$B$19:$O$41,3,0)/'4. Billing Determinants'!$D$41*$D9))))),0) -> 0 | V9: =IFERROR(IF(V$4="",0,IF($E9="kWh",VLOOKUP(V$4,'4. Billing Determinants'!$B$19:$O$41,4,0)/'4. Billing Determinants'!$E$41*$D9,IF($E9="kW",VLOOKUP(V$4,'4. Billing Determinants'!$B$19:$O$41,5,0)/'4. Billing Determinants'!$F$41*$D9,IF($E9="Non-RPP kWh",VLOOKUP(V$4,'4. Billing Determinants'!$B$19:$O$41,6,0)/'4. Billing Determinants'!$G$41*$D9,IF($E9="Distribution Rev.",VLOOKUP(V$4,'4. Billing Determinants'!$B$19:$O$41,8,0)/'4. Billing Determinants'!$I$41*$D9, VLOOKUP(V$4,'4. Billing Determinants'!$B$19:$O$41,3,0)/'4. Billing Determinants'!$D$41*$D9))))),0) -> 0 | W9: =IFERROR(IF(W$4="",0,IF($E9="kWh",VLOOKUP(W$4,'4. Billing Determinants'!$B$19:$O$41,4,0)/'4. Billing Determinants'!$E$41*$D9,IF($E9="kW",VLOOKUP(W$4,'4. Billing Determinants'!$B$19:$O$41,5,0)/'4. Billing Determinants'!$F$41*$D9,IF($E9="Non-RPP kWh",VLOOKUP(W$4,'4. Billing Determinants'!$B$19:$O$41,6,0)/'4. Billing Determinants'!$G$41*$D9,IF($E9="Distribution Rev.",VLOOKUP(W$4,'4. Billing Determinants'!$B$19:$O$41,8,0)/'4. Billing Determinants'!$I$41*$D9, VLOOKUP(W$4,'4. Billing Determinants'!$B$19:$O$41,3,0)/'4. Billing Determinants'!$D$41*$D9))))),0) -> 0 | X9: =IFERROR(IF(X$4="",0,IF($E9="kWh",VLOOKUP(X$4,'4. Billing Determinants'!$B$19:$O$41,4,0)/'4. Billing Determinants'!$E$41*$D9,IF($E9="kW",VLOOKUP(X$4,'4. Billing Determinants'!$B$19:$O$41,5,0)/'4. Billing Determinants'!$F$41*$D9,IF($E9="Non-RPP kWh",VLOOKUP(X$4,'4. Billing Determinants'!$B$19:$O$41,6,0)/'4. Billing Determinants'!$G$41*$D9,IF($E9="Distribution Rev.",VLOOKUP(X$4,'4. Billing Determinants'!$B$19:$O$41,8,0)/'4. Billing Determinants'!$I$41*$D9, VLOOKUP(X$4,'4. Billing Determinants'!$B$19:$O$41,3,0)/'4. Billing Determinants'!$D$41*$D9))))),0) -> 0 | Y9: =IFERROR(IF(Y$4="",0,IF($E9="kWh",VLOOKUP(Y$4,'4. Billing Determinants'!$B$19:$O$41,4,0)/'4. Billing Determinants'!$E$41*$D9,IF($E9="kW",VLOOKUP(Y$4,'4. Billing Determinants'!$B$19:$O$41,5,0)/'4. Billing Determinants'!$F$41*$D9,IF($E9="Non-RPP kWh",VLOOKUP(Y$4,'4. Billing Determinants'!$B$19:$O$41,6,0)/'4. Billing Determinants'!$G$41*$D9,IF($E9="Distribution Rev.",VLOOKUP(Y$4,'4. Billing Determinants'!$B$19:$O$41,8,0)/'4. Billing Determinants'!$I$41*$D9, VLOOKUP(Y$4,'4. Billing Determinants'!$B$19:$O$41,3,0)/'4. Billing Determinants'!$D$41*$D9))))),0) -> 0
B10: RSVA - Global Adjustment | C10: 1589 | D10: ='2. 2013 Continuity Schedule'!CP29 -> 271750.71 | E10: Non-RPP kWh | F10: =IFERROR(IF(F$4="",0,IF($E10="kWh",VLOOKUP(F$4,'4. Billing Determinants'!$B$19:$O$41,4,0)/'4. Billing Determinants'!$E$41*$D10,IF($E10="kW",VLOOKUP(F$4,'4. Billing Determinants'!$B$19:$O$41,5,0)/'4. Billing Determinants'!$F$41*$D10,IF($E10="Non-RPP kWh",VLOOKUP(F$4,'4. Billing Determinants'!$B$19:$O$41,6,0)/'4. Billing Determinants'!$G$41*$D10,IF($E10="Distribution Rev.",VLOOKUP(F$4,'4. Billing Determinants'!$B$19:$O$41,8,0)/'4. Billing Determinants'!$I$41*$D10, VLOOKUP(F$4,'4. Billing Determinants'!$B$19:$O$41,3,0)/'4. Billing Determinants'!$D$41*$D10))))),0) -> 8638.709612 | G10: =IFERROR(IF(G$4="",0,IF($E10="kWh",VLOOKUP(G$4,'4. Billing Determinants'!$B$19:$O$41,4,0)/'4. Billing Determinants'!$E$41*$D10,IF($E10="kW",VLOOKUP(G$4,'4. Billing Determinants'!$B$19:$O$41,5,0)/'4. Billing Determinants'!$F$41*$D10,IF($E10="Non-RPP kWh",VLOOKUP(G$4,'4. Billing Determinants'!$B$19:$O$41,6,0)/'4. Billing Determinants'!$G$41*$D10,IF($E10="Distribution Rev.",VLOOKUP(G$4,'4. Billing Determinants'!$B$19:$O$41,8,0)/'4. Billing Determinants'!$I$41*$D10, VLOOKUP(G$4,'4. Billing Determinants'!$B$19:$O$41,3,0)/'4. Billing Determinants'!$D$41*$D10))))),0) -> 233.4471693 | H10: =IFERROR(IF(H$4="",0,IF($E10="kWh",VLOOKUP(H$4,'4. Billing Determinants'!$B$19:$O$41,4,0)/'4. Billing Determinants'!$E$41*$D10,IF($E10="kW",VLOOKUP(H$4,'4. Billing Determinants'!$B$19:$O$41,5,0)/'4. Billing Determinants'!$F$41*$D10,IF($E10="Non-RPP kWh",VLOOKUP(H$4,'4. Billing Determinants'!$B$19:$O$41,6,0)/'4. Billing Determinants'!$G$41*$D10,IF($E10="Distribution Rev.",VLOOKUP(H$4,'4. Billing Determinants'!$B$19:$O$41,8,0)/'4. Billing Determinants'!$I$41*$D10, VLOOKUP(H$4,'4. Billing Determinants'!$B$19:$O$41,3,0)/'4. Billing Determinants'!$D$41*$D10))))),0) -> 258329.8198 | I10: =IFERROR(IF(I$4="",0,IF($E10="kWh",VLOOKUP(I$4,'4. Billing Determinants'!$B$19:$O$41,4,0)/'4. Billing Determinants'!$E$41*$D10,IF($E10="kW",VLOOKUP(I$4,'4. Billing Determinants'!$B$19:$O$41,5,0)/'4. Billing Determinants'!$F$41*$D10,IF($E10="Non-RPP kWh",VLOOKUP(I$4,'4. Billing Determinants'!$B$19:$O$41,6,0)/'4. Billing Determinants'!$G$41*$D10,IF($E10="Distribution Rev.",VLOOKUP(I$4,'4. Billing Determinants'!$B$19:$O$41,8,0)/'4. Billing Determinants'!$I$41*$D10, VLOOKUP(I$4,'4. Billing Determinants'!$B$19:$O$41,3,0)/'4. Billing Determinants'!$D$41*$D10))))),0) -> 31.79239023 | J10: =IFERROR(IF(J$4="",0,IF($E10="kWh",VLOOKUP(J$4,'4. Billing Determinants'!$B$19:$O$41,4,0)/'4. Billing Determinants'!$E$41*$D10,IF($E10="kW",VLOOKUP(J$4,'4. Billing Determinants'!$B$19:$O$41,5,0)/'4. Billing Determinants'!$F$41*$D10,IF($E10="Non-RPP kWh",VLOOKUP(J$4,'4. Billing Determinants'!$B$19:$O$41,6,0)/'4. Billing Determinants'!$G$41*$D10,IF($E10="Distribution Rev.",VLOOKUP(J$4,'4. Billing Determinants'!$B$19:$O$41,8,0)/'4. Billing Determinants'!$I$41*$D10, VLOOKUP(J$4,'4. Billing Determinants'!$B$19:$O$41,3,0)/'4. Billing Determinants'!$D$41*$D10))))),0) -> 19.24992075 | K10: =IFERROR(IF(K$4="",0,IF($E10="kWh",VLOOKUP(K$4,'4. Billing Determinants'!$B$19:$O$41,4,0)/'4. Billing Determinants'!$E$41*$D10,IF($E10="kW",VLOOKUP(K$4,'4. Billing Determinants'!$B$19:$O$41,5,0)/'4. Billing Determinants'!$F$41*$D10,IF($E10="Non-RPP kWh",VLOOKUP(K$4,'4. Billing Determinants'!$B$19:$O$41,6,0)/'4. Billing Determinants'!$G$41*$D10,IF($E10="Distribution Rev.",VLOOKUP(K$4,'4. Billing Determinants'!$B$19:$O$41,8,0)/'4. Billing Determinants'!$I$41*$D10, VLOOKUP(K$4,'4. Billing Determinants'!$B$19:$O$41,3,0)/'4. Billing Determinants'!$D$41*$D10))))),0) -> 4497.691074 | L10: =IFERROR(IF(L$4="",0,IF($E10="kWh",VLOOKUP(L$4,'4. Billing Determinants'!$B$19:$O$41,4,0)/'4. Billing Determinants'!$E$41*$D10,IF($E10="kW",VLOOKUP(L$4,'4. Billing Determinants'!$B$19:$O$41,5,0)/'4. Billing Determinants'!$F$41*$D10,IF($E10="Non-RPP kWh",VLOOKUP(L$4,'4. Billing Determinants'!$B$19:$O$41,6,0)/'4. Billing Determinants'!$G$41*$D10,IF($E10="Distribution Rev.",VLOOKUP(L$4,'4. Billing Determinants'!$B$19:$O$41,8,0)/'4. Billing Determinants'!$I$41*$D10, VLOOKUP(L$4,'4. Billing Determinants'!$B$19:$O$41,3,0)/'4. Billing Determinants'!$D$41*$D10))))),0) -> 0 | M10: =IFERROR(IF(M$4="",0,IF($E10="kWh",VLOOKUP(M$4,'4. Billing Determinants'!$B$19:$O$41,4,0)/'4. Billing Determinants'!$E$41*$D10,IF($E10="kW",VLOOKUP(M$4,'4. Billing Determinants'!$B$19:$O$41,5,0)/'4. Billing Determinants'!$F$41*$D10,IF($E10="Non-RPP kWh",VLOOKUP(M$4,'4. Billing Determinants'!$B$19:$O$41,6,0)/'4. Billing Determinants'!$G$41*$D10,IF($E10="Distribution Rev.",VLOOKUP(M$4,'4. Billing Determinants'!$B$19:$O$41,8,0)/'4. Billing Determinants'!$I$41*$D10, VLOOKUP(M$4,'4. Billing Determinants'!$B$19:$O$41,3,0)/'4. Billing Determinants'!$D$41*$D10))))),0) -> 0 | N10: =IFERROR(IF(N$4="",0,IF($E10="kWh",VLOOKUP(N$4,'4. Billing Determinants'!$B$19:$O$41,4,0)/'4. Billing Determinants'!$E$41*$D10,IF($E10="kW",VLOOKUP(N$4,'4. Billing Determinants'!$B$19:$O$41,5,0)/'4. Billing Determinants'!$F$41*$D10,IF($E10="Non-RPP kWh",VLOOKUP(N$4,'4. Billing Determinants'!$B$19:$O$41,6,0)/'4. Billing Determinants'!$G$41*$D10,IF($E10="Distribution Rev.",VLOOKUP(N$4,'4. Billing Determinants'!$B$19:$O$41,8,0)/'4. Billing Determinants'!$I$41*$D10, VLOOKUP(N$4,'4. Billing Determinants'!$B$19:$O$41,3,0)/'4. Billing Determinants'!$D$41*$D10))))),0) -> 0 | O10: =IFERROR(IF(O$4="",0,IF($E10="kWh",VLOOKUP(O$4,'4. Billing Determinants'!$B$19:$O$41,4,0)/'4. Billing Determinants'!$E$41*$D10,IF($E10="kW",VLOOKUP(O$4,'4. Billing Determinants'!$B$19:$O$41,5,0)/'4. Billing Determinants'!$F$41*$D10,IF($E10="Non-RPP kWh",VLOOKUP(O$4,'4. Billing Determinants'!$B$19:$O$41,6,0)/'4. Billing Determinants'!$G$41*$D10,IF($E10="Distribution Rev.",VLOOKUP(O$4,'4. Billing Determinants'!$B$19:$O$41,8,0)/'4. Billing Determinants'!$I$41*$D10, VLOOKUP(O$4,'4. Billing Determinants'!$B$19:$O$41,3,0)/'4. Billing Determinants'!$D$41*$D10))))),0) -> 0 | P10: =IFERROR(IF(P$4="",0,IF($E10="kWh",VLOOKUP(P$4,'4. Billing Determinants'!$B$19:$O$41,4,0)/'4. Billing Determinants'!$E$41*$D10,IF($E10="kW",VLOOKUP(P$4,'4. Billing Determinants'!$B$19:$O$41,5,0)/'4. Billing Determinants'!$F$41*$D10,IF($E10="Non-RPP kWh",VLOOKUP(P$4,'4. Billing Determinants'!$B$19:$O$41,6,0)/'4. Billing Determinants'!$G$41*$D10,IF($E10="Distribution Rev.",VLOOKUP(P$4,'4. Billing Determinants'!$B$19:$O$41,8,0)/'4. Billing Determinants'!$I$41*$D10, VLOOKUP(P$4,'4. Billing Determinants'!$B$19:$O$41,3,0)/'4. Billing Determinants'!$D$41*$D10))))),0) -> 0 | Q10: =IFERROR(IF(Q$4="",0,IF($E10="kWh",VLOOKUP(Q$4,'4. Billing Determinants'!$B$19:$O$41,4,0)/'4. Billing Determinants'!$E$41*$D10,IF($E10="kW",VLOOKUP(Q$4,'4. Billing Determinants'!$B$19:$O$41,5,0)/'4. Billing Determinants'!$F$41*$D10,IF($E10="Non-RPP kWh",VLOOKUP(Q$4,'4. Billing Determinants'!$B$19:$O$41,6,0)/'4. Billing Determinants'!$G$41*$D10,IF($E10="Distribution Rev.",VLOOKUP(Q$4,'4. Billing Determinants'!$B$19:$O$41,8,0)/'4. Billing Determinants'!$I$41*$D10, VLOOKUP(Q$4,'4. Billing Determinants'!$B$19:$O$41,3,0)/'4. Billing Determinants'!$D$41*$D10))))),0) -> 0 | R10: =IFERROR(IF(R$4="",0,IF($E10="kWh",VLOOKUP(R$4,'4. Billing Determinants'!$B$19:$O$41,4,0)/'4. Billing Determinants'!$E$41*$D10,IF($E10="kW",VLOOKUP(R$4,'4. Billing Determinants'!$B$19:$O$41,5,0)/'4. Billing Determinants'!$F$41*$D10,IF($E10="Non-RPP kWh",VLOOKUP(R$4,'4. Billing Determinants'!$B$19:$O$41,6,0)/'4. Billing Determinants'!$G$41*$D10,IF($E10="Distribution Rev.",VLOOKUP(R$4,'4. Billing Determinants'!$B$19:$O$41,8,0)/'4. Billing Determinants'!$I$41*$D10, VLOOKUP(R$4,'4. Billing Determinants'!$B$19:$O$41,3,0)/'4. Billing Determinants'!$D$41*$D10))))),0) -> 0 | S10: =IFERROR(IF(S$4="",0,IF($E10="kWh",VLOOKUP(S$4,'4. Billing Determinants'!$B$19:$O$41,4,0)/'4. Billing Determinants'!$E$41*$D10,IF($E10="kW",VLOOKUP(S$4,'4. Billing Determinants'!$B$19:$O$41,5,0)/'4. Billing Determinants'!$F$41*$D10,IF($E10="Non-RPP kWh",VLOOKUP(S$4,'4. Billing Determinants'!$B$19:$O$41,6,0)/'4. Billing Determinants'!$G$41*$D10,IF($E10="Distribution Rev.",VLOOKUP(S$4,'4. Billing Determinants'!$B$19:$O$41,8,0)/'4. Billing Determinants'!$I$41*$D10, VLOOKUP(S$4,'4. Billing Determinants'!$B$19:$O$41,3,0)/'4. Billing Determinants'!$D$41*$D10))))),0) -> 0 | T10: =IFERROR(IF(T$4="",0,IF($E10="kWh",VLOOKUP(T$4,'4. Billing Determinants'!$B$19:$O$41,4,0)/'4. Billing Determinants'!$E$41*$D10,IF($E10="kW",VLOOKUP(T$4,'4. Billing Determinants'!$B$19:$O$41,5,0)/'4. Billing Determinants'!$F$41*$D10,IF($E10="Non-RPP kWh",VLOOKUP(T$4,'4. Billing Determinants'!$B$19:$O$41,6,0)/'4. Billing Determinants'!$G$41*$D10,IF($E10="Distribution Rev.",VLOOKUP(T$4,'4. Billing Determinants'!$B$19:$O$41,8,0)/'4. Billing Determinants'!$I$41*$D10, VLOOKUP(T$4,'4. Billing Determinants'!$B$19:$O$41,3,0)/'4. Billing Determinants'!$D$41*$D10))))),0) -> 0 | U10: =IFERROR(IF(U$4="",0,IF($E10="kWh",VLOOKUP(U$4,'4. Billing Determinants'!$B$19:$O$41,4,0)/'4. Billing Determinants'!$E$41*$D10,IF($E10="kW",VLOOKUP(U$4,'4. Billing Determinants'!$B$19:$O$41,5,0)/'4. Billing Determinants'!$F$41*$D10,IF($E10="Non-RPP kWh",VLOOKUP(U$4,'4. Billing Determinants'!$B$19:$O$41,6,0)/'4. Billing Determinants'!$G$41*$D10,IF($E10="Distribution Rev.",VLOOKUP(U$4,'4. Billing Determinants'!$B$19:$O$41,8,0)/'4. Billing Determinants'!$I$41*$D10, VLOOKUP(U$4,'4. Billing Determinants'!$B$19:$O$41,3,0)/'4. Billing Determinants'!$D$41*$D10))))),0) -> 0 | V10: =IFERROR(IF(V$4="",0,IF($E10="kWh",VLOOKUP(V$4,'4. Billing Determinants'!$B$19:$O$41,4,0)/'4. Billing Determinants'!$E$41*$D10,IF($E10="kW",VLOOKUP(V$4,'4. Billing Determinants'!$B$19:$O$41,5,0)/'4. Billing Determinants'!$F$41*$D10,IF($E10="Non-RPP kWh",VLOOKUP(V$4,'4. Billing Determinants'!$B$19:$O$41,6,0)/'4. Billing Determinants'!$G$41*$D10,IF($E10="Distribution Rev.",VLOOKUP(V$4,'4. Billing Determinants'!$B$19:$O$41,8,0)/'4. Billing Determinants'!$I$41*$D10, VLOOKUP(V$4,'4. Billing Determinants'!$B$19:$O$41,3,0)/'4. Billing Determinants'!$D$41*$D10))))),0) -> 0 | W10: =IFERROR(IF(W$4="",0,IF($E10="kWh",VLOOKUP(W$4,'4. Billing Determinants'!$B$19:$O$41,4,0)/'4. Billing Determinants'!$E$41*$D10,IF($E10="kW",VLOOKUP(W$4,'4. Billing Determinants'!$B$19:$O$41,5,0)/'4. Billing Determinants'!$F$41*$D10,IF($E10="Non-RPP kWh",VLOOKUP(W$4,'4. Billing Determinants'!$B$19:$O$41,6,0)/'4. Billing Determinants'!$G$41*$D10,IF($E10="Distribution Rev.",VLOOKUP(W$4,'4. Billing Determinants'!$B$19:$O$41,8,0)/'4. Billing Determinants'!$I$41*$D10, VLOOKUP(W$4,'4. Billing Determinants'!$B$19:$O$41,3,0)/'4. Billing Determinants'!$D$41*$D10))))),0) -> 0 | X10: =IFERROR(IF(X$4="",0,IF($E10="kWh",VLOOKUP(X$4,'4. Billing Determinants'!$B$19:$O$41,4,0)/'4. Billing Determinants'!$E$41*$D10,IF($E10="kW",VLOOKUP(X$4,'4. Billing Determinants'!$B$19:$O$41,5,0)/'4. Billing Determinants'!$F$41*$D10,IF($E10="Non-RPP kWh",VLOOKUP(X$4,'4. Billing Determinants'!$B$19:$O$41,6,0)/'4. Billing Determinants'!$G$41*$D10,IF($E10="Distribution Rev.",VLOOKUP(X$4,'4. Billing Determinants'!$B$19:$O$41,8,0)/'4. Billing Determinants'!$I$41*$D10, VLOOKUP(X$4,'4. Billing Determinants'!$B$19:$O$41,3,0)/'4. Billing Determinants'!$D$41*$D10))))),0) -> 0 | Y10: =IFERROR(IF(Y$4="",0,IF($E10="kWh",VLOOKUP(Y$4,'4. Billing Determinants'!$B$19:$O$41,4,0)/'4. Billing Determinants'!$E$41*$D10,IF($E10="kW",VLOOKUP(Y$4,'4. Billing Determinants'!$B$19:$O$41,5,0)/'4. Billing Determinants'!$F$41*$D10,IF($E10="Non-RPP kWh",VLOOKUP(Y$4,'4. Billing Determinants'!$B$19:$O$41,6,0)/'4. Billing Determinants'!$G$41*$D10,IF($E10="Distribution Rev.",VLOOKUP(Y$4,'4. Billing Determinants'!$B$19:$O$41,8,0)/'4. Billing Determinants'!$I$41*$D10, VLOOKUP(Y$4,'4. Billing Determinants'!$B$19:$O$41,3,0)/'4. Billing Determinants'!$D$41*$D10))))),0) -> 0
B11: Recovery of Regulatory Asset Balances | C11: 1590 | D11: ='2. 2013 Continuity Schedule'!CP30 -> -6.252776075e-12 | E11: kWh | F11: =IFERROR(IF(F$4="",0,IF($E11="kWh",VLOOKUP(F$4,'4. Billing Determinants'!$B$19:$O$41,4,0)/'4. Billing Determinants'!$E$41*$D11,IF($E11="kW",VLOOKUP(F$4,'4. Billing Determinants'!$B$19:$O$41,5,0)/'4. Billing Determinants'!$F$41*$D11,IF($E11="Non-RPP kWh",VLOOKUP(F$4,'4. Billing Determinants'!$B$19:$O$41,6,0)/'4. Billing Determinants'!$G$41*$D11,IF($E11="Distribution Rev.",VLOOKUP(F$4,'4. Billing Determinants'!$B$19:$O$41,8,0)/'4. Billing Determinants'!$I$41*$D11, VLOOKUP(F$4,'4. Billing Determinants'!$B$19:$O$41,3,0)/'4. Billing Determinants'!$D$41*$D11))))),0) -> -2.142733094e-12 | G11: =IFERROR(IF(G$4="",0,IF($E11="kWh",VLOOKUP(G$4,'4. Billing Determinants'!$B$19:$O$41,4,0)/'4. Billing Determinants'!$E$41*$D11,IF($E11="kW",VLOOKUP(G$4,'4. Billing Determinants'!$B$19:$O$41,5,0)/'4. Billing Determinants'!$F$41*$D11,IF($E11="Non-RPP kWh",VLOOKUP(G$4,'4. Billing Determinants'!$B$19:$O$41,6,0)/'4. Billing Determinants'!$G$41*$D11,IF($E11="Distribution Rev.",VLOOKUP(G$4,'4. Billing Determinants'!$B$19:$O$41,8,0)/'4. Billing Determinants'!$I$41*$D11, VLOOKUP(G$4,'4. Billing Determinants'!$B$19:$O$41,3,0)/'4. Billing Determinants'!$D$41*$D11))))),0) -> -7.765605823e-13 | H11: =IFERROR(IF(H$4="",0,IF($E11="kWh",VLOOKUP(H$4,'4. Billing Determinants'!$B$19:$O$41,4,0)/'4. Billing Determinants'!$E$41*$D11,IF($E11="kW",VLOOKUP(H$4,'4. Billing Determinants'!$B$19:$O$41,5,0)/'4. Billing Determinants'!$F$41*$D11,IF($E11="Non-RPP kWh",VLOOKUP(H$4,'4. Billing Determinants'!$B$19:$O$41,6,0)/'4. Billing Determinants'!$G$41*$D11,IF($E11="Distribution Rev.",VLOOKUP(H$4,'4. Billing Determinants'!$B$19:$O$41,8,0)/'4. Billing Determinants'!$I$41*$D11, VLOOKUP(H$4,'4. Billing Determinants'!$B$19:$O$41,3,0)/'4. Billing Determinants'!$D$41*$D11))))),0) -> -3.263370384e-12 | I11: =IFERROR(IF(I$4="",0,IF($E11="kWh",VLOOKUP(I$4,'4. Billing Determinants'!$B$19:$O$41,4,0)/'4. Billing Determinants'!$E$41*$D11,IF($E11="kW",VLOOKUP(I$4,'4. Billing Determinants'!$B$19:$O$41,5,0)/'4. Billing Determinants'!$F$41*$D11,IF($E11="Non-RPP kWh",VLOOKUP(I$4,'4. Billing Determinants'!$B$19:$O$41,6,0)/'4. Billing Determinants'!$G$41*$D11,IF($E11="Distribution Rev.",VLOOKUP(I$4,'4. Billing Determinants'!$B$19:$O$41,8,0)/'4. Billing Determinants'!$I$41*$D11, VLOOKUP(I$4,'4. Billing Determinants'!$B$19:$O$41,3,0)/'4. Billing Determinants'!$D$41*$D11))))),0) -> -9.005475515e-15 | J11: =IFERROR(IF(J$4="",0,IF($E11="kWh",VLOOKUP(J$4,'4. Billing Determinants'!$B$19:$O$41,4,0)/'4. Billing Determinants'!$E$41*$D11,IF($E11="kW",VLOOKUP(J$4,'4. Billing Determinants'!$B$19:$O$41,5,0)/'4. Billing Determinants'!$F$41*$D11,IF($E11="Non-RPP kWh",VLOOKUP(J$4,'4. Billing Determinants'!$B$19:$O$41,6,0)/'4. Billing Determinants'!$G$41*$D11,IF($E11="Distribution Rev.",VLOOKUP(J$4,'4. Billing Determinants'!$B$19:$O$41,8,0)/'4. Billing Determinants'!$I$41*$D11, VLOOKUP(J$4,'4. Billing Determinants'!$B$19:$O$41,3,0)/'4. Billing Determinants'!$D$41*$D11))))),0) -> -4.28916776e-15 | K11: =IFERROR(IF(K$4="",0,IF($E11="kWh",VLOOKUP(K$4,'4. Billing Determinants'!$B$19:$O$41,4,0)/'4. Billing Determinants'!$E$41*$D11,IF($E11="kW",VLOOKUP(K$4,'4. Billing Determinants'!$B$19:$O$41,5,0)/'4. Billing Determinants'!$F$41*$D11,IF($E11="Non-RPP kWh",VLOOKUP(K$4,'4. Billing Determinants'!$B$19:$O$41,6,0)/'4. Billing Determinants'!$G$41*$D11,IF($E11="Distribution Rev.",VLOOKUP(K$4,'4. Billing Determinants'!$B$19:$O$41,8,0)/'4. Billing Determinants'!$I$41*$D11, VLOOKUP(K$4,'4. Billing Determinants'!$B$19:$O$41,3,0)/'4. Billing Determinants'!$D$41*$D11))))),0) -> -5.681737171e-14 | L11: =IFERROR(IF(L$4="",0,IF($E11="kWh",VLOOKUP(L$4,'4. Billing Determinants'!$B$19:$O$41,4,0)/'4. Billing Determinants'!$E$41*$D11,IF($E11="kW",VLOOKUP(L$4,'4. Billing Determinants'!$B$19:$O$41,5,0)/'4. Billing Determinants'!$F$41*$D11,IF($E11="Non-RPP kWh",VLOOKUP(L$4,'4. Billing Determinants'!$B$19:$O$41,6,0)/'4. Billing Determinants'!$G$41*$D11,IF($E11="Distribution Rev.",VLOOKUP(L$4,'4. Billing Determinants'!$B$19:$O$41,8,0)/'4. Billing Determinants'!$I$41*$D11, VLOOKUP(L$4,'4. Billing Determinants'!$B$19:$O$41,3,0)/'4. Billing Determinants'!$D$41*$D11))))),0) -> 0 | M11: =IFERROR(IF(M$4="",0,IF($E11="kWh",VLOOKUP(M$4,'4. Billing Determinants'!$B$19:$O$41,4,0)/'4. Billing Determinants'!$E$41*$D11,IF($E11="kW",VLOOKUP(M$4,'4. Billing Determinants'!$B$19:$O$41,5,0)/'4. Billing Determinants'!$F$41*$D11,IF($E11="Non-RPP kWh",VLOOKUP(M$4,'4. Billing Determinants'!$B$19:$O$41,6,0)/'4. Billing Determinants'!$G$41*$D11,IF($E11="Distribution Rev.",VLOOKUP(M$4,'4. Billing Determinants'!$B$19:$O$41,8,0)/'4. Billing Determinants'!$I$41*$D11, VLOOKUP(M$4,'4. Billing Determinants'!$B$19:$O$41,3,0)/'4. Billing Determinants'!$D$41*$D11))))),0) -> 0 | N11: =IFERROR(IF(N$4="",0,IF($E11="kWh",VLOOKUP(N$4,'4. Billing Determinants'!$B$19:$O$41,4,0)/'4. Billing Determinants'!$E$41*$D11,IF($E11="kW",VLOOKUP(N$4,'4. Billing Determinants'!$B$19:$O$41,5,0)/'4. Billing Determinants'!$F$41*$D11,IF($E11="Non-RPP kWh",VLOOKUP(N$4,'4. Billing Determinants'!$B$19:$O$41,6,0)/'4. Billing Determinants'!$G$41*$D11,IF($E11="Distribution Rev.",VLOOKUP(N$4,'4. Billing Determinants'!$B$19:$O$41,8,0)/'4. Billing Determinants'!$I$41*$D11, VLOOKUP(N$4,'4. Billing Determinants'!$B$19:$O$41,3,0)/'4. Billing Determinants'!$D$41*$D11))))),0) -> 0 | O11: =IFERROR(IF(O$4="",0,IF($E11="kWh",VLOOKUP(O$4,'4. Billing Determinants'!$B$19:$O$41,4,0)/'4. Billing Determinants'!$E$41*$D11,IF($E11="kW",VLOOKUP(O$4,'4. Billing Determinants'!$B$19:$O$41,5,0)/'4. Billing Determinants'!$F$41*$D11,IF($E11="Non-RPP kWh",VLOOKUP(O$4,'4. Billing Determinants'!$B$19:$O$41,6,0)/'4. Billing Determinants'!$G$41*$D11,IF($E11="Distribution Rev.",VLOOKUP(O$4,'4. Billing Determinants'!$B$19:$O$41,8,0)/'4. Billing Determinants'!$I$41*$D11, VLOOKUP(O$4,'4. Billing Determinants'!$B$19:$O$41,3,0)/'4. Billing Determinants'!$D$41*$D11))))),0) -> 0 | P11: =IFERROR(IF(P$4="",0,IF($E11="kWh",VLOOKUP(P$4,'4. Billing Determinants'!$B$19:$O$41,4,0)/'4. Billing Determinants'!$E$41*$D11,IF($E11="kW",VLOOKUP(P$4,'4. Billing Determinants'!$B$19:$O$41,5,0)/'4. Billing Determinants'!$F$41*$D11,IF($E11="Non-RPP kWh",VLOOKUP(P$4,'4. Billing Determinants'!$B$19:$O$41,6,0)/'4. Billing Determinants'!$G$41*$D11,IF($E11="Distribution Rev.",VLOOKUP(P$4,'4. Billing Determinants'!$B$19:$O$41,8,0)/'4. Billing Determinants'!$I$41*$D11, VLOOKUP(P$4,'4. Billing Determinants'!$B$19:$O$41,3,0)/'4. Billing Determinants'!$D$41*$D11))))),0) -> 0 | Q11: =IFERROR(IF(Q$4="",0,IF($E11="kWh",VLOOKUP(Q$4,'4. Billing Determinants'!$B$19:$O$41,4,0)/'4. Billing Determinants'!$E$41*$D11,IF($E11="kW",VLOOKUP(Q$4,'4. Billing Determinants'!$B$19:$O$41,5,0)/'4. Billing Determinants'!$F$41*$D11,IF($E11="Non-RPP kWh",VLOOKUP(Q$4,'4. Billing Determinants'!$B$19:$O$41,6,0)/'4. Billing Determinants'!$G$41*$D11,IF($E11="Distribution Rev.",VLOOKUP(Q$4,'4. Billing Determinants'!$B$19:$O$41,8,0)/'4. Billing Determinants'!$I$41*$D11, VLOOKUP(Q$4,'4. Billing Determinants'!$B$19:$O$41,3,0)/'4. Billing Determinants'!$D$41*$D11))))),0) -> 0 | R11: =IFERROR(IF(R$4="",0,IF($E11="kWh",VLOOKUP(R$4,'4. Billing Determinants'!$B$19:$O$41,4,0)/'4. Billing Determinants'!$E$41*$D11,IF($E11="kW",VLOOKUP(R$4,'4. Billing Determinants'!$B$19:$O$41,5,0)/'4. Billing Determinants'!$F$41*$D11,IF($E11="Non-RPP kWh",VLOOKUP(R$4,'4. Billing Determinants'!$B$19:$O$41,6,0)/'4. Billing Determinants'!$G$41*$D11,IF($E11="Distribution Rev.",VLOOKUP(R$4,'4. Billing Determinants'!$B$19:$O$41,8,0)/'4. Billing Determinants'!$I$41*$D11, VLOOKUP(R$4,'4. Billing Determinants'!$B$19:$O$41,3,0)/'4. Billing Determinants'!$D$41*$D11))))),0) -> 0 | S11: =IFERROR(IF(S$4="",0,IF($E11="kWh",VLOOKUP(S$4,'4. Billing Determinants'!$B$19:$O$41,4,0)/'4. Billing Determinants'!$E$41*$D11,IF($E11="kW",VLOOKUP(S$4,'4. Billing Determinants'!$B$19:$O$41,5,0)/'4. Billing Determinants'!$F$41*$D11,IF($E11="Non-RPP kWh",VLOOKUP(S$4,'4. Billing Determinants'!$B$19:$O$41,6,0)/'4. Billing Determinants'!$G$41*$D11,IF($E11="Distribution Rev.",VLOOKUP(S$4,'4. Billing Determinants'!$B$19:$O$41,8,0)/'4. Billing Determinants'!$I$41*$D11, VLOOKUP(S$4,'4. Billing Determinants'!$B$19:$O$41,3,0)/'4. Billing Determinants'!$D$41*$D11))))),0) -> 0 | T11: =IFERROR(IF(T$4="",0,IF($E11="kWh",VLOOKUP(T$4,'4. Billing Determinants'!$B$19:$O$41,4,0)/'4. Billing Determinants'!$E$41*$D11,IF($E11="kW",VLOOKUP(T$4,'4. Billing Determinants'!$B$19:$O$41,5,0)/'4. Billing Determinants'!$F$41*$D11,IF($E11="Non-RPP kWh",VLOOKUP(T$4,'4. Billing Determinants'!$B$19:$O$41,6,0)/'4. Billing Determinants'!$G$41*$D11,IF($E11="Distribution Rev.",VLOOKUP(T$4,'4. Billing Determinants'!$B$19:$O$41,8,0)/'4. Billing Determinants'!$I$41*$D11, VLOOKUP(T$4,'4. Billing Determinants'!$B$19:$O$41,3,0)/'4. Billing Determinants'!$D$41*$D11))))),0) -> 0 | U11: =IFERROR(IF(U$4="",0,IF($E11="kWh",VLOOKUP(U$4,'4. Billing Determinants'!$B$19:$O$41,4,0)/'4. Billing Determinants'!$E$41*$D11,IF($E11="kW",VLOOKUP(U$4,'4. Billing Determinants'!$B$19:$O$41,5,0)/'4. Billing Determinants'!$F$41*$D11,IF($E11="Non-RPP kWh",VLOOKUP(U$4,'4. Billing Determinants'!$B$19:$O$41,6,0)/'4. Billing Determinants'!$G$41*$D11,IF($E11="Distribution Rev.",VLOOKUP(U$4,'4. Billing Determinants'!$B$19:$O$41,8,0)/'4. Billing Determinants'!$I$41*$D11, VLOOKUP(U$4,'4. Billing Determinants'!$B$19:$O$41,3,0)/'4. Billing Determinants'!$D$41*$D11))))),0) -> 0 | V11: =IFERROR(IF(V$4="",0,IF($E11="kWh",VLOOKUP(V$4,'4. Billing Determinants'!$B$19:$O$41,4,0)/'4. Billing Determinants'!$E$41*$D11,IF($E11="kW",VLOOKUP(V$4,'4. Billing Determinants'!$B$19:$O$41,5,0)/'4. Billing Determinants'!$F$41*$D11,IF($E11="Non-RPP kWh",VLOOKUP(V$4,'4. Billing Determinants'!$B$19:$O$41,6,0)/'4. Billing Determinants'!$G$41*$D11,IF($E11="Distribution Rev.",VLOOKUP(V$4,'4. Billing Determinants'!$B$19:$O$41,8,0)/'4. Billing Determinants'!$I$41*$D11, VLOOKUP(V$4,'4. Billing Determinants'!$B$19:$O$41,3,0)/'4. Billing Determinants'!$D$41*$D11))))),0) -> 0 | W11: =IFERROR(IF(W$4="",0,IF($E11="kWh",VLOOKUP(W$4,'4. Billing Determinants'!$B$19:$O$41,4,0)/'4. Billing Determinants'!$E$41*$D11,IF($E11="kW",VLOOKUP(W$4,'4. Billing Determinants'!$B$19:$O$41,5,0)/'4. Billing Determinants'!$F$41*$D11,IF($E11="Non-RPP kWh",VLOOKUP(W$4,'4. Billing Determinants'!$B$19:$O$41,6,0)/'4. Billing Determinants'!$G$41*$D11,IF($E11="Distribution Rev.",VLOOKUP(W$4,'4. Billing Determinants'!$B$19:$O$41,8,0)/'4. Billing Determinants'!$I$41*$D11, VLOOKUP(W$4,'4. Billing Determinants'!$B$19:$O$41,3,0)/'4. Billing Determinants'!$D$41*$D11))))),0) -> 0 | X11: =IFERROR(IF(X$4="",0,IF($E11="kWh",VLOOKUP(X$4,'4. Billing Determinants'!$B$19:$O$41,4,0)/'4. Billing Determinants'!$E$41*$D11,IF($E11="kW",VLOOKUP(X$4,'4. Billing Determinants'!$B$19:$O$41,5,0)/'4. Billing Determinants'!$F$41*$D11,IF($E11="Non-RPP kWh",VLOOKUP(X$4,'4. Billing Determinants'!$B$19:$O$41,6,0)/'4. Billing Determinants'!$G$41*$D11,IF($E11="Distribution Rev.",VLOOKUP(X$4,'4. Billing Determinants'!$B$19:$O$41,8,0)/'4. Billing Determinants'!$I$41*$D11, VLOOKUP(X$4,'4. Billing Determinants'!$B$19:$O$41,3,0)/'4. Billing Determinants'!$D$41*$D11))))),0) -> 0 | Y11: =IFERROR(IF(Y$4="",0,IF($E11="kWh",VLOOKUP(Y$4,'4. Billing Determinants'!$B$19:$O$41,4,0)/'4. Billing Determinants'!$E$41*$D11,IF($E11="kW",VLOOKUP(Y$4,'4. Billing Determinants'!$B$19:$O$41,5,0)/'4. Billing Determinants'!$F$41*$D11,IF($E11="Non-RPP kWh",VLOOKUP(Y$4,'4. Billing Determinants'!$B$19:$O$41,6,0)/'4. Billing Determinants'!$G$41*$D11,IF($E11="Distribution Rev.",VLOOKUP(Y$4,'4. Billing Determinants'!$B$19:$O$41,8,0)/'4. Billing Determinants'!$I$41*$D11, VLOOKUP(Y$4,'4. Billing Determinants'!$B$19:$O$41,3,0)/'4. Billing Determinants'!$D$41*$D11))))),0) -> 0
B12: Disposition and Recovery/Refund of Regulatory Balances (2008) | C12: 1595 | D12: ='2. 2013 Continuity Schedule'!CP31 -> -195709.13 | E12: kWh | F12: =IF(ISERROR(VLOOKUP(F$4, '4. Billing Determinants'!$B$19:$O$41, 10, FALSE)*'2. 2013 Continuity Schedule'!$CP$31), 0, VLOOKUP(F$4, '4. Billing Determinants'!$B$19:$O$41, 10, FALSE)*'2. 2013 Continuity Schedule'!$CP$31) -> -111554.2041 | G12: =IF(ISERROR(VLOOKUP(G$4, '4. Billing Determinants'!$B$19:$O$41, 10, FALSE)*'2. 2013 Continuity Schedule'!$CP$31), 0, VLOOKUP(G$4, '4. Billing Determinants'!$B$19:$O$41, 10, FALSE)*'2. 2013 Continuity Schedule'!$CP$31) -> -31313.4608 | H12: =IF(ISERROR(VLOOKUP(H$4, '4. Billing Determinants'!$B$19:$O$41, 10, FALSE)*'2. 2013 Continuity Schedule'!$CP$31), 0, VLOOKUP(H$4, '4. Billing Determinants'!$B$19:$O$41, 10, FALSE)*'2. 2013 Continuity Schedule'!$CP$31) -> -48927.2825 | I12: =IF(ISERROR(VLOOKUP(I$4, '4. Billing Determinants'!$B$19:$O$41, 10, FALSE)*'2. 2013 Continuity Schedule'!$CP$31), 0, VLOOKUP(I$4, '4. Billing Determinants'!$B$19:$O$41, 10, FALSE)*'2. 2013 Continuity Schedule'!$CP$31) -> 0 | J12: =IF(ISERROR(VLOOKUP(J$4, '4. Billing Determinants'!$B$19:$O$41, 10, FALSE)*'2. 2013 Continuity Schedule'!$CP$31), 0, VLOOKUP(J$4, '4. Billing Determinants'!$B$19:$O$41, 10, FALSE)*'2. 2013 Continuity Schedule'!$CP$31) -> 0 | K12: =IF(ISERROR(VLOOKUP(K$4, '4. Billing Determinants'!$B$19:$O$41, 10, FALSE)*'2. 2013 Continuity Schedule'!$CP$31), 0, VLOOKUP(K$4, '4. Billing Determinants'!$B$19:$O$41, 10, FALSE)*'2. 2013 Continuity Schedule'!$CP$31) -> -3914.1826 | L12: =IF(ISERROR(VLOOKUP(L$4, '4. Billing Determinants'!$B$19:$O$41, 10, FALSE)*'2. 2013 Continuity Schedule'!$CP$31), 0, VLOOKUP(L$4, '4. Billing Determinants'!$B$19:$O$41, 10, FALSE)*'2. 2013 Continuity Schedule'!$CP$31) -> 0 | M12: =IF(ISERROR(VLOOKUP(M$4, '4. Billing Determinants'!$B$19:$O$41, 10, FALSE)*'2. 2013 Continuity Schedule'!$CP$31), 0, VLOOKUP(M$4, '4. Billing Determinants'!$B$19:$O$41, 10, FALSE)*'2. 2013 Continuity Schedule'!$CP$31) -> 0 | N12: =IF(ISERROR(VLOOKUP(N$4, '4. Billing Determinants'!$B$19:$O$41, 10, FALSE)*'2. 2013 Continuity Schedule'!$CP$31), 0, VLOOKUP(N$4, '4. Billing Determinants'!$B$19:$O$41, 10, FALSE)*'2. 2013 Continuity Schedule'!$CP$31) -> 0 | O12: =IF(ISERROR(VLOOKUP(O$4, '4. Billing Determinants'!$B$19:$O$41, 10, FALSE)*'2. 2013 Continuity Schedule'!$CP$31), 0, VLOOKUP(O$4, '4. Billing Determinants'!$B$19:$O$41, 10, FALSE)*'2. 2013 Continuity Schedule'!$CP$31) -> 0 | P12: =IF(ISERROR(VLOOKUP(P$4, '4. Billing Determinants'!$B$19:$O$41, 10, FALSE)*'2. 2013 Continuity Schedule'!$CP$31), 0, VLOOKUP(P$4, '4. Billing Determinants'!$B$19:$O$41, 10, FALSE)*'2. 2013 Continuity Schedule'!$CP$31) -> 0 | Q12: =IF(ISERROR(VLOOKUP(Q$4, '4. Billing Determinants'!$B$19:$O$41, 10, FALSE)*'2. 2013 Continuity Schedule'!$CP$31), 0, VLOOKUP(Q$4, '4. Billing Determinants'!$B$19:$O$41, 10, FALSE)*'2. 2013 Continuity Schedule'!$CP$31) -> 0 | R12: =IF(ISERROR(VLOOKUP(R$4, '4. Billing Determinants'!$B$19:$O$41, 10, FALSE)*'2. 2013 Continuity Schedule'!$CP$31), 0, VLOOKUP(R$4, '4. Billing Determinants'!$B$19:$O$41, 10, FALSE)*'2. 2013 Continuity Schedule'!$CP$31) -> 0 | S12: =IF(ISERROR(VLOOKUP(S$4, '4. Billing Determinants'!$B$19:$O$41, 10, FALSE)*'2. 2013 Continuity Schedule'!$CP$31), 0, VLOOKUP(S$4, '4. Billing Determinants'!$B$19:$O$41, 10, FALSE)*'2. 2013 Continuity Schedule'!$CP$31) -> 0 | T12: =IF(ISERROR(VLOOKUP(T$4, '4. Billing Determinants'!$B$19:$O$41, 10, FALSE)*'2. 2013 Continuity Schedule'!$CP$31), 0, VLOOKUP(T$4, '4. Billing Determinants'!$B$19:$O$41, 10, FALSE)*'2. 2013 Continuity Schedule'!$CP$31) -> 0 | U12: =IF(ISERROR(VLOOKUP(U$4, '4. Billing Determinants'!$B$19:$O$41, 10, FALSE)*'2. 2013 Continuity Schedule'!$CP$31), 0, VLOOKUP(U$4, '4. Billing Determinants'!$B$19:$O$41, 10, FALSE)*'2. 2013 Continuity Schedule'!$CP$31) -> 0 | V12: =IF(ISERROR(VLOOKUP(V$4, '4. Billing Determinants'!$B$19:$O$41, 10, FALSE)*'2. 2013 Continuity Schedule'!$CP$31), 0, VLOOKUP(V$4, '4. Billing Determinants'!$B$19:$O$41, 10, FALSE)*'2. 2013 Continuity Schedule'!$CP$31) -> 0 | W12: =IF(ISERROR(VLOOKUP(W$4, '4. Billing Determinants'!$B$19:$O$41, 10, FALSE)*'2. 2013 Continuity Schedule'!$CP$31), 0, VLOOKUP(W$4, '4. Billing Determinants'!$B$19:$O$41, 10, FALSE)*'2. 2013 Continuity Schedule'!$CP$31) -> 0 | X12: =IF(ISERROR(VLOOKUP(X$4, '4. Billing Determinants'!$B$19:$O$41, 10, FALSE)*'2. 2013 Continuity Schedule'!$CP$31), 0, VLOOKUP(X$4, '4. Billing Determinants'!$B$19:$O$41, 10, FALSE)*'2. 2013 Continuity Schedule'!$CP$31) -> 0 | Y12: =IF(ISERROR(VLOOKUP(Y$4, '4. Billing Determinants'!$B$19:$O$41, 10, FALSE)*'2. 2013 Continuity Schedule'!$CP$31), 0, VLOOKUP(Y$4, '4. Billing Determinants'!$B$19:$O$41, 10, FALSE)*'2. 2013 Continuity Schedule'!$CP$31) -> 0
B13: Disposition and Recovery/Refund of Regulatory Balances (2009) | C13: 1595 | D13: ='2. 2013 Continuity Schedule'!CP32 -> 0 | E13: kWh | F13: =IF(ISERROR(VLOOKUP(F$4, '4. Billing Determinants'!$B$19:$O$41, 11, FALSE)*'2. 2013 Continuity Schedule'!$CP$32), 0, VLOOKUP(F$4, '4. Billing Determinants'!$B$19:$O$41, 11, FALSE)*'2. 2013 Continuity Schedule'!$CP$32) -> 0 | G13: =IF(ISERROR(VLOOKUP(G$4, '4. Billing Determinants'!$B$19:$O$41, 11, FALSE)*'2. 2013 Continuity Schedule'!$CP$32), 0, VLOOKUP(G$4, '4. Billing Determinants'!$B$19:$O$41, 11, FALSE)*'2. 2013 Continuity Schedule'!$CP$32) -> 0 | H13: =IF(ISERROR(VLOOKUP(H$4, '4. Billing Determinants'!$B$19:$O$41, 11, FALSE)*'2. 2013 Continuity Schedule'!$CP$32), 0, VLOOKUP(H$4, '4. Billing Determinants'!$B$19:$O$41, 11, FALSE)*'2. 2013 Continuity Schedule'!$CP$32) -> 0 | I13: =IF(ISERROR(VLOOKUP(I$4, '4. Billing Determinants'!$B$19:$O$41, 11, FALSE)*'2. 2013 Continuity Schedule'!$CP$32), 0, VLOOKUP(I$4, '4. Billing Determinants'!$B$19:$O$41, 11, FALSE)*'2. 2013 Continuity Schedule'!$CP$32) -> 0 | J13: =IF(ISERROR(VLOOKUP(J$4, '4. Billing Determinants'!$B$19:$O$41, 11, FALSE)*'2. 2013 Continuity Schedule'!$CP$32), 0, VLOOKUP(J$4, '4. Billing Determinants'!$B$19:$O$41, 11, FALSE)*'2. 2013 Continuity Schedule'!$CP$32) -> 0 | K13: =IF(ISERROR(VLOOKUP(K$4, '4. Billing Determinants'!$B$19:$O$41, 11, FALSE)*'2. 2013 Continuity Schedule'!$CP$32), 0, VLOOKUP(K$4, '4. Billing Determinants'!$B$19:$O$41, 11, FALSE)*'2. 2013 Continuity Schedule'!$CP$32) -> 0 | L13: =IF(ISERROR(VLOOKUP(L$4, '4. Billing Determinants'!$B$19:$O$41, 11, FALSE)*'2. 2013 Continuity Schedule'!$CP$32), 0, VLOOKUP(L$4, '4. Billing Determinants'!$B$19:$O$41, 11, FALSE)*'2. 2013 Continuity Schedule'!$CP$32) -> 0 | M13: =IF(ISERROR(VLOOKUP(M$4, '4. Billing Determinants'!$B$19:$O$41, 11, FALSE)*'2. 2013 Continuity Schedule'!$CP$32), 0, VLOOKUP(M$4, '4. Billing Determinants'!$B$19:$O$41, 11, FALSE)*'2. 2013 Continuity Schedule'!$CP$32) -> 0 | N13: =IF(ISERROR(VLOOKUP(N$4, '4. Billing Determinants'!$B$19:$O$41, 11, FALSE)*'2. 2013 Continuity Schedule'!$CP$32), 0, VLOOKUP(N$4, '4. Billing Determinants'!$B$19:$O$41, 11, FALSE)*'2. 2013 Continuity Schedule'!$CP$32) -> 0 | O13: =IF(ISERROR(VLOOKUP(O$4, '4. Billing Determinants'!$B$19:$O$41, 11, FALSE)*'2. 2013 Continuity Schedule'!$CP$32), 0, VLOOKUP(O$4, '4. Billing Determinants'!$B$19:$O$41, 11, FALSE)*'2. 2013 Continuity Schedule'!$CP$32) -> 0 | P13: =IF(ISERROR(VLOOKUP(P$4, '4. Billing Determinants'!$B$19:$O$41, 11, FALSE)*'2. 2013 Continuity Schedule'!$CP$32), 0, VLOOKUP(P$4, '4. Billing Determinants'!$B$19:$O$41, 11, FALSE)*'2. 2013 Continuity Schedule'!$CP$32) -> 0 | Q13: =IF(ISERROR(VLOOKUP(Q$4, '4. Billing Determinants'!$B$19:$O$41, 11, FALSE)*'2. 2013 Continuity Schedule'!$CP$32), 0, VLOOKUP(Q$4, '4. Billing Determinants'!$B$19:$O$41, 11, FALSE)*'2. 2013 Continuity Schedule'!$CP$32) -> 0 | R13: =IF(ISERROR(VLOOKUP(R$4, '4. Billing Determinants'!$B$19:$O$41, 11, FALSE)*'2. 2013 Continuity Schedule'!$CP$32), 0, VLOOKUP(R$4, '4. Billing Determinants'!$B$19:$O$41, 11, FALSE)*'2. 2013 Continuity Schedule'!$CP$32) -> 0 | S13: =IF(ISERROR(VLOOKUP(S$4, '4. Billing Determinants'!$B$19:$O$41, 11, FALSE)*'2. 2013 Continuity Schedule'!$CP$32), 0, VLOOKUP(S$4, '4. Billing Determinants'!$B$19:$O$41, 11, FALSE)*'2. 2013 Continuity Schedule'!$CP$32) -> 0 | T13: =IF(ISERROR(VLOOKUP(T$4, '4. Billing Determinants'!$B$19:$O$41, 11, FALSE)*'2. 2013 Continuity Schedule'!$CP$32), 0, VLOOKUP(T$4, '4. Billing Determinants'!$B$19:$O$41, 11, FALSE)*'2. 2013 Continuity Schedule'!$CP$32) -> 0 | U13: =IF(ISERROR(VLOOKUP(U$4, '4. Billing Determinants'!$B$19:$O$41, 11, FALSE)*'2. 2013 Continuity Schedule'!$CP$32), 0, VLOOKUP(U$4, '4. Billing Determinants'!$B$19:$O$41, 11, FALSE)*'2. 2013 Continuity Schedule'!$CP$32) -> 0 | V13: =IF(ISERROR(VLOOKUP(V$4, '4. Billing Determinants'!$B$19:$O$41, 11, FALSE)*'2. 2013 Continuity Schedule'!$CP$32), 0, VLOOKUP(V$4, '4. Billing Determinants'!$B$19:$O$41, 11, FALSE)*'2. 2013 Continuity Schedule'!$CP$32) -> 0 | W13: =IF(ISERROR(VLOOKUP(W$4, '4. Billing Determinants'!$B$19:$O$41, 11, FALSE)*'2. 2013 Continuity Schedule'!$CP$32), 0, VLOOKUP(W$4, '4. Billing Determinants'!$B$19:$O$41, 11, FALSE)*'2. 2013 Continuity Schedule'!$CP$32) -> 0 | X13: =IF(ISERROR(VLOOKUP(X$4, '4. Billing Determinants'!$B$19:$O$41, 11, FALSE)*'2. 2013 Continuity Schedule'!$CP$32), 0, VLOOKUP(X$4, '4. Billing Determinants'!$B$19:$O$41, 11, FALSE)*'2. 2013 Continuity Schedule'!$CP$32) -> 0 | Y13: =IF(ISERROR(VLOOKUP(Y$4, '4. Billing Determinants'!$B$19:$O$41, 11, FALSE)*'2. 2013 Continuity Schedule'!$CP$32), 0, VLOOKUP(Y$4, '4. Billing Determinants'!$B$19:$O$41, 11, FALSE)*'2. 2013 Continuity Schedule'!$CP$32) -> 0
B14: Disposition and Recovery/Refund of Regulatory Balances (2010) | C14: 1595 | D14: ='2. 2013 Continuity Schedule'!CP33 -> 0 | E14: kWh | F14: =IF(ISERROR(VLOOKUP(F$4, '4. Billing Determinants'!$B$19:$O$41, 12, FALSE)*'2. 2013 Continuity Schedule'!$CP$33), 0, VLOOKUP(F$4, '4. Billing Determinants'!$B$19:$O$41, 12, FALSE)*'2. 2013 Continuity Schedule'!$CP$33) -> 0 | G14: =IF(ISERROR(VLOOKUP(G$4, '4. Billing Determinants'!$B$19:$O$41, 12, FALSE)*'2. 2013 Continuity Schedule'!$CP$33), 0, VLOOKUP(G$4, '4. Billing Determinants'!$B$19:$O$41, 12, FALSE)*'2. 2013 Continuity Schedule'!$CP$33) -> 0 | H14: =IF(ISERROR(VLOOKUP(H$4, '4. Billing Determinants'!$B$19:$O$41, 12, FALSE)*'2. 2013 Continuity Schedule'!$CP$33), 0, VLOOKUP(H$4, '4. Billing Determinants'!$B$19:$O$41, 12, FALSE)*'2. 2013 Continuity Schedule'!$CP$33) -> 0 | I14: =IF(ISERROR(VLOOKUP(I$4, '4. Billing Determinants'!$B$19:$O$41, 12, FALSE)*'2. 2013 Continuity Schedule'!$CP$33), 0, VLOOKUP(I$4, '4. Billing Determinants'!$B$19:$O$41, 12, FALSE)*'2. 2013 Continuity Schedule'!$CP$33) -> 0 | J14: =IF(ISERROR(VLOOKUP(J$4, '4. Billing Determinants'!$B$19:$O$41, 12, FALSE)*'2. 2013 Continuity Schedule'!$CP$33), 0, VLOOKUP(J$4, '4. Billing Determinants'!$B$19:$O$41, 12, FALSE)*'2. 2013 Continuity Schedule'!$CP$33) -> 0 | K14: =IF(ISERROR(VLOOKUP(K$4, '4. Billing Determinants'!$B$19:$O$41, 12, FALSE)*'2. 2013 Continuity Schedule'!$CP$33), 0, VLOOKUP(K$4, '4. Billing Determinants'!$B$19:$O$41, 12, FALSE)*'2. 2013 Continuity Schedule'!$CP$33) -> 0 | L14: =IF(ISERROR(VLOOKUP(L$4, '4. Billing Determinants'!$B$19:$O$41, 12, FALSE)*'2. 2013 Continuity Schedule'!$CP$33), 0, VLOOKUP(L$4, '4. Billing Determinants'!$B$19:$O$41, 12, FALSE)*'2. 2013 Continuity Schedule'!$CP$33) -> 0 | M14: =IF(ISERROR(VLOOKUP(M$4, '4. Billing Determinants'!$B$19:$O$41, 12, FALSE)*'2. 2013 Continuity Schedule'!$CP$33), 0, VLOOKUP(M$4, '4. Billing Determinants'!$B$19:$O$41, 12, FALSE)*'2. 2013 Continuity Schedule'!$CP$33) -> 0 | N14: =IF(ISERROR(VLOOKUP(N$4, '4. Billing Determinants'!$B$19:$O$41, 12, FALSE)*'2. 2013 Continuity Schedule'!$CP$33), 0, VLOOKUP(N$4, '4. Billing Determinants'!$B$19:$O$41, 12, FALSE)*'2. 2013 Continuity Schedule'!$CP$33) -> 0 | O14: =IF(ISERROR(VLOOKUP(O$4, '4. Billing Determinants'!$B$19:$O$41, 12, FALSE)*'2. 2013 Continuity Schedule'!$CP$33), 0, VLOOKUP(O$4, '4. Billing Determinants'!$B$19:$O$41, 12, FALSE)*'2. 2013 Continuity Schedule'!$CP$33) -> 0 | P14: =IF(ISERROR(VLOOKUP(P$4, '4. Billing Determinants'!$B$19:$O$41, 12, FALSE)*'2. 2013 Continuity Schedule'!$CP$33), 0, VLOOKUP(P$4, '4. Billing Determinants'!$B$19:$O$41, 12, FALSE)*'2. 2013 Continuity Schedule'!$CP$33) -> 0 | Q14: =IF(ISERROR(VLOOKUP(Q$4, '4. Billing Determinants'!$B$19:$O$41, 12, FALSE)*'2. 2013 Continuity Schedule'!$CP$33), 0, VLOOKUP(Q$4, '4. Billing Determinants'!$B$19:$O$41, 12, FALSE)*'2. 2013 Continuity Schedule'!$CP$33) -> 0 | R14: =IF(ISERROR(VLOOKUP(R$4, '4. Billing Determinants'!$B$19:$O$41, 12, FALSE)*'2. 2013 Continuity Schedule'!$CP$33), 0, VLOOKUP(R$4, '4. Billing Determinants'!$B$19:$O$41, 12, FALSE)*'2. 2013 Continuity Schedule'!$CP$33) -> 0 | S14: =IF(ISERROR(VLOOKUP(S$4, '4. Billing Determinants'!$B$19:$O$41, 12, FALSE)*'2. 2013 Continuity Schedule'!$CP$33), 0, VLOOKUP(S$4, '4. Billing Determinants'!$B$19:$O$41, 12, FALSE)*'2. 2013 Continuity Schedule'!$CP$33) -> 0 | T14: =IF(ISERROR(VLOOKUP(T$4, '4. Billing Determinants'!$B$19:$O$41, 12, FALSE)*'2. 2013 Continuity Schedule'!$CP$33), 0, VLOOKUP(T$4, '4. Billing Determinants'!$B$19:$O$41, 12, FALSE)*'2. 2013 Continuity Schedule'!$CP$33) -> 0 | U14: =IF(ISERROR(VLOOKUP(U$4, '4. Billing Determinants'!$B$19:$O$41, 12, FALSE)*'2. 2013 Continuity Schedule'!$CP$33), 0, VLOOKUP(U$4, '4. Billing Determinants'!$B$19:$O$41, 12, FALSE)*'2. 2013 Continuity Schedule'!$CP$33) -> 0 | V14: =IF(ISERROR(VLOOKUP(V$4, '4. Billing Determinants'!$B$19:$O$41, 12, FALSE)*'2. 2013 Continuity Schedule'!$CP$33), 0, VLOOKUP(V$4, '4. Billing Determinants'!$B$19:$O$41, 12, FALSE)*'2. 2013 Continuity Schedule'!$CP$33) -> 0 | W14: =IF(ISERROR(VLOOKUP(W$4, '4. Billing Determinants'!$B$19:$O$41, 12, FALSE)*'2. 2013 Continuity Schedule'!$CP$33), 0, VLOOKUP(W$4, '4. Billing Determinants'!$B$19:$O$41, 12, FALSE)*'2. 2013 Continuity Schedule'!$CP$33) -> 0 | X14: =IF(ISERROR(VLOOKUP(X$4, '4. Billing Determinants'!$B$19:$O$41, 12, FALSE)*'2. 2013 Continuity Schedule'!$CP$33), 0, VLOOKUP(X$4, '4. Billing Determinants'!$B$19:$O$41, 12, FALSE)*'2. 2013 Continuity Schedule'!$CP$33) -> 0 | Y14: =IF(ISERROR(VLOOKUP(Y$4, '4. Billing Determinants'!$B$19:$O$41, 12, FALSE)*'2. 2013 Continuity Schedule'!$CP$33), 0, VLOOKUP(Y$4, '4. Billing Determinants'!$B$19:$O$41, 12, FALSE)*'2. 2013 Continuity Schedule'!$CP$33) -> 0
B15: Disposition and Recovery/Refund of Regulatory Balances (2011) | C15: 1595 | D15: ='2. 2013 Continuity Schedule'!CP34 -> 0 | E15: kWh | F15: =IF(ISERROR(VLOOKUP(F$4, '4. Billing Determinants'!$B$19:$O$41, 13, FALSE)*'2. 2013 Continuity Schedule'!$CP$34), 0, VLOOKUP(F$4, '4. Billing Determinants'!$B$19:$O$41, 13, FALSE)*'2. 2013 Continuity Schedule'!$CP$34) -> 0 | G15: =IF(ISERROR(VLOOKUP(G$4, '4. Billing Determinants'!$B$19:$O$41, 13, FALSE)*'2. 2013 Continuity Schedule'!$CP$34), 0, VLOOKUP(G$4, '4. Billing Determinants'!$B$19:$O$41, 13, FALSE)*'2. 2013 Continuity Schedule'!$CP$34) -> 0 | H15: =IF(ISERROR(VLOOKUP(H$4, '4. Billing Determinants'!$B$19:$O$41, 13, FALSE)*'2. 2013 Continuity Schedule'!$CP$34), 0, VLOOKUP(H$4, '4. Billing Determinants'!$B$19:$O$41, 13, FALSE)*'2. 2013 Continuity Schedule'!$CP$34) -> 0 | I15: =IF(ISERROR(VLOOKUP(I$4, '4. Billing Determinants'!$B$19:$O$41, 13, FALSE)*'2. 2013 Continuity Schedule'!$CP$34), 0, VLOOKUP(I$4, '4. Billing Determinants'!$B$19:$O$41, 13, FALSE)*'2. 2013 Continuity Schedule'!$CP$34) -> 0 | J15: =IF(ISERROR(VLOOKUP(J$4, '4. Billing Determinants'!$B$19:$O$41, 13, FALSE)*'2. 2013 Continuity Schedule'!$CP$34), 0, VLOOKUP(J$4, '4. Billing Determinants'!$B$19:$O$41, 13, FALSE)*'2. 2013 Continuity Schedule'!$CP$34) -> 0 | K15: =IF(ISERROR(VLOOKUP(K$4, '4. Billing Determinants'!$B$19:$O$41, 13, FALSE)*'2. 2013 Continuity Schedule'!$CP$34), 0, VLOOKUP(K$4, '4. Billing Determinants'!$B$19:$O$41, 13, FALSE)*'2. 2013 Continuity Schedule'!$CP$34) -> 0 | L15: =IF(ISERROR(VLOOKUP(L$4, '4. Billing Determinants'!$B$19:$O$41, 13, FALSE)*'2. 2013 Continuity Schedule'!$CP$34), 0, VLOOKUP(L$4, '4. Billing Determinants'!$B$19:$O$41, 13, FALSE)*'2. 2013 Continuity Schedule'!$CP$34) -> 0 | M15: =IF(ISERROR(VLOOKUP(M$4, '4. Billing Determinants'!$B$19:$O$41, 13, FALSE)*'2. 2013 Continuity Schedule'!$CP$34), 0, VLOOKUP(M$4, '4. Billing Determinants'!$B$19:$O$41, 13, FALSE)*'2. 2013 Continuity Schedule'!$CP$34) -> 0 | N15: =IF(ISERROR(VLOOKUP(N$4, '4. Billing Determinants'!$B$19:$O$41, 13, FALSE)*'2. 2013 Continuity Schedule'!$CP$34), 0, VLOOKUP(N$4, '4. Billing Determinants'!$B$19:$O$41, 13, FALSE)*'2. 2013 Continuity Schedule'!$CP$34) -> 0 | O15: =IF(ISERROR(VLOOKUP(O$4, '4. Billing Determinants'!$B$19:$O$41, 13, FALSE)*'2. 2013 Continuity Schedule'!$CP$34), 0, VLOOKUP(O$4, '4. Billing Determinants'!$B$19:$O$41, 13, FALSE)*'2. 2013 Continuity Schedule'!$CP$34) -> 0 | P15: =IF(ISERROR(VLOOKUP(P$4, '4. Billing Determinants'!$B$19:$O$41, 13, FALSE)*'2. 2013 Continuity Schedule'!$CP$34), 0, VLOOKUP(P$4, '4. Billing Determinants'!$B$19:$O$41, 13, FALSE)*'2. 2013 Continuity Schedule'!$CP$34) -> 0 | Q15: =IF(ISERROR(VLOOKUP(Q$4, '4. Billing Determinants'!$B$19:$O$41, 13, FALSE)*'2. 2013 Continuity Schedule'!$CP$34), 0, VLOOKUP(Q$4, '4. Billing Determinants'!$B$19:$O$41, 13, FALSE)*'2. 2013 Continuity Schedule'!$CP$34) -> 0 | R15: =IF(ISERROR(VLOOKUP(R$4, '4. Billing Determinants'!$B$19:$O$41, 13, FALSE)*'2. 2013 Continuity Schedule'!$CP$34), 0, VLOOKUP(R$4, '4. Billing Determinants'!$B$19:$O$41, 13, FALSE)*'2. 2013 Continuity Schedule'!$CP$34) -> 0 | S15: =IF(ISERROR(VLOOKUP(S$4, '4. Billing Determinants'!$B$19:$O$41, 13, FALSE)*'2. 2013 Continuity Schedule'!$CP$34), 0, VLOOKUP(S$4, '4. Billing Determinants'!$B$19:$O$41, 13, FALSE)*'2. 2013 Continuity Schedule'!$CP$34) -> 0 | T15: =IF(ISERROR(VLOOKUP(T$4, '4. Billing Determinants'!$B$19:$O$41, 13, FALSE)*'2. 2013 Continuity Schedule'!$CP$34), 0, VLOOKUP(T$4, '4. Billing Determinants'!$B$19:$O$41, 13, FALSE)*'2. 2013 Continuity Schedule'!$CP$34) -> 0 | U15: =IF(ISERROR(VLOOKUP(U$4, '4. Billing Determinants'!$B$19:$O$41, 13, FALSE)*'2. 2013 Continuity Schedule'!$CP$34), 0, VLOOKUP(U$4, '4. Billing Determinants'!$B$19:$O$41, 13, FALSE)*'2. 2013 Continuity Schedule'!$CP$34) -> 0 | V15: =IF(ISERROR(VLOOKUP(V$4, '4. Billing Determinants'!$B$19:$O$41, 13, FALSE)*'2. 2013 Continuity Schedule'!$CP$34), 0, VLOOKUP(V$4, '4. Billing Determinants'!$B$19:$O$41, 13, FALSE)*'2. 2013 Continuity Schedule'!$CP$34) -> 0 | W15: =IF(ISERROR(VLOOKUP(W$4, '4. Billing Determinants'!$B$19:$O$41, 13, FALSE)*'2. 2013 Continuity Schedule'!$CP$34), 0, VLOOKUP(W$4, '4. Billing Determinants'!$B$19:$O$41, 13, FALSE)*'2. 2013 Continuity Schedule'!$CP$34) -> 0 | X15: =IF(ISERROR(VLOOKUP(X$4, '4. Billing Determinants'!$B$19:$O$41, 13, FALSE)*'2. 2013 Continuity Schedule'!$CP$34), 0, VLOOKUP(X$4, '4. Billing Determinants'!$B$19:$O$41, 13, FALSE)*'2. 2013 Continuity Schedule'!$CP$34) -> 0 | Y15: =IF(ISERROR(VLOOKUP(Y$4, '4. Billing Determinants'!$B$19:$O$41, 13, FALSE)*'2. 2013 Continuity Schedule'!$CP$34), 0, VLOOKUP(Y$4, '4. Billing Determinants'!$B$19:$O$41, 13, FALSE)*'2. 2013 Continuity Schedule'!$CP$34) -> 0
B16: Total of Group 1 Accounts (excluding 1589) | D16: =SUM(D5:D15)-D10 -> -174806.56 | F16: =SUM(F5:F15)-F10 -> -104391.2051 | G16: =SUM(G5:G15)-G10 -> -28717.47595 | H16: -38018.0756 | I16: 30.10464154 | J16: 14.33837199 | K16: -3724.24631 | L16: 0 | M16: 0 | N16: 0 | O16: 0 | P16: 0 | Q16: 0 | R16: 0 | S16: 0 | T16: 0 | U16: 0 | V16: 0 | W16: 0 | X16: 0 | Y16: 0
B18: Other Regulatory Assets - Sub-Account - OEB Cost Assessments | C18: 1508 | D18: ='2. 2013 Continuity Schedule'!CP41 -> 0.45 | E18: kWh | F18: =IFERROR(IF(F$4="",0,IF($E18="kWh",VLOOKUP(F$4,'4. Billing Determinants'!$B$19:$O$41,4,0)/'4. Billing Determinants'!$E$41*$D18,IF($E18="kW",VLOOKUP(F$4,'4. Billing Determinants'!$B$19:$O$41,5,0)/'4. Billing Determinants'!$F$41*$D18,IF($E18="Non-RPP kWh",VLOOKUP(F$4,'4. Billing Determinants'!$B$19:$O$41,6,0)/'4. Billing Determinants'!$G$41*$D18,IF($E18="Distribution Rev.",VLOOKUP(F$4,'4. Billing Determinants'!$B$19:$O$41,8,0)/'4. Billing Determinants'!$I$41*$D18, VLOOKUP(F$4,'4. Billing Determinants'!$B$19:$O$41,3,0)/'4. Billing Determinants'!$D$41*$D18))))),0) -> 0.1542082878 | G18: =IFERROR(IF(G$4="",0,IF($E18="kWh",VLOOKUP(G$4,'4. Billing Determinants'!$B$19:$O$41,4,0)/'4. Billing Determinants'!$E$41*$D18,IF($E18="kW",VLOOKUP(G$4,'4. Billing Determinants'!$B$19:$O$41,5,0)/'4. Billing Determinants'!$F$41*$D18,IF($E18="Non-RPP kWh",VLOOKUP(G$4,'4. Billing Determinants'!$B$19:$O$41,6,0)/'4. Billing Determinants'!$G$41*$D18,IF($E18="Distribution Rev.",VLOOKUP(G$4,'4. Billing Determinants'!$B$19:$O$41,8,0)/'4. Billing Determinants'!$I$41*$D18, VLOOKUP(G$4,'4. Billing Determinants'!$B$19:$O$41,3,0)/'4. Billing Determinants'!$D$41*$D18))))),0) -> 0.05588753825 | H18: =IFERROR(IF(H$4="",0,IF($E18="kWh",VLOOKUP(H$4,'4. Billing Determinants'!$B$19:$O$41,4,0)/'4. Billing Determinants'!$E$41*$D18,IF($E18="kW",VLOOKUP(H$4,'4. Billing Determinants'!$B$19:$O$41,5,0)/'4. Billing Determinants'!$F$41*$D18,IF($E18="Non-RPP kWh",VLOOKUP(H$4,'4. Billing Determinants'!$B$19:$O$41,6,0)/'4. Billing Determinants'!$G$41*$D18,IF($E18="Distribution Rev.",VLOOKUP(H$4,'4. Billing Determinants'!$B$19:$O$41,8,0)/'4. Billing Determinants'!$I$41*$D18, VLOOKUP(H$4,'4. Billing Determinants'!$B$19:$O$41,3,0)/'4. Billing Determinants'!$D$41*$D18))))),0) -> 0.2348583501 | I18: =IFERROR(IF(I$4="",0,IF($E18="kWh",VLOOKUP(I$4,'4. Billing Determinants'!$B$19:$O$41,4,0)/'4. Billing Determinants'!$E$41*$D18,IF($E18="kW",VLOOKUP(I$4,'4. Billing Determinants'!$B$19:$O$41,5,0)/'4. Billing Determinants'!$F$41*$D18,IF($E18="Non-RPP kWh",VLOOKUP(I$4,'4. Billing Determinants'!$B$19:$O$41,6,0)/'4. Billing Determinants'!$G$41*$D18,IF($E18="Distribution Rev.",VLOOKUP(I$4,'4. Billing Determinants'!$B$19:$O$41,8,0)/'4. Billing Determinants'!$I$41*$D18, VLOOKUP(I$4,'4. Billing Determinants'!$B$19:$O$41,3,0)/'4. Billing Determinants'!$D$41*$D18))))),0) -> 0.0006481063664 | J18: =IFERROR(IF(J$4="",0,IF($E18="kWh",VLOOKUP(J$4,'4. Billing Determinants'!$B$19:$O$41,4,0)/'4. Billing Determinants'!$E$41*$D18,IF($E18="kW",VLOOKUP(J$4,'4. Billing Determinants'!$B$19:$O$41,5,0)/'4. Billing Determinants'!$F$41*$D18,IF($E18="Non-RPP kWh",VLOOKUP(J$4,'4. Billing Determinants'!$B$19:$O$41,6,0)/'4. Billing Determinants'!$G$41*$D18,IF($E18="Distribution Rev.",VLOOKUP(J$4,'4. Billing Determinants'!$B$19:$O$41,8,0)/'4. Billing Determinants'!$I$41*$D18, VLOOKUP(J$4,'4. Billing Determinants'!$B$19:$O$41,3,0)/'4. Billing Determinants'!$D$41*$D18))))),0) -> 0.0003086829704 | K18: =IFERROR(IF(K$4="",0,IF($E18="kWh",VLOOKUP(K$4,'4. Billing Determinants'!$B$19:$O$41,4,0)/'4. Billing Determinants'!$E$41*$D18,IF($E18="kW",VLOOKUP(K$4,'4. Billing Determinants'!$B$19:$O$41,5,0)/'4. Billing Determinants'!$F$41*$D18,IF($E18="Non-RPP kWh",VLOOKUP(K$4,'4. Billing Determinants'!$B$19:$O$41,6,0)/'4. Billing Determinants'!$G$41*$D18,IF($E18="Distribution Rev.",VLOOKUP(K$4,'4. Billing Determinants'!$B$19:$O$41,8,0)/'4. Billing Determinants'!$I$41*$D18, VLOOKUP(K$4,'4. Billing Determinants'!$B$19:$O$41,3,0)/'4. Billing Determinants'!$D$41*$D18))))),0) -> 0.004089034529 | L18: =IFERROR(IF(L$4="",0,IF($E18="kWh",VLOOKUP(L$4,'4. Billing Determinants'!$B$19:$O$41,4,0)/'4. Billing Determinants'!$E$41*$D18,IF($E18="kW",VLOOKUP(L$4,'4. Billing Determinants'!$B$19:$O$41,5,0)/'4. Billing Determinants'!$F$41*$D18,IF($E18="Non-RPP kWh",VLOOKUP(L$4,'4. Billing Determinants'!$B$19:$O$41,6,0)/'4. Billing Determinants'!$G$41*$D18,IF($E18="Distribution Rev.",VLOOKUP(L$4,'4. Billing Determinants'!$B$19:$O$41,8,0)/'4. Billing Determinants'!$I$41*$D18, VLOOKUP(L$4,'4. Billing Determinants'!$B$19:$O$41,3,0)/'4. Billing Determinants'!$D$41*$D18))))),0) -> 0 | M18: =IFERROR(IF(M$4="",0,IF($E18="kWh",VLOOKUP(M$4,'4. Billing Determinants'!$B$19:$O$41,4,0)/'4. Billing Determinants'!$E$41*$D18,IF($E18="kW",VLOOKUP(M$4,'4. Billing Determinants'!$B$19:$O$41,5,0)/'4. Billing Determinants'!$F$41*$D18,IF($E18="Non-RPP kWh",VLOOKUP(M$4,'4. Billing Determinants'!$B$19:$O$41,6,0)/'4. Billing Determinants'!$G$41*$D18,IF($E18="Distribution Rev.",VLOOKUP(M$4,'4. Billing Determinants'!$B$19:$O$41,8,0)/'4. Billing Determinants'!$I$41*$D18, VLOOKUP(M$4,'4. Billing Determinants'!$B$19:$O$41,3,0)/'4. Billing Determinants'!$D$41*$D18))))),0) -> 0 | N18: =IFERROR(IF(N$4="",0,IF($E18="kWh",VLOOKUP(N$4,'4. Billing Determinants'!$B$19:$O$41,4,0)/'4. Billing Determinants'!$E$41*$D18,IF($E18="kW",VLOOKUP(N$4,'4. Billing Determinants'!$B$19:$O$41,5,0)/'4. Billing Determinants'!$F$41*$D18,IF($E18="Non-RPP kWh",VLOOKUP(N$4,'4. Billing Determinants'!$B$19:$O$41,6,0)/'4. Billing Determinants'!$G$41*$D18,IF($E18="Distribution Rev.",VLOOKUP(N$4,'4. Billing Determinants'!$B$19:$O$41,8,0)/'4. Billing Determinants'!$I$41*$D18, VLOOKUP(N$4,'4. Billing Determinants'!$B$19:$O$41,3,0)/'4. Billing Determinants'!$D$41*$D18))))),0) -> 0 | O18: =IFERROR(IF(O$4="",0,IF($E18="kWh",VLOOKUP(O$4,'4. Billing Determinants'!$B$19:$O$41,4,0)/'4. Billing Determinants'!$E$41*$D18,IF($E18="kW",VLOOKUP(O$4,'4. Billing Determinants'!$B$19:$O$41,5,0)/'4. Billing Determinants'!$F$41*$D18,IF($E18="Non-RPP kWh",VLOOKUP(O$4,'4. Billing Determinants'!$B$19:$O$41,6,0)/'4. Billing Determinants'!$G$41*$D18,IF($E18="Distribution Rev.",VLOOKUP(O$4,'4. Billing Determinants'!$B$19:$O$41,8,0)/'4. Billing Determinants'!$I$41*$D18, VLOOKUP(O$4,'4. Billing Determinants'!$B$19:$O$41,3,0)/'4. Billing Determinants'!$D$41*$D18))))),0) -> 0 | P18: =IFERROR(IF(P$4="",0,IF($E18="kWh",VLOOKUP(P$4,'4. Billing Determinants'!$B$19:$O$41,4,0)/'4. Billing Determinants'!$E$41*$D18,IF($E18="kW",VLOOKUP(P$4,'4. Billing Determinants'!$B$19:$O$41,5,0)/'4. Billing Determinants'!$F$41*$D18,IF($E18="Non-RPP kWh",VLOOKUP(P$4,'4. Billing Determinants'!$B$19:$O$41,6,0)/'4. Billing Determinants'!$G$41*$D18,IF($E18="Distribution Rev.",VLOOKUP(P$4,'4. Billing Determinants'!$B$19:$O$41,8,0)/'4. Billing Determinants'!$I$41*$D18, VLOOKUP(P$4,'4. Billing Determinants'!$B$19:$O$41,3,0)/'4. Billing Determinants'!$D$41*$D18))))),0) -> 0 | Q18: =IFERROR(IF(Q$4="",0,IF($E18="kWh",VLOOKUP(Q$4,'4. Billing Determinants'!$B$19:$O$41,4,0)/'4. Billing Determinants'!$E$41*$D18,IF($E18="kW",VLOOKUP(Q$4,'4. Billing Determinants'!$B$19:$O$41,5,0)/'4. Billing Determinants'!$F$41*$D18,IF($E18="Non-RPP kWh",VLOOKUP(Q$4,'4. Billing Determinants'!$B$19:$O$41,6,0)/'4. Billing Determinants'!$G$41*$D18,IF($E18="Distribution Rev.",VLOOKUP(Q$4,'4. Billing Determinants'!$B$19:$O$41,8,0)/'4. Billing Determinants'!$I$41*$D18, VLOOKUP(Q$4,'4. Billing Determinants'!$B$19:$O$41,3,0)/'4. Billing Determinants'!$D$41*$D18))))),0) -> 0 | R18: =IFERROR(IF(R$4="",0,IF($E18="kWh",VLOOKUP(R$4,'4. Billing Determinants'!$B$19:$O$41,4,0)/'4. Billing Determinants'!$E$41*$D18,IF($E18="kW",VLOOKUP(R$4,'4. Billing Determinants'!$B$19:$O$41,5,0)/'4. Billing Determinants'!$F$41*$D18,IF($E18="Non-RPP kWh",VLOOKUP(R$4,'4. Billing Determinants'!$B$19:$O$41,6,0)/'4. Billing Determinants'!$G$41*$D18,IF($E18="Distribution Rev.",VLOOKUP(R$4,'4. Billing Determinants'!$B$19:$O$41,8,0)/'4. Billing Determinants'!$I$41*$D18, VLOOKUP(R$4,'4. Billing Determinants'!$B$19:$O$41,3,0)/'4. Billing Determinants'!$D$41*$D18))))),0) -> 0 | S18: =IFERROR(IF(S$4="",0,IF($E18="kWh",VLOOKUP(S$4,'4. Billing Determinants'!$B$19:$O$41,4,0)/'4. Billing Determinants'!$E$41*$D18,IF($E18="kW",VLOOKUP(S$4,'4. Billing Determinants'!$B$19:$O$41,5,0)/'4. Billing Determinants'!$F$41*$D18,IF($E18="Non-RPP kWh",VLOOKUP(S$4,'4. Billing Determinants'!$B$19:$O$41,6,0)/'4. Billing Determinants'!$G$41*$D18,IF($E18="Distribution Rev.",VLOOKUP(S$4,'4. Billing Determinants'!$B$19:$O$41,8,0)/'4. Billing Determinants'!$I$41*$D18, VLOOKUP(S$4,'4. Billing Determinants'!$B$19:$O$41,3,0)/'4. Billing Determinants'!$D$41*$D18))))),0) -> 0 | T18: =IFERROR(IF(T$4="",0,IF($E18="kWh",VLOOKUP(T$4,'4. Billing Determinants'!$B$19:$O$41,4,0)/'4. Billing Determinants'!$E$41*$D18,IF($E18="kW",VLOOKUP(T$4,'4. Billing Determinants'!$B$19:$O$41,5,0)/'4. Billing Determinants'!$F$41*$D18,IF($E18="Non-RPP kWh",VLOOKUP(T$4,'4. Billing Determinants'!$B$19:$O$41,6,0)/'4. Billing Determinants'!$G$41*$D18,IF($E18="Distribution Rev.",VLOOKUP(T$4,'4. Billing Determinants'!$B$19:$O$41,8,0)/'4. Billing Determinants'!$I$41*$D18, VLOOKUP(T$4,'4. Billing Determinants'!$B$19:$O$41,3,0)/'4. Billing Determinants'!$D$41*$D18))))),0) -> 0 | U18: =IFERROR(IF(U$4="",0,IF($E18="kWh",VLOOKUP(U$4,'4. Billing Determinants'!$B$19:$O$41,4,0)/'4. Billing Determinants'!$E$41*$D18,IF($E18="kW",VLOOKUP(U$4,'4. Billing Determinants'!$B$19:$O$41,5,0)/'4. Billing Determinants'!$F$41*$D18,IF($E18="Non-RPP kWh",VLOOKUP(U$4,'4. Billing Determinants'!$B$19:$O$41,6,0)/'4. Billing Determinants'!$G$41*$D18,IF($E18="Distribution Rev.",VLOOKUP(U$4,'4. Billing Determinants'!$B$19:$O$41,8,0)/'4. Billing Determinants'!$I$41*$D18, VLOOKUP(U$4,'4. Billing Determinants'!$B$19:$O$41,3,0)/'4. Billing Determinants'!$D$41*$D18))))),0) -> 0 | V18: =IFERROR(IF(V$4="",0,IF($E18="kWh",VLOOKUP(V$4,'4. Billing Determinants'!$B$19:$O$41,4,0)/'4. Billing Determinants'!$E$41*$D18,IF($E18="kW",VLOOKUP(V$4,'4. Billing Determinants'!$B$19:$O$41,5,0)/'4. Billing Determinants'!$F$41*$D18,IF($E18="Non-RPP kWh",VLOOKUP(V$4,'4. Billing Determinants'!$B$19:$O$41,6,0)/'4. Billing Determinants'!$G$41*$D18,IF($E18="Distribution Rev.",VLOOKUP(V$4,'4. Billing Determinants'!$B$19:$O$41,8,0)/'4. Billing Determinants'!$I$41*$D18, VLOOKUP(V$4,'4. Billing Determinants'!$B$19:$O$41,3,0)/'4. Billing Determinants'!$D$41*$D18))))),0) -> 0 | W18: =IFERROR(IF(W$4="",0,IF($E18="kWh",VLOOKUP(W$4,'4. Billing Determinants'!$B$19:$O$41,4,0)/'4. Billing Determinants'!$E$41*$D18,IF($E18="kW",VLOOKUP(W$4,'4. Billing Determinants'!$B$19:$O$41,5,0)/'4. Billing Determinants'!$F$41*$D18,IF($E18="Non-RPP kWh",VLOOKUP(W$4,'4. Billing Determinants'!$B$19:$O$41,6,0)/'4. Billing Determinants'!$G$41*$D18,IF($E18="Distribution Rev.",VLOOKUP(W$4,'4. Billing Determinants'!$B$19:$O$41,8,0)/'4. Billing Determinants'!$I$41*$D18, VLOOKUP(W$4,'4. Billing Determinants'!$B$19:$O$41,3,0)/'4. Billing Determinants'!$D$41*$D18))))),0) -> 0 | X18: =IFERROR(IF(X$4="",0,IF($E18="kWh",VLOOKUP(X$4,'4. Billing Determinants'!$B$19:$O$41,4,0)/'4. Billing Determinants'!$E$41*$D18,IF($E18="kW",VLOOKUP(X$4,'4. Billing Determinants'!$B$19:$O$41,5,0)/'4. Billing Determinants'!$F$41*$D18,IF($E18="Non-RPP kWh",VLOOKUP(X$4,'4. Billing Determinants'!$B$19:$O$41,6,0)/'4. Billing Determinants'!$G$41*$D18,IF($E18="Distribution Rev.",VLOOKUP(X$4,'4. Billing Determinants'!$B$19:$O$41,8,0)/'4. Billing Determinants'!$I$41*$D18, VLOOKUP(X$4,'4. Billing Determinants'!$B$19:$O$41,3,0)/'4. Billing Determinants'!$D$41*$D18))))),0) -> 0 | Y18: =IFERROR(IF(Y$4="",0,IF($E18="kWh",VLOOKUP(Y$4,'4. Billing Determinants'!$B$19:$O$41,4,0)/'4. Billing Determinants'!$E$41*$D18,IF($E18="kW",VLOOKUP(Y$4,'4. Billing Determinants'!$B$19:$O$41,5,0)/'4. Billing Determinants'!$F$41*$D18,IF($E18="Non-RPP kWh",VLOOKUP(Y$4,'4. Billing Determinants'!$B$19:$O$41,6,0)/'4. Billing Determinants'!$G$41*$D18,IF($E18="Distribution Rev.",VLOOKUP(Y$4,'4. Billing Determinants'!$B$19:$O$41,8,0)/'4. Billing Determinants'!$I$41*$D18, VLOOKUP(Y$4,'4. Billing Determinants'!$B$19:$O$41,3,0)/'4. Billing Determinants'!$D$41*$D18))))),0) -> 0
B19: Other Regulatory Assets - Sub-Account - Pension Contributions | C19: 1508 | D19: ='2. 2013 Continuity Schedule'!CP42 -> -0.1 | E19: kWh | F19: =IFERROR(IF(F$4="",0,IF($E19="kWh",VLOOKUP(F$4,'4. Billing Determinants'!$B$19:$O$41,4,0)/'4. Billing Determinants'!$E$41*$D19,IF($E19="kW",VLOOKUP(F$4,'4. Billing Determinants'!$B$19:$O$41,5,0)/'4. Billing Determinants'!$F$41*$D19,IF($E19="Non-RPP kWh",VLOOKUP(F$4,'4. Billing Determinants'!$B$19:$O$41,6,0)/'4. Billing Determinants'!$G$41*$D19,IF($E19="Distribution Rev.",VLOOKUP(F$4,'4. Billing Determinants'!$B$19:$O$41,8,0)/'4. Billing Determinants'!$I$41*$D19, VLOOKUP(F$4,'4. Billing Determinants'!$B$19:$O$41,3,0)/'4. Billing Determinants'!$D$41*$D19))))),0) -> -0.03426850839 | G19: =IFERROR(IF(G$4="",0,IF($E19="kWh",VLOOKUP(G$4,'4. Billing Determinants'!$B$19:$O$41,4,0)/'4. Billing Determinants'!$E$41*$D19,IF($E19="kW",VLOOKUP(G$4,'4. Billing Determinants'!$B$19:$O$41,5,0)/'4. Billing Determinants'!$F$41*$D19,IF($E19="Non-RPP kWh",VLOOKUP(G$4,'4. Billing Determinants'!$B$19:$O$41,6,0)/'4. Billing Determinants'!$G$41*$D19,IF($E19="Distribution Rev.",VLOOKUP(G$4,'4. Billing Determinants'!$B$19:$O$41,8,0)/'4. Billing Determinants'!$I$41*$D19, VLOOKUP(G$4,'4. Billing Determinants'!$B$19:$O$41,3,0)/'4. Billing Determinants'!$D$41*$D19))))),0) -> -0.01241945295 | H19: =IFERROR(IF(H$4="",0,IF($E19="kWh",VLOOKUP(H$4,'4. Billing Determinants'!$B$19:$O$41,4,0)/'4. Billing Determinants'!$E$41*$D19,IF($E19="kW",VLOOKUP(H$4,'4. Billing Determinants'!$B$19:$O$41,5,0)/'4. Billing Determinants'!$F$41*$D19,IF($E19="Non-RPP kWh",VLOOKUP(H$4,'4. Billing Determinants'!$B$19:$O$41,6,0)/'4. Billing Determinants'!$G$41*$D19,IF($E19="Distribution Rev.",VLOOKUP(H$4,'4. Billing Determinants'!$B$19:$O$41,8,0)/'4. Billing Determinants'!$I$41*$D19, VLOOKUP(H$4,'4. Billing Determinants'!$B$19:$O$41,3,0)/'4. Billing Determinants'!$D$41*$D19))))),0) -> -0.05219074448 | I19: =IFERROR(IF(I$4="",0,IF($E19="kWh",VLOOKUP(I$4,'4. Billing Determinants'!$B$19:$O$41,4,0)/'4. Billing Determinants'!$E$41*$D19,IF($E19="kW",VLOOKUP(I$4,'4. Billing Determinants'!$B$19:$O$41,5,0)/'4. Billing Determinants'!$F$41*$D19,IF($E19="Non-RPP kWh",VLOOKUP(I$4,'4. Billing Determinants'!$B$19:$O$41,6,0)/'4. Billing Determinants'!$G$41*$D19,IF($E19="Distribution Rev.",VLOOKUP(I$4,'4. Billing Determinants'!$B$19:$O$41,8,0)/'4. Billing Determinants'!$I$41*$D19, VLOOKUP(I$4,'4. Billing Determinants'!$B$19:$O$41,3,0)/'4. Billing Determinants'!$D$41*$D19))))),0) -> -0.000144023637 | J19: =IFERROR(IF(J$4="",0,IF($E19="kWh",VLOOKUP(J$4,'4. Billing Determinants'!$B$19:$O$41,4,0)/'4. Billing Determinants'!$E$41*$D19,IF($E19="kW",VLOOKUP(J$4,'4. Billing Determinants'!$B$19:$O$41,5,0)/'4. Billing Determinants'!$F$41*$D19,IF($E19="Non-RPP kWh",VLOOKUP(J$4,'4. Billing Determinants'!$B$19:$O$41,6,0)/'4. Billing Determinants'!$G$41*$D19,IF($E19="Distribution Rev.",VLOOKUP(J$4,'4. Billing Determinants'!$B$19:$O$41,8,0)/'4. Billing Determinants'!$I$41*$D19, VLOOKUP(J$4,'4. Billing Determinants'!$B$19:$O$41,3,0)/'4. Billing Determinants'!$D$41*$D19))))),0) -> -6.859621565e-05 | K19: =IFERROR(IF(K$4="",0,IF($E19="kWh",VLOOKUP(K$4,'4. Billing Determinants'!$B$19:$O$41,4,0)/'4. Billing Determinants'!$E$41*$D19,IF($E19="kW",VLOOKUP(K$4,'4. Billing Determinants'!$B$19:$O$41,5,0)/'4. Billing Determinants'!$F$41*$D19,IF($E19="Non-RPP kWh",VLOOKUP(K$4,'4. Billing Determinants'!$B$19:$O$41,6,0)/'4. Billing Determinants'!$G$41*$D19,IF($E19="Distribution Rev.",VLOOKUP(K$4,'4. Billing Determinants'!$B$19:$O$41,8,0)/'4. Billing Determinants'!$I$41*$D19, VLOOKUP(K$4,'4. Billing Determinants'!$B$19:$O$41,3,0)/'4. Billing Determinants'!$D$41*$D19))))),0) -> -0.0009086743398 | L19: =IFERROR(IF(L$4="",0,IF($E19="kWh",VLOOKUP(L$4,'4. Billing Determinants'!$B$19:$O$41,4,0)/'4. Billing Determinants'!$E$41*$D19,IF($E19="kW",VLOOKUP(L$4,'4. Billing Determinants'!$B$19:$O$41,5,0)/'4. Billing Determinants'!$F$41*$D19,IF($E19="Non-RPP kWh",VLOOKUP(L$4,'4. Billing Determinants'!$B$19:$O$41,6,0)/'4. Billing Determinants'!$G$41*$D19,IF($E19="Distribution Rev.",VLOOKUP(L$4,'4. Billing Determinants'!$B$19:$O$41,8,0)/'4. Billing Determinants'!$I$41*$D19, VLOOKUP(L$4,'4. Billing Determinants'!$B$19:$O$41,3,0)/'4. Billing Determinants'!$D$41*$D19))))),0) -> 0 | M19: =IFERROR(IF(M$4="",0,IF($E19="kWh",VLOOKUP(M$4,'4. Billing Determinants'!$B$19:$O$41,4,0)/'4. Billing Determinants'!$E$41*$D19,IF($E19="kW",VLOOKUP(M$4,'4. Billing Determinants'!$B$19:$O$41,5,0)/'4. Billing Determinants'!$F$41*$D19,IF($E19="Non-RPP kWh",VLOOKUP(M$4,'4. Billing Determinants'!$B$19:$O$41,6,0)/'4. Billing Determinants'!$G$41*$D19,IF($E19="Distribution Rev.",VLOOKUP(M$4,'4. Billing Determinants'!$B$19:$O$41,8,0)/'4. Billing Determinants'!$I$41*$D19, VLOOKUP(M$4,'4. Billing Determinants'!$B$19:$O$41,3,0)/'4. Billing Determinants'!$D$41*$D19))))),0) -> 0 | N19: =IFERROR(IF(N$4="",0,IF($E19="kWh",VLOOKUP(N$4,'4. Billing Determinants'!$B$19:$O$41,4,0)/'4. Billing Determinants'!$E$41*$D19,IF($E19="kW",VLOOKUP(N$4,'4. Billing Determinants'!$B$19:$O$41,5,0)/'4. Billing Determinants'!$F$41*$D19,IF($E19="Non-RPP kWh",VLOOKUP(N$4,'4. Billing Determinants'!$B$19:$O$41,6,0)/'4. Billing Determinants'!$G$41*$D19,IF($E19="Distribution Rev.",VLOOKUP(N$4,'4. Billing Determinants'!$B$19:$O$41,8,0)/'4. Billing Determinants'!$I$41*$D19, VLOOKUP(N$4,'4. Billing Determinants'!$B$19:$O$41,3,0)/'4. Billing Determinants'!$D$41*$D19))))),0) -> 0 | O19: =IFERROR(IF(O$4="",0,IF($E19="kWh",VLOOKUP(O$4,'4. Billing Determinants'!$B$19:$O$41,4,0)/'4. Billing Determinants'!$E$41*$D19,IF($E19="kW",VLOOKUP(O$4,'4. Billing Determinants'!$B$19:$O$41,5,0)/'4. Billing Determinants'!$F$41*$D19,IF($E19="Non-RPP kWh",VLOOKUP(O$4,'4. Billing Determinants'!$B$19:$O$41,6,0)/'4. Billing Determinants'!$G$41*$D19,IF($E19="Distribution Rev.",VLOOKUP(O$4,'4. Billing Determinants'!$B$19:$O$41,8,0)/'4. Billing Determinants'!$I$41*$D19, VLOOKUP(O$4,'4. Billing Determinants'!$B$19:$O$41,3,0)/'4. Billing Determinants'!$D$41*$D19))))),0) -> 0 | P19: =IFERROR(IF(P$4="",0,IF($E19="kWh",VLOOKUP(P$4,'4. Billing Determinants'!$B$19:$O$41,4,0)/'4. Billing Determinants'!$E$41*$D19,IF($E19="kW",VLOOKUP(P$4,'4. Billing Determinants'!$B$19:$O$41,5,0)/'4. Billing Determinants'!$F$41*$D19,IF($E19="Non-RPP kWh",VLOOKUP(P$4,'4. Billing Determinants'!$B$19:$O$41,6,0)/'4. Billing Determinants'!$G$41*$D19,IF($E19="Distribution Rev.",VLOOKUP(P$4,'4. Billing Determinants'!$B$19:$O$41,8,0)/'4. Billing Determinants'!$I$41*$D19, VLOOKUP(P$4,'4. Billing Determinants'!$B$19:$O$41,3,0)/'4. Billing Determinants'!$D$41*$D19))))),0) -> 0 | Q19: =IFERROR(IF(Q$4="",0,IF($E19="kWh",VLOOKUP(Q$4,'4. Billing Determinants'!$B$19:$O$41,4,0)/'4. Billing Determinants'!$E$41*$D19,IF($E19="kW",VLOOKUP(Q$4,'4. Billing Determinants'!$B$19:$O$41,5,0)/'4. Billing Determinants'!$F$41*$D19,IF($E19="Non-RPP kWh",VLOOKUP(Q$4,'4. Billing Determinants'!$B$19:$O$41,6,0)/'4. Billing Determinants'!$G$41*$D19,IF($E19="Distribution Rev.",VLOOKUP(Q$4,'4. Billing Determinants'!$B$19:$O$41,8,0)/'4. Billing Determinants'!$I$41*$D19, VLOOKUP(Q$4,'4. Billing Determinants'!$B$19:$O$41,3,0)/'4. Billing Determinants'!$D$41*$D19))))),0) -> 0 | R19: =IFERROR(IF(R$4="",0,IF($E19="kWh",VLOOKUP(R$4,'4. Billing Determinants'!$B$19:$O$41,4,0)/'4. Billing Determinants'!$E$41*$D19,IF($E19="kW",VLOOKUP(R$4,'4. Billing Determinants'!$B$19:$O$41,5,0)/'4. Billing Determinants'!$F$41*$D19,IF($E19="Non-RPP kWh",VLOOKUP(R$4,'4. Billing Determinants'!$B$19:$O$41,6,0)/'4. Billing Determinants'!$G$41*$D19,IF($E19="Distribution Rev.",VLOOKUP(R$4,'4. Billing Determinants'!$B$19:$O$41,8,0)/'4. Billing Determinants'!$I$41*$D19, VLOOKUP(R$4,'4. Billing Determinants'!$B$19:$O$41,3,0)/'4. Billing Determinants'!$D$41*$D19))))),0) -> 0 | S19: =IFERROR(IF(S$4="",0,IF($E19="kWh",VLOOKUP(S$4,'4. Billing Determinants'!$B$19:$O$41,4,0)/'4. Billing Determinants'!$E$41*$D19,IF($E19="kW",VLOOKUP(S$4,'4. Billing Determinants'!$B$19:$O$41,5,0)/'4. Billing Determinants'!$F$41*$D19,IF($E19="Non-RPP kWh",VLOOKUP(S$4,'4. Billing Determinants'!$B$19:$O$41,6,0)/'4. Billing Determinants'!$G$41*$D19,IF($E19="Distribution Rev.",VLOOKUP(S$4,'4. Billing Determinants'!$B$19:$O$41,8,0)/'4. Billing Determinants'!$I$41*$D19, VLOOKUP(S$4,'4. Billing Determinants'!$B$19:$O$41,3,0)/'4. Billing Determinants'!$D$41*$D19))))),0) -> 0 | T19: =IFERROR(IF(T$4="",0,IF($E19="kWh",VLOOKUP(T$4,'4. Billing Determinants'!$B$19:$O$41,4,0)/'4. Billing Determinants'!$E$41*$D19,IF($E19="kW",VLOOKUP(T$4,'4. Billing Determinants'!$B$19:$O$41,5,0)/'4. Billing Determinants'!$F$41*$D19,IF($E19="Non-RPP kWh",VLOOKUP(T$4,'4. Billing Determinants'!$B$19:$O$41,6,0)/'4. Billing Determinants'!$G$41*$D19,IF($E19="Distribution Rev.",VLOOKUP(T$4,'4. Billing Determinants'!$B$19:$O$41,8,0)/'4. Billing Determinants'!$I$41*$D19, VLOOKUP(T$4,'4. Billing Determinants'!$B$19:$O$41,3,0)/'4. Billing Determinants'!$D$41*$D19))))),0) -> 0 | U19: =IFERROR(IF(U$4="",0,IF($E19="kWh",VLOOKUP(U$4,'4. Billing Determinants'!$B$19:$O$41,4,0)/'4. Billing Determinants'!$E$41*$D19,IF($E19="kW",VLOOKUP(U$4,'4. Billing Determinants'!$B$19:$O$41,5,0)/'4. Billing Determinants'!$F$41*$D19,IF($E19="Non-RPP kWh",VLOOKUP(U$4,'4. Billing Determinants'!$B$19:$O$41,6,0)/'4. Billing Determinants'!$G$41*$D19,IF($E19="Distribution Rev.",VLOOKUP(U$4,'4. Billing Determinants'!$B$19:$O$41,8,0)/'4. Billing Determinants'!$I$41*$D19, VLOOKUP(U$4,'4. Billing Determinants'!$B$19:$O$41,3,0)/'4. Billing Determinants'!$D$41*$D19))))),0) -> 0 | V19: =IFERROR(IF(V$4="",0,IF($E19="kWh",VLOOKUP(V$4,'4. Billing Determinants'!$B$19:$O$41,4,0)/'4. Billing Determinants'!$E$41*$D19,IF($E19="kW",VLOOKUP(V$4,'4. Billing Determinants'!$B$19:$O$41,5,0)/'4. Billing Determinants'!$F$41*$D19,IF($E19="Non-RPP kWh",VLOOKUP(V$4,'4. Billing Determinants'!$B$19:$O$41,6,0)/'4. Billing Determinants'!$G$41*$D19,IF($E19="Distribution Rev.",VLOOKUP(V$4,'4. Billing Determinants'!$B$19:$O$41,8,0)/'4. Billing Determinants'!$I$41*$D19, VLOOKUP(V$4,'4. Billing Determinants'!$B$19:$O$41,3,0)/'4. Billing Determinants'!$D$41*$D19))))),0) -> 0 | W19: =IFERROR(IF(W$4="",0,IF($E19="kWh",VLOOKUP(W$4,'4. Billing Determinants'!$B$19:$O$41,4,0)/'4. Billing Determinants'!$E$41*$D19,IF($E19="kW",VLOOKUP(W$4,'4. Billing Determinants'!$B$19:$O$41,5,0)/'4. Billing Determinants'!$F$41*$D19,IF($E19="Non-RPP kWh",VLOOKUP(W$4,'4. Billing Determinants'!$B$19:$O$41,6,0)/'4. Billing Determinants'!$G$41*$D19,IF($E19="Distribution Rev.",VLOOKUP(W$4,'4. Billing Determinants'!$B$19:$O$41,8,0)/'4. Billing Determinants'!$I$41*$D19, VLOOKUP(W$4,'4. Billing Determinants'!$B$19:$O$41,3,0)/'4. Billing Determinants'!$D$41*$D19))))),0) -> 0 | X19: =IFERROR(IF(X$4="",0,IF($E19="kWh",VLOOKUP(X$4,'4. Billing Determinants'!$B$19:$O$41,4,0)/'4. Billing Determinants'!$E$41*$D19,IF($E19="kW",VLOOKUP(X$4,'4. Billing Determinants'!$B$19:$O$41,5,0)/'4. Billing Determinants'!$F$41*$D19,IF($E19="Non-RPP kWh",VLOOKUP(X$4,'4. Billing Determinants'!$B$19:$O$41,6,0)/'4. Billing Determinants'!$G$41*$D19,IF($E19="Distribution Rev.",VLOOKUP(X$4,'4. Billing Determinants'!$B$19:$O$41,8,0)/'4. Billing Determinants'!$I$41*$D19, VLOOKUP(X$4,'4. Billing Determinants'!$B$19:$O$41,3,0)/'4. Billing Determinants'!$D$41*$D19))))),0) -> 0 | Y19: =IFERROR(IF(Y$4="",0,IF($E19="kWh",VLOOKUP(Y$4,'4. Billing Determinants'!$B$19:$O$41,4,0)/'4. Billing Determinants'!$E$41*$D19,IF($E19="kW",VLOOKUP(Y$4,'4. Billing Determinants'!$B$19:$O$41,5,0)/'4. Billing Determinants'!$F$41*$D19,IF($E19="Non-RPP kWh",VLOOKUP(Y$4,'4. Billing Determinants'!$B$19:$O$41,6,0)/'4. Billing Determinants'!$G$41*$D19,IF($E19="Distribution Rev.",VLOOKUP(Y$4,'4. Billing Determinants'!$B$19:$O$41,8,0)/'4. Billing Determinants'!$I$41*$D19, VLOOKUP(Y$4,'4. Billing Determinants'!$B$19:$O$41,3,0)/'4. Billing Determinants'!$D$41*$D19))))),0) -> 0
B20: Other Regulatory Assets - Sub-Account - Deferred IFRS Transition Costs | C20: 1508 | D20: 0 | F20: =IFERROR(IF(F$4="",0,IF($E20="kWh",VLOOKUP(F$4,'4. Billing Determinants'!$B$19:$O$41,4,0)/'4. Billing Determinants'!$E$41*$D20,IF($E20="kW",VLOOKUP(F$4,'4. Billing Determinants'!$B$19:$O$41,5,0)/'4. Billing Determinants'!$F$41*$D20,IF($E20="Non-RPP kWh",VLOOKUP(F$4,'4. Billing Determinants'!$B$19:$O$41,6,0)/'4. Billing Determinants'!$G$41*$D20,IF($E20="Distribution Rev.",VLOOKUP(F$4,'4. Billing Determinants'!$B$19:$O$41,8,0)/'4. Billing Determinants'!$I$41*$D20, VLOOKUP(F$4,'4. Billing Determinants'!$B$19:$O$41,3,0)/'4. Billing Determinants'!$D$41*$D20))))),0) -> 0 | G20: =IFERROR(IF(G$4="",0,IF($E20="kWh",VLOOKUP(G$4,'4. Billing Determinants'!$B$19:$O$41,4,0)/'4. Billing Determinants'!$E$41*$D20,IF($E20="kW",VLOOKUP(G$4,'4. Billing Determinants'!$B$19:$O$41,5,0)/'4. Billing Determinants'!$F$41*$D20,IF($E20="Non-RPP kWh",VLOOKUP(G$4,'4. Billing Determinants'!$B$19:$O$41,6,0)/'4. Billing Determinants'!$G$41*$D20,IF($E20="Distribution Rev.",VLOOKUP(G$4,'4. Billing Determinants'!$B$19:$O$41,8,0)/'4. Billing Determinants'!$I$41*$D20, VLOOKUP(G$4,'4. Billing Determinants'!$B$19:$O$41,3,0)/'4. Billing Determinants'!$D$41*$D20))))),0) -> 0 | H20: =IFERROR(IF(H$4="",0,IF($E20="kWh",VLOOKUP(H$4,'4. Billing Determinants'!$B$19:$O$41,4,0)/'4. Billing Determinants'!$E$41*$D20,IF($E20="kW",VLOOKUP(H$4,'4. Billing Determinants'!$B$19:$O$41,5,0)/'4. Billing Determinants'!$F$41*$D20,IF($E20="Non-RPP kWh",VLOOKUP(H$4,'4. Billing Determinants'!$B$19:$O$41,6,0)/'4. Billing Determinants'!$G$41*$D20,IF($E20="Distribution Rev.",VLOOKUP(H$4,'4. Billing Determinants'!$B$19:$O$41,8,0)/'4. Billing Determinants'!$I$41*$D20, VLOOKUP(H$4,'4. Billing Determinants'!$B$19:$O$41,3,0)/'4. Billing Determinants'!$D$41*$D20))))),0) -> 0 | I20: =IFERROR(IF(I$4="",0,IF($E20="kWh",VLOOKUP(I$4,'4. Billing Determinants'!$B$19:$O$41,4,0)/'4. Billing Determinants'!$E$41*$D20,IF($E20="kW",VLOOKUP(I$4,'4. Billing Determinants'!$B$19:$O$41,5,0)/'4. Billing Determinants'!$F$41*$D20,IF($E20="Non-RPP kWh",VLOOKUP(I$4,'4. Billing Determinants'!$B$19:$O$41,6,0)/'4. Billing Determinants'!$G$41*$D20,IF($E20="Distribution Rev.",VLOOKUP(I$4,'4. Billing Determinants'!$B$19:$O$41,8,0)/'4. Billing Determinants'!$I$41*$D20, VLOOKUP(I$4,'4. Billing Determinants'!$B$19:$O$41,3,0)/'4. Billing Determinants'!$D$41*$D20))))),0) -> 0 | J20: =IFERROR(IF(J$4="",0,IF($E20="kWh",VLOOKUP(J$4,'4. Billing Determinants'!$B$19:$O$41,4,0)/'4. Billing Determinants'!$E$41*$D20,IF($E20="kW",VLOOKUP(J$4,'4. Billing Determinants'!$B$19:$O$41,5,0)/'4. Billing Determinants'!$F$41*$D20,IF($E20="Non-RPP kWh",VLOOKUP(J$4,'4. Billing Determinants'!$B$19:$O$41,6,0)/'4. Billing Determinants'!$G$41*$D20,IF($E20="Distribution Rev.",VLOOKUP(J$4,'4. Billing Determinants'!$B$19:$O$41,8,0)/'4. Billing Determinants'!$I$41*$D20, VLOOKUP(J$4,'4. Billing Determinants'!$B$19:$O$41,3,0)/'4. Billing Determinants'!$D$41*$D20))))),0) -> 0 | K20: =IFERROR(IF(K$4="",0,IF($E20="kWh",VLOOKUP(K$4,'4. Billing Determinants'!$B$19:$O$41,4,0)/'4. Billing Determinants'!$E$41*$D20,IF($E20="kW",VLOOKUP(K$4,'4. Billing Determinants'!$B$19:$O$41,5,0)/'4. Billing Determinants'!$F$41*$D20,IF($E20="Non-RPP kWh",VLOOKUP(K$4,'4. Billing Determinants'!$B$19:$O$41,6,0)/'4. Billing Determinants'!$G$41*$D20,IF($E20="Distribution Rev.",VLOOKUP(K$4,'4. Billing Determinants'!$B$19:$O$41,8,0)/'4. Billing Determinants'!$I$41*$D20, VLOOKUP(K$4,'4. Billing Determinants'!$B$19:$O$41,3,0)/'4. Billing Determinants'!$D$41*$D20))))),0) -> 0 | L20: =IFERROR(IF(L$4="",0,IF($E20="kWh",VLOOKUP(L$4,'4. Billing Determinants'!$B$19:$O$41,4,0)/'4. Billing Determinants'!$E$41*$D20,IF($E20="kW",VLOOKUP(L$4,'4. Billing Determinants'!$B$19:$O$41,5,0)/'4. Billing Determinants'!$F$41*$D20,IF($E20="Non-RPP kWh",VLOOKUP(L$4,'4. Billing Determinants'!$B$19:$O$41,6,0)/'4. Billing Determinants'!$G$41*$D20,IF($E20="Distribution Rev.",VLOOKUP(L$4,'4. Billing Determinants'!$B$19:$O$41,8,0)/'4. Billing Determinants'!$I$41*$D20, VLOOKUP(L$4,'4. Billing Determinants'!$B$19:$O$41,3,0)/'4. Billing Determinants'!$D$41*$D20))))),0) -> 0 | M20: =IFERROR(IF(M$4="",0,IF($E20="kWh",VLOOKUP(M$4,'4. Billing Determinants'!$B$19:$O$41,4,0)/'4. Billing Determinants'!$E$41*$D20,IF($E20="kW",VLOOKUP(M$4,'4. Billing Determinants'!$B$19:$O$41,5,0)/'4. Billing Determinants'!$F$41*$D20,IF($E20="Non-RPP kWh",VLOOKUP(M$4,'4. Billing Determinants'!$B$19:$O$41,6,0)/'4. Billing Determinants'!$G$41*$D20,IF($E20="Distribution Rev.",VLOOKUP(M$4,'4. Billing Determinants'!$B$19:$O$41,8,0)/'4. Billing Determinants'!$I$41*$D20, VLOOKUP(M$4,'4. Billing Determinants'!$B$19:$O$41,3,0)/'4. Billing Determinants'!$D$41*$D20))))),0) -> 0 | N20: =IFERROR(IF(N$4="",0,IF($E20="kWh",VLOOKUP(N$4,'4. Billing Determinants'!$B$19:$O$41,4,0)/'4. Billing Determinants'!$E$41*$D20,IF($E20="kW",VLOOKUP(N$4,'4. Billing Determinants'!$B$19:$O$41,5,0)/'4. Billing Determinants'!$F$41*$D20,IF($E20="Non-RPP kWh",VLOOKUP(N$4,'4. Billing Determinants'!$B$19:$O$41,6,0)/'4. Billing Determinants'!$G$41*$D20,IF($E20="Distribution Rev.",VLOOKUP(N$4,'4. Billing Determinants'!$B$19:$O$41,8,0)/'4. Billing Determinants'!$I$41*$D20, VLOOKUP(N$4,'4. Billing Determinants'!$B$19:$O$41,3,0)/'4. Billing Determinants'!$D$41*$D20))))),0) -> 0 | O20: =IFERROR(IF(O$4="",0,IF($E20="kWh",VLOOKUP(O$4,'4. Billing Determinants'!$B$19:$O$41,4,0)/'4. Billing Determinants'!$E$41*$D20,IF($E20="kW",VLOOKUP(O$4,'4. Billing Determinants'!$B$19:$O$41,5,0)/'4. Billing Determinants'!$F$41*$D20,IF($E20="Non-RPP kWh",VLOOKUP(O$4,'4. Billing Determinants'!$B$19:$O$41,6,0)/'4. Billing Determinants'!$G$41*$D20,IF($E20="Distribution Rev.",VLOOKUP(O$4,'4. Billing Determinants'!$B$19:$O$41,8,0)/'4. Billing Determinants'!$I$41*$D20, VLOOKUP(O$4,'4. Billing Determinants'!$B$19:$O$41,3,0)/'4. Billing Determinants'!$D$41*$D20))))),0) -> 0 | P20: =IFERROR(IF(P$4="",0,IF($E20="kWh",VLOOKUP(P$4,'4. Billing Determinants'!$B$19:$O$41,4,0)/'4. Billing Determinants'!$E$41*$D20,IF($E20="kW",VLOOKUP(P$4,'4. Billing Determinants'!$B$19:$O$41,5,0)/'4. Billing Determinants'!$F$41*$D20,IF($E20="Non-RPP kWh",VLOOKUP(P$4,'4. Billing Determinants'!$B$19:$O$41,6,0)/'4. Billing Determinants'!$G$41*$D20,IF($E20="Distribution Rev.",VLOOKUP(P$4,'4. Billing Determinants'!$B$19:$O$41,8,0)/'4. Billing Determinants'!$I$41*$D20, VLOOKUP(P$4,'4. Billing Determinants'!$B$19:$O$41,3,0)/'4. Billing Determinants'!$D$41*$D20))))),0) -> 0 | Q20: =IFERROR(IF(Q$4="",0,IF($E20="kWh",VLOOKUP(Q$4,'4. Billing Determinants'!$B$19:$O$41,4,0)/'4. Billing Determinants'!$E$41*$D20,IF($E20="kW",VLOOKUP(Q$4,'4. Billing Determinants'!$B$19:$O$41,5,0)/'4. Billing Determinants'!$F$41*$D20,IF($E20="Non-RPP kWh",VLOOKUP(Q$4,'4. Billing Determinants'!$B$19:$O$41,6,0)/'4. Billing Determinants'!$G$41*$D20,IF($E20="Distribution Rev.",VLOOKUP(Q$4,'4. Billing Determinants'!$B$19:$O$41,8,0)/'4. Billing Determinants'!$I$41*$D20, VLOOKUP(Q$4,'4. Billing Determinants'!$B$19:$O$41,3,0)/'4. Billing Determinants'!$D$41*$D20))))),0) -> 0 | R20: =IFERROR(IF(R$4="",0,IF($E20="kWh",VLOOKUP(R$4,'4. Billing Determinants'!$B$19:$O$41,4,0)/'4. Billing Determinants'!$E$41*$D20,IF($E20="kW",VLOOKUP(R$4,'4. Billing Determinants'!$B$19:$O$41,5,0)/'4. Billing Determinants'!$F$41*$D20,IF($E20="Non-RPP kWh",VLOOKUP(R$4,'4. Billing Determinants'!$B$19:$O$41,6,0)/'4. Billing Determinants'!$G$41*$D20,IF($E20="Distribution Rev.",VLOOKUP(R$4,'4. Billing Determinants'!$B$19:$O$41,8,0)/'4. Billing Determinants'!$I$41*$D20, VLOOKUP(R$4,'4. Billing Determinants'!$B$19:$O$41,3,0)/'4. Billing Determinants'!$D$41*$D20))))),0) -> 0 | S20: =IFERROR(IF(S$4="",0,IF($E20="kWh",VLOOKUP(S$4,'4. Billing Determinants'!$B$19:$O$41,4,0)/'4. Billing Determinants'!$E$41*$D20,IF($E20="kW",VLOOKUP(S$4,'4. Billing Determinants'!$B$19:$O$41,5,0)/'4. Billing Determinants'!$F$41*$D20,IF($E20="Non-RPP kWh",VLOOKUP(S$4,'4. Billing Determinants'!$B$19:$O$41,6,0)/'4. Billing Determinants'!$G$41*$D20,IF($E20="Distribution Rev.",VLOOKUP(S$4,'4. Billing Determinants'!$B$19:$O$41,8,0)/'4. Billing Determinants'!$I$41*$D20, VLOOKUP(S$4,'4. Billing Determinants'!$B$19:$O$41,3,0)/'4. Billing Determinants'!$D$41*$D20))))),0) -> 0 | T20: =IFERROR(IF(T$4="",0,IF($E20="kWh",VLOOKUP(T$4,'4. Billing Determinants'!$B$19:$O$41,4,0)/'4. Billing Determinants'!$E$41*$D20,IF($E20="kW",VLOOKUP(T$4,'4. Billing Determinants'!$B$19:$O$41,5,0)/'4. Billing Determinants'!$F$41*$D20,IF($E20="Non-RPP kWh",VLOOKUP(T$4,'4. Billing Determinants'!$B$19:$O$41,6,0)/'4. Billing Determinants'!$G$41*$D20,IF($E20="Distribution Rev.",VLOOKUP(T$4,'4. Billing Determinants'!$B$19:$O$41,8,0)/'4. Billing Determinants'!$I$41*$D20, VLOOKUP(T$4,'4. Billing Determinants'!$B$19:$O$41,3,0)/'4. Billing Determinants'!$D$41*$D20))))),0) -> 0 | U20: =IFERROR(IF(U$4="",0,IF($E20="kWh",VLOOKUP(U$4,'4. Billing Determinants'!$B$19:$O$41,4,0)/'4. Billing Determinants'!$E$41*$D20,IF($E20="kW",VLOOKUP(U$4,'4. Billing Determinants'!$B$19:$O$41,5,0)/'4. Billing Determinants'!$F$41*$D20,IF($E20="Non-RPP kWh",VLOOKUP(U$4,'4. Billing Determinants'!$B$19:$O$41,6,0)/'4. Billing Determinants'!$G$41*$D20,IF($E20="Distribution Rev.",VLOOKUP(U$4,'4. Billing Determinants'!$B$19:$O$41,8,0)/'4. Billing Determinants'!$I$41*$D20, VLOOKUP(U$4,'4. Billing Determinants'!$B$19:$O$41,3,0)/'4. Billing Determinants'!$D$41*$D20))))),0) -> 0 | V20: =IFERROR(IF(V$4="",0,IF($E20="kWh",VLOOKUP(V$4,'4. Billing Determinants'!$B$19:$O$41,4,0)/'4. Billing Determinants'!$E$41*$D20,IF($E20="kW",VLOOKUP(V$4,'4. Billing Determinants'!$B$19:$O$41,5,0)/'4. Billing Determinants'!$F$41*$D20,IF($E20="Non-RPP kWh",VLOOKUP(V$4,'4. Billing Determinants'!$B$19:$O$41,6,0)/'4. Billing Determinants'!$G$41*$D20,IF($E20="Distribution Rev.",VLOOKUP(V$4,'4. Billing Determinants'!$B$19:$O$41,8,0)/'4. Billing Determinants'!$I$41*$D20, VLOOKUP(V$4,'4. Billing Determinants'!$B$19:$O$41,3,0)/'4. Billing Determinants'!$D$41*$D20))))),0) -> 0 | W20: =IFERROR(IF(W$4="",0,IF($E20="kWh",VLOOKUP(W$4,'4. Billing Determinants'!$B$19:$O$41,4,0)/'4. Billing Determinants'!$E$41*$D20,IF($E20="kW",VLOOKUP(W$4,'4. Billing Determinants'!$B$19:$O$41,5,0)/'4. Billing Determinants'!$F$41*$D20,IF($E20="Non-RPP kWh",VLOOKUP(W$4,'4. Billing Determinants'!$B$19:$O$41,6,0)/'4. Billing Determinants'!$G$41*$D20,IF($E20="Distribution Rev.",VLOOKUP(W$4,'4. Billing Determinants'!$B$19:$O$41,8,0)/'4. Billing Determinants'!$I$41*$D20, VLOOKUP(W$4,'4. Billing Determinants'!$B$19:$O$41,3,0)/'4. Billing Determinants'!$D$41*$D20))))),0) -> 0 | X20: =IFERROR(IF(X$4="",0,IF($E20="kWh",VLOOKUP(X$4,'4. Billing Determinants'!$B$19:$O$41,4,0)/'4. Billing Determinants'!$E$41*$D20,IF($E20="kW",VLOOKUP(X$4,'4. Billing Determinants'!$B$19:$O$41,5,0)/'4. Billing Determinants'!$F$41*$D20,IF($E20="Non-RPP kWh",VLOOKUP(X$4,'4. Billing Determinants'!$B$19:$O$41,6,0)/'4. Billing Determinants'!$G$41*$D20,IF($E20="Distribution Rev.",VLOOKUP(X$4,'4. Billing Determinants'!$B$19:$O$41,8,0)/'4. Billing Determinants'!$I$41*$D20, VLOOKUP(X$4,'4. Billing Determinants'!$B$19:$O$41,3,0)/'4. Billing Determinants'!$D$41*$D20))))),0) -> 0 | Y20: =IFERROR(IF(Y$4="",0,IF($E20="kWh",VLOOKUP(Y$4,'4. Billing Determinants'!$B$19:$O$41,4,0)/'4. Billing Determinants'!$E$41*$D20,IF($E20="kW",VLOOKUP(Y$4,'4. Billing Determinants'!$B$19:$O$41,5,0)/'4. Billing Determinants'!$F$41*$D20,IF($E20="Non-RPP kWh",VLOOKUP(Y$4,'4. Billing Determinants'!$B$19:$O$41,6,0)/'4. Billing Determinants'!$G$41*$D20,IF($E20="Distribution Rev.",VLOOKUP(Y$4,'4. Billing Determinants'!$B$19:$O$41,8,0)/'4. Billing Determinants'!$I$41*$D20, VLOOKUP(Y$4,'4. Billing Determinants'!$B$19:$O$41,3,0)/'4. Billing Determinants'!$D$41*$D20))))),0) -> 0
B21: Other Regulatory Assets - Sub-Account - Incremental Capital Charges | C21: 1508 | D21: ='2. 2013 Continuity Schedule'!CP47 -> 3359.01 | E21: Distribution Rev. | F21: =IFERROR(IF(F$4="",0,IF($E21="kWh",VLOOKUP(F$4,'4. Billing Determinants'!$B$19:$O$41,4,0)/'4. Billing Determinants'!$E$41*$D21,IF($E21="kW",VLOOKUP(F$4,'4. Billing Determinants'!$B$19:$O$41,5,0)/'4. Billing Determinants'!$F$41*$D21,IF($E21="Non-RPP kWh",VLOOKUP(F$4,'4. Billing Determinants'!$B$19:$O$41,6,0)/'4. Billing Determinants'!$G$41*$D21,IF($E21="Distribution Rev.",VLOOKUP(F$4,'4. Billing Determinants'!$B$19:$O$41,8,0)/'4. Billing Determinants'!$I$41*$D21, VLOOKUP(F$4,'4. Billing Determinants'!$B$19:$O$41,3,0)/'4. Billing Determinants'!$D$41*$D21))))),0) -> 2114.665707 | G21: =IFERROR(IF(G$4="",0,IF($E21="kWh",VLOOKUP(G$4,'4. Billing Determinants'!$B$19:$O$41,4,0)/'4. Billing Determinants'!$E$41*$D21,IF($E21="kW",VLOOKUP(G$4,'4. Billing Determinants'!$B$19:$O$41,5,0)/'4. Billing Determinants'!$F$41*$D21,IF($E21="Non-RPP kWh",VLOOKUP(G$4,'4. Billing Determinants'!$B$19:$O$41,6,0)/'4. Billing Determinants'!$G$41*$D21,IF($E21="Distribution Rev.",VLOOKUP(G$4,'4. Billing Determinants'!$B$19:$O$41,8,0)/'4. Billing Determinants'!$I$41*$D21, VLOOKUP(G$4,'4. Billing Determinants'!$B$19:$O$41,3,0)/'4. Billing Determinants'!$D$41*$D21))))),0) -> 522.5660905 | H21: =IFERROR(IF(H$4="",0,IF($E21="kWh",VLOOKUP(H$4,'4. Billing Determinants'!$B$19:$O$41,4,0)/'4. Billing Determinants'!$E$41*$D21,IF($E21="kW",VLOOKUP(H$4,'4. Billing Determinants'!$B$19:$O$41,5,0)/'4. Billing Determinants'!$F$41*$D21,IF($E21="Non-RPP kWh",VLOOKUP(H$4,'4. Billing Determinants'!$B$19:$O$41,6,0)/'4. Billing Determinants'!$G$41*$D21,IF($E21="Distribution Rev.",VLOOKUP(H$4,'4. Billing Determinants'!$B$19:$O$41,8,0)/'4. Billing Determinants'!$I$41*$D21, VLOOKUP(H$4,'4. Billing Determinants'!$B$19:$O$41,3,0)/'4. Billing Determinants'!$D$41*$D21))))),0) -> 645.6974306 | I21: =IFERROR(IF(I$4="",0,IF($E21="kWh",VLOOKUP(I$4,'4. Billing Determinants'!$B$19:$O$41,4,0)/'4. Billing Determinants'!$E$41*$D21,IF($E21="kW",VLOOKUP(I$4,'4. Billing Determinants'!$B$19:$O$41,5,0)/'4. Billing Determinants'!$F$41*$D21,IF($E21="Non-RPP kWh",VLOOKUP(I$4,'4. Billing Determinants'!$B$19:$O$41,6,0)/'4. Billing Determinants'!$G$41*$D21,IF($E21="Distribution Rev.",VLOOKUP(I$4,'4. Billing Determinants'!$B$19:$O$41,8,0)/'4. Billing Determinants'!$I$41*$D21, VLOOKUP(I$4,'4. Billing Determinants'!$B$19:$O$41,3,0)/'4. Billing Determinants'!$D$41*$D21))))),0) -> 1.733785105 | J21: =IFERROR(IF(J$4="",0,IF($E21="kWh",VLOOKUP(J$4,'4. Billing Determinants'!$B$19:$O$41,4,0)/'4. Billing Determinants'!$E$41*$D21,IF($E21="kW",VLOOKUP(J$4,'4. Billing Determinants'!$B$19:$O$41,5,0)/'4. Billing Determinants'!$F$41*$D21,IF($E21="Non-RPP kWh",VLOOKUP(J$4,'4. Billing Determinants'!$B$19:$O$41,6,0)/'4. Billing Determinants'!$G$41*$D21,IF($E21="Distribution Rev.",VLOOKUP(J$4,'4. Billing Determinants'!$B$19:$O$41,8,0)/'4. Billing Determinants'!$I$41*$D21, VLOOKUP(J$4,'4. Billing Determinants'!$B$19:$O$41,3,0)/'4. Billing Determinants'!$D$41*$D21))))),0) -> 5.007807038 | K21: =IFERROR(IF(K$4="",0,IF($E21="kWh",VLOOKUP(K$4,'4. Billing Determinants'!$B$19:$O$41,4,0)/'4. Billing Determinants'!$E$41*$D21,IF($E21="kW",VLOOKUP(K$4,'4. Billing Determinants'!$B$19:$O$41,5,0)/'4. Billing Determinants'!$F$41*$D21,IF($E21="Non-RPP kWh",VLOOKUP(K$4,'4. Billing Determinants'!$B$19:$O$41,6,0)/'4. Billing Determinants'!$G$41*$D21,IF($E21="Distribution Rev.",VLOOKUP(K$4,'4. Billing Determinants'!$B$19:$O$41,8,0)/'4. Billing Determinants'!$I$41*$D21, VLOOKUP(K$4,'4. Billing Determinants'!$B$19:$O$41,3,0)/'4. Billing Determinants'!$D$41*$D21))))),0) -> 69.33918011 | L21: =IFERROR(IF(L$4="",0,IF($E21="kWh",VLOOKUP(L$4,'4. Billing Determinants'!$B$19:$O$41,4,0)/'4. Billing Determinants'!$E$41*$D21,IF($E21="kW",VLOOKUP(L$4,'4. Billing Determinants'!$B$19:$O$41,5,0)/'4. Billing Determinants'!$F$41*$D21,IF($E21="Non-RPP kWh",VLOOKUP(L$4,'4. Billing Determinants'!$B$19:$O$41,6,0)/'4. Billing Determinants'!$G$41*$D21,IF($E21="Distribution Rev.",VLOOKUP(L$4,'4. Billing Determinants'!$B$19:$O$41,8,0)/'4. Billing Determinants'!$I$41*$D21, VLOOKUP(L$4,'4. Billing Determinants'!$B$19:$O$41,3,0)/'4. Billing Determinants'!$D$41*$D21))))),0) -> 0 | M21: =IFERROR(IF(M$4="",0,IF($E21="kWh",VLOOKUP(M$4,'4. Billing Determinants'!$B$19:$O$41,4,0)/'4. Billing Determinants'!$E$41*$D21,IF($E21="kW",VLOOKUP(M$4,'4. Billing Determinants'!$B$19:$O$41,5,0)/'4. Billing Determinants'!$F$41*$D21,IF($E21="Non-RPP kWh",VLOOKUP(M$4,'4. Billing Determinants'!$B$19:$O$41,6,0)/'4. Billing Determinants'!$G$41*$D21,IF($E21="Distribution Rev.",VLOOKUP(M$4,'4. Billing Determinants'!$B$19:$O$41,8,0)/'4. Billing Determinants'!$I$41*$D21, VLOOKUP(M$4,'4. Billing Determinants'!$B$19:$O$41,3,0)/'4. Billing Determinants'!$D$41*$D21))))),0) -> 0 | N21: =IFERROR(IF(N$4="",0,IF($E21="kWh",VLOOKUP(N$4,'4. Billing Determinants'!$B$19:$O$41,4,0)/'4. Billing Determinants'!$E$41*$D21,IF($E21="kW",VLOOKUP(N$4,'4. Billing Determinants'!$B$19:$O$41,5,0)/'4. Billing Determinants'!$F$41*$D21,IF($E21="Non-RPP kWh",VLOOKUP(N$4,'4. Billing Determinants'!$B$19:$O$41,6,0)/'4. Billing Determinants'!$G$41*$D21,IF($E21="Distribution Rev.",VLOOKUP(N$4,'4. Billing Determinants'!$B$19:$O$41,8,0)/'4. Billing Determinants'!$I$41*$D21, VLOOKUP(N$4,'4. Billing Determinants'!$B$19:$O$41,3,0)/'4. Billing Determinants'!$D$41*$D21))))),0) -> 0 | O21: =IFERROR(IF(O$4="",0,IF($E21="kWh",VLOOKUP(O$4,'4. Billing Determinants'!$B$19:$O$41,4,0)/'4. Billing Determinants'!$E$41*$D21,IF($E21="kW",VLOOKUP(O$4,'4. Billing Determinants'!$B$19:$O$41,5,0)/'4. Billing Determinants'!$F$41*$D21,IF($E21="Non-RPP kWh",VLOOKUP(O$4,'4. Billing Determinants'!$B$19:$O$41,6,0)/'4. Billing Determinants'!$G$41*$D21,IF($E21="Distribution Rev.",VLOOKUP(O$4,'4. Billing Determinants'!$B$19:$O$41,8,0)/'4. Billing Determinants'!$I$41*$D21, VLOOKUP(O$4,'4. Billing Determinants'!$B$19:$O$41,3,0)/'4. Billing Determinants'!$D$41*$D21))))),0) -> 0 | P21: =IFERROR(IF(P$4="",0,IF($E21="kWh",VLOOKUP(P$4,'4. Billing Determinants'!$B$19:$O$41,4,0)/'4. Billing Determinants'!$E$41*$D21,IF($E21="kW",VLOOKUP(P$4,'4. Billing Determinants'!$B$19:$O$41,5,0)/'4. Billing Determinants'!$F$41*$D21,IF($E21="Non-RPP kWh",VLOOKUP(P$4,'4. Billing Determinants'!$B$19:$O$41,6,0)/'4. Billing Determinants'!$G$41*$D21,IF($E21="Distribution Rev.",VLOOKUP(P$4,'4. Billing Determinants'!$B$19:$O$41,8,0)/'4. Billing Determinants'!$I$41*$D21, VLOOKUP(P$4,'4. Billing Determinants'!$B$19:$O$41,3,0)/'4. Billing Determinants'!$D$41*$D21))))),0) -> 0 | Q21: =IFERROR(IF(Q$4="",0,IF($E21="kWh",VLOOKUP(Q$4,'4. Billing Determinants'!$B$19:$O$41,4,0)/'4. Billing Determinants'!$E$41*$D21,IF($E21="kW",VLOOKUP(Q$4,'4. Billing Determinants'!$B$19:$O$41,5,0)/'4. Billing Determinants'!$F$41*$D21,IF($E21="Non-RPP kWh",VLOOKUP(Q$4,'4. Billing Determinants'!$B$19:$O$41,6,0)/'4. Billing Determinants'!$G$41*$D21,IF($E21="Distribution Rev.",VLOOKUP(Q$4,'4. Billing Determinants'!$B$19:$O$41,8,0)/'4. Billing Determinants'!$I$41*$D21, VLOOKUP(Q$4,'4. Billing Determinants'!$B$19:$O$41,3,0)/'4. Billing Determinants'!$D$41*$D21))))),0) -> 0 | R21: =IFERROR(IF(R$4="",0,IF($E21="kWh",VLOOKUP(R$4,'4. Billing Determinants'!$B$19:$O$41,4,0)/'4. Billing Determinants'!$E$41*$D21,IF($E21="kW",VLOOKUP(R$4,'4. Billing Determinants'!$B$19:$O$41,5,0)/'4. Billing Determinants'!$F$41*$D21,IF($E21="Non-RPP kWh",VLOOKUP(R$4,'4. Billing Determinants'!$B$19:$O$41,6,0)/'4. Billing Determinants'!$G$41*$D21,IF($E21="Distribution Rev.",VLOOKUP(R$4,'4. Billing Determinants'!$B$19:$O$41,8,0)/'4. Billing Determinants'!$I$41*$D21, VLOOKUP(R$4,'4. Billing Determinants'!$B$19:$O$41,3,0)/'4. Billing Determinants'!$D$41*$D21))))),0) -> 0 | S21: =IFERROR(IF(S$4="",0,IF($E21="kWh",VLOOKUP(S$4,'4. Billing Determinants'!$B$19:$O$41,4,0)/'4. Billing Determinants'!$E$41*$D21,IF($E21="kW",VLOOKUP(S$4,'4. Billing Determinants'!$B$19:$O$41,5,0)/'4. Billing Determinants'!$F$41*$D21,IF($E21="Non-RPP kWh",VLOOKUP(S$4,'4. Billing Determinants'!$B$19:$O$41,6,0)/'4. Billing Determinants'!$G$41*$D21,IF($E21="Distribution Rev.",VLOOKUP(S$4,'4. Billing Determinants'!$B$19:$O$41,8,0)/'4. Billing Determinants'!$I$41*$D21, VLOOKUP(S$4,'4. Billing Determinants'!$B$19:$O$41,3,0)/'4. Billing Determinants'!$D$41*$D21))))),0) -> 0 | T21: =IFERROR(IF(T$4="",0,IF($E21="kWh",VLOOKUP(T$4,'4. Billing Determinants'!$B$19:$O$41,4,0)/'4. Billing Determinants'!$E$41*$D21,IF($E21="kW",VLOOKUP(T$4,'4. Billing Determinants'!$B$19:$O$41,5,0)/'4. Billing Determinants'!$F$41*$D21,IF($E21="Non-RPP kWh",VLOOKUP(T$4,'4. Billing Determinants'!$B$19:$O$41,6,0)/'4. Billing Determinants'!$G$41*$D21,IF($E21="Distribution Rev.",VLOOKUP(T$4,'4. Billing Determinants'!$B$19:$O$41,8,0)/'4. Billing Determinants'!$I$41*$D21, VLOOKUP(T$4,'4. Billing Determinants'!$B$19:$O$41,3,0)/'4. Billing Determinants'!$D$41*$D21))))),0) -> 0 | U21: =IFERROR(IF(U$4="",0,IF($E21="kWh",VLOOKUP(U$4,'4. Billing Determinants'!$B$19:$O$41,4,0)/'4. Billing Determinants'!$E$41*$D21,IF($E21="kW",VLOOKUP(U$4,'4. Billing Determinants'!$B$19:$O$41,5,0)/'4. Billing Determinants'!$F$41*$D21,IF($E21="Non-RPP kWh",VLOOKUP(U$4,'4. Billing Determinants'!$B$19:$O$41,6,0)/'4. Billing Determinants'!$G$41*$D21,IF($E21="Distribution Rev.",VLOOKUP(U$4,'4. Billing Determinants'!$B$19:$O$41,8,0)/'4. Billing Determinants'!$I$41*$D21, VLOOKUP(U$4,'4. Billing Determinants'!$B$19:$O$41,3,0)/'4. Billing Determinants'!$D$41*$D21))))),0) -> 0 | V21: =IFERROR(IF(V$4="",0,IF($E21="kWh",VLOOKUP(V$4,'4. Billing Determinants'!$B$19:$O$41,4,0)/'4. Billing Determinants'!$E$41*$D21,IF($E21="kW",VLOOKUP(V$4,'4. Billing Determinants'!$B$19:$O$41,5,0)/'4. Billing Determinants'!$F$41*$D21,IF($E21="Non-RPP kWh",VLOOKUP(V$4,'4. Billing Determinants'!$B$19:$O$41,6,0)/'4. Billing Determinants'!$G$41*$D21,IF($E21="Distribution Rev.",VLOOKUP(V$4,'4. Billing Determinants'!$B$19:$O$41,8,0)/'4. Billing Determinants'!$I$41*$D21, VLOOKUP(V$4,'4. Billing Determinants'!$B$19:$O$41,3,0)/'4. Billing Determinants'!$D$41*$D21))))),0) -> 0 | W21: =IFERROR(IF(W$4="",0,IF($E21="kWh",VLOOKUP(W$4,'4. Billing Determinants'!$B$19:$O$41,4,0)/'4. Billing Determinants'!$E$41*$D21,IF($E21="kW",VLOOKUP(W$4,'4. Billing Determinants'!$B$19:$O$41,5,0)/'4. Billing Determinants'!$F$41*$D21,IF($E21="Non-RPP kWh",VLOOKUP(W$4,'4. Billing Determinants'!$B$19:$O$41,6,0)/'4. Billing Determinants'!$G$41*$D21,IF($E21="Distribution Rev.",VLOOKUP(W$4,'4. Billing Determinants'!$B$19:$O$41,8,0)/'4. Billing Determinants'!$I$41*$D21, VLOOKUP(W$4,'4. Billing Determinants'!$B$19:$O$41,3,0)/'4. Billing Determinants'!$D$41*$D21))))),0) -> 0 | X21: =IFERROR(IF(X$4="",0,IF($E21="kWh",VLOOKUP(X$4,'4. Billing Determinants'!$B$19:$O$41,4,0)/'4. Billing Determinants'!$E$41*$D21,IF($E21="kW",VLOOKUP(X$4,'4. Billing Determinants'!$B$19:$O$41,5,0)/'4. Billing Determinants'!$F$41*$D21,IF($E21="Non-RPP kWh",VLOOKUP(X$4,'4. Billing Determinants'!$B$19:$O$41,6,0)/'4. Billing Determinants'!$G$41*$D21,IF($E21="Distribution Rev.",VLOOKUP(X$4,'4. Billing Determinants'!$B$19:$O$41,8,0)/'4. Billing Determinants'!$I$41*$D21, VLOOKUP(X$4,'4. Billing Determinants'!$B$19:$O$41,3,0)/'4. Billing Determinants'!$D$41*$D21))))),0) -> 0 | Y21: =IFERROR(IF(Y$4="",0,IF($E21="kWh",VLOOKUP(Y$4,'4. Billing Determinants'!$B$19:$O$41,4,0)/'4. Billing Determinants'!$E$41*$D21,IF($E21="kW",VLOOKUP(Y$4,'4. Billing Determinants'!$B$19:$O$41,5,0)/'4. Billing Determinants'!$F$41*$D21,IF($E21="Non-RPP kWh",VLOOKUP(Y$4,'4. Billing Determinants'!$B$19:$O$41,6,0)/'4. Billing Determinants'!$G$41*$D21,IF($E21="Distribution Rev.",VLOOKUP(Y$4,'4. Billing Determinants'!$B$19:$O$41,8,0)/'4. Billing Determinants'!$I$41*$D21, VLOOKUP(Y$4,'4. Billing Determinants'!$B$19:$O$41,3,0)/'4. Billing Determinants'!$D$41*$D21))))),0) -> 0
B22: Other Regulatory Assets - Sub-Account - Financial Assistance Payment and Recovery Variance - Ontario Clean Energy Benefit Act | C22: 1508 | D22: ='2. 2013 Continuity Schedule'!CP48 -> 0 | F22: =IFERROR(IF(F$4="",0,IF($E22="kWh",VLOOKUP(F$4,'4. Billing Determinants'!$B$19:$O$41,4,0)/'4. Billing Determinants'!$E$41*$D22,IF($E22="kW",VLOOKUP(F$4,'4. Billing Determinants'!$B$19:$O$41,5,0)/'4. Billing Determinants'!$F$41*$D22,IF($E22="Non-RPP kWh",VLOOKUP(F$4,'4. Billing Determinants'!$B$19:$O$41,6,0)/'4. Billing Determinants'!$G$41*$D22,IF($E22="Distribution Rev.",VLOOKUP(F$4,'4. Billing Determinants'!$B$19:$O$41,8,0)/'4. Billing Determinants'!$I$41*$D22, VLOOKUP(F$4,'4. Billing Determinants'!$B$19:$O$41,3,0)/'4. Billing Determinants'!$D$41*$D22))))),0) -> 0 | G22: =IFERROR(IF(G$4="",0,IF($E22="kWh",VLOOKUP(G$4,'4. Billing Determinants'!$B$19:$O$41,4,0)/'4. Billing Determinants'!$E$41*$D22,IF($E22="kW",VLOOKUP(G$4,'4. Billing Determinants'!$B$19:$O$41,5,0)/'4. Billing Determinants'!$F$41*$D22,IF($E22="Non-RPP kWh",VLOOKUP(G$4,'4. Billing Determinants'!$B$19:$O$41,6,0)/'4. Billing Determinants'!$G$41*$D22,IF($E22="Distribution Rev.",VLOOKUP(G$4,'4. Billing Determinants'!$B$19:$O$41,8,0)/'4. Billing Determinants'!$I$41*$D22, VLOOKUP(G$4,'4. Billing Determinants'!$B$19:$O$41,3,0)/'4. Billing Determinants'!$D$41*$D22))))),0) -> 0 | H22: =IFERROR(IF(H$4="",0,IF($E22="kWh",VLOOKUP(H$4,'4. Billing Determinants'!$B$19:$O$41,4,0)/'4. Billing Determinants'!$E$41*$D22,IF($E22="kW",VLOOKUP(H$4,'4. Billing Determinants'!$B$19:$O$41,5,0)/'4. Billing Determinants'!$F$41*$D22,IF($E22="Non-RPP kWh",VLOOKUP(H$4,'4. Billing Determinants'!$B$19:$O$41,6,0)/'4. Billing Determinants'!$G$41*$D22,IF($E22="Distribution Rev.",VLOOKUP(H$4,'4. Billing Determinants'!$B$19:$O$41,8,0)/'4. Billing Determinants'!$I$41*$D22, VLOOKUP(H$4,'4. Billing Determinants'!$B$19:$O$41,3,0)/'4. Billing Determinants'!$D$41*$D22))))),0) -> 0 | I22: =IFERROR(IF(I$4="",0,IF($E22="kWh",VLOOKUP(I$4,'4. Billing Determinants'!$B$19:$O$41,4,0)/'4. Billing Determinants'!$E$41*$D22,IF($E22="kW",VLOOKUP(I$4,'4. Billing Determinants'!$B$19:$O$41,5,0)/'4. Billing Determinants'!$F$41*$D22,IF($E22="Non-RPP kWh",VLOOKUP(I$4,'4. Billing Determinants'!$B$19:$O$41,6,0)/'4. Billing Determinants'!$G$41*$D22,IF($E22="Distribution Rev.",VLOOKUP(I$4,'4. Billing Determinants'!$B$19:$O$41,8,0)/'4. Billing Determinants'!$I$41*$D22, VLOOKUP(I$4,'4. Billing Determinants'!$B$19:$O$41,3,0)/'4. Billing Determinants'!$D$41*$D22))))),0) -> 0 | J22: =IFERROR(IF(J$4="",0,IF($E22="kWh",VLOOKUP(J$4,'4. Billing Determinants'!$B$19:$O$41,4,0)/'4. Billing Determinants'!$E$41*$D22,IF($E22="kW",VLOOKUP(J$4,'4. Billing Determinants'!$B$19:$O$41,5,0)/'4. Billing Determinants'!$F$41*$D22,IF($E22="Non-RPP kWh",VLOOKUP(J$4,'4. Billing Determinants'!$B$19:$O$41,6,0)/'4. Billing Determinants'!$G$41*$D22,IF($E22="Distribution Rev.",VLOOKUP(J$4,'4. Billing Determinants'!$B$19:$O$41,8,0)/'4. Billing Determinants'!$I$41*$D22, VLOOKUP(J$4,'4. Billing Determinants'!$B$19:$O$41,3,0)/'4. Billing Determinants'!$D$41*$D22))))),0) -> 0 | K22: =IFERROR(IF(K$4="",0,IF($E22="kWh",VLOOKUP(K$4,'4. Billing Determinants'!$B$19:$O$41,4,0)/'4. Billing Determinants'!$E$41*$D22,IF($E22="kW",VLOOKUP(K$4,'4. Billing Determinants'!$B$19:$O$41,5,0)/'4. Billing Determinants'!$F$41*$D22,IF($E22="Non-RPP kWh",VLOOKUP(K$4,'4. Billing Determinants'!$B$19:$O$41,6,0)/'4. Billing Determinants'!$G$41*$D22,IF($E22="Distribution Rev.",VLOOKUP(K$4,'4. Billing Determinants'!$B$19:$O$41,8,0)/'4. Billing Determinants'!$I$41*$D22, VLOOKUP(K$4,'4. Billing Determinants'!$B$19:$O$41,3,0)/'4. Billing Determinants'!$D$41*$D22))))),0) -> 0 | L22: =IFERROR(IF(L$4="",0,IF($E22="kWh",VLOOKUP(L$4,'4. Billing Determinants'!$B$19:$O$41,4,0)/'4. Billing Determinants'!$E$41*$D22,IF($E22="kW",VLOOKUP(L$4,'4. Billing Determinants'!$B$19:$O$41,5,0)/'4. Billing Determinants'!$F$41*$D22,IF($E22="Non-RPP kWh",VLOOKUP(L$4,'4. Billing Determinants'!$B$19:$O$41,6,0)/'4. Billing Determinants'!$G$41*$D22,IF($E22="Distribution Rev.",VLOOKUP(L$4,'4. Billing Determinants'!$B$19:$O$41,8,0)/'4. Billing Determinants'!$I$41*$D22, VLOOKUP(L$4,'4. Billing Determinants'!$B$19:$O$41,3,0)/'4. Billing Determinants'!$D$41*$D22))))),0) -> 0 | M22: =IFERROR(IF(M$4="",0,IF($E22="kWh",VLOOKUP(M$4,'4. Billing Determinants'!$B$19:$O$41,4,0)/'4. Billing Determinants'!$E$41*$D22,IF($E22="kW",VLOOKUP(M$4,'4. Billing Determinants'!$B$19:$O$41,5,0)/'4. Billing Determinants'!$F$41*$D22,IF($E22="Non-RPP kWh",VLOOKUP(M$4,'4. Billing Determinants'!$B$19:$O$41,6,0)/'4. Billing Determinants'!$G$41*$D22,IF($E22="Distribution Rev.",VLOOKUP(M$4,'4. Billing Determinants'!$B$19:$O$41,8,0)/'4. Billing Determinants'!$I$41*$D22, VLOOKUP(M$4,'4. Billing Determinants'!$B$19:$O$41,3,0)/'4. Billing Determinants'!$D$41*$D22))))),0) -> 0 | N22: =IFERROR(IF(N$4="",0,IF($E22="kWh",VLOOKUP(N$4,'4. Billing Determinants'!$B$19:$O$41,4,0)/'4. Billing Determinants'!$E$41*$D22,IF($E22="kW",VLOOKUP(N$4,'4. Billing Determinants'!$B$19:$O$41,5,0)/'4. Billing Determinants'!$F$41*$D22,IF($E22="Non-RPP kWh",VLOOKUP(N$4,'4. Billing Determinants'!$B$19:$O$41,6,0)/'4. Billing Determinants'!$G$41*$D22,IF($E22="Distribution Rev.",VLOOKUP(N$4,'4. Billing Determinants'!$B$19:$O$41,8,0)/'4. Billing Determinants'!$I$41*$D22, VLOOKUP(N$4,'4. Billing Determinants'!$B$19:$O$41,3,0)/'4. Billing Determinants'!$D$41*$D22))))),0) -> 0 | O22: =IFERROR(IF(O$4="",0,IF($E22="kWh",VLOOKUP(O$4,'4. Billing Determinants'!$B$19:$O$41,4,0)/'4. Billing Determinants'!$E$41*$D22,IF($E22="kW",VLOOKUP(O$4,'4. Billing Determinants'!$B$19:$O$41,5,0)/'4. Billing Determinants'!$F$41*$D22,IF($E22="Non-RPP kWh",VLOOKUP(O$4,'4. Billing Determinants'!$B$19:$O$41,6,0)/'4. Billing Determinants'!$G$41*$D22,IF($E22="Distribution Rev.",VLOOKUP(O$4,'4. Billing Determinants'!$B$19:$O$41,8,0)/'4. Billing Determinants'!$I$41*$D22, VLOOKUP(O$4,'4. Billing Determinants'!$B$19:$O$41,3,0)/'4. Billing Determinants'!$D$41*$D22))))),0) -> 0 | P22: =IFERROR(IF(P$4="",0,IF($E22="kWh",VLOOKUP(P$4,'4. Billing Determinants'!$B$19:$O$41,4,0)/'4. Billing Determinants'!$E$41*$D22,IF($E22="kW",VLOOKUP(P$4,'4. Billing Determinants'!$B$19:$O$41,5,0)/'4. Billing Determinants'!$F$41*$D22,IF($E22="Non-RPP kWh",VLOOKUP(P$4,'4. Billing Determinants'!$B$19:$O$41,6,0)/'4. Billing Determinants'!$G$41*$D22,IF($E22="Distribution Rev.",VLOOKUP(P$4,'4. Billing Determinants'!$B$19:$O$41,8,0)/'4. Billing Determinants'!$I$41*$D22, VLOOKUP(P$4,'4. Billing Determinants'!$B$19:$O$41,3,0)/'4. Billing Determinants'!$D$41*$D22))))),0) -> 0 | Q22: =IFERROR(IF(Q$4="",0,IF($E22="kWh",VLOOKUP(Q$4,'4. Billing Determinants'!$B$19:$O$41,4,0)/'4. Billing Determinants'!$E$41*$D22,IF($E22="kW",VLOOKUP(Q$4,'4. Billing Determinants'!$B$19:$O$41,5,0)/'4. Billing Determinants'!$F$41*$D22,IF($E22="Non-RPP kWh",VLOOKUP(Q$4,'4. Billing Determinants'!$B$19:$O$41,6,0)/'4. Billing Determinants'!$G$41*$D22,IF($E22="Distribution Rev.",VLOOKUP(Q$4,'4. Billing Determinants'!$B$19:$O$41,8,0)/'4. Billing Determinants'!$I$41*$D22, VLOOKUP(Q$4,'4. Billing Determinants'!$B$19:$O$41,3,0)/'4. Billing Determinants'!$D$41*$D22))))),0) -> 0 | R22: =IFERROR(IF(R$4="",0,IF($E22="kWh",VLOOKUP(R$4,'4. Billing Determinants'!$B$19:$O$41,4,0)/'4. Billing Determinants'!$E$41*$D22,IF($E22="kW",VLOOKUP(R$4,'4. Billing Determinants'!$B$19:$O$41,5,0)/'4. Billing Determinants'!$F$41*$D22,IF($E22="Non-RPP kWh",VLOOKUP(R$4,'4. Billing Determinants'!$B$19:$O$41,6,0)/'4. Billing Determinants'!$G$41*$D22,IF($E22="Distribution Rev.",VLOOKUP(R$4,'4. Billing Determinants'!$B$19:$O$41,8,0)/'4. Billing Determinants'!$I$41*$D22, VLOOKUP(R$4,'4. Billing Determinants'!$B$19:$O$41,3,0)/'4. Billing Determinants'!$D$41*$D22))))),0) -> 0 | S22: =IFERROR(IF(S$4="",0,IF($E22="kWh",VLOOKUP(S$4,'4. Billing Determinants'!$B$19:$O$41,4,0)/'4. Billing Determinants'!$E$41*$D22,IF($E22="kW",VLOOKUP(S$4,'4. Billing Determinants'!$B$19:$O$41,5,0)/'4. Billing Determinants'!$F$41*$D22,IF($E22="Non-RPP kWh",VLOOKUP(S$4,'4. Billing Determinants'!$B$19:$O$41,6,0)/'4. Billing Determinants'!$G$41*$D22,IF($E22="Distribution Rev.",VLOOKUP(S$4,'4. Billing Determinants'!$B$19:$O$41,8,0)/'4. Billing Determinants'!$I$41*$D22, VLOOKUP(S$4,'4. Billing Determinants'!$B$19:$O$41,3,0)/'4. Billing Determinants'!$D$41*$D22))))),0) -> 0 | T22: =IFERROR(IF(T$4="",0,IF($E22="kWh",VLOOKUP(T$4,'4. Billing Determinants'!$B$19:$O$41,4,0)/'4. Billing Determinants'!$E$41*$D22,IF($E22="kW",VLOOKUP(T$4,'4. Billing Determinants'!$B$19:$O$41,5,0)/'4. Billing Determinants'!$F$41*$D22,IF($E22="Non-RPP kWh",VLOOKUP(T$4,'4. Billing Determinants'!$B$19:$O$41,6,0)/'4. Billing Determinants'!$G$41*$D22,IF($E22="Distribution Rev.",VLOOKUP(T$4,'4. Billing Determinants'!$B$19:$O$41,8,0)/'4. Billing Determinants'!$I$41*$D22, VLOOKUP(T$4,'4. Billing Determinants'!$B$19:$O$41,3,0)/'4. Billing Determinants'!$D$41*$D22))))),0) -> 0 | U22: =IFERROR(IF(U$4="",0,IF($E22="kWh",VLOOKUP(U$4,'4. Billing Determinants'!$B$19:$O$41,4,0)/'4. Billing Determinants'!$E$41*$D22,IF($E22="kW",VLOOKUP(U$4,'4. Billing Determinants'!$B$19:$O$41,5,0)/'4. Billing Determinants'!$F$41*$D22,IF($E22="Non-RPP kWh",VLOOKUP(U$4,'4. Billing Determinants'!$B$19:$O$41,6,0)/'4. Billing Determinants'!$G$41*$D22,IF($E22="Distribution Rev.",VLOOKUP(U$4,'4. Billing Determinants'!$B$19:$O$41,8,0)/'4. Billing Determinants'!$I$41*$D22, VLOOKUP(U$4,'4. Billing Determinants'!$B$19:$O$41,3,0)/'4. Billing Determinants'!$D$41*$D22))))),0) -> 0 | V22: =IFERROR(IF(V$4="",0,IF($E22="kWh",VLOOKUP(V$4,'4. Billing Determinants'!$B$19:$O$41,4,0)/'4. Billing Determinants'!$E$41*$D22,IF($E22="kW",VLOOKUP(V$4,'4. Billing Determinants'!$B$19:$O$41,5,0)/'4. Billing Determinants'!$F$41*$D22,IF($E22="Non-RPP kWh",VLOOKUP(V$4,'4. Billing Determinants'!$B$19:$O$41,6,0)/'4. Billing Determinants'!$G$41*$D22,IF($E22="Distribution Rev.",VLOOKUP(V$4,'4. Billing Determinants'!$B$19:$O$41,8,0)/'4. Billing Determinants'!$I$41*$D22, VLOOKUP(V$4,'4. Billing Determinants'!$B$19:$O$41,3,0)/'4. Billing Determinants'!$D$41*$D22))))),0) -> 0 | W22: =IFERROR(IF(W$4="",0,IF($E22="kWh",VLOOKUP(W$4,'4. Billing Determinants'!$B$19:$O$41,4,0)/'4. Billing Determinants'!$E$41*$D22,IF($E22="kW",VLOOKUP(W$4,'4. Billing Determinants'!$B$19:$O$41,5,0)/'4. Billing Determinants'!$F$41*$D22,IF($E22="Non-RPP kWh",VLOOKUP(W$4,'4. Billing Determinants'!$B$19:$O$41,6,0)/'4. Billing Determinants'!$G$41*$D22,IF($E22="Distribution Rev.",VLOOKUP(W$4,'4. Billing Determinants'!$B$19:$O$41,8,0)/'4. Billing Determinants'!$I$41*$D22, VLOOKUP(W$4,'4. Billing Determinants'!$B$19:$O$41,3,0)/'4. Billing Determinants'!$D$41*$D22))))),0) -> 0 | X22: =IFERROR(IF(X$4="",0,IF($E22="kWh",VLOOKUP(X$4,'4. Billing Determinants'!$B$19:$O$41,4,0)/'4. Billing Determinants'!$E$41*$D22,IF($E22="kW",VLOOKUP(X$4,'4. Billing Determinants'!$B$19:$O$41,5,0)/'4. Billing Determinants'!$F$41*$D22,IF($E22="Non-RPP kWh",VLOOKUP(X$4,'4. Billing Determinants'!$B$19:$O$41,6,0)/'4. Billing Determinants'!$G$41*$D22,IF($E22="Distribution Rev.",VLOOKUP(X$4,'4. Billing Determinants'!$B$19:$O$41,8,0)/'4. Billing Determinants'!$I$41*$D22, VLOOKUP(X$4,'4. Billing Determinants'!$B$19:$O$41,3,0)/'4. Billing Determinants'!$D$41*$D22))))),0) -> 0 | Y22: =IFERROR(IF(Y$4="",0,IF($E22="kWh",VLOOKUP(Y$4,'4. Billing Determinants'!$B$19:$O$41,4,0)/'4. Billing Determinants'!$E$41*$D22,IF($E22="kW",VLOOKUP(Y$4,'4. Billing Determinants'!$B$19:$O$41,5,0)/'4. Billing Determinants'!$F$41*$D22,IF($E22="Non-RPP kWh",VLOOKUP(Y$4,'4. Billing Determinants'!$B$19:$O$41,6,0)/'4. Billing Determinants'!$G$41*$D22,IF($E22="Distribution Rev.",VLOOKUP(Y$4,'4. Billing Determinants'!$B$19:$O$41,8,0)/'4. Billing Determinants'!$I$41*$D22, VLOOKUP(Y$4,'4. Billing Determinants'!$B$19:$O$41,3,0)/'4. Billing Determinants'!$D$41*$D22))))),0) -> 0
B23: Other Regulatory Assets - Sub-Account - Financial Assistance Payment and Recovery Carrying Charges | C23: 1508 | D23: ='2. 2013 Continuity Schedule'!CP49 -> 0 | F23: =IFERROR(IF(F$4="",0,IF($E23="kWh",VLOOKUP(F$4,'4. Billing Determinants'!$B$19:$O$41,4,0)/'4. Billing Determinants'!$E$41*$D23,IF($E23="kW",VLOOKUP(F$4,'4. Billing Determinants'!$B$19:$O$41,5,0)/'4. Billing Determinants'!$F$41*$D23,IF($E23="Non-RPP kWh",VLOOKUP(F$4,'4. Billing Determinants'!$B$19:$O$41,6,0)/'4. Billing Determinants'!$G$41*$D23,IF($E23="Distribution Rev.",VLOOKUP(F$4,'4. Billing Determinants'!$B$19:$O$41,8,0)/'4. Billing Determinants'!$I$41*$D23, VLOOKUP(F$4,'4. Billing Determinants'!$B$19:$O$41,3,0)/'4. Billing Determinants'!$D$41*$D23))))),0) -> 0 | G23: =IFERROR(IF(G$4="",0,IF($E23="kWh",VLOOKUP(G$4,'4. Billing Determinants'!$B$19:$O$41,4,0)/'4. Billing Determinants'!$E$41*$D23,IF($E23="kW",VLOOKUP(G$4,'4. Billing Determinants'!$B$19:$O$41,5,0)/'4. Billing Determinants'!$F$41*$D23,IF($E23="Non-RPP kWh",VLOOKUP(G$4,'4. Billing Determinants'!$B$19:$O$41,6,0)/'4. Billing Determinants'!$G$41*$D23,IF($E23="Distribution Rev.",VLOOKUP(G$4,'4. Billing Determinants'!$B$19:$O$41,8,0)/'4. Billing Determinants'!$I$41*$D23, VLOOKUP(G$4,'4. Billing Determinants'!$B$19:$O$41,3,0)/'4. Billing Determinants'!$D$41*$D23))))),0) -> 0 | H23: =IFERROR(IF(H$4="",0,IF($E23="kWh",VLOOKUP(H$4,'4. Billing Determinants'!$B$19:$O$41,4,0)/'4. Billing Determinants'!$E$41*$D23,IF($E23="kW",VLOOKUP(H$4,'4. Billing Determinants'!$B$19:$O$41,5,0)/'4. Billing Determinants'!$F$41*$D23,IF($E23="Non-RPP kWh",VLOOKUP(H$4,'4. Billing Determinants'!$B$19:$O$41,6,0)/'4. Billing Determinants'!$G$41*$D23,IF($E23="Distribution Rev.",VLOOKUP(H$4,'4. Billing Determinants'!$B$19:$O$41,8,0)/'4. Billing Determinants'!$I$41*$D23, VLOOKUP(H$4,'4. Billing Determinants'!$B$19:$O$41,3,0)/'4. Billing Determinants'!$D$41*$D23))))),0) -> 0 | I23: =IFERROR(IF(I$4="",0,IF($E23="kWh",VLOOKUP(I$4,'4. Billing Determinants'!$B$19:$O$41,4,0)/'4. Billing Determinants'!$E$41*$D23,IF($E23="kW",VLOOKUP(I$4,'4. Billing Determinants'!$B$19:$O$41,5,0)/'4. Billing Determinants'!$F$41*$D23,IF($E23="Non-RPP kWh",VLOOKUP(I$4,'4. Billing Determinants'!$B$19:$O$41,6,0)/'4. Billing Determinants'!$G$41*$D23,IF($E23="Distribution Rev.",VLOOKUP(I$4,'4. Billing Determinants'!$B$19:$O$41,8,0)/'4. Billing Determinants'!$I$41*$D23, VLOOKUP(I$4,'4. Billing Determinants'!$B$19:$O$41,3,0)/'4. Billing Determinants'!$D$41*$D23))))),0) -> 0 | J23: =IFERROR(IF(J$4="",0,IF($E23="kWh",VLOOKUP(J$4,'4. Billing Determinants'!$B$19:$O$41,4,0)/'4. Billing Determinants'!$E$41*$D23,IF($E23="kW",VLOOKUP(J$4,'4. Billing Determinants'!$B$19:$O$41,5,0)/'4. Billing Determinants'!$F$41*$D23,IF($E23="Non-RPP kWh",VLOOKUP(J$4,'4. Billing Determinants'!$B$19:$O$41,6,0)/'4. Billing Determinants'!$G$41*$D23,IF($E23="Distribution Rev.",VLOOKUP(J$4,'4. Billing Determinants'!$B$19:$O$41,8,0)/'4. Billing Determinants'!$I$41*$D23, VLOOKUP(J$4,'4. Billing Determinants'!$B$19:$O$41,3,0)/'4. Billing Determinants'!$D$41*$D23))))),0) -> 0 | K23: =IFERROR(IF(K$4="",0,IF($E23="kWh",VLOOKUP(K$4,'4. Billing Determinants'!$B$19:$O$41,4,0)/'4. Billing Determinants'!$E$41*$D23,IF($E23="kW",VLOOKUP(K$4,'4. Billing Determinants'!$B$19:$O$41,5,0)/'4. Billing Determinants'!$F$41*$D23,IF($E23="Non-RPP kWh",VLOOKUP(K$4,'4. Billing Determinants'!$B$19:$O$41,6,0)/'4. Billing Determinants'!$G$41*$D23,IF($E23="Distribution Rev.",VLOOKUP(K$4,'4. Billing Determinants'!$B$19:$O$41,8,0)/'4. Billing Determinants'!$I$41*$D23, VLOOKUP(K$4,'4. Billing Determinants'!$B$19:$O$41,3,0)/'4. Billing Determinants'!$D$41*$D23))))),0) -> 0 | L23: =IFERROR(IF(L$4="",0,IF($E23="kWh",VLOOKUP(L$4,'4. Billing Determinants'!$B$19:$O$41,4,0)/'4. Billing Determinants'!$E$41*$D23,IF($E23="kW",VLOOKUP(L$4,'4. Billing Determinants'!$B$19:$O$41,5,0)/'4. Billing Determinants'!$F$41*$D23,IF($E23="Non-RPP kWh",VLOOKUP(L$4,'4. Billing Determinants'!$B$19:$O$41,6,0)/'4. Billing Determinants'!$G$41*$D23,IF($E23="Distribution Rev.",VLOOKUP(L$4,'4. Billing Determinants'!$B$19:$O$41,8,0)/'4. Billing Determinants'!$I$41*$D23, VLOOKUP(L$4,'4. Billing Determinants'!$B$19:$O$41,3,0)/'4. Billing Determinants'!$D$41*$D23))))),0) -> 0 | M23: =IFERROR(IF(M$4="",0,IF($E23="kWh",VLOOKUP(M$4,'4. Billing Determinants'!$B$19:$O$41,4,0)/'4. Billing Determinants'!$E$41*$D23,IF($E23="kW",VLOOKUP(M$4,'4. Billing Determinants'!$B$19:$O$41,5,0)/'4. Billing Determinants'!$F$41*$D23,IF($E23="Non-RPP kWh",VLOOKUP(M$4,'4. Billing Determinants'!$B$19:$O$41,6,0)/'4. Billing Determinants'!$G$41*$D23,IF($E23="Distribution Rev.",VLOOKUP(M$4,'4. Billing Determinants'!$B$19:$O$41,8,0)/'4. Billing Determinants'!$I$41*$D23, VLOOKUP(M$4,'4. Billing Determinants'!$B$19:$O$41,3,0)/'4. Billing Determinants'!$D$41*$D23))))),0) -> 0 | N23: =IFERROR(IF(N$4="",0,IF($E23="kWh",VLOOKUP(N$4,'4. Billing Determinants'!$B$19:$O$41,4,0)/'4. Billing Determinants'!$E$41*$D23,IF($E23="kW",VLOOKUP(N$4,'4. Billing Determinants'!$B$19:$O$41,5,0)/'4. Billing Determinants'!$F$41*$D23,IF($E23="Non-RPP kWh",VLOOKUP(N$4,'4. Billing Determinants'!$B$19:$O$41,6,0)/'4. Billing Determinants'!$G$41*$D23,IF($E23="Distribution Rev.",VLOOKUP(N$4,'4. Billing Determinants'!$B$19:$O$41,8,0)/'4. Billing Determinants'!$I$41*$D23, VLOOKUP(N$4,'4. Billing Determinants'!$B$19:$O$41,3,0)/'4. Billing Determinants'!$D$41*$D23))))),0) -> 0 | O23: =IFERROR(IF(O$4="",0,IF($E23="kWh",VLOOKUP(O$4,'4. Billing Determinants'!$B$19:$O$41,4,0)/'4. Billing Determinants'!$E$41*$D23,IF($E23="kW",VLOOKUP(O$4,'4. Billing Determinants'!$B$19:$O$41,5,0)/'4. Billing Determinants'!$F$41*$D23,IF($E23="Non-RPP kWh",VLOOKUP(O$4,'4. Billing Determinants'!$B$19:$O$41,6,0)/'4. Billing Determinants'!$G$41*$D23,IF($E23="Distribution Rev.",VLOOKUP(O$4,'4. Billing Determinants'!$B$19:$O$41,8,0)/'4. Billing Determinants'!$I$41*$D23, VLOOKUP(O$4,'4. Billing Determinants'!$B$19:$O$41,3,0)/'4. Billing Determinants'!$D$41*$D23))))),0) -> 0 | P23: =IFERROR(IF(P$4="",0,IF($E23="kWh",VLOOKUP(P$4,'4. Billing Determinants'!$B$19:$O$41,4,0)/'4. Billing Determinants'!$E$41*$D23,IF($E23="kW",VLOOKUP(P$4,'4. Billing Determinants'!$B$19:$O$41,5,0)/'4. Billing Determinants'!$F$41*$D23,IF($E23="Non-RPP kWh",VLOOKUP(P$4,'4. Billing Determinants'!$B$19:$O$41,6,0)/'4. Billing Determinants'!$G$41*$D23,IF($E23="Distribution Rev.",VLOOKUP(P$4,'4. Billing Determinants'!$B$19:$O$41,8,0)/'4. Billing Determinants'!$I$41*$D23, VLOOKUP(P$4,'4. Billing Determinants'!$B$19:$O$41,3,0)/'4. Billing Determinants'!$D$41*$D23))))),0) -> 0 | Q23: =IFERROR(IF(Q$4="",0,IF($E23="kWh",VLOOKUP(Q$4,'4. Billing Determinants'!$B$19:$O$41,4,0)/'4. Billing Determinants'!$E$41*$D23,IF($E23="kW",VLOOKUP(Q$4,'4. Billing Determinants'!$B$19:$O$41,5,0)/'4. Billing Determinants'!$F$41*$D23,IF($E23="Non-RPP kWh",VLOOKUP(Q$4,'4. Billing Determinants'!$B$19:$O$41,6,0)/'4. Billing Determinants'!$G$41*$D23,IF($E23="Distribution Rev.",VLOOKUP(Q$4,'4. Billing Determinants'!$B$19:$O$41,8,0)/'4. Billing Determinants'!$I$41*$D23, VLOOKUP(Q$4,'4. Billing Determinants'!$B$19:$O$41,3,0)/'4. Billing Determinants'!$D$41*$D23))))),0) -> 0 | R23: =IFERROR(IF(R$4="",0,IF($E23="kWh",VLOOKUP(R$4,'4. Billing Determinants'!$B$19:$O$41,4,0)/'4. Billing Determinants'!$E$41*$D23,IF($E23="kW",VLOOKUP(R$4,'4. Billing Determinants'!$B$19:$O$41,5,0)/'4. Billing Determinants'!$F$41*$D23,IF($E23="Non-RPP kWh",VLOOKUP(R$4,'4. Billing Determinants'!$B$19:$O$41,6,0)/'4. Billing Determinants'!$G$41*$D23,IF($E23="Distribution Rev.",VLOOKUP(R$4,'4. Billing Determinants'!$B$19:$O$41,8,0)/'4. Billing Determinants'!$I$41*$D23, VLOOKUP(R$4,'4. Billing Determinants'!$B$19:$O$41,3,0)/'4. Billing Determinants'!$D$41*$D23))))),0) -> 0 | S23: =IFERROR(IF(S$4="",0,IF($E23="kWh",VLOOKUP(S$4,'4. Billing Determinants'!$B$19:$O$41,4,0)/'4. Billing Determinants'!$E$41*$D23,IF($E23="kW",VLOOKUP(S$4,'4. Billing Determinants'!$B$19:$O$41,5,0)/'4. Billing Determinants'!$F$41*$D23,IF($E23="Non-RPP kWh",VLOOKUP(S$4,'4. Billing Determinants'!$B$19:$O$41,6,0)/'4. Billing Determinants'!$G$41*$D23,IF($E23="Distribution Rev.",VLOOKUP(S$4,'4. Billing Determinants'!$B$19:$O$41,8,0)/'4. Billing Determinants'!$I$41*$D23, VLOOKUP(S$4,'4. Billing Determinants'!$B$19:$O$41,3,0)/'4. Billing Determinants'!$D$41*$D23))))),0) -> 0 | T23: =IFERROR(IF(T$4="",0,IF($E23="kWh",VLOOKUP(T$4,'4. Billing Determinants'!$B$19:$O$41,4,0)/'4. Billing Determinants'!$E$41*$D23,IF($E23="kW",VLOOKUP(T$4,'4. Billing Determinants'!$B$19:$O$41,5,0)/'4. Billing Determinants'!$F$41*$D23,IF($E23="Non-RPP kWh",VLOOKUP(T$4,'4. Billing Determinants'!$B$19:$O$41,6,0)/'4. Billing Determinants'!$G$41*$D23,IF($E23="Distribution Rev.",VLOOKUP(T$4,'4. Billing Determinants'!$B$19:$O$41,8,0)/'4. Billing Determinants'!$I$41*$D23, VLOOKUP(T$4,'4. Billing Determinants'!$B$19:$O$41,3,0)/'4. Billing Determinants'!$D$41*$D23))))),0) -> 0 | U23: =IFERROR(IF(U$4="",0,IF($E23="kWh",VLOOKUP(U$4,'4. Billing Determinants'!$B$19:$O$41,4,0)/'4. Billing Determinants'!$E$41*$D23,IF($E23="kW",VLOOKUP(U$4,'4. Billing Determinants'!$B$19:$O$41,5,0)/'4. Billing Determinants'!$F$41*$D23,IF($E23="Non-RPP kWh",VLOOKUP(U$4,'4. Billing Determinants'!$B$19:$O$41,6,0)/'4. Billing Determinants'!$G$41*$D23,IF($E23="Distribution Rev.",VLOOKUP(U$4,'4. Billing Determinants'!$B$19:$O$41,8,0)/'4. Billing Determinants'!$I$41*$D23, VLOOKUP(U$4,'4. Billing Determinants'!$B$19:$O$41,3,0)/'4. Billing Determinants'!$D$41*$D23))))),0) -> 0 | V23: =IFERROR(IF(V$4="",0,IF($E23="kWh",VLOOKUP(V$4,'4. Billing Determinants'!$B$19:$O$41,4,0)/'4. Billing Determinants'!$E$41*$D23,IF($E23="kW",VLOOKUP(V$4,'4. Billing Determinants'!$B$19:$O$41,5,0)/'4. Billing Determinants'!$F$41*$D23,IF($E23="Non-RPP kWh",VLOOKUP(V$4,'4. Billing Determinants'!$B$19:$O$41,6,0)/'4. Billing Determinants'!$G$41*$D23,IF($E23="Distribution Rev.",VLOOKUP(V$4,'4. Billing Determinants'!$B$19:$O$41,8,0)/'4. Billing Determinants'!$I$41*$D23, VLOOKUP(V$4,'4. Billing Determinants'!$B$19:$O$41,3,0)/'4. Billing Determinants'!$D$41*$D23))))),0) -> 0 | W23: =IFERROR(IF(W$4="",0,IF($E23="kWh",VLOOKUP(W$4,'4. Billing Determinants'!$B$19:$O$41,4,0)/'4. Billing Determinants'!$E$41*$D23,IF($E23="kW",VLOOKUP(W$4,'4. Billing Determinants'!$B$19:$O$41,5,0)/'4. Billing Determinants'!$F$41*$D23,IF($E23="Non-RPP kWh",VLOOKUP(W$4,'4. Billing Determinants'!$B$19:$O$41,6,0)/'4. Billing Determinants'!$G$41*$D23,IF($E23="Distribution Rev.",VLOOKUP(W$4,'4. Billing Determinants'!$B$19:$O$41,8,0)/'4. Billing Determinants'!$I$41*$D23, VLOOKUP(W$4,'4. Billing Determinants'!$B$19:$O$41,3,0)/'4. Billing Determinants'!$D$41*$D23))))),0) -> 0 | X23: =IFERROR(IF(X$4="",0,IF($E23="kWh",VLOOKUP(X$4,'4. Billing Determinants'!$B$19:$O$41,4,0)/'4. Billing Determinants'!$E$41*$D23,IF($E23="kW",VLOOKUP(X$4,'4. Billing Determinants'!$B$19:$O$41,5,0)/'4. Billing Determinants'!$F$41*$D23,IF($E23="Non-RPP kWh",VLOOKUP(X$4,'4. Billing Determinants'!$B$19:$O$41,6,0)/'4. Billing Determinants'!$G$41*$D23,IF($E23="Distribution Rev.",VLOOKUP(X$4,'4. Billing Determinants'!$B$19:$O$41,8,0)/'4. Billing Determinants'!$I$41*$D23, VLOOKUP(X$4,'4. Billing Determinants'!$B$19:$O$41,3,0)/'4. Billing Determinants'!$D$41*$D23))))),0) -> 0 | Y23: =IFERROR(IF(Y$4="",0,IF($E23="kWh",VLOOKUP(Y$4,'4. Billing Determinants'!$B$19:$O$41,4,0)/'4. Billing Determinants'!$E$41*$D23,IF($E23="kW",VLOOKUP(Y$4,'4. Billing Determinants'!$B$19:$O$41,5,0)/'4. Billing Determinants'!$F$41*$D23,IF($E23="Non-RPP kWh",VLOOKUP(Y$4,'4. Billing Determinants'!$B$19:$O$41,6,0)/'4. Billing Determinants'!$G$41*$D23,IF($E23="Distribution Rev.",VLOOKUP(Y$4,'4. Billing Determinants'!$B$19:$O$41,8,0)/'4. Billing Determinants'!$I$41*$D23, VLOOKUP(Y$4,'4. Billing Determinants'!$B$19:$O$41,3,0)/'4. Billing Determinants'!$D$41*$D23))))),0) -> 0
B24: Other Regulatory Assets - Sub-Account - Other | C24: 1508 | D24: ='2. 2013 Continuity Schedule'!CP50 -> 0.17 | F24: =IFERROR(IF(F$4="",0,IF($E24="kWh",VLOOKUP(F$4,'4. Billing Determinants'!$B$19:$O$41,4,0)/'4. Billing Determinants'!$E$41*$D24,IF($E24="kW",VLOOKUP(F$4,'4. Billing Determinants'!$B$19:$O$41,5,0)/'4. Billing Determinants'!$F$41*$D24,IF($E24="Non-RPP kWh",VLOOKUP(F$4,'4. Billing Determinants'!$B$19:$O$41,6,0)/'4. Billing Determinants'!$G$41*$D24,IF($E24="Distribution Rev.",VLOOKUP(F$4,'4. Billing Determinants'!$B$19:$O$41,8,0)/'4. Billing Determinants'!$I$41*$D24, VLOOKUP(F$4,'4. Billing Determinants'!$B$19:$O$41,3,0)/'4. Billing Determinants'!$D$41*$D24))))),0) -> 0.1215641063 | G24: =IFERROR(IF(G$4="",0,IF($E24="kWh",VLOOKUP(G$4,'4. Billing Determinants'!$B$19:$O$41,4,0)/'4. Billing Determinants'!$E$41*$D24,IF($E24="kW",VLOOKUP(G$4,'4. Billing Determinants'!$B$19:$O$41,5,0)/'4. Billing Determinants'!$F$41*$D24,IF($E24="Non-RPP kWh",VLOOKUP(G$4,'4. Billing Determinants'!$B$19:$O$41,6,0)/'4. Billing Determinants'!$G$41*$D24,IF($E24="Distribution Rev.",VLOOKUP(G$4,'4. Billing Determinants'!$B$19:$O$41,8,0)/'4. Billing Determinants'!$I$41*$D24, VLOOKUP(G$4,'4. Billing Determinants'!$B$19:$O$41,3,0)/'4. Billing Determinants'!$D$41*$D24))))),0) -> 0.01537964459 | H24: =IFERROR(IF(H$4="",0,IF($E24="kWh",VLOOKUP(H$4,'4. Billing Determinants'!$B$19:$O$41,4,0)/'4. Billing Determinants'!$E$41*$D24,IF($E24="kW",VLOOKUP(H$4,'4. Billing Determinants'!$B$19:$O$41,5,0)/'4. Billing Determinants'!$F$41*$D24,IF($E24="Non-RPP kWh",VLOOKUP(H$4,'4. Billing Determinants'!$B$19:$O$41,6,0)/'4. Billing Determinants'!$G$41*$D24,IF($E24="Distribution Rev.",VLOOKUP(H$4,'4. Billing Determinants'!$B$19:$O$41,8,0)/'4. Billing Determinants'!$I$41*$D24, VLOOKUP(H$4,'4. Billing Determinants'!$B$19:$O$41,3,0)/'4. Billing Determinants'!$D$41*$D24))))),0) -> 0.002346893817 | I24: =IFERROR(IF(I$4="",0,IF($E24="kWh",VLOOKUP(I$4,'4. Billing Determinants'!$B$19:$O$41,4,0)/'4. Billing Determinants'!$E$41*$D24,IF($E24="kW",VLOOKUP(I$4,'4. Billing Determinants'!$B$19:$O$41,5,0)/'4. Billing Determinants'!$F$41*$D24,IF($E24="Non-RPP kWh",VLOOKUP(I$4,'4. Billing Determinants'!$B$19:$O$41,6,0)/'4. Billing Determinants'!$G$41*$D24,IF($E24="Distribution Rev.",VLOOKUP(I$4,'4. Billing Determinants'!$B$19:$O$41,8,0)/'4. Billing Determinants'!$I$41*$D24, VLOOKUP(I$4,'4. Billing Determinants'!$B$19:$O$41,3,0)/'4. Billing Determinants'!$D$41*$D24))))),0) -> 0.0001248347775 | J24: =IFERROR(IF(J$4="",0,IF($E24="kWh",VLOOKUP(J$4,'4. Billing Determinants'!$B$19:$O$41,4,0)/'4. Billing Determinants'!$E$41*$D24,IF($E24="kW",VLOOKUP(J$4,'4. Billing Determinants'!$B$19:$O$41,5,0)/'4. Billing Determinants'!$F$41*$D24,IF($E24="Non-RPP kWh",VLOOKUP(J$4,'4. Billing Determinants'!$B$19:$O$41,6,0)/'4. Billing Determinants'!$G$41*$D24,IF($E24="Distribution Rev.",VLOOKUP(J$4,'4. Billing Determinants'!$B$19:$O$41,8,0)/'4. Billing Determinants'!$I$41*$D24, VLOOKUP(J$4,'4. Billing Determinants'!$B$19:$O$41,3,0)/'4. Billing Determinants'!$D$41*$D24))))),0) -> 0.0005243060655 | K24: =IFERROR(IF(K$4="",0,IF($E24="kWh",VLOOKUP(K$4,'4. Billing Determinants'!$B$19:$O$41,4,0)/'4. Billing Determinants'!$E$41*$D24,IF($E24="kW",VLOOKUP(K$4,'4. Billing Determinants'!$B$19:$O$41,5,0)/'4. Billing Determinants'!$F$41*$D24,IF($E24="Non-RPP kWh",VLOOKUP(K$4,'4. Billing Determinants'!$B$19:$O$41,6,0)/'4. Billing Determinants'!$G$41*$D24,IF($E24="Distribution Rev.",VLOOKUP(K$4,'4. Billing Determinants'!$B$19:$O$41,8,0)/'4. Billing Determinants'!$I$41*$D24, VLOOKUP(K$4,'4. Billing Determinants'!$B$19:$O$41,3,0)/'4. Billing Determinants'!$D$41*$D24))))),0) -> 0.03006021442 | L24: =IFERROR(IF(L$4="",0,IF($E24="kWh",VLOOKUP(L$4,'4. Billing Determinants'!$B$19:$O$41,4,0)/'4. Billing Determinants'!$E$41*$D24,IF($E24="kW",VLOOKUP(L$4,'4. Billing Determinants'!$B$19:$O$41,5,0)/'4. Billing Determinants'!$F$41*$D24,IF($E24="Non-RPP kWh",VLOOKUP(L$4,'4. Billing Determinants'!$B$19:$O$41,6,0)/'4. Billing Determinants'!$G$41*$D24,IF($E24="Distribution Rev.",VLOOKUP(L$4,'4. Billing Determinants'!$B$19:$O$41,8,0)/'4. Billing Determinants'!$I$41*$D24, VLOOKUP(L$4,'4. Billing Determinants'!$B$19:$O$41,3,0)/'4. Billing Determinants'!$D$41*$D24))))),0) -> 0 | M24: =IFERROR(IF(M$4="",0,IF($E24="kWh",VLOOKUP(M$4,'4. Billing Determinants'!$B$19:$O$41,4,0)/'4. Billing Determinants'!$E$41*$D24,IF($E24="kW",VLOOKUP(M$4,'4. Billing Determinants'!$B$19:$O$41,5,0)/'4. Billing Determinants'!$F$41*$D24,IF($E24="Non-RPP kWh",VLOOKUP(M$4,'4. Billing Determinants'!$B$19:$O$41,6,0)/'4. Billing Determinants'!$G$41*$D24,IF($E24="Distribution Rev.",VLOOKUP(M$4,'4. Billing Determinants'!$B$19:$O$41,8,0)/'4. Billing Determinants'!$I$41*$D24, VLOOKUP(M$4,'4. Billing Determinants'!$B$19:$O$41,3,0)/'4. Billing Determinants'!$D$41*$D24))))),0) -> 0 | N24: =IFERROR(IF(N$4="",0,IF($E24="kWh",VLOOKUP(N$4,'4. Billing Determinants'!$B$19:$O$41,4,0)/'4. Billing Determinants'!$E$41*$D24,IF($E24="kW",VLOOKUP(N$4,'4. Billing Determinants'!$B$19:$O$41,5,0)/'4. Billing Determinants'!$F$41*$D24,IF($E24="Non-RPP kWh",VLOOKUP(N$4,'4. Billing Determinants'!$B$19:$O$41,6,0)/'4. Billing Determinants'!$G$41*$D24,IF($E24="Distribution Rev.",VLOOKUP(N$4,'4. Billing Determinants'!$B$19:$O$41,8,0)/'4. Billing Determinants'!$I$41*$D24, VLOOKUP(N$4,'4. Billing Determinants'!$B$19:$O$41,3,0)/'4. Billing Determinants'!$D$41*$D24))))),0) -> 0 | O24: =IFERROR(IF(O$4="",0,IF($E24="kWh",VLOOKUP(O$4,'4. Billing Determinants'!$B$19:$O$41,4,0)/'4. Billing Determinants'!$E$41*$D24,IF($E24="kW",VLOOKUP(O$4,'4. Billing Determinants'!$B$19:$O$41,5,0)/'4. Billing Determinants'!$F$41*$D24,IF($E24="Non-RPP kWh",VLOOKUP(O$4,'4. Billing Determinants'!$B$19:$O$41,6,0)/'4. Billing Determinants'!$G$41*$D24,IF($E24="Distribution Rev.",VLOOKUP(O$4,'4. Billing Determinants'!$B$19:$O$41,8,0)/'4. Billing Determinants'!$I$41*$D24, VLOOKUP(O$4,'4. Billing Determinants'!$B$19:$O$41,3,0)/'4. Billing Determinants'!$D$41*$D24))))),0) -> 0 | P24: =IFERROR(IF(P$4="",0,IF($E24="kWh",VLOOKUP(P$4,'4. Billing Determinants'!$B$19:$O$41,4,0)/'4. Billing Determinants'!$E$41*$D24,IF($E24="kW",VLOOKUP(P$4,'4. Billing Determinants'!$B$19:$O$41,5,0)/'4. Billing Determinants'!$F$41*$D24,IF($E24="Non-RPP kWh",VLOOKUP(P$4,'4. Billing Determinants'!$B$19:$O$41,6,0)/'4. Billing Determinants'!$G$41*$D24,IF($E24="Distribution Rev.",VLOOKUP(P$4,'4. Billing Determinants'!$B$19:$O$41,8,0)/'4. Billing Determinants'!$I$41*$D24, VLOOKUP(P$4,'4. Billing Determinants'!$B$19:$O$41,3,0)/'4. Billing Determinants'!$D$41*$D24))))),0) -> 0 | Q24: =IFERROR(IF(Q$4="",0,IF($E24="kWh",VLOOKUP(Q$4,'4. Billing Determinants'!$B$19:$O$41,4,0)/'4. Billing Determinants'!$E$41*$D24,IF($E24="kW",VLOOKUP(Q$4,'4. Billing Determinants'!$B$19:$O$41,5,0)/'4. Billing Determinants'!$F$41*$D24,IF($E24="Non-RPP kWh",VLOOKUP(Q$4,'4. Billing Determinants'!$B$19:$O$41,6,0)/'4. Billing Determinants'!$G$41*$D24,IF($E24="Distribution Rev.",VLOOKUP(Q$4,'4. Billing Determinants'!$B$19:$O$41,8,0)/'4. Billing Determinants'!$I$41*$D24, VLOOKUP(Q$4,'4. Billing Determinants'!$B$19:$O$41,3,0)/'4. Billing Determinants'!$D$41*$D24))))),0) -> 0 | R24: =IFERROR(IF(R$4="",0,IF($E24="kWh",VLOOKUP(R$4,'4. Billing Determinants'!$B$19:$O$41,4,0)/'4. Billing Determinants'!$E$41*$D24,IF($E24="kW",VLOOKUP(R$4,'4. Billing Determinants'!$B$19:$O$41,5,0)/'4. Billing Determinants'!$F$41*$D24,IF($E24="Non-RPP kWh",VLOOKUP(R$4,'4. Billing Determinants'!$B$19:$O$41,6,0)/'4. Billing Determinants'!$G$41*$D24,IF($E24="Distribution Rev.",VLOOKUP(R$4,'4. Billing Determinants'!$B$19:$O$41,8,0)/'4. Billing Determinants'!$I$41*$D24, VLOOKUP(R$4,'4. Billing Determinants'!$B$19:$O$41,3,0)/'4. Billing Determinants'!$D$41*$D24))))),0) -> 0 | S24: =IFERROR(IF(S$4="",0,IF($E24="kWh",VLOOKUP(S$4,'4. Billing Determinants'!$B$19:$O$41,4,0)/'4. Billing Determinants'!$E$41*$D24,IF($E24="kW",VLOOKUP(S$4,'4. Billing Determinants'!$B$19:$O$41,5,0)/'4. Billing Determinants'!$F$41*$D24,IF($E24="Non-RPP kWh",VLOOKUP(S$4,'4. Billing Determinants'!$B$19:$O$41,6,0)/'4. Billing Determinants'!$G$41*$D24,IF($E24="Distribution Rev.",VLOOKUP(S$4,'4. Billing Determinants'!$B$19:$O$41,8,0)/'4. Billing Determinants'!$I$41*$D24, VLOOKUP(S$4,'4. Billing Determinants'!$B$19:$O$41,3,0)/'4. Billing Determinants'!$D$41*$D24))))),0) -> 0 | T24: =IFERROR(IF(T$4="",0,IF($E24="kWh",VLOOKUP(T$4,'4. Billing Determinants'!$B$19:$O$41,4,0)/'4. Billing Determinants'!$E$41*$D24,IF($E24="kW",VLOOKUP(T$4,'4. Billing Determinants'!$B$19:$O$41,5,0)/'4. Billing Determinants'!$F$41*$D24,IF($E24="Non-RPP kWh",VLOOKUP(T$4,'4. Billing Determinants'!$B$19:$O$41,6,0)/'4. Billing Determinants'!$G$41*$D24,IF($E24="Distribution Rev.",VLOOKUP(T$4,'4. Billing Determinants'!$B$19:$O$41,8,0)/'4. Billing Determinants'!$I$41*$D24, VLOOKUP(T$4,'4. Billing Determinants'!$B$19:$O$41,3,0)/'4. Billing Determinants'!$D$41*$D24))))),0) -> 0 | U24: =IFERROR(IF(U$4="",0,IF($E24="kWh",VLOOKUP(U$4,'4. Billing Determinants'!$B$19:$O$41,4,0)/'4. Billing Determinants'!$E$41*$D24,IF($E24="kW",VLOOKUP(U$4,'4. Billing Determinants'!$B$19:$O$41,5,0)/'4. Billing Determinants'!$F$41*$D24,IF($E24="Non-RPP kWh",VLOOKUP(U$4,'4. Billing Determinants'!$B$19:$O$41,6,0)/'4. Billing Determinants'!$G$41*$D24,IF($E24="Distribution Rev.",VLOOKUP(U$4,'4. Billing Determinants'!$B$19:$O$41,8,0)/'4. Billing Determinants'!$I$41*$D24, VLOOKUP(U$4,'4. Billing Determinants'!$B$19:$O$41,3,0)/'4. Billing Determinants'!$D$41*$D24))))),0) -> 0 | V24: =IFERROR(IF(V$4="",0,IF($E24="kWh",VLOOKUP(V$4,'4. Billing Determinants'!$B$19:$O$41,4,0)/'4. Billing Determinants'!$E$41*$D24,IF($E24="kW",VLOOKUP(V$4,'4. Billing Determinants'!$B$19:$O$41,5,0)/'4. Billing Determinants'!$F$41*$D24,IF($E24="Non-RPP kWh",VLOOKUP(V$4,'4. Billing Determinants'!$B$19:$O$41,6,0)/'4. Billing Determinants'!$G$41*$D24,IF($E24="Distribution Rev.",VLOOKUP(V$4,'4. Billing Determinants'!$B$19:$O$41,8,0)/'4. Billing Determinants'!$I$41*$D24, VLOOKUP(V$4,'4. Billing Determinants'!$B$19:$O$41,3,0)/'4. Billing Determinants'!$D$41*$D24))))),0) -> 0 | W24: =IFERROR(IF(W$4="",0,IF($E24="kWh",VLOOKUP(W$4,'4. Billing Determinants'!$B$19:$O$41,4,0)/'4. Billing Determinants'!$E$41*$D24,IF($E24="kW",VLOOKUP(W$4,'4. Billing Determinants'!$B$19:$O$41,5,0)/'4. Billing Determinants'!$F$41*$D24,IF($E24="Non-RPP kWh",VLOOKUP(W$4,'4. Billing Determinants'!$B$19:$O$41,6,0)/'4. Billing Determinants'!$G$41*$D24,IF($E24="Distribution Rev.",VLOOKUP(W$4,'4. Billing Determinants'!$B$19:$O$41,8,0)/'4. Billing Determinants'!$I$41*$D24, VLOOKUP(W$4,'4. Billing Determinants'!$B$19:$O$41,3,0)/'4. Billing Determinants'!$D$41*$D24))))),0) -> 0 | X24: =IFERROR(IF(X$4="",0,IF($E24="kWh",VLOOKUP(X$4,'4. Billing Determinants'!$B$19:$O$41,4,0)/'4. Billing Determinants'!$E$41*$D24,IF($E24="kW",VLOOKUP(X$4,'4. Billing Determinants'!$B$19:$O$41,5,0)/'4. Billing Determinants'!$F$41*$D24,IF($E24="Non-RPP kWh",VLOOKUP(X$4,'4. Billing Determinants'!$B$19:$O$41,6,0)/'4. Billing Determinants'!$G$41*$D24,IF($E24="Distribution Rev.",VLOOKUP(X$4,'4. Billing Determinants'!$B$19:$O$41,8,0)/'4. Billing Determinants'!$I$41*$D24, VLOOKUP(X$4,'4. Billing Determinants'!$B$19:$O$41,3,0)/'4. Billing Determinants'!$D$41*$D24))))),0) -> 0 | Y24: =IFERROR(IF(Y$4="",0,IF($E24="kWh",VLOOKUP(Y$4,'4. Billing Determinants'!$B$19:$O$41,4,0)/'4. Billing Determinants'!$E$41*$D24,IF($E24="kW",VLOOKUP(Y$4,'4. Billing Determinants'!$B$19:$O$41,5,0)/'4. Billing Determinants'!$F$41*$D24,IF($E24="Non-RPP kWh",VLOOKUP(Y$4,'4. Billing Determinants'!$B$19:$O$41,6,0)/'4. Billing Determinants'!$G$41*$D24,IF($E24="Distribution Rev.",VLOOKUP(Y$4,'4. Billing Determinants'!$B$19:$O$41,8,0)/'4. Billing Determinants'!$I$41*$D24, VLOOKUP(Y$4,'4. Billing Determinants'!$B$19:$O$41,3,0)/'4. Billing Determinants'!$D$41*$D24))))),0) -> 0
B25: Retail Cost Variance Account - Retail | C25: 1518 | D25: ='2. 2013 Continuity Schedule'!CP51 -> 1857.19 | E25: # of Customers | F25: =IFERROR(IF(F$4="",0,IF($E25="kWh",VLOOKUP(F$4,'4. Billing Determinants'!$B$19:$O$41,4,0)/'4. Billing Determinants'!$E$41*$D25,IF($E25="kW",VLOOKUP(F$4,'4. Billing Determinants'!$B$19:$O$41,5,0)/'4. Billing Determinants'!$F$41*$D25,IF($E25="Non-RPP kWh",VLOOKUP(F$4,'4. Billing Determinants'!$B$19:$O$41,6,0)/'4. Billing Determinants'!$G$41*$D25,IF($E25="Distribution Rev.",VLOOKUP(F$4,'4. Billing Determinants'!$B$19:$O$41,8,0)/'4. Billing Determinants'!$I$41*$D25, VLOOKUP(F$4,'4. Billing Determinants'!$B$19:$O$41,3,0)/'4. Billing Determinants'!$D$41*$D25))))),0) -> 1328.044957 | G25: =IFERROR(IF(G$4="",0,IF($E25="kWh",VLOOKUP(G$4,'4. Billing Determinants'!$B$19:$O$41,4,0)/'4. Billing Determinants'!$E$41*$D25,IF($E25="kW",VLOOKUP(G$4,'4. Billing Determinants'!$B$19:$O$41,5,0)/'4. Billing Determinants'!$F$41*$D25,IF($E25="Non-RPP kWh",VLOOKUP(G$4,'4. Billing Determinants'!$B$19:$O$41,6,0)/'4. Billing Determinants'!$G$41*$D25,IF($E25="Distribution Rev.",VLOOKUP(G$4,'4. Billing Determinants'!$B$19:$O$41,8,0)/'4. Billing Determinants'!$I$41*$D25, VLOOKUP(G$4,'4. Billing Determinants'!$B$19:$O$41,3,0)/'4. Billing Determinants'!$D$41*$D25))))),0) -> 168.017189 | H25: =IFERROR(IF(H$4="",0,IF($E25="kWh",VLOOKUP(H$4,'4. Billing Determinants'!$B$19:$O$41,4,0)/'4. Billing Determinants'!$E$41*$D25,IF($E25="kW",VLOOKUP(H$4,'4. Billing Determinants'!$B$19:$O$41,5,0)/'4. Billing Determinants'!$F$41*$D25,IF($E25="Non-RPP kWh",VLOOKUP(H$4,'4. Billing Determinants'!$B$19:$O$41,6,0)/'4. Billing Determinants'!$G$41*$D25,IF($E25="Distribution Rev.",VLOOKUP(H$4,'4. Billing Determinants'!$B$19:$O$41,8,0)/'4. Billing Determinants'!$I$41*$D25, VLOOKUP(H$4,'4. Billing Determinants'!$B$19:$O$41,3,0)/'4. Billing Determinants'!$D$41*$D25))))),0) -> 25.63898664 | I25: =IFERROR(IF(I$4="",0,IF($E25="kWh",VLOOKUP(I$4,'4. Billing Determinants'!$B$19:$O$41,4,0)/'4. Billing Determinants'!$E$41*$D25,IF($E25="kW",VLOOKUP(I$4,'4. Billing Determinants'!$B$19:$O$41,5,0)/'4. Billing Determinants'!$F$41*$D25,IF($E25="Non-RPP kWh",VLOOKUP(I$4,'4. Billing Determinants'!$B$19:$O$41,6,0)/'4. Billing Determinants'!$G$41*$D25,IF($E25="Distribution Rev.",VLOOKUP(I$4,'4. Billing Determinants'!$B$19:$O$41,8,0)/'4. Billing Determinants'!$I$41*$D25, VLOOKUP(I$4,'4. Billing Determinants'!$B$19:$O$41,3,0)/'4. Billing Determinants'!$D$41*$D25))))),0) -> 1.363775885 | J25: =IFERROR(IF(J$4="",0,IF($E25="kWh",VLOOKUP(J$4,'4. Billing Determinants'!$B$19:$O$41,4,0)/'4. Billing Determinants'!$E$41*$D25,IF($E25="kW",VLOOKUP(J$4,'4. Billing Determinants'!$B$19:$O$41,5,0)/'4. Billing Determinants'!$F$41*$D25,IF($E25="Non-RPP kWh",VLOOKUP(J$4,'4. Billing Determinants'!$B$19:$O$41,6,0)/'4. Billing Determinants'!$G$41*$D25,IF($E25="Distribution Rev.",VLOOKUP(J$4,'4. Billing Determinants'!$B$19:$O$41,8,0)/'4. Billing Determinants'!$I$41*$D25, VLOOKUP(J$4,'4. Billing Determinants'!$B$19:$O$41,3,0)/'4. Billing Determinants'!$D$41*$D25))))),0) -> 5.727858716 | K25: =IFERROR(IF(K$4="",0,IF($E25="kWh",VLOOKUP(K$4,'4. Billing Determinants'!$B$19:$O$41,4,0)/'4. Billing Determinants'!$E$41*$D25,IF($E25="kW",VLOOKUP(K$4,'4. Billing Determinants'!$B$19:$O$41,5,0)/'4. Billing Determinants'!$F$41*$D25,IF($E25="Non-RPP kWh",VLOOKUP(K$4,'4. Billing Determinants'!$B$19:$O$41,6,0)/'4. Billing Determinants'!$G$41*$D25,IF($E25="Distribution Rev.",VLOOKUP(K$4,'4. Billing Determinants'!$B$19:$O$41,8,0)/'4. Billing Determinants'!$I$41*$D25, VLOOKUP(K$4,'4. Billing Determinants'!$B$19:$O$41,3,0)/'4. Billing Determinants'!$D$41*$D25))))),0) -> 328.3972331 | L25: =IFERROR(IF(L$4="",0,IF($E25="kWh",VLOOKUP(L$4,'4. Billing Determinants'!$B$19:$O$41,4,0)/'4. Billing Determinants'!$E$41*$D25,IF($E25="kW",VLOOKUP(L$4,'4. Billing Determinants'!$B$19:$O$41,5,0)/'4. Billing Determinants'!$F$41*$D25,IF($E25="Non-RPP kWh",VLOOKUP(L$4,'4. Billing Determinants'!$B$19:$O$41,6,0)/'4. Billing Determinants'!$G$41*$D25,IF($E25="Distribution Rev.",VLOOKUP(L$4,'4. Billing Determinants'!$B$19:$O$41,8,0)/'4. Billing Determinants'!$I$41*$D25, VLOOKUP(L$4,'4. Billing Determinants'!$B$19:$O$41,3,0)/'4. Billing Determinants'!$D$41*$D25))))),0) -> 0 | M25: =IFERROR(IF(M$4="",0,IF($E25="kWh",VLOOKUP(M$4,'4. Billing Determinants'!$B$19:$O$41,4,0)/'4. Billing Determinants'!$E$41*$D25,IF($E25="kW",VLOOKUP(M$4,'4. Billing Determinants'!$B$19:$O$41,5,0)/'4. Billing Determinants'!$F$41*$D25,IF($E25="Non-RPP kWh",VLOOKUP(M$4,'4. Billing Determinants'!$B$19:$O$41,6,0)/'4. Billing Determinants'!$G$41*$D25,IF($E25="Distribution Rev.",VLOOKUP(M$4,'4. Billing Determinants'!$B$19:$O$41,8,0)/'4. Billing Determinants'!$I$41*$D25, VLOOKUP(M$4,'4. Billing Determinants'!$B$19:$O$41,3,0)/'4. Billing Determinants'!$D$41*$D25))))),0) -> 0 | N25: =IFERROR(IF(N$4="",0,IF($E25="kWh",VLOOKUP(N$4,'4. Billing Determinants'!$B$19:$O$41,4,0)/'4. Billing Determinants'!$E$41*$D25,IF($E25="kW",VLOOKUP(N$4,'4. Billing Determinants'!$B$19:$O$41,5,0)/'4. Billing Determinants'!$F$41*$D25,IF($E25="Non-RPP kWh",VLOOKUP(N$4,'4. Billing Determinants'!$B$19:$O$41,6,0)/'4. Billing Determinants'!$G$41*$D25,IF($E25="Distribution Rev.",VLOOKUP(N$4,'4. Billing Determinants'!$B$19:$O$41,8,0)/'4. Billing Determinants'!$I$41*$D25, VLOOKUP(N$4,'4. Billing Determinants'!$B$19:$O$41,3,0)/'4. Billing Determinants'!$D$41*$D25))))),0) -> 0 | O25: =IFERROR(IF(O$4="",0,IF($E25="kWh",VLOOKUP(O$4,'4. Billing Determinants'!$B$19:$O$41,4,0)/'4. Billing Determinants'!$E$41*$D25,IF($E25="kW",VLOOKUP(O$4,'4. Billing Determinants'!$B$19:$O$41,5,0)/'4. Billing Determinants'!$F$41*$D25,IF($E25="Non-RPP kWh",VLOOKUP(O$4,'4. Billing Determinants'!$B$19:$O$41,6,0)/'4. Billing Determinants'!$G$41*$D25,IF($E25="Distribution Rev.",VLOOKUP(O$4,'4. Billing Determinants'!$B$19:$O$41,8,0)/'4. Billing Determinants'!$I$41*$D25, VLOOKUP(O$4,'4. Billing Determinants'!$B$19:$O$41,3,0)/'4. Billing Determinants'!$D$41*$D25))))),0) -> 0 | P25: =IFERROR(IF(P$4="",0,IF($E25="kWh",VLOOKUP(P$4,'4. Billing Determinants'!$B$19:$O$41,4,0)/'4. Billing Determinants'!$E$41*$D25,IF($E25="kW",VLOOKUP(P$4,'4. Billing Determinants'!$B$19:$O$41,5,0)/'4. Billing Determinants'!$F$41*$D25,IF($E25="Non-RPP kWh",VLOOKUP(P$4,'4. Billing Determinants'!$B$19:$O$41,6,0)/'4. Billing Determinants'!$G$41*$D25,IF($E25="Distribution Rev.",VLOOKUP(P$4,'4. Billing Determinants'!$B$19:$O$41,8,0)/'4. Billing Determinants'!$I$41*$D25, VLOOKUP(P$4,'4. Billing Determinants'!$B$19:$O$41,3,0)/'4. Billing Determinants'!$D$41*$D25))))),0) -> 0 | Q25: =IFERROR(IF(Q$4="",0,IF($E25="kWh",VLOOKUP(Q$4,'4. Billing Determinants'!$B$19:$O$41,4,0)/'4. Billing Determinants'!$E$41*$D25,IF($E25="kW",VLOOKUP(Q$4,'4. Billing Determinants'!$B$19:$O$41,5,0)/'4. Billing Determinants'!$F$41*$D25,IF($E25="Non-RPP kWh",VLOOKUP(Q$4,'4. Billing Determinants'!$B$19:$O$41,6,0)/'4. Billing Determinants'!$G$41*$D25,IF($E25="Distribution Rev.",VLOOKUP(Q$4,'4. Billing Determinants'!$B$19:$O$41,8,0)/'4. Billing Determinants'!$I$41*$D25, VLOOKUP(Q$4,'4. Billing Determinants'!$B$19:$O$41,3,0)/'4. Billing Determinants'!$D$41*$D25))))),0) -> 0 | R25: =IFERROR(IF(R$4="",0,IF($E25="kWh",VLOOKUP(R$4,'4. Billing Determinants'!$B$19:$O$41,4,0)/'4. Billing Determinants'!$E$41*$D25,IF($E25="kW",VLOOKUP(R$4,'4. Billing Determinants'!$B$19:$O$41,5,0)/'4. Billing Determinants'!$F$41*$D25,IF($E25="Non-RPP kWh",VLOOKUP(R$4,'4. Billing Determinants'!$B$19:$O$41,6,0)/'4. Billing Determinants'!$G$41*$D25,IF($E25="Distribution Rev.",VLOOKUP(R$4,'4. Billing Determinants'!$B$19:$O$41,8,0)/'4. Billing Determinants'!$I$41*$D25, VLOOKUP(R$4,'4. Billing Determinants'!$B$19:$O$41,3,0)/'4. Billing Determinants'!$D$41*$D25))))),0) -> 0 | S25: =IFERROR(IF(S$4="",0,IF($E25="kWh",VLOOKUP(S$4,'4. Billing Determinants'!$B$19:$O$41,4,0)/'4. Billing Determinants'!$E$41*$D25,IF($E25="kW",VLOOKUP(S$4,'4. Billing Determinants'!$B$19:$O$41,5,0)/'4. Billing Determinants'!$F$41*$D25,IF($E25="Non-RPP kWh",VLOOKUP(S$4,'4. Billing Determinants'!$B$19:$O$41,6,0)/'4. Billing Determinants'!$G$41*$D25,IF($E25="Distribution Rev.",VLOOKUP(S$4,'4. Billing Determinants'!$B$19:$O$41,8,0)/'4. Billing Determinants'!$I$41*$D25, VLOOKUP(S$4,'4. Billing Determinants'!$B$19:$O$41,3,0)/'4. Billing Determinants'!$D$41*$D25))))),0) -> 0 | T25: =IFERROR(IF(T$4="",0,IF($E25="kWh",VLOOKUP(T$4,'4. Billing Determinants'!$B$19:$O$41,4,0)/'4. Billing Determinants'!$E$41*$D25,IF($E25="kW",VLOOKUP(T$4,'4. Billing Determinants'!$B$19:$O$41,5,0)/'4. Billing Determinants'!$F$41*$D25,IF($E25="Non-RPP kWh",VLOOKUP(T$4,'4. Billing Determinants'!$B$19:$O$41,6,0)/'4. Billing Determinants'!$G$41*$D25,IF($E25="Distribution Rev.",VLOOKUP(T$4,'4. Billing Determinants'!$B$19:$O$41,8,0)/'4. Billing Determinants'!$I$41*$D25, VLOOKUP(T$4,'4. Billing Determinants'!$B$19:$O$41,3,0)/'4. Billing Determinants'!$D$41*$D25))))),0) -> 0 | U25: =IFERROR(IF(U$4="",0,IF($E25="kWh",VLOOKUP(U$4,'4. Billing Determinants'!$B$19:$O$41,4,0)/'4. Billing Determinants'!$E$41*$D25,IF($E25="kW",VLOOKUP(U$4,'4. Billing Determinants'!$B$19:$O$41,5,0)/'4. Billing Determinants'!$F$41*$D25,IF($E25="Non-RPP kWh",VLOOKUP(U$4,'4. Billing Determinants'!$B$19:$O$41,6,0)/'4. Billing Determinants'!$G$41*$D25,IF($E25="Distribution Rev.",VLOOKUP(U$4,'4. Billing Determinants'!$B$19:$O$41,8,0)/'4. Billing Determinants'!$I$41*$D25, VLOOKUP(U$4,'4. Billing Determinants'!$B$19:$O$41,3,0)/'4. Billing Determinants'!$D$41*$D25))))),0) -> 0 | V25: =IFERROR(IF(V$4="",0,IF($E25="kWh",VLOOKUP(V$4,'4. Billing Determinants'!$B$19:$O$41,4,0)/'4. Billing Determinants'!$E$41*$D25,IF($E25="kW",VLOOKUP(V$4,'4. Billing Determinants'!$B$19:$O$41,5,0)/'4. Billing Determinants'!$F$41*$D25,IF($E25="Non-RPP kWh",VLOOKUP(V$4,'4. Billing Determinants'!$B$19:$O$41,6,0)/'4. Billing Determinants'!$G$41*$D25,IF($E25="Distribution Rev.",VLOOKUP(V$4,'4. Billing Determinants'!$B$19:$O$41,8,0)/'4. Billing Determinants'!$I$41*$D25, VLOOKUP(V$4,'4. Billing Determinants'!$B$19:$O$41,3,0)/'4. Billing Determinants'!$D$41*$D25))))),0) -> 0 | W25: =IFERROR(IF(W$4="",0,IF($E25="kWh",VLOOKUP(W$4,'4. Billing Determinants'!$B$19:$O$41,4,0)/'4. Billing Determinants'!$E$41*$D25,IF($E25="kW",VLOOKUP(W$4,'4. Billing Determinants'!$B$19:$O$41,5,0)/'4. Billing Determinants'!$F$41*$D25,IF($E25="Non-RPP kWh",VLOOKUP(W$4,'4. Billing Determinants'!$B$19:$O$41,6,0)/'4. Billing Determinants'!$G$41*$D25,IF($E25="Distribution Rev.",VLOOKUP(W$4,'4. Billing Determinants'!$B$19:$O$41,8,0)/'4. Billing Determinants'!$I$41*$D25, VLOOKUP(W$4,'4. Billing Determinants'!$B$19:$O$41,3,0)/'4. Billing Determinants'!$D$41*$D25))))),0) -> 0 | X25: =IFERROR(IF(X$4="",0,IF($E25="kWh",VLOOKUP(X$4,'4. Billing Determinants'!$B$19:$O$41,4,0)/'4. Billing Determinants'!$E$41*$D25,IF($E25="kW",VLOOKUP(X$4,'4. Billing Determinants'!$B$19:$O$41,5,0)/'4. Billing Determinants'!$F$41*$D25,IF($E25="Non-RPP kWh",VLOOKUP(X$4,'4. Billing Determinants'!$B$19:$O$41,6,0)/'4. Billing Determinants'!$G$41*$D25,IF($E25="Distribution Rev.",VLOOKUP(X$4,'4. Billing Determinants'!$B$19:$O$41,8,0)/'4. Billing Determinants'!$I$41*$D25, VLOOKUP(X$4,'4. Billing Determinants'!$B$19:$O$41,3,0)/'4. Billing Determinants'!$D$41*$D25))))),0) -> 0 | Y25: =IFERROR(IF(Y$4="",0,IF($E25="kWh",VLOOKUP(Y$4,'4. Billing Determinants'!$B$19:$O$41,4,0)/'4. Billing Determinants'!$E$41*$D25,IF($E25="kW",VLOOKUP(Y$4,'4. Billing Determinants'!$B$19:$O$41,5,0)/'4. Billing Determinants'!$F$41*$D25,IF($E25="Non-RPP kWh",VLOOKUP(Y$4,'4. Billing Determinants'!$B$19:$O$41,6,0)/'4. Billing Determinants'!$G$41*$D25,IF($E25="Distribution Rev.",VLOOKUP(Y$4,'4. Billing Determinants'!$B$19:$O$41,8,0)/'4. Billing Determinants'!$I$41*$D25, VLOOKUP(Y$4,'4. Billing Determinants'!$B$19:$O$41,3,0)/'4. Billing Determinants'!$D$41*$D25))))),0) -> 0
B26: Misc. Deferred Debits | C26: 1525 | D26: ='2. 2013 Continuity Schedule'!CP52 -> 0.04000000001 | F26: =IFERROR(IF(F$4="",0,IF($E26="kWh",VLOOKUP(F$4,'4. Billing Determinants'!$B$19:$O$41,4,0)/'4. Billing Determinants'!$E$41*$D26,IF($E26="kW",VLOOKUP(F$4,'4. Billing Determinants'!$B$19:$O$41,5,0)/'4. Billing Determinants'!$F$41*$D26,IF($E26="Non-RPP kWh",VLOOKUP(F$4,'4. Billing Determinants'!$B$19:$O$41,6,0)/'4. Billing Determinants'!$G$41*$D26,IF($E26="Distribution Rev.",VLOOKUP(F$4,'4. Billing Determinants'!$B$19:$O$41,8,0)/'4. Billing Determinants'!$I$41*$D26, VLOOKUP(F$4,'4. Billing Determinants'!$B$19:$O$41,3,0)/'4. Billing Determinants'!$D$41*$D26))))),0) -> 0.02860331914 | G26: =IFERROR(IF(G$4="",0,IF($E26="kWh",VLOOKUP(G$4,'4. Billing Determinants'!$B$19:$O$41,4,0)/'4. Billing Determinants'!$E$41*$D26,IF($E26="kW",VLOOKUP(G$4,'4. Billing Determinants'!$B$19:$O$41,5,0)/'4. Billing Determinants'!$F$41*$D26,IF($E26="Non-RPP kWh",VLOOKUP(G$4,'4. Billing Determinants'!$B$19:$O$41,6,0)/'4. Billing Determinants'!$G$41*$D26,IF($E26="Distribution Rev.",VLOOKUP(G$4,'4. Billing Determinants'!$B$19:$O$41,8,0)/'4. Billing Determinants'!$I$41*$D26, VLOOKUP(G$4,'4. Billing Determinants'!$B$19:$O$41,3,0)/'4. Billing Determinants'!$D$41*$D26))))),0) -> 0.003618739904 | H26: =IFERROR(IF(H$4="",0,IF($E26="kWh",VLOOKUP(H$4,'4. Billing Determinants'!$B$19:$O$41,4,0)/'4. Billing Determinants'!$E$41*$D26,IF($E26="kW",VLOOKUP(H$4,'4. Billing Determinants'!$B$19:$O$41,5,0)/'4. Billing Determinants'!$F$41*$D26,IF($E26="Non-RPP kWh",VLOOKUP(H$4,'4. Billing Determinants'!$B$19:$O$41,6,0)/'4. Billing Determinants'!$G$41*$D26,IF($E26="Distribution Rev.",VLOOKUP(H$4,'4. Billing Determinants'!$B$19:$O$41,8,0)/'4. Billing Determinants'!$I$41*$D26, VLOOKUP(H$4,'4. Billing Determinants'!$B$19:$O$41,3,0)/'4. Billing Determinants'!$D$41*$D26))))),0) -> 0.00055221031 | I26: =IFERROR(IF(I$4="",0,IF($E26="kWh",VLOOKUP(I$4,'4. Billing Determinants'!$B$19:$O$41,4,0)/'4. Billing Determinants'!$E$41*$D26,IF($E26="kW",VLOOKUP(I$4,'4. Billing Determinants'!$B$19:$O$41,5,0)/'4. Billing Determinants'!$F$41*$D26,IF($E26="Non-RPP kWh",VLOOKUP(I$4,'4. Billing Determinants'!$B$19:$O$41,6,0)/'4. Billing Determinants'!$G$41*$D26,IF($E26="Distribution Rev.",VLOOKUP(I$4,'4. Billing Determinants'!$B$19:$O$41,8,0)/'4. Billing Determinants'!$I$41*$D26, VLOOKUP(I$4,'4. Billing Determinants'!$B$19:$O$41,3,0)/'4. Billing Determinants'!$D$41*$D26))))),0) -> 2.937288883e-05 | J26: =IFERROR(IF(J$4="",0,IF($E26="kWh",VLOOKUP(J$4,'4. Billing Determinants'!$B$19:$O$41,4,0)/'4. Billing Determinants'!$E$41*$D26,IF($E26="kW",VLOOKUP(J$4,'4. Billing Determinants'!$B$19:$O$41,5,0)/'4. Billing Determinants'!$F$41*$D26,IF($E26="Non-RPP kWh",VLOOKUP(J$4,'4. Billing Determinants'!$B$19:$O$41,6,0)/'4. Billing Determinants'!$G$41*$D26,IF($E26="Distribution Rev.",VLOOKUP(J$4,'4. Billing Determinants'!$B$19:$O$41,8,0)/'4. Billing Determinants'!$I$41*$D26, VLOOKUP(J$4,'4. Billing Determinants'!$B$19:$O$41,3,0)/'4. Billing Determinants'!$D$41*$D26))))),0) -> 0.0001233661331 | K26: =IFERROR(IF(K$4="",0,IF($E26="kWh",VLOOKUP(K$4,'4. Billing Determinants'!$B$19:$O$41,4,0)/'4. Billing Determinants'!$E$41*$D26,IF($E26="kW",VLOOKUP(K$4,'4. Billing Determinants'!$B$19:$O$41,5,0)/'4. Billing Determinants'!$F$41*$D26,IF($E26="Non-RPP kWh",VLOOKUP(K$4,'4. Billing Determinants'!$B$19:$O$41,6,0)/'4. Billing Determinants'!$G$41*$D26,IF($E26="Distribution Rev.",VLOOKUP(K$4,'4. Billing Determinants'!$B$19:$O$41,8,0)/'4. Billing Determinants'!$I$41*$D26, VLOOKUP(K$4,'4. Billing Determinants'!$B$19:$O$41,3,0)/'4. Billing Determinants'!$D$41*$D26))))),0) -> 0.00707299163 | L26: =IFERROR(IF(L$4="",0,IF($E26="kWh",VLOOKUP(L$4,'4. Billing Determinants'!$B$19:$O$41,4,0)/'4. Billing Determinants'!$E$41*$D26,IF($E26="kW",VLOOKUP(L$4,'4. Billing Determinants'!$B$19:$O$41,5,0)/'4. Billing Determinants'!$F$41*$D26,IF($E26="Non-RPP kWh",VLOOKUP(L$4,'4. Billing Determinants'!$B$19:$O$41,6,0)/'4. Billing Determinants'!$G$41*$D26,IF($E26="Distribution Rev.",VLOOKUP(L$4,'4. Billing Determinants'!$B$19:$O$41,8,0)/'4. Billing Determinants'!$I$41*$D26, VLOOKUP(L$4,'4. Billing Determinants'!$B$19:$O$41,3,0)/'4. Billing Determinants'!$D$41*$D26))))),0) -> 0 | M26: =IFERROR(IF(M$4="",0,IF($E26="kWh",VLOOKUP(M$4,'4. Billing Determinants'!$B$19:$O$41,4,0)/'4. Billing Determinants'!$E$41*$D26,IF($E26="kW",VLOOKUP(M$4,'4. Billing Determinants'!$B$19:$O$41,5,0)/'4. Billing Determinants'!$F$41*$D26,IF($E26="Non-RPP kWh",VLOOKUP(M$4,'4. Billing Determinants'!$B$19:$O$41,6,0)/'4. Billing Determinants'!$G$41*$D26,IF($E26="Distribution Rev.",VLOOKUP(M$4,'4. Billing Determinants'!$B$19:$O$41,8,0)/'4. Billing Determinants'!$I$41*$D26, VLOOKUP(M$4,'4. Billing Determinants'!$B$19:$O$41,3,0)/'4. Billing Determinants'!$D$41*$D26))))),0) -> 0 | N26: =IFERROR(IF(N$4="",0,IF($E26="kWh",VLOOKUP(N$4,'4. Billing Determinants'!$B$19:$O$41,4,0)/'4. Billing Determinants'!$E$41*$D26,IF($E26="kW",VLOOKUP(N$4,'4. Billing Determinants'!$B$19:$O$41,5,0)/'4. Billing Determinants'!$F$41*$D26,IF($E26="Non-RPP kWh",VLOOKUP(N$4,'4. Billing Determinants'!$B$19:$O$41,6,0)/'4. Billing Determinants'!$G$41*$D26,IF($E26="Distribution Rev.",VLOOKUP(N$4,'4. Billing Determinants'!$B$19:$O$41,8,0)/'4. Billing Determinants'!$I$41*$D26, VLOOKUP(N$4,'4. Billing Determinants'!$B$19:$O$41,3,0)/'4. Billing Determinants'!$D$41*$D26))))),0) -> 0 | O26: =IFERROR(IF(O$4="",0,IF($E26="kWh",VLOOKUP(O$4,'4. Billing Determinants'!$B$19:$O$41,4,0)/'4. Billing Determinants'!$E$41*$D26,IF($E26="kW",VLOOKUP(O$4,'4. Billing Determinants'!$B$19:$O$41,5,0)/'4. Billing Determinants'!$F$41*$D26,IF($E26="Non-RPP kWh",VLOOKUP(O$4,'4. Billing Determinants'!$B$19:$O$41,6,0)/'4. Billing Determinants'!$G$41*$D26,IF($E26="Distribution Rev.",VLOOKUP(O$4,'4. Billing Determinants'!$B$19:$O$41,8,0)/'4. Billing Determinants'!$I$41*$D26, VLOOKUP(O$4,'4. Billing Determinants'!$B$19:$O$41,3,0)/'4. Billing Determinants'!$D$41*$D26))))),0) -> 0 | P26: =IFERROR(IF(P$4="",0,IF($E26="kWh",VLOOKUP(P$4,'4. Billing Determinants'!$B$19:$O$41,4,0)/'4. Billing Determinants'!$E$41*$D26,IF($E26="kW",VLOOKUP(P$4,'4. Billing Determinants'!$B$19:$O$41,5,0)/'4. Billing Determinants'!$F$41*$D26,IF($E26="Non-RPP kWh",VLOOKUP(P$4,'4. Billing Determinants'!$B$19:$O$41,6,0)/'4. Billing Determinants'!$G$41*$D26,IF($E26="Distribution Rev.",VLOOKUP(P$4,'4. Billing Determinants'!$B$19:$O$41,8,0)/'4. Billing Determinants'!$I$41*$D26, VLOOKUP(P$4,'4. Billing Determinants'!$B$19:$O$41,3,0)/'4. Billing Determinants'!$D$41*$D26))))),0) -> 0 | Q26: =IFERROR(IF(Q$4="",0,IF($E26="kWh",VLOOKUP(Q$4,'4. Billing Determinants'!$B$19:$O$41,4,0)/'4. Billing Determinants'!$E$41*$D26,IF($E26="kW",VLOOKUP(Q$4,'4. Billing Determinants'!$B$19:$O$41,5,0)/'4. Billing Determinants'!$F$41*$D26,IF($E26="Non-RPP kWh",VLOOKUP(Q$4,'4. Billing Determinants'!$B$19:$O$41,6,0)/'4. Billing Determinants'!$G$41*$D26,IF($E26="Distribution Rev.",VLOOKUP(Q$4,'4. Billing Determinants'!$B$19:$O$41,8,0)/'4. Billing Determinants'!$I$41*$D26, VLOOKUP(Q$4,'4. Billing Determinants'!$B$19:$O$41,3,0)/'4. Billing Determinants'!$D$41*$D26))))),0) -> 0 | R26: =IFERROR(IF(R$4="",0,IF($E26="kWh",VLOOKUP(R$4,'4. Billing Determinants'!$B$19:$O$41,4,0)/'4. Billing Determinants'!$E$41*$D26,IF($E26="kW",VLOOKUP(R$4,'4. Billing Determinants'!$B$19:$O$41,5,0)/'4. Billing Determinants'!$F$41*$D26,IF($E26="Non-RPP kWh",VLOOKUP(R$4,'4. Billing Determinants'!$B$19:$O$41,6,0)/'4. Billing Determinants'!$G$41*$D26,IF($E26="Distribution Rev.",VLOOKUP(R$4,'4. Billing Determinants'!$B$19:$O$41,8,0)/'4. Billing Determinants'!$I$41*$D26, VLOOKUP(R$4,'4. Billing Determinants'!$B$19:$O$41,3,0)/'4. Billing Determinants'!$D$41*$D26))))),0) -> 0 | S26: =IFERROR(IF(S$4="",0,IF($E26="kWh",VLOOKUP(S$4,'4. Billing Determinants'!$B$19:$O$41,4,0)/'4. Billing Determinants'!$E$41*$D26,IF($E26="kW",VLOOKUP(S$4,'4. Billing Determinants'!$B$19:$O$41,5,0)/'4. Billing Determinants'!$F$41*$D26,IF($E26="Non-RPP kWh",VLOOKUP(S$4,'4. Billing Determinants'!$B$19:$O$41,6,0)/'4. Billing Determinants'!$G$41*$D26,IF($E26="Distribution Rev.",VLOOKUP(S$4,'4. Billing Determinants'!$B$19:$O$41,8,0)/'4. Billing Determinants'!$I$41*$D26, VLOOKUP(S$4,'4. Billing Determinants'!$B$19:$O$41,3,0)/'4. Billing Determinants'!$D$41*$D26))))),0) -> 0 | T26: =IFERROR(IF(T$4="",0,IF($E26="kWh",VLOOKUP(T$4,'4. Billing Determinants'!$B$19:$O$41,4,0)/'4. Billing Determinants'!$E$41*$D26,IF($E26="kW",VLOOKUP(T$4,'4. Billing Determinants'!$B$19:$O$41,5,0)/'4. Billing Determinants'!$F$41*$D26,IF($E26="Non-RPP kWh",VLOOKUP(T$4,'4. Billing Determinants'!$B$19:$O$41,6,0)/'4. Billing Determinants'!$G$41*$D26,IF($E26="Distribution Rev.",VLOOKUP(T$4,'4. Billing Determinants'!$B$19:$O$41,8,0)/'4. Billing Determinants'!$I$41*$D26, VLOOKUP(T$4,'4. Billing Determinants'!$B$19:$O$41,3,0)/'4. Billing Determinants'!$D$41*$D26))))),0) -> 0 | U26: =IFERROR(IF(U$4="",0,IF($E26="kWh",VLOOKUP(U$4,'4. Billing Determinants'!$B$19:$O$41,4,0)/'4. Billing Determinants'!$E$41*$D26,IF($E26="kW",VLOOKUP(U$4,'4. Billing Determinants'!$B$19:$O$41,5,0)/'4. Billing Determinants'!$F$41*$D26,IF($E26="Non-RPP kWh",VLOOKUP(U$4,'4. Billing Determinants'!$B$19:$O$41,6,0)/'4. Billing Determinants'!$G$41*$D26,IF($E26="Distribution Rev.",VLOOKUP(U$4,'4. Billing Determinants'!$B$19:$O$41,8,0)/'4. Billing Determinants'!$I$41*$D26, VLOOKUP(U$4,'4. Billing Determinants'!$B$19:$O$41,3,0)/'4. Billing Determinants'!$D$41*$D26))))),0) -> 0 | V26: =IFERROR(IF(V$4="",0,IF($E26="kWh",VLOOKUP(V$4,'4. Billing Determinants'!$B$19:$O$41,4,0)/'4. Billing Determinants'!$E$41*$D26,IF($E26="kW",VLOOKUP(V$4,'4. Billing Determinants'!$B$19:$O$41,5,0)/'4. Billing Determinants'!$F$41*$D26,IF($E26="Non-RPP kWh",VLOOKUP(V$4,'4. Billing Determinants'!$B$19:$O$41,6,0)/'4. Billing Determinants'!$G$41*$D26,IF($E26="Distribution Rev.",VLOOKUP(V$4,'4. Billing Determinants'!$B$19:$O$41,8,0)/'4. Billing Determinants'!$I$41*$D26, VLOOKUP(V$4,'4. Billing Determinants'!$B$19:$O$41,3,0)/'4. Billing Determinants'!$D$41*$D26))))),0) -> 0 | W26: =IFERROR(IF(W$4="",0,IF($E26="kWh",VLOOKUP(W$4,'4. Billing Determinants'!$B$19:$O$41,4,0)/'4. Billing Determinants'!$E$41*$D26,IF($E26="kW",VLOOKUP(W$4,'4. Billing Determinants'!$B$19:$O$41,5,0)/'4. Billing Determinants'!$F$41*$D26,IF($E26="Non-RPP kWh",VLOOKUP(W$4,'4. Billing Determinants'!$B$19:$O$41,6,0)/'4. Billing Determinants'!$G$41*$D26,IF($E26="Distribution Rev.",VLOOKUP(W$4,'4. Billing Determinants'!$B$19:$O$41,8,0)/'4. Billing Determinants'!$I$41*$D26, VLOOKUP(W$4,'4. Billing Determinants'!$B$19:$O$41,3,0)/'4. Billing Determinants'!$D$41*$D26))))),0) -> 0 | X26: =IFERROR(IF(X$4="",0,IF($E26="kWh",VLOOKUP(X$4,'4. Billing Determinants'!$B$19:$O$41,4,0)/'4. Billing Determinants'!$E$41*$D26,IF($E26="kW",VLOOKUP(X$4,'4. Billing Determinants'!$B$19:$O$41,5,0)/'4. Billing Determinants'!$F$41*$D26,IF($E26="Non-RPP kWh",VLOOKUP(X$4,'4. Billing Determinants'!$B$19:$O$41,6,0)/'4. Billing Determinants'!$G$41*$D26,IF($E26="Distribution Rev.",VLOOKUP(X$4,'4. Billing Determinants'!$B$19:$O$41,8,0)/'4. Billing Determinants'!$I$41*$D26, VLOOKUP(X$4,'4. Billing Determinants'!$B$19:$O$41,3,0)/'4. Billing Determinants'!$D$41*$D26))))),0) -> 0 | Y26: =IFERROR(IF(Y$4="",0,IF($E26="kWh",VLOOKUP(Y$4,'4. Billing Determinants'!$B$19:$O$41,4,0)/'4. Billing Determinants'!$E$41*$D26,IF($E26="kW",VLOOKUP(Y$4,'4. Billing Determinants'!$B$19:$O$41,5,0)/'4. Billing Determinants'!$F$41*$D26,IF($E26="Non-RPP kWh",VLOOKUP(Y$4,'4. Billing Determinants'!$B$19:$O$41,6,0)/'4. Billing Determinants'!$G$41*$D26,IF($E26="Distribution Rev.",VLOOKUP(Y$4,'4. Billing Determinants'!$B$19:$O$41,8,0)/'4. Billing Determinants'!$I$41*$D26, VLOOKUP(Y$4,'4. Billing Determinants'!$B$19:$O$41,3,0)/'4. Billing Determinants'!$D$41*$D26))))),0) -> 0
